Workbook

Sheet Instructions
A1: ='DNSP Inputs O & M'!$A$3 -> United Energy
A3: Instructions
A5: This model is to be used for the setting of Public Lighting Tariffs for the Regulatory Period 2016 to 2020 based on forecast inflation rates and Real Pre Tax WACC.
A7: Distributor data input fields are shaded | C7: and located in tabs "DNSP Inputs General" , "DNSP Inputs O & M" and "DNSP Inputs Capex"
A8: NOTE : All Distributor data input fields have been populated with test data in this model.
A12: This model will also to be used for the annual Public Lighting Tariff Approvals in the Regulatory Period 2016 to 2020 based on actual inflation rates and Real Pre Tax WACC.
H70: =G70 -> 0 | I70: =H70 -> 0 | J70: =I70 -> 0 | K70: =J70 -> 0 | L70: =K70 -> 0

Sheet Sheet3 (hidden)
A2: Opex | D2: 2016 | E2: 2017 | F2: 2018 | G2: 2019 | H2: 2020
A3: Variance | D3: =#REF! ->  | E3: =#REF! ->  | F3: =#REF! ->  | G3: =#REF! ->  | H3: =#REF! -> 
D6: =#REF! -> 
D7: =#REF! ->  | E7: =#REF! ->  | F7: =#REF! ->  | G7: =#REF! ->  | H7: =#REF! -> 
A8: =#REF! ->  | B8: =#REF! ->  | C8: =#REF! ->  | D8: =#REF! ->  | E8: =#REF! ->  | F8: =#REF! ->  | G8: =#REF! ->  | H8: =#REF! -> 
A9: =#REF! ->  | B9: =#REF! ->  | C9: =#REF! ->  | D9: =#REF! ->  | E9: =#REF! ->  | F9: =#REF! ->  | G9: =#REF! ->  | H9: =#REF! -> 
A10: =#REF! ->  | B10: =#REF! ->  | C10: =#REF! ->  | D10: =#REF! ->  | E10: =#REF! ->  | F10: =#REF! ->  | G10: =#REF! ->  | H10: =#REF! -> 
A11: =#REF! ->  | B11: =#REF! ->  | C11: =#REF! ->  | D11: =#REF! ->  | E11: =#REF! ->  | F11: =#REF! ->  | G11: =#REF! ->  | H11: =#REF! -> 
D13: =#REF! -> 
D14: =#REF! ->  | E14: =#REF! ->  | F14: =#REF! ->  | G14: =#REF! ->  | H14: =#REF! ->  | L14: Patrol/Inspection breakdown'
K15: Inspection | L15: 0.4816445992
A16: MV80 | B16: Inspection | C16: 0.5524963581 | D16: =$C$16*$L$15*D14 ->  | E16: =$C$16*$L$15*E14 ->  | F16: =$C$16*$L$15*F14 ->  | G16: =$C$16*$L$15*G14 ->  | H16: =$C$16*$L$15*H14 ->  | K16: Patrol | L16: 0.5183554008
A17: 150 | B17: Inspection | C17: 0.2086793026 | D17: =$C$17*$L$15*D14 ->  | E17: =$C$17*$L$15*E14 ->  | F17: =$C$17*$L$15*F14 ->  | G17: =$C$17*$L$15*G14 ->  | H17: =$C$17*$L$15*H14 -> 
B18: Patrol | C18: 0.7063671127 | D18: =$C$18*D14 ->  | E18: =$C$18*E14 ->  | F18: =$C$18*F14 ->  | G18: =$C$18*G14 ->  | H18: =$C$18*H14 -> 
A19: 250 | B19: Inspection | C19: 0.08674686205 | D19: =$C$19*$L$15*D14 ->  | E19: =$C$19*$L$15*E14 ->  | F19: =$C$19*$L$15*F14 ->  | G19: =$C$19*$L$15*G14 ->  | H19: =$C$19*$L$15*H14 -> 
B20: patrol | C20: 0.2936328873 | D20: =$C$20*D14 ->  | E20: =$C$20*E14 ->  | F20: =$C$20*F14 ->  | G20: =$C$20*G14 ->  | H20: =$C$20*H14 -> 
B21: Moving average | D21: 0.09861048857 | E21: 0.1253918495 | F21: 0.1521252796 | G21: 0.1788109075 | H21: 0.2054488611
A22: T5 | B22: Inspection | C22: =#REF! ->  | D22: =$H$21*$L$15*D14 ->  | E22: =$H$21*$L$15*E14 ->  | F22: =$H$21*$L$15*F14 ->  | G22: =$H$21*$L$15*G14 ->  | H22: =$H$21*$L$15*H14 -> 

Sheet UE cost buildup (hidden)

Sheet O & M Cost assumptions
A3: Short code | B3: Activity Description | C3: Sum of CY 2015 | D3: Sum of CY 2016 | E3: Sum of CY 2017 | F3: Sum of CY 2018 | G3: Sum of CY 2019 | H3: Sum of CY 2020
A4: MLF | B4: MLF - P/L Main Roads Faults | C4: 2924 | D4: 3202 | E4: 3278 | F4: 3354 | G4: 3354 | H4: 3354
A5: MLP | B5: MLP - Public Light Maint-Light Patrol | C5: 6 | D5: 6 | E5: 6 | F5: 6 | G5: 6 | H5: 6
A6: MLR | B6: MLR - P/L pole repairs Main Roads | C6: 1463 | D6: 1812 | E6: 1931 | F6: 2050 | G6: 2050 | H6: 2050
A7: MRB | B7: MRB - Bulk Replacement Lamp Minor Rd | C7: 15420 | D7: 15080 | E7: 15080 | F7: 15080 | G7: 15080 | H7: 15080
A8: MRF | B8: MRF - P/L Minor Roads Faults | C8: 1840 | D8: 2100 | E8: 2100 | F8: 2100 | G8: 2100 | H8: 2100
A9: MRR | B9: MRR - PL Minor Roads Pole Repairs | C9: 1538 | D9: 1455 | E9: 1440 | F9: 1424 | G9: 1408 | H9: 1393
A10: MRS | B10: MRS - Bulk Replacement Lamp Sustainable | C10: 10260 | D10: 10000 | E10: 10000 | F10: 10000 | G10: 10000 | H10: 10000
A11: Grand Total | C11: 33451 | D11: 33655 | E11: 33835 | F11: 34014 | G11: 33998 | H11: 33983
A13: Labour rate (per hour) | C13: 90.24 | D13: 90.24 | E13: 90.24 | F13: 90.24 | G13: 90.24 | H13: 90.24
A14: Labour rate for night patrols (per hour) | C14: 132 | D14: 132 | E14: 132 | F14: 132 | G14: 132 | H14: 132
A15: Number of men in crew | C15: 2 | D15: 2 | E15: 2 | F15: 2 | G15: 2 | H15: 2
A16: Elevated platform vehicle (per hour) - urban MV,urban T5 | C16: 40.42 | D16: 40.42 | E16: 40.42 | F16: 40.42 | G16: 40.42 | H16: 40.42
A17: Elevated platform vehicle (per hour) - rural MV, rural T5, S-HP | C17: 40.42 | D17: 40.42 | E17: 40.42 | F17: 40.42 | G17: 40.42 | H17: 40.42
A18: Patrol vehicle (per hour) | C18: 10 | D18: 10 | E18: 10 | F18: 10 | G18: 10 | H18: 10
A19: Number of hours in a day | C19: 8 | D19: 8 | E19: 8 | F19: 8 | G19: 8 | H19: 8
A20: Indirect overheads | C20: 0.25 | D20: 0.25 | E20: 0.25 | F20: 0.25 | G20: 0.25 | H20: 0.25
A22: Location of selected public lighting assets within distributors' areas (%)
A23: Urban | C23: 0.84 | D23: 0.92 | E23: 0.92 | F23: 0.92 | G23: 0.92 | H23: 0.92
A24: Rural | C24: 0.16 | D24: 0.08 | E24: 0.08 | F24: 0.08 | G24: 0.08 | H24: 0.08
A26: MV80
A27: Depreciation period | C27: 20 | D27: 20 | E27: 20 | F27: 20 | G27: 20 | H27: 20
A28: Lamps - bulk change | C28: 4 | D28: 4 | E28: 4 | F28: 4 | G28: 4 | H28: 4
A29: PE cells - bulk change | C29: 8 | D29: 8 | E29: 8 | F29: 8 | G29: 8 | H29: 8
A30: Unit cost - lamp | C30: 4.93277626 | D30: 4.93277626 | E30: 4.93277626 | F30: 4.93277626 | G30: 4.93277626 | H30: 4.93277626
A31: Unit cost - PE cell | C31: 19.9146 | D31: 19.9146 | E31: 19.9146 | F31: 19.9146 | G31: 19.9146 | H31: 19.9146
A32: Unit cost - luminaire | C32: 171.1360341 | D32: 171.1360341 | E32: 171.1360341 | F32: 171.1360341 | G32: 171.1360341 | H32: 171.1360341
A33: Unit cost - miscellaneous materials (bulk lamp) | C33: 1.079382114 | D33: 1.079382114 | E33: 1.079382114 | F33: 1.079382114 | G33: 1.079382114 | H33: 1.079382114
A34: Unit cost - miscellaneous materials (repair) | C34: 10.79382114 | D34: 10.79382114 | E34: 10.79382114 | F34: 10.79382114 | G34: 10.79382114 | H34: 10.79382114
A35: Number of bulk lamp changes in 1 day - urban | C35: 90 | D35: 60 | E35: 60 | F35: 60 | G35: 60 | H35: 60
A36: Number of bulk lamp changes in 1 day - rural | C36: 75 | D36: 40 | E36: 40 | F36: 40 | G36: 40 | H36: 40
A37: Number of repairs in 1 day - urban | C37: 30 | D37: 18 | E37: 18 | F37: 18 | G37: 18 | H37: 18
A38: Number of repairs in 1 day - rural | C38: 25 | D38: 10 | E38: 10 | F38: 10 | G38: 10 | H38: 10
A39: % of repairs - lamps | C39: 0.6 | D39: 0.6 | E39: 0.6 | F39: 0.6 | G39: 0.6 | H39: 0.6
A40: % of repairs - PE cells | C40: 0.5 | D40: 0.5 | E40: 0.5 | F40: 0.5 | G40: 0.5 | H40: 0.5
A41: % of repairs - luminaires | C41: 0.15 | D41: 0.15 | E41: 0.15 | F41: 0.15 | G41: 0.15 | H41: 0.15
A42: % of repairs - other | C42: 0.1 | D42: 0.1 | E42: 0.1 | F42: 0.1 | G42: 0.1 | H42: 0.1
A44: ENERGY EFFICIENT LIGHTS
A46: Inputs - T5 (2 X 14W)
A48: Depreciation period | C48: 20 | D48: =C48 -> 20 | E48: =D48 -> 20 | F48: =E48 -> 20 | G48: =F48 -> 20 | H48: =G48 -> 20
A49: Lamps - bulk change | C49: 4 | D49: 4 | E49: 4 | F49: 4 | G49: 4 | H49: 4
A50: PE cells - bulk change | C50: 8 | D50: 8 | E50: 8 | F50: 8 | G50: 8 | H50: 8
A51: Unit cost - lamp | C51: 8.63505691 | D51: =C51 -> 8.63505691 | E51: 8.63505691 | F51: 8.63505691 | G51: 8.63505691 | H51: 8.63505691
A52: Unit cost - PE cell | C52: 14.57165854 | D52: 14.57165854 | E52: 14.57165854 | F52: 14.57165854 | G52: 14.57165854 | H52: 14.57165854
A53: Unit cost - luminaire | C53: 208.320748 | D53: 208.320748 | E53: 208.320748 | F53: 208.320748 | G53: 208.320748 | H53: 208.320748
A54: Unit cost - miscellaneous materials (bulk lamp) | C54: 1.079382114 | D54: 1.079382114 | E54: 1.079382114 | F54: 1.079382114 | G54: 1.079382114 | H54: 1.079382114
A55: Unit cost - miscellaneous materials (repair) | C55: 10.79382114 | D55: 10.79382114 | E55: 10.79382114 | F55: 10.79382114 | G55: 10.79382114 | H55: 10.79382114
A56: Number of bulk lamp changes in 1 day - urban | C56: 77 | D56: 29 | E56: =D56 -> 29 | F56: 29 | G56: 29 | H56: 29
A57: Number of bulk lamp changes in 1 day - rural | C57: 64 | D57: 20 | E57: 20 | F57: 20 | G57: 20 | H57: 20
A58: Number of repairs in 1 day - urban | C58: 26 | D58: 20 | E58: =D58 -> 20 | F58: =E58 -> 20 | G58: 20 | H58: 20
A59: Number of repairs in 1 day - rural | C59: 21 | D59: 10 | E59: 10 | F59: 10 | G59: 10 | H59: 10
A60: % of repairs - lamps | C60: 0.6 | D60: 0.6 | E60: 0.6 | F60: 0.6 | G60: 0.6 | H60: 0.6
A61: % of repairs - PE cells | C61: 0.5 | D61: 0.5 | E61: 0.5 | F61: 0.5 | G61: 0.5 | H61: 0.5
A62: % of repairs - luminaires | C62: 0.15 | D62: 0.15 | E62: 0.15 | F62: 0.15 | G62: 0.15 | H62: 0.15
A63: % of repairs - other | C63: 0.1 | D63: 0.1 | E63: 0.1 | F63: 0.1 | G63: 0.1 | H63: 0.1
A65: Inputs - S-HP150
A67: Depreciation period | C67: 20 | D67: 20 | E67: 20 | F67: 20 | G67: 20 | H67: 20
A68: Number of patrols per year | C68: 3 | D68: 3 | E68: 3 | F68: 3 | G68: 3 | H68: 3
A69: Lamps - frequency of replacement | C69: 5 | D69: 5 | E69: 5 | F69: 5 | G69: 5 | H69: 5
A70: PE cells - frequency of replacement | C70: 10 | D70: 10 | E70: 10 | F70: 10 | G70: 10 | H70: 10
A71: Unit cost - lamp | C71: 35.67357886 | D71: 35.67 | E71: 35.67 | F71: 35.67 | G71: 35.67 | H71: 35.67
A72: Unit cost - PE cell | C72: 19.37490894 | D72: 19.37 | E72: 19.37 | F72: 19.37 | G72: 19.37 | H72: 19.37
A73: Unit cost - miscellaneous materials | C73: 2.158764228 | D73: 2.16 | E73: 2.16 | F73: 2.16 | G73: 2.16 | H73: 2.16
A74: Number of lamps patrolled in 1 day - urban | C74: 3000 | D74: 3300 | E74: 3300 | F74: 3300 | G74: 3300 | H74: 3300
A75: Number of lamps patrolled in 1 day - rural | C75: 2000 | D75: 2200 | E75: 2200 | F75: 2200 | G75: 2200 | H75: 2200
A76: Number of repairs in 1 day - urban | C76: 20 | D76: 12 | E76: 12 | F76: 12 | G76: 12 | H76: 12
A77: Number of repairs in 1 day - rural | C77: 16 | D77: 9 | E77: 9 | F77: 9 | G77: 9 | H77: 9
A79: Inputs - S-HP250
A81: Depreciation period | C81: 20 | D81: 20 | E81: 20 | F81: 20 | G81: 20 | H81: 20
A82: Number of patrols per year | C82: 3 | D82: 3 | E82: 3 | F82: 3 | G82: 3 | H82: 3
A83: Lamps - frequency of replacement | C83: 5 | D83: 5 | E83: 5 | F83: 5 | G83: 5 | H83: 5
A84: PE cells - frequency of replacement | C84: 10 | D84: 10 | E84: 10 | F84: 10 | G84: 10 | H84: 10
A85: Unit cost - lamp | C85: 35.84628 | D85: 35.85 | E85: 35.85 | F85: 35.85 | G85: 35.85 | H85: 35.85
A86: Unit cost - PE cell | C86: 19.37490894 | D86: 19.37 | E86: 19.37 | F86: 19.37 | G86: 19.37 | H86: 19.37
A87: Unit cost - miscellaneous materials | C87: 2.158764228 | D87: 2.16 | E87: 2.16 | F87: 2.16 | G87: 2.16 | H87: 2.16
A88: Number of lamps patrolled in 1 day - urban | C88: 3000 | D88: 3300 | E88: 3300 | F88: 3300 | G88: 3300 | H88: 3300
A89: Number of lamps patrolled in 1 day - rural | C89: 2000 | D89: 2200 | E89: 2000 | F89: 2000 | G89: 2000 | H89: 2000
A90: Number of repairs in 1 day - urban | C90: 20 | D90: 12 | E90: 12 | F90: 12 | G90: 12 | H90: 12
A91: Number of repairs in 1 day - rural | C91: 16 | D91: 9 | E91: 9 | F91: 9 | G91: 9 | H91: 9

Sheet O & M Cost buildup
A1: Cost build up | C1: 2016 | D1: 2017 | E1: 2018 | F1: 2019 | G1: 2020
A3: Major roads
A4: Faults
A5: Number of lights
A6: Urban | B6: lights | C6: =' O & M Cost assumptions'!D4*' O & M Cost assumptions'!D23 -> 2945.84 | D6: =' O & M Cost assumptions'!E4*' O & M Cost assumptions'!E23 -> 3015.76 | E6: =' O & M Cost assumptions'!F4*' O & M Cost assumptions'!F23 -> 3085.68 | F6: =' O & M Cost assumptions'!G4*' O & M Cost assumptions'!G23 -> 3085.68 | G6: =' O & M Cost assumptions'!H4*' O & M Cost assumptions'!H23 -> 3085.68
A7: Rural | B7: lights | C7: =' O & M Cost assumptions'!D4*' O & M Cost assumptions'!D24 -> 256.16 | D7: =' O & M Cost assumptions'!E4*' O & M Cost assumptions'!E24 -> 262.24 | E7: =' O & M Cost assumptions'!F4*' O & M Cost assumptions'!F24 -> 268.32 | F7: =' O & M Cost assumptions'!G4*' O & M Cost assumptions'!G24 -> 268.32 | G7: =' O & M Cost assumptions'!H4*' O & M Cost assumptions'!H24 -> 268.32
A8: Working days
A9: Urban | B9: days | C9: =C6/' O & M Cost assumptions'!$D$76 -> 245.4866667 | D9: =D6/' O & M Cost assumptions'!$D$76 -> 251.3133333 | E9: =E6/' O & M Cost assumptions'!$D$76 -> 257.14 | F9: =F6/' O & M Cost assumptions'!$D$76 -> 257.14 | G9: =G6/' O & M Cost assumptions'!$D$76 -> 257.14
A10: Rural | B10: days | C10: =C7/' O & M Cost assumptions'!$D$77 -> 28.46222222 | D10: =D7/' O & M Cost assumptions'!$D$77 -> 29.13777778 | E10: =E7/' O & M Cost assumptions'!$D$77 -> 29.81333333 | F10: =F7/' O & M Cost assumptions'!$D$77 -> 29.81333333 | G10: =G7/' O & M Cost assumptions'!$D$77 -> 29.81333333
A12: Fault repair costs
A13: Labour | C13: =SUM(C9:C10)*' O & M Cost assumptions'!$D$15*' O & M Cost assumptions'!$D$13*' O & M Cost assumptions'!$D$19 -> 395538.3637 | D13: =SUM(D9:D10)*' O & M Cost assumptions'!$E$15*' O & M Cost assumptions'!$E$13*' O & M Cost assumptions'!$E$19 -> 404926.5323 | E13: =SUM(E9:E10)*' O & M Cost assumptions'!$F$15*' O & M Cost assumptions'!$F$13*' O & M Cost assumptions'!$F$19 -> 414314.7008 | F13: =SUM(F9:F10)*' O & M Cost assumptions'!$G$15*' O & M Cost assumptions'!$G$13*' O & M Cost assumptions'!$G$19 -> 414314.7008 | G13: =SUM(G9:G10)*' O & M Cost assumptions'!$H$15*' O & M Cost assumptions'!$H$13*' O & M Cost assumptions'!$H$19 -> 414314.7008
A14: Elevated platform | C14: =' O & M Cost assumptions'!$D$16*' O & M Cost assumptions'!$D$19*SUM(C9:C10) -> 88584.11271 | D14: =' O & M Cost assumptions'!$E$16*' O & M Cost assumptions'!$E$19*SUM(D9:D10) -> 90686.67129 | E14: =' O & M Cost assumptions'!$F$16*' O & M Cost assumptions'!$F$19*SUM(E9:E10) -> 92789.22987 | F14: =' O & M Cost assumptions'!$G$16*' O & M Cost assumptions'!$G$19*SUM(F9:F10) -> 92789.22987 | G14: =' O & M Cost assumptions'!$H$16*' O & M Cost assumptions'!$H$19*SUM(G9:G10) -> 92789.22987
A15: Material | C15: =' O & M Cost assumptions'!D4*SUM(' O & M Cost assumptions'!C71:C73,' O & M Cost assumptions'!C85:C87)/2 -> 183454.1155 | D15: =' O & M Cost assumptions'!E4*SUM(' O & M Cost assumptions'!D71:D73,' O & M Cost assumptions'!D85:D87)/2 -> 187796.62 | E15: =' O & M Cost assumptions'!F4*SUM(' O & M Cost assumptions'!E71:E73,' O & M Cost assumptions'!E85:E87)/2 -> 192150.66 | F15: =' O & M Cost assumptions'!G4*SUM(' O & M Cost assumptions'!F71:F73,' O & M Cost assumptions'!F85:F87)/2 -> 192150.66 | G15: =' O & M Cost assumptions'!H4*SUM(' O & M Cost assumptions'!G71:G73,' O & M Cost assumptions'!G85:G87)/2 -> 192150.66
A17: Pole repairs
A18: Unit rate (UE) | C18: 292 | D18: 292 | E18: 292 | F18: 292 | G18: 292
C19: =C18*' O & M Cost assumptions'!D6 -> 529104 | D19: =D18*' O & M Cost assumptions'!E6 -> 563852 | E19: =E18*' O & M Cost assumptions'!F6 -> 598600 | F19: =F18*' O & M Cost assumptions'!G6 -> 598600 | G19: =G18*' O & M Cost assumptions'!H6 -> 598600
A20: Patrols
A21: Labour + Vehicle | C21: 94000 | D21: 94000 | E21: 94000 | F21: 94000 | G21: 94000
A23: Traffic management | C23: 100000 | D23: 100000 | E23: 100000 | F23: 100000 | G23: 100000
A25: Miscellaneous costs | C25: 594.2930315 | D25: 3549.720444 | E25: 6492.589333 | F25: 6492.589333 | G25: 6492.589333
A27: Total ($$) | C27: =C25+(SUM(C13:C15,C19,C21,C23)) -> 1391274.885 | D27: =D25+(SUM(D13:D15,D19,D21,D23)) -> 1444811.544 | E27: =E25+(SUM(E13:E15,E19,E21,E23)) -> 1498347.18 | F27: =F25+(SUM(F13:F15,F19,F21,F23)) -> 1498347.18 | G27: =G25+(SUM(G13:G15,G19,G21,G23)) -> 1498347.18
A29: Minor roads
A30: Bulk changes
A31: MV 80
A32: Number of lights
A33: Urban | B33: lights | C33: =' O & M Cost assumptions'!D7*' O & M Cost assumptions'!D23 -> 13873.6 | D33: =' O & M Cost assumptions'!E7*' O & M Cost assumptions'!E23 -> 13873.6 | E33: =' O & M Cost assumptions'!F7*' O & M Cost assumptions'!F23 -> 13873.6 | F33: =' O & M Cost assumptions'!G7*' O & M Cost assumptions'!G23 -> 13873.6 | G33: =' O & M Cost assumptions'!H7*' O & M Cost assumptions'!H23 -> 13873.6
A34: Rural | B34: lights | C34: =' O & M Cost assumptions'!D7*' O & M Cost assumptions'!D24 -> 1206.4 | D34: =' O & M Cost assumptions'!E7*' O & M Cost assumptions'!E24 -> 1206.4 | E34: =' O & M Cost assumptions'!F7*' O & M Cost assumptions'!F24 -> 1206.4 | F34: =' O & M Cost assumptions'!G7*' O & M Cost assumptions'!G24 -> 1206.4 | G34: =' O & M Cost assumptions'!H7*' O & M Cost assumptions'!H24 -> 1206.4
A36: Working days | B36: days | C36: =C33/' O & M Cost assumptions'!D35 -> 231.2266667 | D36: =D33/' O & M Cost assumptions'!E35 -> 231.2266667 | E36: =E33/' O & M Cost assumptions'!F35 -> 231.2266667 | F36: =F33/' O & M Cost assumptions'!G35 -> 231.2266667 | G36: =G33/' O & M Cost assumptions'!H35 -> 231.2266667
B37: days | C37: =C34/' O & M Cost assumptions'!D36 -> 30.16 | D37: =D34/' O & M Cost assumptions'!E36 -> 30.16 | E37: =E34/' O & M Cost assumptions'!F36 -> 30.16 | F37: =F34/' O & M Cost assumptions'!G36 -> 30.16 | G37: =G34/' O & M Cost assumptions'!H36 -> 30.16
A38: Costs
A39: Labour | C39: =SUM(C36:C37)*' O & M Cost assumptions'!$D$15*' O & M Cost assumptions'!$D$13*' O & M Cost assumptions'!$D$19 -> 377400.5248 | D39: =SUM(D36:D37)*' O & M Cost assumptions'!$E$15*' O & M Cost assumptions'!$E$13*' O & M Cost assumptions'!$E$19 -> 377400.5248 | E39: =SUM(E36:E37)*' O & M Cost assumptions'!$F$15*' O & M Cost assumptions'!$F$13*' O & M Cost assumptions'!$F$19 -> 377400.5248 | F39: =SUM(F36:F37)*' O & M Cost assumptions'!$G$15*' O & M Cost assumptions'!$G$13*' O & M Cost assumptions'!$G$19 -> 377400.5248 | G39: =SUM(G36:G37)*' O & M Cost assumptions'!$H$15*' O & M Cost assumptions'!$H$13*' O & M Cost assumptions'!$H$19 -> 377400.5248
A40: Elevated platform | C40: =' O & M Cost assumptions'!$D$16*' O & M Cost assumptions'!$D$19*SUM(C36:C37) -> 84521.99253 | D40: =' O & M Cost assumptions'!$E$16*' O & M Cost assumptions'!$E$19*SUM(D36:D37) -> 84521.99253 | E40: =' O & M Cost assumptions'!$F$16*' O & M Cost assumptions'!$F$19*SUM(E36:E37) -> 84521.99253 | F40: =' O & M Cost assumptions'!$G$16*' O & M Cost assumptions'!$G$19*SUM(F36:F37) -> 84521.99253 | G40: =' O & M Cost assumptions'!$H$16*' O & M Cost assumptions'!$H$19*SUM(G36:G37) -> 84521.99253
A41: Material | C41: =SUM(' O & M Cost assumptions'!C30:C31,' O & M Cost assumptions'!C33)*' O & M Cost assumptions'!D7 -> 390975.5163 | D41: =SUM(' O & M Cost assumptions'!D30:D31,' O & M Cost assumptions'!D33)*' O & M Cost assumptions'!E7 -> 390975.5163 | E41: =SUM(' O & M Cost assumptions'!E30:E31,' O & M Cost assumptions'!E33)*' O & M Cost assumptions'!F7 -> 390975.5163 | F41: =SUM(' O & M Cost assumptions'!F30:F31,' O & M Cost assumptions'!F33)*' O & M Cost assumptions'!G7 -> 390975.5163 | G41: =SUM(' O & M Cost assumptions'!G30:G31,' O & M Cost assumptions'!G33)*' O & M Cost assumptions'!H7 -> 390975.5163
A43: Miscellaneous costs | C43: 6470.0474 | D43: 6470.0474 | E43: 6470.0474 | F43: 6470.0474 | G43: 6470.0474
A45: Total ($$) | C45: =SUM(C39:C43) -> 859368.081 | D45: =SUM(D39:D43) -> 859368.081 | E45: 859368.081 | F45: 859368.081 | G45: 859368.081
A48: T5
A49: Number of lights
A50: Urban | B50: lights | C50: =' O & M Cost assumptions'!D10*' O & M Cost assumptions'!D23 -> 9200 | D50: =' O & M Cost assumptions'!E10*' O & M Cost assumptions'!E23 -> 9200 | E50: =' O & M Cost assumptions'!F10*' O & M Cost assumptions'!F23 -> 9200 | F50: =' O & M Cost assumptions'!G10*' O & M Cost assumptions'!G23 -> 9200 | G50: =' O & M Cost assumptions'!H10*' O & M Cost assumptions'!H23 -> 9200
A51: Rural | B51: lights | C51: =' O & M Cost assumptions'!D10*' O & M Cost assumptions'!D24 -> 800 | D51: =' O & M Cost assumptions'!E10*' O & M Cost assumptions'!E24 -> 800 | E51: =' O & M Cost assumptions'!F10*' O & M Cost assumptions'!F24 -> 800 | F51: =' O & M Cost assumptions'!G10*' O & M Cost assumptions'!G24 -> 800 | G51: =' O & M Cost assumptions'!H10*' O & M Cost assumptions'!H24 -> 800
A53: Working days | B53: days | C53: =C50/' O & M Cost assumptions'!D56 -> 317.2413793 | D53: =D50/' O & M Cost assumptions'!E56 -> 317.2413793 | E53: =E50/' O & M Cost assumptions'!F56 -> 317.2413793 | F53: =F50/' O & M Cost assumptions'!G56 -> 317.2413793 | G53: =G50/' O & M Cost assumptions'!H56 -> 317.2413793
B54: days | C54: =C51/' O & M Cost assumptions'!D57 -> 40 | D54: =D51/' O & M Cost assumptions'!E57 -> 40 | E54: =E51/' O & M Cost assumptions'!F57 -> 40 | F54: =F51/' O & M Cost assumptions'!G57 -> 40 | G54: =G51/' O & M Cost assumptions'!H57 -> 40
A55: Fault repair costs
A56: Labour | C56: =SUM(C53:C54)*' O & M Cost assumptions'!$D$15*' O & M Cost assumptions'!$D$13*' O & M Cost assumptions'!$D$19 -> 515799.3931 | D56: =SUM(D53:D54)*' O & M Cost assumptions'!$E$15*' O & M Cost assumptions'!$E$13*' O & M Cost assumptions'!$E$19 -> 515799.3931 | E56: =SUM(E53:E54)*' O & M Cost assumptions'!$F$15*' O & M Cost assumptions'!$F$13*' O & M Cost assumptions'!$F$19 -> 515799.3931 | F56: =SUM(F53:F54)*' O & M Cost assumptions'!$G$15*' O & M Cost assumptions'!$G$13*' O & M Cost assumptions'!$G$19 -> 515799.3931 | G56: =SUM(G53:G54)*' O & M Cost assumptions'!$H$15*' O & M Cost assumptions'!$H$13*' O & M Cost assumptions'!$H$19 -> 515799.3931
A57: Elevated platform | C57: =' O & M Cost assumptions'!$D$16*' O & M Cost assumptions'!$D$19*SUM(C53:C54) -> 115517.5724 | D57: =' O & M Cost assumptions'!$E$16*' O & M Cost assumptions'!$E$19*SUM(D53:D54) -> 115517.5724 | E57: =' O & M Cost assumptions'!$F$16*' O & M Cost assumptions'!$F$19*SUM(E53:E54) -> 115517.5724 | F57: =' O & M Cost assumptions'!$G$16*' O & M Cost assumptions'!$G$19*SUM(F53:F54) -> 115517.5724 | G57: =' O & M Cost assumptions'!$H$16*' O & M Cost assumptions'!$H$19*SUM(G53:G54) -> 115517.5724
A58: Material | C58: =SUM(' O & M Cost assumptions'!D51:D52,' O & M Cost assumptions'!D54)*' O & M Cost assumptions'!D10 -> 242860.9756 | D58: =SUM(' O & M Cost assumptions'!E51:E52,' O & M Cost assumptions'!E54)*' O & M Cost assumptions'!E10 -> 242860.9756 | E58: =SUM(' O & M Cost assumptions'!F51:F52,' O & M Cost assumptions'!F54)*' O & M Cost assumptions'!F10 -> 242860.9756 | F58: =SUM(' O & M Cost assumptions'!G51:G52,' O & M Cost assumptions'!G54)*' O & M Cost assumptions'!G10 -> 242860.9756 | G58: =SUM(' O & M Cost assumptions'!H51:H52,' O & M Cost assumptions'!H54)*' O & M Cost assumptions'!H10 -> 242860.9756
A60: Miscellaneous costs | C60: 2891.108881 | D60: 2891.108881 | E60: 2891.108881 | F60: 2891.108881 | G60: 2891.108881
A62: Total | C62: =SUM(C56:C60) -> 877069.05 | D62: =SUM(D56:D60) -> 877069.05 | E62: 877069.05 | F62: 877069.05 | G62: 877069.05
A64: Faults
A65: Number of lights
A66: Urban | B66: lights | C66: =' O & M Cost assumptions'!D8*' O & M Cost assumptions'!D23 -> 1932 | D66: =' O & M Cost assumptions'!E8*' O & M Cost assumptions'!E23 -> 1932 | E66: =' O & M Cost assumptions'!F8*' O & M Cost assumptions'!F23 -> 1932 | F66: =' O & M Cost assumptions'!G8*' O & M Cost assumptions'!G23 -> 1932 | G66: =' O & M Cost assumptions'!H8*' O & M Cost assumptions'!H23 -> 1932
A67: Rural | B67: lights | C67: =' O & M Cost assumptions'!D8*' O & M Cost assumptions'!D24 -> 168 | D67: =' O & M Cost assumptions'!E8*' O & M Cost assumptions'!E24 -> 168 | E67: =' O & M Cost assumptions'!F8*' O & M Cost assumptions'!F24 -> 168 | F67: =' O & M Cost assumptions'!G8*' O & M Cost assumptions'!G24 -> 168 | G67: =' O & M Cost assumptions'!H8*' O & M Cost assumptions'!H24 -> 168
A68: Working days
A69: Urban | B69: days | C69: =C66/AVERAGE(' O & M Cost assumptions'!D37,' O & M Cost assumptions'!D58) -> 101.6842105 | D69: =D66/AVERAGE(' O & M Cost assumptions'!E37,' O & M Cost assumptions'!E58) -> 101.6842105 | E69: =E66/AVERAGE(' O & M Cost assumptions'!F37,' O & M Cost assumptions'!F58) -> 101.6842105 | F69: =F66/AVERAGE(' O & M Cost assumptions'!G37,' O & M Cost assumptions'!G58) -> 101.6842105 | G69: =G66/AVERAGE(' O & M Cost assumptions'!H37,' O & M Cost assumptions'!H58) -> 101.6842105
A70: Rural | B70: days | C70: =C67/AVERAGE(' O & M Cost assumptions'!D38,' O & M Cost assumptions'!D59) -> 16.8 | D70: =D67/AVERAGE(' O & M Cost assumptions'!E38,' O & M Cost assumptions'!E59) -> 16.8 | E70: =E67/AVERAGE(' O & M Cost assumptions'!F38,' O & M Cost assumptions'!F59) -> 16.8 | F70: =F67/AVERAGE(' O & M Cost assumptions'!G38,' O & M Cost assumptions'!G59) -> 16.8 | G70: =G67/AVERAGE(' O & M Cost assumptions'!H38,' O & M Cost assumptions'!H59) -> 16.8
A73: Labour | C73: =SUM(C69:C70)*' O & M Cost assumptions'!$D$15*' O & M Cost assumptions'!$D$13*' O & M Cost assumptions'!$D$19 -> 171072.2425 | D73: =SUM(D69:D70)*' O & M Cost assumptions'!$E$15*' O & M Cost assumptions'!$E$13*' O & M Cost assumptions'!$E$19 -> 171072.2425 | E73: =SUM(E69:E70)*' O & M Cost assumptions'!$F$15*' O & M Cost assumptions'!$F$13*' O & M Cost assumptions'!$F$19 -> 171072.2425 | F73: =SUM(F69:F70)*' O & M Cost assumptions'!$G$15*' O & M Cost assumptions'!$G$13*' O & M Cost assumptions'!$G$19 -> 171072.2425 | G73: =SUM(G69:G70)*' O & M Cost assumptions'!$H$15*' O & M Cost assumptions'!$H$13*' O & M Cost assumptions'!$H$19 -> 171072.2425
A74: Elevated platform | C74: =' O & M Cost assumptions'!$D$16*' O & M Cost assumptions'!$D$19*SUM(C69:C70) -> 38313.05432 | D74: =' O & M Cost assumptions'!$E$16*' O & M Cost assumptions'!$E$19*SUM(D69:D70) -> 38313.05432 | E74: =' O & M Cost assumptions'!$F$16*' O & M Cost assumptions'!$F$19*SUM(E69:E70) -> 38313.05432 | F74: =' O & M Cost assumptions'!$G$16*' O & M Cost assumptions'!$G$19*SUM(F69:F70) -> 38313.05432 | G74: =' O & M Cost assumptions'!$H$16*' O & M Cost assumptions'!$H$19*SUM(G69:G70) -> 38313.05432
A76: Average split of minor roads (ignoring other lights)
A77: MV80 | B77: 0.7272249737
A78: T5 | B78: 0.2727750263
A81: Material (MV 80)
A82: Lamp | C82: =' O & M Cost assumptions'!D30*' O & M Cost assumptions'!D39*' O & M Cost assumptions'!D8*'O & M Cost buildup'!$B$77 -> 4519.919989 | D82: =' O & M Cost assumptions'!E30*' O & M Cost assumptions'!E39*' O & M Cost assumptions'!E8*'O & M Cost buildup'!$B$77 -> 4519.919989 | E82: =' O & M Cost assumptions'!F30*' O & M Cost assumptions'!F39*' O & M Cost assumptions'!F8*'O & M Cost buildup'!$B$77 -> 4519.919989 | F82: =' O & M Cost assumptions'!G30*' O & M Cost assumptions'!G39*' O & M Cost assumptions'!G8*'O & M Cost buildup'!$B$77 -> 4519.919989 | G82: =' O & M Cost assumptions'!H30*' O & M Cost assumptions'!H39*' O & M Cost assumptions'!H8*'O & M Cost buildup'!$B$77 -> 4519.919989
A83: PE cell | C83: =' O & M Cost assumptions'!D31*' O & M Cost assumptions'!D40*' O & M Cost assumptions'!D8*'O & M Cost buildup'!$B$77 -> 15206.51418 | D83: =' O & M Cost assumptions'!E31*' O & M Cost assumptions'!E40*' O & M Cost assumptions'!E8*'O & M Cost buildup'!$B$77 -> 15206.51418 | E83: =' O & M Cost assumptions'!F31*' O & M Cost assumptions'!F40*' O & M Cost assumptions'!F8*'O & M Cost buildup'!$B$77 -> 15206.51418 | F83: =' O & M Cost assumptions'!G31*' O & M Cost assumptions'!G40*' O & M Cost assumptions'!G8*'O & M Cost buildup'!$B$77 -> 15206.51418 | G83: =' O & M Cost assumptions'!H31*' O & M Cost assumptions'!H40*' O & M Cost assumptions'!H8*'O & M Cost buildup'!$B$77 -> 15206.51418
A84: Luminaire | C84: =' O & M Cost assumptions'!D32*' O & M Cost assumptions'!D41*' O & M Cost assumptions'!D8*'O & M Cost buildup'!$B$77 -> 39203.13535 | D84: =' O & M Cost assumptions'!E32*' O & M Cost assumptions'!E41*' O & M Cost assumptions'!E8*'O & M Cost buildup'!$B$77 -> 39203.13535 | E84: =' O & M Cost assumptions'!F32*' O & M Cost assumptions'!F41*' O & M Cost assumptions'!F8*'O & M Cost buildup'!$B$77 -> 39203.13535 | F84: =' O & M Cost assumptions'!G32*' O & M Cost assumptions'!G41*' O & M Cost assumptions'!G8*'O & M Cost buildup'!$B$77 -> 39203.13535 | G84: =' O & M Cost assumptions'!H32*' O & M Cost assumptions'!H41*' O & M Cost assumptions'!H8*'O & M Cost buildup'!$B$77 -> 39203.13535
A85: Other | C85: =' O & M Cost assumptions'!D33*' O & M Cost assumptions'!D42*' O & M Cost assumptions'!D8*'O & M Cost buildup'!$B$77 -> 164.8402622 | D85: =' O & M Cost assumptions'!E33*' O & M Cost assumptions'!E42*' O & M Cost assumptions'!E8*'O & M Cost buildup'!$B$77 -> 164.8402622 | E85: =' O & M Cost assumptions'!F33*' O & M Cost assumptions'!F42*' O & M Cost assumptions'!F8*'O & M Cost buildup'!$B$77 -> 164.8402622 | F85: =' O & M Cost assumptions'!G33*' O & M Cost assumptions'!G42*' O & M Cost assumptions'!G8*'O & M Cost buildup'!$B$77 -> 164.8402622 | G85: =' O & M Cost assumptions'!H33*' O & M Cost assumptions'!H42*' O & M Cost assumptions'!H8*'O & M Cost buildup'!$B$77 -> 164.8402622
A87: Material (T5)
A88: Lamp | C88: =' O & M Cost assumptions'!D51*' O & M Cost assumptions'!D60*' O & M Cost assumptions'!D$8*'O & M Cost buildup'!$B$78 -> 2967.839123 | D88: =' O & M Cost assumptions'!E51*' O & M Cost assumptions'!E60*' O & M Cost assumptions'!E$8*'O & M Cost buildup'!$B$78 -> 2967.839123 | E88: =' O & M Cost assumptions'!F51*' O & M Cost assumptions'!F60*' O & M Cost assumptions'!F$8*'O & M Cost buildup'!$B$78 -> 2967.839123 | F88: =' O & M Cost assumptions'!G51*' O & M Cost assumptions'!G60*' O & M Cost assumptions'!G$8*'O & M Cost buildup'!$B$78 -> 2967.839123 | G88: =' O & M Cost assumptions'!H51*' O & M Cost assumptions'!H60*' O & M Cost assumptions'!H$8*'O & M Cost buildup'!$B$78 -> 2967.839123
A89: PE cell | C89: =' O & M Cost assumptions'!D52*' O & M Cost assumptions'!D61*' O & M Cost assumptions'!$D$8*'O & M Cost buildup'!$B$78 -> 4173.523767 | D89: =' O & M Cost assumptions'!E52*' O & M Cost assumptions'!E61*' O & M Cost assumptions'!E$8*'O & M Cost buildup'!$B$78 -> 4173.523767 | E89: =' O & M Cost assumptions'!F52*' O & M Cost assumptions'!F61*' O & M Cost assumptions'!F$8*'O & M Cost buildup'!$B$78 -> 4173.523767 | F89: =' O & M Cost assumptions'!G52*' O & M Cost assumptions'!G61*' O & M Cost assumptions'!G$8*'O & M Cost buildup'!$B$78 -> 4173.523767 | G89: =' O & M Cost assumptions'!H52*' O & M Cost assumptions'!H61*' O & M Cost assumptions'!H$8*'O & M Cost buildup'!$B$78 -> 4173.523767
A90: Luminaire | C90: =' O & M Cost assumptions'!D53*' O & M Cost assumptions'!D62*' O & M Cost assumptions'!$D$8*'O & M Cost buildup'!$B$78 -> 17899.77971 | D90: =' O & M Cost assumptions'!E53*' O & M Cost assumptions'!E62*' O & M Cost assumptions'!E$8*'O & M Cost buildup'!$B$78 -> 17899.77971 | E90: =' O & M Cost assumptions'!F53*' O & M Cost assumptions'!F62*' O & M Cost assumptions'!F$8*'O & M Cost buildup'!$B$78 -> 17899.77971 | F90: =' O & M Cost assumptions'!G53*' O & M Cost assumptions'!G62*' O & M Cost assumptions'!G$8*'O & M Cost buildup'!$B$78 -> 17899.77971 | G90: =' O & M Cost assumptions'!H53*' O & M Cost assumptions'!H62*' O & M Cost assumptions'!H$8*'O & M Cost buildup'!$B$78 -> 17899.77971
A91: Other | C91: =' O & M Cost assumptions'!D54*' O & M Cost assumptions'!D63*' O & M Cost assumptions'!$D$8*'O & M Cost buildup'!$B$78 -> 61.82998173 | D91: =' O & M Cost assumptions'!E54*' O & M Cost assumptions'!E63*' O & M Cost assumptions'!E$8*'O & M Cost buildup'!$B$78 -> 61.82998173 | E91: =' O & M Cost assumptions'!F54*' O & M Cost assumptions'!F63*' O & M Cost assumptions'!F$8*'O & M Cost buildup'!$B$78 -> 61.82998173 | F91: =' O & M Cost assumptions'!G54*' O & M Cost assumptions'!G63*' O & M Cost assumptions'!G$8*'O & M Cost buildup'!$B$78 -> 61.82998173 | G91: =' O & M Cost assumptions'!H54*' O & M Cost assumptions'!H63*' O & M Cost assumptions'!H$8*'O & M Cost buildup'!$B$78 -> 61.82998173
A93: Pole repairs
A94: Unit rate (UE) | C94: =179 -> 179 | D94: =179 -> 179 | E94: =179 -> 179 | F94: =179 -> 179 | G94: =179 -> 179
C95: =C94*' O & M Cost assumptions'!D9 -> 260445 | D95: =D94*' O & M Cost assumptions'!E9 -> 257760 | E95: =E94*' O & M Cost assumptions'!F9 -> 254896 | F95: =F94*' O & M Cost assumptions'!G9 -> 252032 | G95: =G94*' O & M Cost assumptions'!H9 -> 249347
A98: Miscellaneous costs | C98: 4830.059791 | D98: 4726.361791 | E98: 4802.686791 | F98: 4877.988791 | G98: 4775.313791
A100: Total ($$) | C100: =SUM(C73:C91,C95,C98) -> 558857.739 | D100: =SUM(D73:D91,D95,D98) -> 556069.041 | E100: =SUM(E73:E91,E95,E98) -> 553281.366 | F100: =SUM(F73:F91,F95,F98) -> 550492.668 | G100: =SUM(G73:G91,G95,G98) -> 547704.993
A102: Grand total | C102: =SUM(C27,C45,C62,C100) -> 3686569.755 | D102: =SUM(D27,D45,D62,D100) -> 3737317.716 | E102: =SUM(E27,E45,E62,E100) -> 3788065.677 | F102: =SUM(F27,F45,F62,F100) -> 3785276.979 | G102: =SUM(G27,G45,G62,G100) -> 3782489.304

Sheet Cashflow Summary
A1: ='DNSP Inputs O & M'!$A$3 -> United Energy | E1: Check | F1: =SUM(C123,C129,C152) -> 2.18860805e-08
C2: ='DNSP Inputs General'!J$2 -> 2015 | D2: ='DNSP Inputs General'!K$2 -> 2016 | E2: ='DNSP Inputs General'!L$2 -> 2017 | F2: ='DNSP Inputs General'!M$2 -> 2018 | G2: ='DNSP Inputs General'!N$2 -> 2019 | H2: ='DNSP Inputs General'!O$2 -> 2020 | J2: =C2 -> 2015 | K2: 2016 | L2: 2017 | M2: 2018 | N2: 2019 | O2: 2020
A4: Public Lighting - Revenue | C4: Revenue - Nominal | J4: Revenue - Real 2015 $
C5: =C$2 -> 2015 | D5: 2016 | E5: 2017 | F5: 2018 | G5: 2019 | H5: 2020 | J5: =J$2 -> 2015 | K5: 2016 | L5: 2017 | M5: 2018 | N5: 2019 | O5: 2020
A6: ='DNSP Inputs General'!A$40 -> Existing Lights
A7: ='DNSP Inputs General'!A$41 -> Mercury Vapour 80 watt | C7: =IF('PL Tariffs'!C6=0,"",'DNSP Inputs General'!J41*'PL Tariffs'!C6) -> 3560679.018 | D7: ='DNSP Inputs General'!K41*'PL Tariffs'!D6 -> 2804959.924 | E7: ='DNSP Inputs General'!L41*'PL Tariffs'!E6 -> 2830736.274 | F7: ='DNSP Inputs General'!M41*'PL Tariffs'!F6 -> 2882639.638 | G7: ='DNSP Inputs General'!N41*'PL Tariffs'!G6 -> 2895555.676 | H7: ='DNSP Inputs General'!O41*'PL Tariffs'!H6 -> 2892013.195 | J7: =C7 -> 3560679.018 | K7: =D7/'Charges Summary'!D$4 -> 2736546.267 | L7: =E7/'Charges Summary'!E$4 -> 2694335.537 | M7: =F7/'Charges Summary'!F$4 -> 2676817.47 | N7: =G7/'Charges Summary'!G$4 -> 2623230.532 | O7: =H7/'Charges Summary'!H$4 -> 2556118.262
A8: ='DNSP Inputs General'!A$42 -> Sodium High Pressure 150 watt | C8: =IF('PL Tariffs'!C7=0,"",'DNSP Inputs General'!J42*'PL Tariffs'!C7) -> 2325911.82 | D8: ='DNSP Inputs General'!K42*'PL Tariffs'!D7 -> 1646008.437 | E8: ='DNSP Inputs General'!L42*'PL Tariffs'!E7 -> 1810582.754 | F8: ='DNSP Inputs General'!M42*'PL Tariffs'!F7 -> 1997497.401 | G8: ='DNSP Inputs General'!N42*'PL Tariffs'!G7 -> 2101573.57 | H8: ='DNSP Inputs General'!O42*'PL Tariffs'!H7 -> 2254479.186 | J8: 2325911.82 | K8: =D8/'Charges Summary'!D$4 -> 1605861.89 | L8: =E8/'Charges Summary'!E$4 -> 1723338.731 | M8: =F8/'Charges Summary'!F$4 -> 1854874.91 | N8: =G8/'Charges Summary'!G$4 -> 1903921.931 | O8: =H8/'Charges Summary'!H$4 -> 1992631.095
A9: ='DNSP Inputs General'!A$43 -> Sodium High Pressure 250 watt | C9: =IF('PL Tariffs'!C8=0,"",'DNSP Inputs General'!J43*'PL Tariffs'!C8) -> 990422.3241 | D9: ='DNSP Inputs General'!K43*'PL Tariffs'!D8 -> 705051.7705 | E9: ='DNSP Inputs General'!L43*'PL Tariffs'!E8 -> 775471.4037 | F9: ='DNSP Inputs General'!M43*'PL Tariffs'!F8 -> 803210.163 | G9: ='DNSP Inputs General'!N43*'PL Tariffs'!G8 -> 899322.6956 | H9: ='DNSP Inputs General'!O43*'PL Tariffs'!H8 -> 964659.7882 | J9: 990422.3241 | K9: =D9/'Charges Summary'!D$4 -> 687855.3858 | L9: =E9/'Charges Summary'!E$4 -> 738104.8459 | M9: =F9/'Charges Summary'!F$4 -> 745860.4842 | N9: =G9/'Charges Summary'!G$4 -> 814741.976 | O9: =H9/'Charges Summary'!H$4 -> 852618.6898
A10: ='DNSP Inputs General'!A$44 -> Fluorescent 2x20 watt | C10: =IF('PL Tariffs'!C9=0,"",'DNSP Inputs General'!J44*'PL Tariffs'!C9) -> 5182.58 | D10: ='DNSP Inputs General'!K44*'PL Tariffs'!D9 -> 4468.710237 | E10: ='DNSP Inputs General'!L44*'PL Tariffs'!E9 -> 4949.331016 | F10: ='DNSP Inputs General'!M44*'PL Tariffs'!F9 -> 5549.122565 | G10: ='DNSP Inputs General'!N44*'PL Tariffs'!G9 -> 6160.649385 | H10: ='DNSP Inputs General'!O44*'PL Tariffs'!H9 -> 6832.25929 | J10: 5182.58 | K10: =D10/'Charges Summary'!D$4 -> 4359.717305 | L10: =E10/'Charges Summary'!E$4 -> 4710.844513 | M10: =F10/'Charges Summary'!F$4 -> 5152.911945 | N10: =G10/'Charges Summary'!G$4 -> 5581.244283 | O10: =H10/'Charges Summary'!H$4 -> 6038.721668
A11: ='DNSP Inputs General'!A$45 -> Fluorescent 3x20 watt | C11: =IF('PL Tariffs'!C10=0,"",'DNSP Inputs General'!J45*'PL Tariffs'!C10) -> 246.57 | D11: ='DNSP Inputs General'!K45*'PL Tariffs'!D10 -> 209.4707924 | E11: ='DNSP Inputs General'!L45*'PL Tariffs'!E10 -> 224.9695916 | F11: ='DNSP Inputs General'!M45*'PL Tariffs'!F10 -> 244.8142308 | G11: ='DNSP Inputs General'!N45*'PL Tariffs'!G10 -> 264.0278308 | H11: ='DNSP Inputs General'!O45*'PL Tariffs'!H10 -> 284.6774704 | J11: 246.57 | K11: =D11/'Charges Summary'!D$4 -> 204.3617487 | L11: =E11/'Charges Summary'!E$4 -> 214.129296 | M11: =F11/'Charges Summary'!F$4 -> 227.3343505 | N11: =G11/'Charges Summary'!G$4 -> 239.1961835 | O11: =H11/'Charges Summary'!H$4 -> 251.6134028
A12: ='DNSP Inputs General'!A$46 -> Mercury Vapour 50 watt | C12: =IF('PL Tariffs'!C11=0,"",'DNSP Inputs General'!J46*'PL Tariffs'!C11) -> 3244.909085 | D12: ='DNSP Inputs General'!K46*'PL Tariffs'!D11 -> 2457.124453 | E12: ='DNSP Inputs General'!L46*'PL Tariffs'!E11 -> 2366.746283 | F12: ='DNSP Inputs General'!M46*'PL Tariffs'!F11 -> 2279.327055 | G12: ='DNSP Inputs General'!N46*'PL Tariffs'!G11 -> 2138.777619 | H12: ='DNSP Inputs General'!O46*'PL Tariffs'!H11 -> 1961.632038 | J12: 3244.909085 | K12: =D12/'Charges Summary'!D$4 -> 2397.194589 | L12: =E12/'Charges Summary'!E$4 -> 2252.703185 | M12: =F12/'Charges Summary'!F$4 -> 2116.58176 | N12: =G12/'Charges Summary'!G$4 -> 1937.626963 | O12: =H12/'Charges Summary'!H$4 -> 1733.796888
A13: ='DNSP Inputs General'!A$47 -> Mercury Vapour 125 watt | C13: =IF('PL Tariffs'!C12=0,"",'DNSP Inputs General'!J47*'PL Tariffs'!C12) -> 97399.68187 | D13: ='DNSP Inputs General'!K47*'PL Tariffs'!D12 -> 73480.8605 | E13: ='DNSP Inputs General'!L47*'PL Tariffs'!E12 -> 70455.16357 | F13: ='DNSP Inputs General'!M47*'PL Tariffs'!F12 -> 67460.98516 | G13: ='DNSP Inputs General'!N47*'PL Tariffs'!G12 -> 62823.684 | H13: ='DNSP Inputs General'!O47*'PL Tariffs'!H12 -> 57028.56408 | J13: 97399.68187 | K13: =D13/'Charges Summary'!D$4 -> 71688.64439 | L13: =E13/'Charges Summary'!E$4 -> 67060.23898 | M13: =F13/'Charges Summary'!F$4 -> 62644.23108 | N13: =G13/'Charges Summary'!G$4 -> 56915.15703 | O13: =H13/'Charges Summary'!H$4 -> 50404.94088
A14: ='DNSP Inputs General'!A$48 -> Mercury Vapour 250 watt | C14: =IF('PL Tariffs'!C13=0,"",'DNSP Inputs General'!J48*'PL Tariffs'!C13) -> 10080.48862 | D14: ='DNSP Inputs General'!K48*'PL Tariffs'!D13 -> 6362.564459 | E14: ='DNSP Inputs General'!L48*'PL Tariffs'!E13 -> 6970.88305 | F14: ='DNSP Inputs General'!M48*'PL Tariffs'!F13 -> 7192.37886 | G14: ='DNSP Inputs General'!N48*'PL Tariffs'!G13 -> 8021.818548 | H14: ='DNSP Inputs General'!O48*'PL Tariffs'!H13 -> 8571.480686 | J14: 10080.48862 | K14: =D14/'Charges Summary'!D$4 -> 6207.37996 | L14: =E14/'Charges Summary'!E$4 -> 6634.986841 | M14: =F14/'Charges Summary'!F$4 -> 6678.838773 | N14: =G14/'Charges Summary'!G$4 -> 7267.371686 | O14: =H14/'Charges Summary'!H$4 -> 7575.939955
A15: ='DNSP Inputs General'!A$49 -> Mercury Vapour 400 watt | C15: =IF('PL Tariffs'!C14=0,"",'DNSP Inputs General'!J49*'PL Tariffs'!C14) -> 753.3 | D15: ='DNSP Inputs General'!K49*'PL Tariffs'!D14 -> 534.1464262 | E15: ='DNSP Inputs General'!L49*'PL Tariffs'!E14 -> 585.2156458 | F15: ='DNSP Inputs General'!M49*'PL Tariffs'!F14 -> 603.8105373 | G15: ='DNSP Inputs General'!N49*'PL Tariffs'!G14 -> 673.4431906 | H15: ='DNSP Inputs General'!O49*'PL Tariffs'!H14 -> 719.5881166 | J15: 753.3 | K15: =D15/'Charges Summary'!D$4 -> 521.1184646 | L15: =E15/'Charges Summary'!E$4 -> 557.0166766 | M15: =F15/'Charges Summary'!F$4 -> 560.6981092 | N15: =G15/'Charges Summary'!G$4 -> 610.1062927 | O15: =H15/'Charges Summary'!H$4 -> 636.0110422
A16: ='DNSP Inputs General'!A$50 -> Mercury Vapour 700 watt | C16: =IF('PL Tariffs'!C15=0,"",'DNSP Inputs General'!J50*'PL Tariffs'!C15) -> 456.9089774 | D16: ='DNSP Inputs General'!K50*'PL Tariffs'!D15 -> 356.0976175 | E16: ='DNSP Inputs General'!L50*'PL Tariffs'!E15 -> 355.7343674 | F16: ='DNSP Inputs General'!M50*'PL Tariffs'!F15 -> 402.5403582 | G16: ='DNSP Inputs General'!N50*'PL Tariffs'!G15 -> 409.3651445 | H16: ='DNSP Inputs General'!O50*'PL Tariffs'!H15 -> 479.7254111 | J16: 456.9089774 | K16: =D16/'Charges Summary'!D$4 -> 347.4123097 | L16: =E16/'Charges Summary'!E$4 -> 338.5930922 | M16: =F16/'Charges Summary'!F$4 -> 373.7987395 | N16: =G16/'Charges Summary'!G$4 -> 370.8646166 | O16: =H16/'Charges Summary'!H$4 -> 424.0073615
A17: ='DNSP Inputs General'!A$51 -> Sodium High Pressure 70 watt | C17: =IF('PL Tariffs'!C16=0,"",'DNSP Inputs General'!J51*'PL Tariffs'!C16) -> 48189.75885 | D17: ='DNSP Inputs General'!K51*'PL Tariffs'!D16 -> 41027.71977 | E17: ='DNSP Inputs General'!L51*'PL Tariffs'!E16 -> 44895.40064 | F17: ='DNSP Inputs General'!M51*'PL Tariffs'!F16 -> 49760.55594 | G17: ='DNSP Inputs General'!N51*'PL Tariffs'!G16 -> 54643.72556 | H17: ='DNSP Inputs General'!O51*'PL Tariffs'!H16 -> 59971.14975 | J17: 48189.75885 | K17: =D17/'Charges Summary'!D$4 -> 40027.04368 | L17: =E17/'Charges Summary'!E$4 -> 42732.08866 | M17: =F17/'Charges Summary'!F$4 -> 46207.62293 | N17: =G17/'Charges Summary'!G$4 -> 49504.51841 | O17: =H17/'Charges Summary'!H$4 -> 53005.75784
A18: ='DNSP Inputs General'!A$52 -> Sodium High Pressure 100 watt | C18: =IF('PL Tariffs'!C17=0,"",'DNSP Inputs General'!J52*'PL Tariffs'!C17) -> 98601.95818 | D18: ='DNSP Inputs General'!K52*'PL Tariffs'!D17 -> 69977.50663 | E18: ='DNSP Inputs General'!L52*'PL Tariffs'!E17 -> 77189.43971 | F18: ='DNSP Inputs General'!M52*'PL Tariffs'!F17 -> 85393.63108 | G18: ='DNSP Inputs General'!N52*'PL Tariffs'!G17 -> 90089.31265 | H18: ='DNSP Inputs General'!O52*'PL Tariffs'!H17 -> 96906.14748 | J18: 98601.95818 | K18: =D18/'Charges Summary'!D$4 -> 68270.73818 | L18: =E18/'Charges Summary'!E$4 -> 73470.01995 | M18: =F18/'Charges Summary'!F$4 -> 79296.47552 | N18: =G18/'Charges Summary'!G$4 -> 81616.47089 | O18: =H18/'Charges Summary'!H$4 -> 85650.91394
A19: ='DNSP Inputs General'!A$53 -> Sodium High Pressure 400 watt | C19: =IF('PL Tariffs'!C18=0,"",'DNSP Inputs General'!J53*'PL Tariffs'!C18) -> 41976.39662 | D19: ='DNSP Inputs General'!K53*'PL Tariffs'!D18 -> 29880.38889 | E19: ='DNSP Inputs General'!L53*'PL Tariffs'!E18 -> 32864.27357 | F19: ='DNSP Inputs General'!M53*'PL Tariffs'!F18 -> 34039.29265 | G19: ='DNSP Inputs General'!N53*'PL Tariffs'!G18 -> 38111.84412 | H19: ='DNSP Inputs General'!O53*'PL Tariffs'!H18 -> 40880.07961 | J19: 41976.39662 | K19: =D19/'Charges Summary'!D$4 -> 29151.59892 | L19: =E19/'Charges Summary'!E$4 -> 31280.68871 | M19: =F19/'Charges Summary'!F$4 -> 31608.8671 | N19: =G19/'Charges Summary'!G$4 -> 34527.44975 | O19: =H19/'Charges Summary'!H$4 -> 36132.03364
A20: ='DNSP Inputs General'!A$54 -> Metal Halide 70 watt | C20: =IF('PL Tariffs'!C19=0,"",'DNSP Inputs General'!J54*'PL Tariffs'!C19) -> 1187.28 | D20: ='DNSP Inputs General'!K54*'PL Tariffs'!D19 -> 836.9562823 | E20: ='DNSP Inputs General'!L54*'PL Tariffs'!E19 -> 917.064575 | F20: ='DNSP Inputs General'!M54*'PL Tariffs'!F19 -> 1007.834249 | G20: ='DNSP Inputs General'!N54*'PL Tariffs'!G19 -> 1056.237074 | H20: ='DNSP Inputs General'!O54*'PL Tariffs'!H19 -> 1128.723155 | J20: 1187.28 | K20: =D20/'Charges Summary'!D$4 -> 816.5427144 | L20: =E20/'Charges Summary'!E$4 -> 872.8752647 | M20: =F20/'Charges Summary'!F$4 -> 935.8742896 | N20: =G20/'Charges Summary'!G$4 -> 956.8986586 | O20: =H20/'Charges Summary'!H$4 -> 997.6268004
A21: ='DNSP Inputs General'!A$55 -> Metal Halide 100 watt | C21: =IF('PL Tariffs'!C20=0,"",'DNSP Inputs General'!J55*'PL Tariffs'!C20) -> 12532.4 | D21: ='DNSP Inputs General'!K55*'PL Tariffs'!D20 -> 8834.538535 | E21: ='DNSP Inputs General'!L55*'PL Tariffs'!E20 -> 9680.12607 | F21: ='DNSP Inputs General'!M55*'PL Tariffs'!F20 -> 10638.2504 | G21: ='DNSP Inputs General'!N55*'PL Tariffs'!G20 -> 11149.16912 | H21: ='DNSP Inputs General'!O55*'PL Tariffs'!H20 -> 11914.29997 | J21: 12532.4 | K21: =D21/'Charges Summary'!D$4 -> 8619.061986 | L21: =E21/'Charges Summary'!E$4 -> 9213.68335 | M21: =F21/'Charges Summary'!F$4 -> 9878.673057 | N21: =G21/'Charges Summary'!G$4 -> 10100.59695 | O21: =H21/'Charges Summary'!H$4 -> 10530.50512
A22: ='DNSP Inputs General'!A$56 -> Metal Halide 150 watt | C22: =IF('PL Tariffs'!C21=0,"",'DNSP Inputs General'!J56*'PL Tariffs'!C21) -> 1978.8 | D22: ='DNSP Inputs General'!K56*'PL Tariffs'!D21 -> 1394.927137 | E22: ='DNSP Inputs General'!L56*'PL Tariffs'!E21 -> 1528.440958 | F22: ='DNSP Inputs General'!M56*'PL Tariffs'!F21 -> 1679.723748 | G22: ='DNSP Inputs General'!N56*'PL Tariffs'!G21 -> 1760.395124 | H22: ='DNSP Inputs General'!O56*'PL Tariffs'!H21 -> 1881.205259 | J22: 1978.8 | K22: =D22/'Charges Summary'!D$4 -> 1360.904524 | L22: =E22/'Charges Summary'!E$4 -> 1454.792108 | M22: =F22/'Charges Summary'!F$4 -> 1559.790483 | N22: =G22/'Charges Summary'!G$4 -> 1594.831098 | O22: =H22/'Charges Summary'!H$4 -> 1662.711334
A23: ='DNSP Inputs General'!A$57 -> Metal Halide 250 watt | C23: =IF('PL Tariffs'!C22=0,"",'DNSP Inputs General'!J57*'PL Tariffs'!C22) -> 15872.18 | D23: ='DNSP Inputs General'!K57*'PL Tariffs'!D22 -> 11255.22827 | E23: ='DNSP Inputs General'!L57*'PL Tariffs'!E22 -> 12331.32968 | F23: ='DNSP Inputs General'!M57*'PL Tariffs'!F22 -> 12723.15061 | G23: ='DNSP Inputs General'!N57*'PL Tariffs'!G22 -> 14190.41009 | H23: ='DNSP Inputs General'!O57*'PL Tariffs'!H22 -> 15162.7496 | J23: 15872.18 | K23: =D23/'Charges Summary'!D$4 -> 10980.7105 | L23: =E23/'Charges Summary'!E$4 -> 11737.13711 | M23: =F23/'Charges Summary'!F$4 -> 11814.71016 | N23: =G23/'Charges Summary'!G$4 -> 12855.81117 | O23: =H23/'Charges Summary'!H$4 -> 13401.66125
A24: ='DNSP Inputs General'!A$58 -> Metal Halide 400 watt | C24: =IF('PL Tariffs'!C23=0,"",'DNSP Inputs General'!J58*'PL Tariffs'!C23) -> 14796.1 | D24: ='DNSP Inputs General'!K58*'PL Tariffs'!D23 -> 10492.16194 | E24: ='DNSP Inputs General'!L58*'PL Tariffs'!E23 -> 11495.30733 | F24: ='DNSP Inputs General'!M58*'PL Tariffs'!F23 -> 11860.56412 | G24: ='DNSP Inputs General'!N58*'PL Tariffs'!G23 -> 13228.34839 | H24: ='DNSP Inputs General'!O58*'PL Tariffs'!H23 -> 14134.76658 | J24: 14796.1 | K24: =D24/'Charges Summary'!D$4 -> 10236.25555 | L24: =E24/'Charges Summary'!E$4 -> 10941.399 | M24: =F24/'Charges Summary'!F$4 -> 11013.71286 | N24: =G24/'Charges Summary'!G$4 -> 11984.23075 | O24: =H24/'Charges Summary'!H$4 -> 12493.07404
A25: Twin 24w Fluorescent | C25: =IF('PL Tariffs'!C24=0,"",'DNSP Inputs General'!J59*'PL Tariffs'!C24) -> 6930.169565 | D25: ='DNSP Inputs General'!K59*'PL Tariffs'!D24 -> 10645.69743 | E25: ='DNSP Inputs General'!L59*'PL Tariffs'!E24 -> 10525.31464 | F25: ='DNSP Inputs General'!M59*'PL Tariffs'!F24 -> 10538.99384 | G25: ='DNSP Inputs General'!N59*'PL Tariffs'!G24 -> 10651.87948 | H25: ='DNSP Inputs General'!O59*'PL Tariffs'!H24 -> 10869.56481 | J25: 6930.169565 | K25: =D25/'Charges Summary'!D$4 -> 10386.04627 | L25: =E25/'Charges Summary'!E$4 -> 10018.14599 | M25: =F25/'Charges Summary'!F$4 -> 9786.503476 | N25: =G25/'Charges Summary'!G$4 -> 9650.07708 | O25: =H25/'Charges Summary'!H$4 -> 9607.111458
A26: 32W Compact Fluorescent | C26: =IF('PL Tariffs'!C25=0,"",'DNSP Inputs General'!J60*'PL Tariffs'!C25) -> 46058.02959 | D26: ='DNSP Inputs General'!K60*'PL Tariffs'!D25 -> 70751.49353 | E26: ='DNSP Inputs General'!L60*'PL Tariffs'!E25 -> 69951.42735 | F26: ='DNSP Inputs General'!M60*'PL Tariffs'!F25 -> 70042.33962 | G26: ='DNSP Inputs General'!N60*'PL Tariffs'!G25 -> 70792.57953 | H26: ='DNSP Inputs General'!O60*'PL Tariffs'!H25 -> 72239.32008 | J26: 46058.02959 | K26: =D26/'Charges Summary'!D$4 -> 69025.84734 | L26: =E26/'Charges Summary'!E$4 -> 66580.77559 | M26: =F26/'Charges Summary'!F$4 -> 65041.27531 | N26: =G26/'Charges Summary'!G$4 -> 64134.58307 | O26: =H26/'Charges Summary'!H$4 -> 63849.03279
A27: 42w Compact Fluorescent | C27: =IF('PL Tariffs'!C26=0,"",'DNSP Inputs General'!J61*'PL Tariffs'!C26) -> 9291.333531 | D27: ='DNSP Inputs General'!K61*'PL Tariffs'!D26 -> 14272.77133 | E27: ='DNSP Inputs General'!L61*'PL Tariffs'!E26 -> 14111.37316 | F27: ='DNSP Inputs General'!M61*'PL Tariffs'!F26 -> 14129.71299 | G27: ='DNSP Inputs General'!N61*'PL Tariffs'!G26 -> 14281.05965 | H27: ='DNSP Inputs General'!O61*'PL Tariffs'!H26 -> 14572.91211 | J27: 9291.333531 | K27: =D27/'Charges Summary'!D$4 -> 13924.65496 | L27: =E27/'Charges Summary'!E$4 -> 13431.40812 | M27: =F27/'Charges Summary'!F$4 -> 13120.84316 | N27: =G27/'Charges Summary'!G$4 -> 12937.9352 | O27: =H27/'Charges Summary'!H$4 -> 12880.33085
A31: ='DNSP Inputs General'!A$67 -> Energy Efficient Lights
A32: ='DNSP Inputs General'!A$68 -> T5 2X14W | C32: =IF('PL Tariffs'!C31=0,"",'DNSP Inputs General'!J68*'PL Tariffs'!C31) -> 733678.4161 | D32: ='DNSP Inputs General'!K68*'PL Tariffs'!D31 -> 1217533.825 | E32: ='DNSP Inputs General'!L68*'PL Tariffs'!E31 -> 1285738.159 | F32: ='DNSP Inputs General'!M68*'PL Tariffs'!F31 -> 1363009.606 | G32: ='DNSP Inputs General'!N68*'PL Tariffs'!G31 -> 1447652.7 | H32: ='DNSP Inputs General'!O68*'PL Tariffs'!H31 -> 1543493.092 | J32: =C32 -> 733678.4161 | K32: =D32/'Charges Summary'!D$4 -> 1187837.878 | L32: =E32/'Charges Summary'!E$4 -> 1223784.089 | M32: =F32/'Charges Summary'!F$4 -> 1265689.917 | N32: =G32/'Charges Summary'!G$4 -> 1311501.897 | O32: =H32/'Charges Summary'!H$4 -> 1364222.987
A37: Total Revenue | C37: =IF(SUM(C7:C36)=0,"",SUM(C7:C36)) -> 8025470.423 | D37: =SUM(D7:D36) -> 6730792.321 | E37: =SUM(E7:E36) -> 7073926.132 | F37: =SUM(F7:F36) -> 7431903.836 | G37: =SUM(G7:G36) -> 7744551.368 | H37: =SUM(H7:H36) -> 8070184.107 | J37: =IF(SUM(J7:J36)=0,"",SUM(J7:J36)) -> 8025470.423 | K37: =SUM(K7:K36) -> 6566626.655 | L37: =SUM(L7:L36) -> 6733064.73 | M37: =SUM(M7:M36) -> 6901261.524 | N37: =SUM(N7:N36) -> 7016181.305 | O37: =SUM(O7:O36) -> 7132866.824
A40: Public Lighting - O & M | D40: Forecast O & M - Nominal | K40: Forecast O & M - Real 2015 $
D41: =D$2 -> 2016 | E41: =E$2 -> 2017 | F41: =F$2 -> 2018 | G41: =G$2 -> 2019 | H41: =H$2 -> 2020 | K41: =K$2 -> 2016 | L41: =L$2 -> 2017 | M41: =M$2 -> 2018 | N41: =N$2 -> 2019 | O41: =O$2 -> 2020
A43: Unit cost
A44: ='DNSP Inputs General'!A$41 -> Mercury Vapour 80 watt | D44: =SUM('Charges Summary'!D25,'Charges Summary'!D8) -> 23.8439517 | E44: =SUM('Charges Summary'!E25,'Charges Summary'!E8) -> 25.07104063 | F44: =SUM('Charges Summary'!F25,'Charges Summary'!F8) -> 27.19186623 | G44: =SUM('Charges Summary'!G25,'Charges Summary'!G8) -> 28.91487361 | H44: =SUM('Charges Summary'!H25,'Charges Summary'!H8) -> 30.73917493
A45: ='DNSP Inputs General'!A$42 -> Sodium High Pressure 150 watt | D45: =SUM('Charges Summary'!D49,'Charges Summary'!D8) -> 39.0053959 | E45: =SUM('Charges Summary'!E49,'Charges Summary'!E8) -> 42.85778 | F45: =SUM('Charges Summary'!F49,'Charges Summary'!F8) -> 47.36091965 | G45: =SUM('Charges Summary'!G49,'Charges Summary'!G8) -> 48.14509665 | H45: =SUM('Charges Summary'!H49,'Charges Summary'!H8) -> 50.64477526
A46: ='DNSP Inputs General'!A$43 -> Sodium High Pressure 250 watt | D46: =SUM('Charges Summary'!D65,'Charges Summary'!D8) -> 39.63724333 | E46: =SUM('Charges Summary'!E65,'Charges Summary'!E8) -> 43.54747472 | F46: =SUM('Charges Summary'!F65,'Charges Summary'!F8) -> 42.928395 | G46: =SUM('Charges Summary'!G65,'Charges Summary'!G8) -> 48.8205186 | H46: =SUM('Charges Summary'!H65,'Charges Summary'!H8) -> 51.33034641
A48: ='DNSP Inputs General'!A$40 -> Existing Lights
A49: ='DNSP Inputs General'!A$41 -> Mercury Vapour 80 watt | D49: =D44*'DNSP Inputs General'!K41 -> 1235641.208 | E49: =E44*'DNSP Inputs General'!L41 -> 1220840.465 | F49: =F44*'DNSP Inputs General'!M41 -> 1239092.348 | G49: =G44*'DNSP Inputs General'!N41 -> 1227197.539 | H49: =H44*'DNSP Inputs General'!O41 -> 1208510.264 | K49: =D49/'Charges Summary'!D$4 -> 1205503.618 | L49: =E49/'Charges Summary'!E$4 -> 1162013.53 | M49: =F49/'Charges Summary'!F$4 -> 1150620.424 | N49: =G49/'Charges Summary'!G$4 -> 1111780.402 | O49: =H49/'Charges Summary'!H$4 -> 1068146.979
A50: ='DNSP Inputs General'!A$42 -> Sodium High Pressure 150 watt | D50: =D45*'DNSP Inputs General'!K42 -> 932030.773 | E50: =E45*'DNSP Inputs General'!L42 -> 1028074.083 | F50: =F45*'DNSP Inputs General'!M42 -> 1140495.34 | G50: =G45*'DNSP Inputs General'!N42 -> 1163888.914 | H50: =H45*'DNSP Inputs General'!O42 -> 1229050.483 | K50: =D50/'Charges Summary'!D$4 -> 909298.3151 | L50: =E50/'Charges Summary'!E$4 -> 978535.7125 | M50: =F50/'Charges Summary'!F$4 -> 1059063.301 | N50: =G50/'Charges Summary'!G$4 -> 1054425.912 | O50: =H50/'Charges Summary'!H$4 -> 1086301.539
A51: ='DNSP Inputs General'!A$43 -> Sodium High Pressure 250 watt | D51: =D46*'DNSP Inputs General'!K43 -> 395535.9102 | E51: =E46*'DNSP Inputs General'!L43 -> 436249.1864 | F51: =F46*'DNSP Inputs General'!M43 -> 431712.8286 | G51: =G46*'DNSP Inputs General'!N43 -> 492877.2487 | H51: =H46*'DNSP Inputs General'!O43 -> 520218.9681 | K51: =D51/'Charges Summary'!D$4 -> 385888.6929 | L51: =E51/'Charges Summary'!E$4 -> 415228.256 | M51: =F51/'Charges Summary'!F$4 -> 400888.2783 | N51: =G51/'Charges Summary'!G$4 -> 446522.4613 | O51: =H51/'Charges Summary'!H$4 -> 459797.7654
A52: ='DNSP Inputs General'!A$44 -> Fluorescent 2x20 watt | C52: =D52/'DNSP Inputs General'!K44 -> 30.75869769 | D52: =IF('DNSP Inputs General'!$B44='DNSP Inputs General'!$A$41,D$44,IF('DNSP Inputs General'!$B44='DNSP Inputs General'!$A$42,D$45,D$46))*'DNSP Inputs General'!$D44*'DNSP Inputs General'!K44 -> 1968.556652 | E52: =IF('DNSP Inputs General'!$B44='DNSP Inputs General'!$A$41,E$44,IF('DNSP Inputs General'!$B44='DNSP Inputs General'!$A$42,E$45,E$46))*'DNSP Inputs General'!$D44*'DNSP Inputs General'!L44 -> 2134.548399 | F52: =IF('DNSP Inputs General'!$B44='DNSP Inputs General'!$A$41,F$44,IF('DNSP Inputs General'!$B44='DNSP Inputs General'!$A$42,F$45,F$46))*'DNSP Inputs General'!$D44*'DNSP Inputs General'!M44 -> 2385.270506 | G52: =IF('DNSP Inputs General'!$B44='DNSP Inputs General'!$A$41,G$44,IF('DNSP Inputs General'!$B44='DNSP Inputs General'!$A$42,G$45,G$46))*'DNSP Inputs General'!$D44*'DNSP Inputs General'!N44 -> 2611.013087 | H52: =IF('DNSP Inputs General'!$B44='DNSP Inputs General'!$A$41,H$44,IF('DNSP Inputs General'!$B44='DNSP Inputs General'!$A$42,H$45,H$46))*'DNSP Inputs General'!$D44*'DNSP Inputs General'!O44 -> 2855.054567 | K52: =D52/'Charges Summary'!D$4 -> 1920.543075 | L52: =E52/'Charges Summary'!E$4 -> 2031.693896 | M52: =F52/'Charges Summary'!F$4 -> 2214.960786 | N52: =G52/'Charges Summary'!G$4 -> 2365.44899 | O52: =H52/'Charges Summary'!H$4 -> 2523.452221
A53: ='DNSP Inputs General'!A$45 -> Fluorescent 3x20 watt | C53: =D53/'DNSP Inputs General'!K45 -> 30.75869769 | D53: =IF('DNSP Inputs General'!$B45='DNSP Inputs General'!$A$41,D$44,IF('DNSP Inputs General'!$B45='DNSP Inputs General'!$A$42,D$45,D$46))*'DNSP Inputs General'!$D45*'DNSP Inputs General'!K45 -> 92.27609306 | E53: =IF('DNSP Inputs General'!$B45='DNSP Inputs General'!$A$41,E$44,IF('DNSP Inputs General'!$B45='DNSP Inputs General'!$A$42,E$45,E$46))*'DNSP Inputs General'!$D45*'DNSP Inputs General'!L45 -> 97.02492723 | F53: =IF('DNSP Inputs General'!$B45='DNSP Inputs General'!$A$41,F$44,IF('DNSP Inputs General'!$B45='DNSP Inputs General'!$A$42,F$45,F$46))*'DNSP Inputs General'!$D45*'DNSP Inputs General'!M45 -> 105.2325223 | G53: =IF('DNSP Inputs General'!$B45='DNSP Inputs General'!$A$41,G$44,IF('DNSP Inputs General'!$B45='DNSP Inputs General'!$A$42,G$45,G$46))*'DNSP Inputs General'!$D45*'DNSP Inputs General'!N45 -> 111.9005609 | H53: =IF('DNSP Inputs General'!$B45='DNSP Inputs General'!$A$41,H$44,IF('DNSP Inputs General'!$B45='DNSP Inputs General'!$A$42,H$45,H$46))*'DNSP Inputs General'!$D45*'DNSP Inputs General'!O45 -> 118.960607 | K53: =D53/'Charges Summary'!D$4 -> 90.02545665 | L53: =E53/'Charges Summary'!E$4 -> 92.34972253 | M53: =F53/'Charges Summary'!F$4 -> 97.71885822 | N53: =G53/'Charges Summary'!G$4 -> 101.3763853 | O53: =H53/'Charges Summary'!H$4 -> 105.1438425
A54: ='DNSP Inputs General'!A$46 -> Mercury Vapour 50 watt | C54: =D54/'DNSP Inputs General'!K46 -> 35.28904851 | D54: =IF('DNSP Inputs General'!$B46='DNSP Inputs General'!$A$41,D$44,IF('DNSP Inputs General'!$B46='DNSP Inputs General'!$A$42,D$45,D$46))*'DNSP Inputs General'!$D46*'DNSP Inputs General'!K46 -> 1082.412694 | E54: =IF('DNSP Inputs General'!$B46='DNSP Inputs General'!$A$41,E$44,IF('DNSP Inputs General'!$B46='DNSP Inputs General'!$A$42,E$45,E$46))*'DNSP Inputs General'!$D46*'DNSP Inputs General'!L46 -> 1020.730776 | F54: =IF('DNSP Inputs General'!$B46='DNSP Inputs General'!$A$41,F$44,IF('DNSP Inputs General'!$B46='DNSP Inputs General'!$A$42,F$45,F$46))*'DNSP Inputs General'!$D46*'DNSP Inputs General'!M46 -> 979.7605896 | G54: =IF('DNSP Inputs General'!$B46='DNSP Inputs General'!$A$41,G$44,IF('DNSP Inputs General'!$B46='DNSP Inputs General'!$A$42,G$45,G$46))*'DNSP Inputs General'!$D46*'DNSP Inputs General'!N46 -> 906.4590443 | H54: =IF('DNSP Inputs General'!$B46='DNSP Inputs General'!$A$41,H$44,IF('DNSP Inputs General'!$B46='DNSP Inputs General'!$A$42,H$45,H$46))*'DNSP Inputs General'!$D46*'DNSP Inputs General'!O46 -> 819.7239409 | K54: =D54/'Charges Summary'!D$4 -> 1056.012385 | L54: =E54/'Charges Summary'!E$4 -> 971.5462475 | M54: =F54/'Charges Summary'!F$4 -> 909.8051064 | N54: =G54/'Charges Summary'!G$4 -> 821.2071557 | O54: =H54/'Charges Summary'!H$4 -> 724.5165198
A55: ='DNSP Inputs General'!A$47 -> Mercury Vapour 125 watt | C55: =D55/'DNSP Inputs General'!K47 -> 35.28904851 | D55: =IF('DNSP Inputs General'!$B47='DNSP Inputs General'!$A$41,D$44,IF('DNSP Inputs General'!$B47='DNSP Inputs General'!$A$42,D$45,D$46))*'DNSP Inputs General'!$D47*'DNSP Inputs General'!K47 -> 32369.79555 | E55: =IF('DNSP Inputs General'!$B47='DNSP Inputs General'!$A$41,E$44,IF('DNSP Inputs General'!$B47='DNSP Inputs General'!$A$42,E$45,E$46))*'DNSP Inputs General'!$D47*'DNSP Inputs General'!L47 -> 30385.91602 | F55: =IF('DNSP Inputs General'!$B47='DNSP Inputs General'!$A$41,F$44,IF('DNSP Inputs General'!$B47='DNSP Inputs General'!$A$42,F$45,F$46))*'DNSP Inputs General'!$D47*'DNSP Inputs General'!M47 -> 28997.86341 | G55: =IF('DNSP Inputs General'!$B47='DNSP Inputs General'!$A$41,G$44,IF('DNSP Inputs General'!$B47='DNSP Inputs General'!$A$42,G$45,G$46))*'DNSP Inputs General'!$D47*'DNSP Inputs General'!N47 -> 26626.00172 | H55: =IF('DNSP Inputs General'!$B47='DNSP Inputs General'!$A$41,H$44,IF('DNSP Inputs General'!$B47='DNSP Inputs General'!$A$42,H$45,H$46))*'DNSP Inputs General'!$D47*'DNSP Inputs General'!O47 -> 23831.01335 | K55: =D55/'Charges Summary'!D$4 -> 31580.28834 | L55: =E55/'Charges Summary'!E$4 -> 28921.75231 | M55: =F55/'Charges Summary'!F$4 -> 26927.39888 | N55: =G55/'Charges Summary'!G$4 -> 24121.84342 | O55: =H55/'Charges Summary'!H$4 -> 21063.14332
A56: ='DNSP Inputs General'!A$48 -> Mercury Vapour 250 watt | C56: =D56/'DNSP Inputs General'!K48 -> 36.06989143 | D56: =IF('DNSP Inputs General'!$B48='DNSP Inputs General'!$A$41,D$44,IF('DNSP Inputs General'!$B48='DNSP Inputs General'!$A$42,D$45,D$46))*'DNSP Inputs General'!$D48*'DNSP Inputs General'!K48 -> 3569.41551 | E56: =IF('DNSP Inputs General'!$B48='DNSP Inputs General'!$A$41,E$44,IF('DNSP Inputs General'!$B48='DNSP Inputs General'!$A$42,E$45,E$46))*'DNSP Inputs General'!$D48*'DNSP Inputs General'!L48 -> 3921.539911 | F56: =IF('DNSP Inputs General'!$B48='DNSP Inputs General'!$A$41,F$44,IF('DNSP Inputs General'!$B48='DNSP Inputs General'!$A$42,F$45,F$46))*'DNSP Inputs General'!$D48*'DNSP Inputs General'!M48 -> 3865.790506 | G56: =IF('DNSP Inputs General'!$B48='DNSP Inputs General'!$A$41,G$44,IF('DNSP Inputs General'!$B48='DNSP Inputs General'!$A$42,G$45,G$46))*'DNSP Inputs General'!$D48*'DNSP Inputs General'!N48 -> 4396.388388 | H56: =IF('DNSP Inputs General'!$B48='DNSP Inputs General'!$A$41,H$44,IF('DNSP Inputs General'!$B48='DNSP Inputs General'!$A$42,H$45,H$46))*'DNSP Inputs General'!$D48*'DNSP Inputs General'!O48 -> 4622.403558 | K56: =D56/'Charges Summary'!D$4 -> 3482.356595 | L56: =E56/'Charges Summary'!E$4 -> 3732.578142 | M56: =F56/'Charges Summary'!F$4 -> 3589.770786 | N56: =G56/'Charges Summary'!G$4 -> 3982.910895 | O56: =H56/'Charges Summary'!H$4 -> 4085.531204
A57: ='DNSP Inputs General'!A$49 -> Mercury Vapour 400 watt | C57: =D57/'DNSP Inputs General'!K49 -> 49.94292659 | D57: =IF('DNSP Inputs General'!$B49='DNSP Inputs General'!$A$41,D$44,IF('DNSP Inputs General'!$B49='DNSP Inputs General'!$A$42,D$45,D$46))*'DNSP Inputs General'!$D49*'DNSP Inputs General'!K49 -> 299.6575595 | E57: =IF('DNSP Inputs General'!$B49='DNSP Inputs General'!$A$41,E$44,IF('DNSP Inputs General'!$B49='DNSP Inputs General'!$A$42,E$45,E$46))*'DNSP Inputs General'!$D49*'DNSP Inputs General'!L49 -> 329.2189089 | F57: =IF('DNSP Inputs General'!$B49='DNSP Inputs General'!$A$41,F$44,IF('DNSP Inputs General'!$B49='DNSP Inputs General'!$A$42,F$45,F$46))*'DNSP Inputs General'!$D49*'DNSP Inputs General'!M49 -> 324.5386662 | G57: =IF('DNSP Inputs General'!$B49='DNSP Inputs General'!$A$41,G$44,IF('DNSP Inputs General'!$B49='DNSP Inputs General'!$A$42,G$45,G$46))*'DNSP Inputs General'!$D49*'DNSP Inputs General'!N49 -> 369.0831206 | H57: =IF('DNSP Inputs General'!$B49='DNSP Inputs General'!$A$41,H$44,IF('DNSP Inputs General'!$B49='DNSP Inputs General'!$A$42,H$45,H$46))*'DNSP Inputs General'!$D49*'DNSP Inputs General'!O49 -> 388.0574188 | K57: =D57/'Charges Summary'!D$4 -> 292.3488386 | L57: =E57/'Charges Summary'!E$4 -> 313.3552969 | M57: =F57/'Charges Summary'!F$4 -> 301.3664143 | N57: =G57/'Charges Summary'!G$4 -> 334.3710911 | O57: =H57/'Charges Summary'!H$4 -> 342.9862135
A58: ='DNSP Inputs General'!A$50 -> Mercury Vapour 700 watt | C58: =D58/'DNSP Inputs General'!K50 -> 49.94292659 | D58: =IF('DNSP Inputs General'!$B50='DNSP Inputs General'!$A$41,D$44,IF('DNSP Inputs General'!$B50='DNSP Inputs General'!$A$42,D$45,D$46))*'DNSP Inputs General'!$D50*'DNSP Inputs General'!K50 -> 199.7717064 | E58: =IF('DNSP Inputs General'!$B50='DNSP Inputs General'!$A$41,E$44,IF('DNSP Inputs General'!$B50='DNSP Inputs General'!$A$42,E$45,E$46))*'DNSP Inputs General'!$D50*'DNSP Inputs General'!L50 -> 200.1219228 | F58: =IF('DNSP Inputs General'!$B50='DNSP Inputs General'!$A$41,F$44,IF('DNSP Inputs General'!$B50='DNSP Inputs General'!$A$42,F$45,F$46))*'DNSP Inputs General'!$D50*'DNSP Inputs General'!M50 -> 216.3591108 | G58: =IF('DNSP Inputs General'!$B50='DNSP Inputs General'!$A$41,G$44,IF('DNSP Inputs General'!$B50='DNSP Inputs General'!$A$42,G$45,G$46))*'DNSP Inputs General'!$D50*'DNSP Inputs General'!N50 -> 224.3541358 | H58: =IF('DNSP Inputs General'!$B50='DNSP Inputs General'!$A$41,H$44,IF('DNSP Inputs General'!$B50='DNSP Inputs General'!$A$42,H$45,H$46))*'DNSP Inputs General'!$D50*'DNSP Inputs General'!O50 -> 258.7049459 | K58: =D58/'Charges Summary'!D$4 -> 194.8992257 | L58: =E58/'Charges Summary'!E$4 -> 190.4789271 | M58: =F58/'Charges Summary'!F$4 -> 200.9109428 | N58: =G58/'Charges Summary'!G$4 -> 203.2537739 | O58: =H58/'Charges Summary'!H$4 -> 228.6574757
A59: ='DNSP Inputs General'!A$51 -> Sodium High Pressure 70 watt | C59: =D59/'DNSP Inputs General'!K51 -> 52.21825421 | D59: =IF('DNSP Inputs General'!$B51='DNSP Inputs General'!$A$41,D$44,IF('DNSP Inputs General'!$B51='DNSP Inputs General'!$A$42,D$45,D$46))*'DNSP Inputs General'!$D51*'DNSP Inputs General'!K51 -> 18073.53495 | E59: =IF('DNSP Inputs General'!$B51='DNSP Inputs General'!$A$41,E$44,IF('DNSP Inputs General'!$B51='DNSP Inputs General'!$A$42,E$45,E$46))*'DNSP Inputs General'!$D51*'DNSP Inputs General'!L51 -> 19362.49672 | F59: =IF('DNSP Inputs General'!$B51='DNSP Inputs General'!$A$41,F$44,IF('DNSP Inputs General'!$B51='DNSP Inputs General'!$A$42,F$45,F$46))*'DNSP Inputs General'!$D51*'DNSP Inputs General'!M51 -> 21389.39716 | G59: =IF('DNSP Inputs General'!$B51='DNSP Inputs General'!$A$41,G$44,IF('DNSP Inputs General'!$B51='DNSP Inputs General'!$A$42,G$45,G$46))*'DNSP Inputs General'!$D51*'DNSP Inputs General'!N51 -> 23159.16288 | H59: =IF('DNSP Inputs General'!$B51='DNSP Inputs General'!$A$41,H$44,IF('DNSP Inputs General'!$B51='DNSP Inputs General'!$A$42,H$45,H$46))*'DNSP Inputs General'!$D51*'DNSP Inputs General'!O51 -> 25060.65676 | K59: =D59/'Charges Summary'!D$4 -> 17632.71703 | L59: =E59/'Charges Summary'!E$4 -> 18429.50313 | M59: =F59/'Charges Summary'!F$4 -> 19862.1816 | N59: =G59/'Charges Summary'!G$4 -> 20981.05855 | O59: =H59/'Charges Summary'!H$4 -> 22149.96893
A60: ='DNSP Inputs General'!A$52 -> Sodium High Pressure 100 watt | C60: =D60/'DNSP Inputs General'!K52 -> 42.90593549 | D60: =IF('DNSP Inputs General'!$B52='DNSP Inputs General'!$A$41,D$44,IF('DNSP Inputs General'!$B52='DNSP Inputs General'!$A$42,D$45,D$46))*'DNSP Inputs General'!$D52*'DNSP Inputs General'!K52 -> 39623.84889 | E60: =IF('DNSP Inputs General'!$B52='DNSP Inputs General'!$A$41,E$44,IF('DNSP Inputs General'!$B52='DNSP Inputs General'!$A$42,E$45,E$46))*'DNSP Inputs General'!$D52*'DNSP Inputs General'!L52 -> 43829.23799 | F60: =IF('DNSP Inputs General'!$B52='DNSP Inputs General'!$A$41,F$44,IF('DNSP Inputs General'!$B52='DNSP Inputs General'!$A$42,F$45,F$46))*'DNSP Inputs General'!$D52*'DNSP Inputs General'!M52 -> 48756.52817 | G60: =IF('DNSP Inputs General'!$B52='DNSP Inputs General'!$A$41,G$44,IF('DNSP Inputs General'!$B52='DNSP Inputs General'!$A$42,G$45,G$46))*'DNSP Inputs General'!$D52*'DNSP Inputs General'!N52 -> 49893.06762 | H60: =IF('DNSP Inputs General'!$B52='DNSP Inputs General'!$A$41,H$44,IF('DNSP Inputs General'!$B52='DNSP Inputs General'!$A$42,H$45,H$46))*'DNSP Inputs General'!$D52*'DNSP Inputs General'!O52 -> 52829.29561 | K60: =D60/'Charges Summary'!D$4 -> 38657.41355 | L60: =E60/'Charges Summary'!E$4 -> 41717.29969 | M60: =F60/'Charges Summary'!F$4 -> 45275.28334 | N60: =G60/'Charges Summary'!G$4 -> 45200.65678 | O60: =H60/'Charges Summary'!H$4 -> 46693.39943
A61: ='DNSP Inputs General'!A$53 -> Sodium High Pressure 400 watt | C61: =D61/'DNSP Inputs General'!K53 -> 49.94292659 | D61: =IF('DNSP Inputs General'!$B53='DNSP Inputs General'!$A$41,D$44,IF('DNSP Inputs General'!$B53='DNSP Inputs General'!$A$42,D$45,D$46))*'DNSP Inputs General'!$D53*'DNSP Inputs General'!K53 -> 16762.97729 | E61: =IF('DNSP Inputs General'!$B53='DNSP Inputs General'!$A$41,E$44,IF('DNSP Inputs General'!$B53='DNSP Inputs General'!$A$42,E$45,E$46))*'DNSP Inputs General'!$D53*'DNSP Inputs General'!L53 -> 18488.12547 | F61: =IF('DNSP Inputs General'!$B53='DNSP Inputs General'!$A$41,F$44,IF('DNSP Inputs General'!$B53='DNSP Inputs General'!$A$42,F$45,F$46))*'DNSP Inputs General'!$D53*'DNSP Inputs General'!M53 -> 18295.58438 | G61: =IF('DNSP Inputs General'!$B53='DNSP Inputs General'!$A$41,G$44,IF('DNSP Inputs General'!$B53='DNSP Inputs General'!$A$42,G$45,G$46))*'DNSP Inputs General'!$D53*'DNSP Inputs General'!N53 -> 20887.34218 | H61: =IF('DNSP Inputs General'!$B53='DNSP Inputs General'!$A$41,H$44,IF('DNSP Inputs General'!$B53='DNSP Inputs General'!$A$42,H$45,H$46))*'DNSP Inputs General'!$D53*'DNSP Inputs General'!O53 -> 22045.69226 | K61: =D61/'Charges Summary'!D$4 -> 16354.12419 | L61: =E61/'Charges Summary'!E$4 -> 17597.26398 | M61: =F61/'Charges Summary'!F$4 -> 16989.26888 | N61: =G61/'Charges Summary'!G$4 -> 18922.90112 | O61: =H61/'Charges Summary'!H$4 -> 19485.17963
A62: ='DNSP Inputs General'!A$54 -> Metal Halide 70 watt | C62: =D62/'DNSP Inputs General'!K54 -> 52.65728447 | D62: =IF('DNSP Inputs General'!$B54='DNSP Inputs General'!$A$41,D$44,IF('DNSP Inputs General'!$B54='DNSP Inputs General'!$A$42,D$45,D$46))*'DNSP Inputs General'!$D54*'DNSP Inputs General'!K54 -> 473.9155602 | E62: =IF('DNSP Inputs General'!$B54='DNSP Inputs General'!$A$41,E$44,IF('DNSP Inputs General'!$B54='DNSP Inputs General'!$A$42,E$45,E$46))*'DNSP Inputs General'!$D54*'DNSP Inputs General'!L54 -> 520.722027 | F62: =IF('DNSP Inputs General'!$B54='DNSP Inputs General'!$A$41,F$44,IF('DNSP Inputs General'!$B54='DNSP Inputs General'!$A$42,F$45,F$46))*'DNSP Inputs General'!$D54*'DNSP Inputs General'!M54 -> 575.4351738 | G62: =IF('DNSP Inputs General'!$B54='DNSP Inputs General'!$A$41,G$44,IF('DNSP Inputs General'!$B54='DNSP Inputs General'!$A$42,G$45,G$46))*'DNSP Inputs General'!$D54*'DNSP Inputs General'!N54 -> 584.9629243 | H62: =IF('DNSP Inputs General'!$B54='DNSP Inputs General'!$A$41,H$44,IF('DNSP Inputs General'!$B54='DNSP Inputs General'!$A$42,H$45,H$46))*'DNSP Inputs General'!$D54*'DNSP Inputs General'!O54 -> 615.3340194 | K62: =D62/'Charges Summary'!D$4 -> 462.3566441 | L62: =E62/'Charges Summary'!E$4 -> 495.6307217 | M62: =F62/'Charges Summary'!F$4 -> 534.3487634 | N62: =G62/'Charges Summary'!G$4 -> 529.9475385 | O62: =H62/'Charges Summary'!H$4 -> 543.8656114
A63: ='DNSP Inputs General'!A$55 -> Metal Halide 100 watt | C63: =D63/'DNSP Inputs General'!K55 -> 52.65728447 | D63: =IF('DNSP Inputs General'!$B55='DNSP Inputs General'!$A$41,D$44,IF('DNSP Inputs General'!$B55='DNSP Inputs General'!$A$42,D$45,D$46))*'DNSP Inputs General'!$D55*'DNSP Inputs General'!K55 -> 5002.442024 | E63: =IF('DNSP Inputs General'!$B55='DNSP Inputs General'!$A$41,E$44,IF('DNSP Inputs General'!$B55='DNSP Inputs General'!$A$42,E$45,E$46))*'DNSP Inputs General'!$D55*'DNSP Inputs General'!L55 -> 5496.510285 | F63: =IF('DNSP Inputs General'!$B55='DNSP Inputs General'!$A$41,F$44,IF('DNSP Inputs General'!$B55='DNSP Inputs General'!$A$42,F$45,F$46))*'DNSP Inputs General'!$D55*'DNSP Inputs General'!M55 -> 6074.037945 | G63: =IF('DNSP Inputs General'!$B55='DNSP Inputs General'!$A$41,G$44,IF('DNSP Inputs General'!$B55='DNSP Inputs General'!$A$42,G$45,G$46))*'DNSP Inputs General'!$D55*'DNSP Inputs General'!N55 -> 6174.608645 | H63: =IF('DNSP Inputs General'!$B55='DNSP Inputs General'!$A$41,H$44,IF('DNSP Inputs General'!$B55='DNSP Inputs General'!$A$42,H$45,H$46))*'DNSP Inputs General'!$D55*'DNSP Inputs General'!O55 -> 6495.192427 | K63: =D63/'Charges Summary'!D$4 -> 4880.431243 | L63: =E63/'Charges Summary'!E$4 -> 5231.657618 | M63: =F63/'Charges Summary'!F$4 -> 5640.348058 | N63: =G63/'Charges Summary'!G$4 -> 5593.890684 | O63: =H63/'Charges Summary'!H$4 -> 5740.803675
A64: ='DNSP Inputs General'!A$56 -> Metal Halide 150 watt | C64: =D64/'DNSP Inputs General'!K56 -> 52.65728447 | D64: =IF('DNSP Inputs General'!$B56='DNSP Inputs General'!$A$41,D$44,IF('DNSP Inputs General'!$B56='DNSP Inputs General'!$A$42,D$45,D$46))*'DNSP Inputs General'!$D56*'DNSP Inputs General'!K56 -> 789.859267 | E64: =IF('DNSP Inputs General'!$B56='DNSP Inputs General'!$A$41,E$44,IF('DNSP Inputs General'!$B56='DNSP Inputs General'!$A$42,E$45,E$46))*'DNSP Inputs General'!$D56*'DNSP Inputs General'!L56 -> 867.870045 | F64: =IF('DNSP Inputs General'!$B56='DNSP Inputs General'!$A$41,F$44,IF('DNSP Inputs General'!$B56='DNSP Inputs General'!$A$42,F$45,F$46))*'DNSP Inputs General'!$D56*'DNSP Inputs General'!M56 -> 959.0586229 | G64: =IF('DNSP Inputs General'!$B56='DNSP Inputs General'!$A$41,G$44,IF('DNSP Inputs General'!$B56='DNSP Inputs General'!$A$42,G$45,G$46))*'DNSP Inputs General'!$D56*'DNSP Inputs General'!N56 -> 974.9382072 | H64: =IF('DNSP Inputs General'!$B56='DNSP Inputs General'!$A$41,H$44,IF('DNSP Inputs General'!$B56='DNSP Inputs General'!$A$42,H$45,H$46))*'DNSP Inputs General'!$D56*'DNSP Inputs General'!O56 -> 1025.556699 | K64: =D64/'Charges Summary'!D$4 -> 770.5944068 | L64: =E64/'Charges Summary'!E$4 -> 826.0512029 | M64: =F64/'Charges Summary'!F$4 -> 890.5812723 | N64: =G64/'Charges Summary'!G$4 -> 883.2458974 | O64: =H64/'Charges Summary'!H$4 -> 906.4426856
A65: ='DNSP Inputs General'!A$57 -> Metal Halide 250 watt | C65: =D65/'DNSP Inputs General'!K57 -> 53.51027849 | D65: =IF('DNSP Inputs General'!$B57='DNSP Inputs General'!$A$41,D$44,IF('DNSP Inputs General'!$B57='DNSP Inputs General'!$A$42,D$45,D$46))*'DNSP Inputs General'!$D57*'DNSP Inputs General'!K57 -> 6314.212862 | E65: =IF('DNSP Inputs General'!$B57='DNSP Inputs General'!$A$41,E$44,IF('DNSP Inputs General'!$B57='DNSP Inputs General'!$A$42,E$45,E$46))*'DNSP Inputs General'!$D57*'DNSP Inputs General'!L57 -> 6937.112722 | F65: =IF('DNSP Inputs General'!$B57='DNSP Inputs General'!$A$41,F$44,IF('DNSP Inputs General'!$B57='DNSP Inputs General'!$A$42,F$45,F$46))*'DNSP Inputs General'!$D57*'DNSP Inputs General'!M57 -> 6838.493324 | G65: =IF('DNSP Inputs General'!$B57='DNSP Inputs General'!$A$41,G$44,IF('DNSP Inputs General'!$B57='DNSP Inputs General'!$A$42,G$45,G$46))*'DNSP Inputs General'!$D57*'DNSP Inputs General'!N57 -> 7777.108613 | H65: =IF('DNSP Inputs General'!$B57='DNSP Inputs General'!$A$41,H$44,IF('DNSP Inputs General'!$B57='DNSP Inputs General'!$A$42,H$45,H$46))*'DNSP Inputs General'!$D57*'DNSP Inputs General'!O57 -> 8176.924183 | K65: =D65/'Charges Summary'!D$4 -> 6160.20767 | L65: =E65/'Charges Summary'!E$4 -> 6602.843757 | M65: =F65/'Charges Summary'!F$4 -> 6350.220872 | N65: =G65/'Charges Summary'!G$4 -> 7045.676563 | O65: =H65/'Charges Summary'!H$4 -> 7227.209498
A66: ='DNSP Inputs General'!A$58 -> Metal Halide 400 watt | C66: =D66/'DNSP Inputs General'!K58 -> 53.51027849 | D66: =IF('DNSP Inputs General'!$B58='DNSP Inputs General'!$A$41,D$44,IF('DNSP Inputs General'!$B58='DNSP Inputs General'!$A$42,D$45,D$46))*'DNSP Inputs General'!$D58*'DNSP Inputs General'!K58 -> 5886.130634 | E66: =IF('DNSP Inputs General'!$B58='DNSP Inputs General'!$A$41,E$44,IF('DNSP Inputs General'!$B58='DNSP Inputs General'!$A$42,E$45,E$46))*'DNSP Inputs General'!$D58*'DNSP Inputs General'!L58 -> 6466.799995 | F66: =IF('DNSP Inputs General'!$B58='DNSP Inputs General'!$A$41,F$44,IF('DNSP Inputs General'!$B58='DNSP Inputs General'!$A$42,F$45,F$46))*'DNSP Inputs General'!$D58*'DNSP Inputs General'!M58 -> 6374.866658 | G66: =IF('DNSP Inputs General'!$B58='DNSP Inputs General'!$A$41,G$44,IF('DNSP Inputs General'!$B58='DNSP Inputs General'!$A$42,G$45,G$46))*'DNSP Inputs General'!$D58*'DNSP Inputs General'!N58 -> 7249.847012 | H66: =IF('DNSP Inputs General'!$B58='DNSP Inputs General'!$A$41,H$44,IF('DNSP Inputs General'!$B58='DNSP Inputs General'!$A$42,H$45,H$46))*'DNSP Inputs General'!$D58*'DNSP Inputs General'!O58 -> 7622.556442 | K66: =D66/'Charges Summary'!D$4 -> 5742.566472 | L66: =E66/'Charges Summary'!E$4 -> 6155.193333 | M66: =F66/'Charges Summary'!F$4 -> 5919.697423 | N66: =G66/'Charges Summary'!G$4 -> 6568.003575 | O66: =H66/'Charges Summary'!H$4 -> 6737.229193
A67: Twin 24w Fluorescent | D67: =('Charges Summary'!D83+'Charges Summary'!D8)*'DNSP Inputs General'!K59 -> 8779.669372 | E67: =('Charges Summary'!E83+'Charges Summary'!E8)*'DNSP Inputs General'!L59 -> 8397.668924 | F67: =('Charges Summary'!F83+'Charges Summary'!F8)*'DNSP Inputs General'!M59 -> 8111.048665 | G67: =('Charges Summary'!G83+'Charges Summary'!G8)*'DNSP Inputs General'!N59 -> 7883.956726 | H67: =('Charges Summary'!H83+'Charges Summary'!H8)*'DNSP Inputs General'!O59 -> 7715.792788 | K67: =D67/'Charges Summary'!D$4 -> 8565.531094 | L67: =E67/'Charges Summary'!E$4 -> 7993.022177 | M67: =F67/'Charges Summary'!F$4 -> 7531.915012 | N67: =G67/'Charges Summary'!G$4 -> 7142.47568 | O67: =H67/'Charges Summary'!H$4 -> 6819.636538
A68: 32W Compact Fluorescent | D68: =('Charges Summary'!D8+'Charges Summary'!D83)*'DNSP Inputs General'!K60 -> 58349.83804 | E68: =('Charges Summary'!E8+'Charges Summary'!E83)*'DNSP Inputs General'!L60 -> 55811.0563 | F68: =('Charges Summary'!F8+'Charges Summary'!F83)*'DNSP Inputs General'!M60 -> 53906.17299 | G68: =('Charges Summary'!G8+'Charges Summary'!G83)*'DNSP Inputs General'!N60 -> 52396.91594 | H68: =('Charges Summary'!H8+'Charges Summary'!H83)*'DNSP Inputs General'!O60 -> 51279.29543 | K68: =D68/'Charges Summary'!D$4 -> 56926.67126 | L68: =E68/'Charges Summary'!E$4 -> 53121.76685 | M68: =F68/'Charges Summary'!F$4 -> 50057.24048 | N68: =G68/'Charges Summary'!G$4 -> 47469.01978 | O68: =H68/'Charges Summary'!H$4 -> 45323.42513
A69: 42w Compact Fluorescent | D69: =('Charges Summary'!D83+'Charges Summary'!D8)*'DNSP Inputs General'!K61 -> 11770.97265 | E69: =('Charges Summary'!E83+'Charges Summary'!E8)*'DNSP Inputs General'!L61 -> 11258.82161 | F69: =('Charges Summary'!F83+'Charges Summary'!F8)*'DNSP Inputs General'!M61 -> 10874.54755 | G69: =('Charges Summary'!G83+'Charges Summary'!G8)*'DNSP Inputs General'!N61 -> 10570.08358 | H69: =('Charges Summary'!H83+'Charges Summary'!H8)*'DNSP Inputs General'!O61 -> 10344.62484 | K69: =D69/'Charges Summary'!D$4 -> 11483.87576 | L69: =E69/'Charges Summary'!E$4 -> 10716.30849 | M69: =F69/'Charges Summary'!F$4 -> 10098.09845 | N69: =G69/'Charges Summary'!G$4 -> 9575.974031 | O69: =H69/'Charges Summary'!H$4 -> 9143.141022
A73: ='DNSP Inputs General'!A$67 -> Energy Efficient Lights
A74: ='DNSP Inputs General'!A$68 -> T5 2X14W | D74: =SUM('Charges Summary'!D83,'Charges Summary'!D8)*'DNSP Inputs General'!$D68*'DNSP Inputs General'!K68 -> 1004118.753 | E74: =SUM('Charges Summary'!E83,'Charges Summary'!E8)*'DNSP Inputs General'!$D68*'DNSP Inputs General'!L68 -> 1025831.888 | F74: =SUM('Charges Summary'!F83,'Charges Summary'!F8)*'DNSP Inputs General'!$D68*'DNSP Inputs General'!M68 -> 1049003.103 | G74: =SUM('Charges Summary'!G83,'Charges Summary'!G8)*'DNSP Inputs General'!$D68*'DNSP Inputs General'!N68 -> 1071475.815 | H74: =SUM('Charges Summary'!H83,'Charges Summary'!H8)*'DNSP Inputs General'!$D68*'DNSP Inputs General'!O68 -> 1095653.145 | K74: =D74/'Charges Summary'!D$4 -> 979628.0521 | L74: =E74/'Charges Summary'!E$4 -> 976401.5587 | M74: =F74/'Charges Summary'!F$4 -> 974103.6632 | N74: =G74/'Charges Summary'!G$4 -> 970704.2051 | O74: =H74/'Charges Summary'!H$4 -> 968397.7303
A79: Total O & M | D79: =SUM(D49:D78) -> 3778735.932 | E79: =SUM(E49:E78) -> 3926521.145 | F79: =SUM(F49:F78) -> 4079333.605 | G79: =SUM(G49:G78) -> 4178236.71 | H79: =SUM(H49:H78) -> 4279537.7 | K79: =SUM(K49:K78) -> 3686571.641 | L79: =SUM(L49:L78) -> 3737319.353 | M79: =SUM(M49:M78) -> 3788066.783 | N79: =SUM(N49:N78) -> 3785276.242 | O79: =SUM(O49:O78) -> 3782487.746
A82: Public Lighting - Capital Charge | D82: Capital Charge - Nominal | K82: Capital Charge - Real 2015 $
D83: =D$2 -> 2016 | E83: =E$2 -> 2017 | F83: =F$2 -> 2018 | G83: =G$2 -> 2019 | H83: =H$2 -> 2020 | K83: =K$2 -> 2016 | L83: =L$2 -> 2017 | M83: =M$2 -> 2018 | N83: =N$2 -> 2019 | O83: =O$2 -> 2020
A85: Unit cost
A86: ='DNSP Inputs General'!A$41 -> Mercury Vapour 80 watt | D86: =SUM('Charges Summary'!D27,'Charges Summary'!D11) -> 30.28286804 | E86: =SUM('Charges Summary'!E27,'Charges Summary'!E11) -> 33.0606368 | F86: =SUM('Charges Summary'!F27,'Charges Summary'!F11) -> 36.06762493 | G86: =SUM('Charges Summary'!G27,'Charges Summary'!G11) -> 39.30937207 | H86: =SUM('Charges Summary'!H27,'Charges Summary'!H11) -> 42.82089495
A87: ='DNSP Inputs General'!A$42 -> Sodium High Pressure 150 watt | D87: =SUM('Charges Summary'!D51,'Charges Summary'!D11) -> 29.87989482 | E87: =SUM('Charges Summary'!E51,'Charges Summary'!E11) -> 32.62078584 | F87: =SUM('Charges Summary'!F51,'Charges Summary'!F11) -> 35.58840123 | G87: =SUM('Charges Summary'!G51,'Charges Summary'!G11) -> 38.78799589 | H87: =SUM('Charges Summary'!H51,'Charges Summary'!H11) -> 42.25424987
A88: ='DNSP Inputs General'!A$43 -> Sodium High Pressure 250 watt | D88: =SUM('Charges Summary'!D67,'Charges Summary'!D11) -> 31.01704585 | E88: =SUM('Charges Summary'!E67,'Charges Summary'!E11) -> 33.86200225 | F88: =SUM('Charges Summary'!F67,'Charges Summary'!F11) -> 36.94072368 | G88: =SUM('Charges Summary'!G67,'Charges Summary'!G11) -> 40.25926851 | H88: =SUM('Charges Summary'!H67,'Charges Summary'!H11) -> 43.8532669
A90: ='DNSP Inputs General'!A$40 -> Existing Lights
A91: ='DNSP Inputs General'!A$41 -> Mercury Vapour 80 watt | D91: =D86*'DNSP Inputs General'!K41 -> 1569318.716 | E91: =E86*'DNSP Inputs General'!L41 -> 1609895.808 | F91: =F86*'DNSP Inputs General'!M41 -> 1643547.29 | G91: =G86*'DNSP Inputs General'!N41 -> 1668358.137 | H91: =H86*'DNSP Inputs General'!O41 -> 1683502.93 | K91: =D91/'Charges Summary'!D$4 -> 1531042.65 | L91: =E91/'Charges Summary'!E$4 -> 1532322.007 | M91: =F91/'Charges Summary'!F$4 -> 1526197.046 | N91: =G91/'Charges Summary'!G$4 -> 1511450.13 | O91: =H91/'Charges Summary'!H$4 -> 1487971.283
A92: ='DNSP Inputs General'!A$42 -> Sodium High Pressure 150 watt | D92: =D87*'DNSP Inputs General'!K42 -> 713977.6645 | E92: =E87*'DNSP Inputs General'!L42 -> 782508.6715 | F92: =F87*'DNSP Inputs General'!M42 -> 857002.061 | G92: =G87*'DNSP Inputs General'!N42 -> 937684.6562 | H92: =H87*'DNSP Inputs General'!O42 -> 1025428.703 | K92: =D92/'Charges Summary'!D$4 -> 696563.5751 | L92: =E92/'Charges Summary'!E$4 -> 744803.0187 | M92: =F92/'Charges Summary'!F$4 -> 795811.609 | N92: =G92/'Charges Summary'!G$4 -> 849496.0189 | O92: =H92/'Charges Summary'!H$4 -> 906329.556
A93: ='DNSP Inputs General'!A$43 -> Sodium High Pressure 250 watt | D93: =D88*'DNSP Inputs General'!K43 -> 309515.8602 | E93: =E88*'DNSP Inputs General'!L43 -> 339222.2173 | F93: =F88*'DNSP Inputs General'!M43 -> 371497.3344 | G93: =G88*'DNSP Inputs General'!N43 -> 406445.4469 | H93: =H88*'DNSP Inputs General'!O43 -> 444440.8201 | K93: =D93/'Charges Summary'!D$4 -> 301966.6929 | L93: =E93/'Charges Summary'!E$4 -> 322876.5899 | M93: =F93/'Charges Summary'!F$4 -> 344972.2059 | N93: =G93/'Charges Summary'!G$4 -> 368219.5147 | O93: =H93/'Charges Summary'!H$4 -> 392820.9244
A94: ='DNSP Inputs General'!A$44 -> Fluorescent 2x20 watt | C94: =D94/'DNSP Inputs General'!K44 -> 39.06489977 | D94: =IF('DNSP Inputs General'!$B44='DNSP Inputs General'!$A$41,D$86,IF('DNSP Inputs General'!$B44='DNSP Inputs General'!$A$42,D$87,D$88))*'DNSP Inputs General'!$D44*'DNSP Inputs General'!K44 -> 2500.153585 | E94: =IF('DNSP Inputs General'!$B44='DNSP Inputs General'!$A$41,E$86,IF('DNSP Inputs General'!$B44='DNSP Inputs General'!$A$42,E$87,E$88))*'DNSP Inputs General'!$D44*'DNSP Inputs General'!L44 -> 2814.782617 | F94: =IF('DNSP Inputs General'!$B44='DNSP Inputs General'!$A$41,F$86,IF('DNSP Inputs General'!$B44='DNSP Inputs General'!$A$42,F$87,F$88))*'DNSP Inputs General'!$D44*'DNSP Inputs General'!M44 -> 3163.852059 | G94: =IF('DNSP Inputs General'!$B44='DNSP Inputs General'!$A$41,G$86,IF('DNSP Inputs General'!$B44='DNSP Inputs General'!$A$42,G$87,G$88))*'DNSP Inputs General'!$D44*'DNSP Inputs General'!N44 -> 3549.636298 | H94: =IF('DNSP Inputs General'!$B44='DNSP Inputs General'!$A$41,H$86,IF('DNSP Inputs General'!$B44='DNSP Inputs General'!$A$42,H$87,H$88))*'DNSP Inputs General'!$D44*'DNSP Inputs General'!O44 -> 3977.204723 | K94: =D94/'Charges Summary'!D$4 -> 2439.17423 | L94: =E94/'Charges Summary'!E$4 -> 2679.150617 | M94: =F94/'Charges Summary'!F$4 -> 2937.951158 | N94: =G94/'Charges Summary'!G$4 -> 3215.795293 | O94: =H94/'Charges Summary'!H$4 -> 3515.269447
A95: ='DNSP Inputs General'!A$45 -> Fluorescent 3x20 watt | C95: =D95/'DNSP Inputs General'!K45 -> 39.06489977 | D95: =IF('DNSP Inputs General'!$B45='DNSP Inputs General'!$A$41,D$86,IF('DNSP Inputs General'!$B45='DNSP Inputs General'!$A$42,D$87,D$88))*'DNSP Inputs General'!$D45*'DNSP Inputs General'!K45 -> 117.1946993 | E95: =IF('DNSP Inputs General'!$B45='DNSP Inputs General'!$A$41,E$86,IF('DNSP Inputs General'!$B45='DNSP Inputs General'!$A$42,E$87,E$88))*'DNSP Inputs General'!$D45*'DNSP Inputs General'!L45 -> 127.9446644 | F95: =IF('DNSP Inputs General'!$B45='DNSP Inputs General'!$A$41,F$86,IF('DNSP Inputs General'!$B45='DNSP Inputs General'!$A$42,F$87,F$88))*'DNSP Inputs General'!$D45*'DNSP Inputs General'!M45 -> 139.5817085 | G95: =IF('DNSP Inputs General'!$B45='DNSP Inputs General'!$A$41,G$86,IF('DNSP Inputs General'!$B45='DNSP Inputs General'!$A$42,G$87,G$88))*'DNSP Inputs General'!$D45*'DNSP Inputs General'!N45 -> 152.1272699 | H95: =IF('DNSP Inputs General'!$B45='DNSP Inputs General'!$A$41,H$86,IF('DNSP Inputs General'!$B45='DNSP Inputs General'!$A$42,H$87,H$88))*'DNSP Inputs General'!$D45*'DNSP Inputs General'!O45 -> 165.7168635 | K95: =D95/'Charges Summary'!D$4 -> 114.336292 | L95: =E95/'Charges Summary'!E$4 -> 121.7795735 | M95: =F95/'Charges Summary'!F$4 -> 129.6154923 | N95: =G95/'Charges Summary'!G$4 -> 137.8197983 | O95: =H95/'Charges Summary'!H$4 -> 146.4695603
A96: ='DNSP Inputs General'!A$46 -> Mercury Vapour 50 watt | C96: =D96/'DNSP Inputs General'!K46 -> 44.8186447 | D96: =IF('DNSP Inputs General'!$B46='DNSP Inputs General'!$A$41,D$86,IF('DNSP Inputs General'!$B46='DNSP Inputs General'!$A$42,D$87,D$88))*'DNSP Inputs General'!$D46*'DNSP Inputs General'!K46 -> 1374.711759 | E96: =IF('DNSP Inputs General'!$B46='DNSP Inputs General'!$A$41,E$86,IF('DNSP Inputs General'!$B46='DNSP Inputs General'!$A$42,E$87,E$88))*'DNSP Inputs General'!$D46*'DNSP Inputs General'!L46 -> 1346.015507 | F96: =IF('DNSP Inputs General'!$B46='DNSP Inputs General'!$A$41,F$86,IF('DNSP Inputs General'!$B46='DNSP Inputs General'!$A$42,F$87,F$88))*'DNSP Inputs General'!$D46*'DNSP Inputs General'!M46 -> 1299.566465 | G96: =IF('DNSP Inputs General'!$B46='DNSP Inputs General'!$A$41,G$86,IF('DNSP Inputs General'!$B46='DNSP Inputs General'!$A$42,G$87,G$88))*'DNSP Inputs General'!$D46*'DNSP Inputs General'!N46 -> 1232.318575 | H96: =IF('DNSP Inputs General'!$B46='DNSP Inputs General'!$A$41,H$86,IF('DNSP Inputs General'!$B46='DNSP Inputs General'!$A$42,H$87,H$88))*'DNSP Inputs General'!$D46*'DNSP Inputs General'!O46 -> 1141.908098 | K96: =D96/'Charges Summary'!D$4 -> 1341.182204 | L96: =E96/'Charges Summary'!E$4 -> 1281.156937 | M96: =F96/'Charges Summary'!F$4 -> 1206.776654 | N96: =G96/'Charges Summary'!G$4 -> 1116.419807 | O96: =H96/'Charges Summary'!H$4 -> 1009.280368
A97: ='DNSP Inputs General'!A$47 -> Mercury Vapour 125 watt | C97: =D97/'DNSP Inputs General'!K47 -> 44.8186447 | D97: =IF('DNSP Inputs General'!$B47='DNSP Inputs General'!$A$41,D$86,IF('DNSP Inputs General'!$B47='DNSP Inputs General'!$A$42,D$87,D$88))*'DNSP Inputs General'!$D47*'DNSP Inputs General'!K47 -> 41111.06496 | E97: =IF('DNSP Inputs General'!$B47='DNSP Inputs General'!$A$41,E$86,IF('DNSP Inputs General'!$B47='DNSP Inputs General'!$A$42,E$87,E$88))*'DNSP Inputs General'!$D47*'DNSP Inputs General'!L47 -> 40069.24755 | F97: =IF('DNSP Inputs General'!$B47='DNSP Inputs General'!$A$41,F$86,IF('DNSP Inputs General'!$B47='DNSP Inputs General'!$A$42,F$87,F$88))*'DNSP Inputs General'!$D47*'DNSP Inputs General'!M47 -> 38463.12175 | G97: =IF('DNSP Inputs General'!$B47='DNSP Inputs General'!$A$41,G$86,IF('DNSP Inputs General'!$B47='DNSP Inputs General'!$A$42,G$87,G$88))*'DNSP Inputs General'!$D47*'DNSP Inputs General'!N47 -> 36197.68228 | H97: =IF('DNSP Inputs General'!$B47='DNSP Inputs General'!$A$41,H$86,IF('DNSP Inputs General'!$B47='DNSP Inputs General'!$A$42,H$87,H$88))*'DNSP Inputs General'!$D47*'DNSP Inputs General'!O47 -> 33197.55073 | K97: =D97/'Charges Summary'!D$4 -> 40108.35606 | L97: =E97/'Charges Summary'!E$4 -> 38138.48667 | M97: =F97/'Charges Summary'!F$4 -> 35716.8322 | N97: =G97/'Charges Summary'!G$4 -> 32793.31361 | O97: =H97/'Charges Summary'!H$4 -> 29341.79755
A98: ='DNSP Inputs General'!A$48 -> Mercury Vapour 250 watt | C98: =D98/'DNSP Inputs General'!K48 -> 28.22551173 | D98: =IF('DNSP Inputs General'!$B48='DNSP Inputs General'!$A$41,D$86,IF('DNSP Inputs General'!$B48='DNSP Inputs General'!$A$42,D$87,D$88))*'DNSP Inputs General'!$D48*'DNSP Inputs General'!K48 -> 2793.148949 | E98: =IF('DNSP Inputs General'!$B48='DNSP Inputs General'!$A$41,E$86,IF('DNSP Inputs General'!$B48='DNSP Inputs General'!$A$42,E$87,E$88))*'DNSP Inputs General'!$D48*'DNSP Inputs General'!L48 -> 3049.343139 | F98: =IF('DNSP Inputs General'!$B48='DNSP Inputs General'!$A$41,F$86,IF('DNSP Inputs General'!$B48='DNSP Inputs General'!$A$42,F$87,F$88))*'DNSP Inputs General'!$D48*'DNSP Inputs General'!M48 -> 3326.588355 | G98: =IF('DNSP Inputs General'!$B48='DNSP Inputs General'!$A$41,G$86,IF('DNSP Inputs General'!$B48='DNSP Inputs General'!$A$42,G$87,G$88))*'DNSP Inputs General'!$D48*'DNSP Inputs General'!N48 -> 3625.43016 | H98: =IF('DNSP Inputs General'!$B48='DNSP Inputs General'!$A$41,H$86,IF('DNSP Inputs General'!$B48='DNSP Inputs General'!$A$42,H$87,H$88))*'DNSP Inputs General'!$D48*'DNSP Inputs General'!O48 -> 3949.077128 | K98: =D98/'Charges Summary'!D$4 -> 2725.023365 | L98: =E98/'Charges Summary'!E$4 -> 2902.408699 | M98: =F98/'Charges Summary'!F$4 -> 3089.067986 | N98: =G98/'Charges Summary'!G$4 -> 3284.460791 | O98: =H98/'Charges Summary'!H$4 -> 3490.408752
A99: ='DNSP Inputs General'!A$49 -> Mercury Vapour 400 watt | C99: =D99/'DNSP Inputs General'!K49 -> 39.08147778 | D99: =IF('DNSP Inputs General'!$B49='DNSP Inputs General'!$A$41,D$86,IF('DNSP Inputs General'!$B49='DNSP Inputs General'!$A$42,D$87,D$88))*'DNSP Inputs General'!$D49*'DNSP Inputs General'!K49 -> 234.4888667 | E99: =IF('DNSP Inputs General'!$B49='DNSP Inputs General'!$A$41,E$86,IF('DNSP Inputs General'!$B49='DNSP Inputs General'!$A$42,E$87,E$88))*'DNSP Inputs General'!$D49*'DNSP Inputs General'!L49 -> 255.996737 | F99: =IF('DNSP Inputs General'!$B49='DNSP Inputs General'!$A$41,F$86,IF('DNSP Inputs General'!$B49='DNSP Inputs General'!$A$42,F$87,F$88))*'DNSP Inputs General'!$D49*'DNSP Inputs General'!M49 -> 279.2718711 | G99: =IF('DNSP Inputs General'!$B49='DNSP Inputs General'!$A$41,G$86,IF('DNSP Inputs General'!$B49='DNSP Inputs General'!$A$42,G$87,G$88))*'DNSP Inputs General'!$D49*'DNSP Inputs General'!N49 -> 304.3600699 | H99: =IF('DNSP Inputs General'!$B49='DNSP Inputs General'!$A$41,H$86,IF('DNSP Inputs General'!$B49='DNSP Inputs General'!$A$42,H$87,H$88))*'DNSP Inputs General'!$D49*'DNSP Inputs General'!O49 -> 331.5306978 | K99: =D99/'Charges Summary'!D$4 -> 228.769626 | L99: =E99/'Charges Summary'!E$4 -> 243.6613796 | M99: =F99/'Charges Summary'!F$4 -> 259.331695 | N99: =G99/'Charges Summary'!G$4 -> 275.7352016 | O99: =H99/'Charges Summary'!H$4 -> 293.0248287
A100: ='DNSP Inputs General'!A$50 -> Mercury Vapour 700 watt | C100: =D100/'DNSP Inputs General'!K50 -> 39.08147778 | D100: =IF('DNSP Inputs General'!$B50='DNSP Inputs General'!$A$41,D$86,IF('DNSP Inputs General'!$B50='DNSP Inputs General'!$A$42,D$87,D$88))*'DNSP Inputs General'!$D50*'DNSP Inputs General'!K50 -> 156.3259111 | E100: =IF('DNSP Inputs General'!$B50='DNSP Inputs General'!$A$41,E$86,IF('DNSP Inputs General'!$B50='DNSP Inputs General'!$A$42,E$87,E$88))*'DNSP Inputs General'!$D50*'DNSP Inputs General'!L50 -> 155.6124447 | F100: =IF('DNSP Inputs General'!$B50='DNSP Inputs General'!$A$41,F$86,IF('DNSP Inputs General'!$B50='DNSP Inputs General'!$A$42,F$87,F$88))*'DNSP Inputs General'!$D50*'DNSP Inputs General'!M50 -> 186.1812474 | G100: =IF('DNSP Inputs General'!$B50='DNSP Inputs General'!$A$41,G$86,IF('DNSP Inputs General'!$B50='DNSP Inputs General'!$A$42,G$87,G$88))*'DNSP Inputs General'!$D50*'DNSP Inputs General'!N50 -> 185.0110087 | H100: =IF('DNSP Inputs General'!$B50='DNSP Inputs General'!$A$41,H$86,IF('DNSP Inputs General'!$B50='DNSP Inputs General'!$A$42,H$87,H$88))*'DNSP Inputs General'!$D50*'DNSP Inputs General'!O50 -> 221.0204652 | K100: =D100/'Charges Summary'!D$4 -> 152.513084 | L100: =E100/'Charges Summary'!E$4 -> 148.114165 | M100: =F100/'Charges Summary'!F$4 -> 172.8877966 | N100: =G100/'Charges Summary'!G$4 -> 167.6108426 | O100: =H100/'Charges Summary'!H$4 -> 195.3498858
A101: ='DNSP Inputs General'!A$51 -> Sodium High Pressure 70 watt | C101: =D101/'DNSP Inputs General'!K51 -> 66.31948101 | D101: =IF('DNSP Inputs General'!$B51='DNSP Inputs General'!$A$41,D$86,IF('DNSP Inputs General'!$B51='DNSP Inputs General'!$A$42,D$87,D$88))*'DNSP Inputs General'!$D51*'DNSP Inputs General'!K51 -> 22954.18482 | E101: =IF('DNSP Inputs General'!$B51='DNSP Inputs General'!$A$41,E$86,IF('DNSP Inputs General'!$B51='DNSP Inputs General'!$A$42,E$87,E$88))*'DNSP Inputs General'!$D51*'DNSP Inputs General'!L51 -> 25532.90392 | F101: =IF('DNSP Inputs General'!$B51='DNSP Inputs General'!$A$41,F$86,IF('DNSP Inputs General'!$B51='DNSP Inputs General'!$A$42,F$87,F$88))*'DNSP Inputs General'!$D51*'DNSP Inputs General'!M51 -> 28371.15878 | G101: =IF('DNSP Inputs General'!$B51='DNSP Inputs General'!$A$41,G$86,IF('DNSP Inputs General'!$B51='DNSP Inputs General'!$A$42,G$87,G$88))*'DNSP Inputs General'!$D51*'DNSP Inputs General'!N51 -> 31484.56268 | H101: =IF('DNSP Inputs General'!$B51='DNSP Inputs General'!$A$41,H$86,IF('DNSP Inputs General'!$B51='DNSP Inputs General'!$A$42,H$87,H$88))*'DNSP Inputs General'!$D51*'DNSP Inputs General'!O51 -> 34910.49299 | K101: =D101/'Charges Summary'!D$4 -> 22394.32665 | L101: =E101/'Charges Summary'!E$4 -> 24302.58553 | M101: =F101/'Charges Summary'!F$4 -> 26345.44133 | N101: =G101/'Charges Summary'!G$4 -> 28523.45986 | O101: =H101/'Charges Summary'!H$4 -> 30855.78891
A102: ='DNSP Inputs General'!A$52 -> Sodium High Pressure 100 watt | C102: =D102/'DNSP Inputs General'!K52 -> 32.8678843 | D102: =IF('DNSP Inputs General'!$B52='DNSP Inputs General'!$A$41,D$86,IF('DNSP Inputs General'!$B52='DNSP Inputs General'!$A$42,D$87,D$88))*'DNSP Inputs General'!$D52*'DNSP Inputs General'!K52 -> 30353.65774 | E102: =IF('DNSP Inputs General'!$B52='DNSP Inputs General'!$A$41,E$86,IF('DNSP Inputs General'!$B52='DNSP Inputs General'!$A$42,E$87,E$88))*'DNSP Inputs General'!$D52*'DNSP Inputs General'!L52 -> 33360.20172 | F102: =IF('DNSP Inputs General'!$B52='DNSP Inputs General'!$A$41,F$86,IF('DNSP Inputs General'!$B52='DNSP Inputs General'!$A$42,F$87,F$88))*'DNSP Inputs General'!$D52*'DNSP Inputs General'!M52 -> 36637.10291 | G102: =IF('DNSP Inputs General'!$B52='DNSP Inputs General'!$A$41,G$86,IF('DNSP Inputs General'!$B52='DNSP Inputs General'!$A$42,G$87,G$88))*'DNSP Inputs General'!$D52*'DNSP Inputs General'!N52 -> 40196.24503 | H102: =IF('DNSP Inputs General'!$B52='DNSP Inputs General'!$A$41,H$86,IF('DNSP Inputs General'!$B52='DNSP Inputs General'!$A$42,H$87,H$88))*'DNSP Inputs General'!$D52*'DNSP Inputs General'!O52 -> 44076.85187 | K102: =D102/'Charges Summary'!D$4 -> 29613.32463 | L102: =E102/'Charges Summary'!E$4 -> 31752.72026 | M102: =F102/'Charges Summary'!F$4 -> 34021.19218 | N102: =G102/'Charges Summary'!G$4 -> 36415.8141 | O102: =H102/'Charges Summary'!H$4 -> 38957.51451
A103: ='DNSP Inputs General'!A$53 -> Sodium High Pressure 400 watt | C103: =D103/'DNSP Inputs General'!K53 -> 39.08147778 | D103: =IF('DNSP Inputs General'!$B53='DNSP Inputs General'!$A$41,D$86,IF('DNSP Inputs General'!$B53='DNSP Inputs General'!$A$42,D$87,D$88))*'DNSP Inputs General'!$D53*'DNSP Inputs General'!K53 -> 13117.4116 | E103: =IF('DNSP Inputs General'!$B53='DNSP Inputs General'!$A$41,E$86,IF('DNSP Inputs General'!$B53='DNSP Inputs General'!$A$42,E$87,E$88))*'DNSP Inputs General'!$D53*'DNSP Inputs General'!L53 -> 14376.14811 | F103: =IF('DNSP Inputs General'!$B53='DNSP Inputs General'!$A$41,F$86,IF('DNSP Inputs General'!$B53='DNSP Inputs General'!$A$42,F$87,F$88))*'DNSP Inputs General'!$D53*'DNSP Inputs General'!M53 -> 15743.70827 | G103: =IF('DNSP Inputs General'!$B53='DNSP Inputs General'!$A$41,G$86,IF('DNSP Inputs General'!$B53='DNSP Inputs General'!$A$42,G$87,G$88))*'DNSP Inputs General'!$D53*'DNSP Inputs General'!N53 -> 17224.50194 | H103: =IF('DNSP Inputs General'!$B53='DNSP Inputs General'!$A$41,H$86,IF('DNSP Inputs General'!$B53='DNSP Inputs General'!$A$42,H$87,H$88))*'DNSP Inputs General'!$D53*'DNSP Inputs General'!O53 -> 18834.38735 | K103: =D103/'Charges Summary'!D$4 -> 12797.47473 | L103: =E103/'Charges Summary'!E$4 -> 13683.42473 | M103: =F103/'Charges Summary'!F$4 -> 14619.59822 | N103: =G103/'Charges Summary'!G$4 -> 15604.54864 | O103: =H103/'Charges Summary'!H$4 -> 16646.85401
A104: ='DNSP Inputs General'!A$54 -> Metal Halide 70 watt | C104: =D104/'DNSP Inputs General'!K54 -> 40.33785801 | D104: =IF('DNSP Inputs General'!$B54='DNSP Inputs General'!$A$41,D$86,IF('DNSP Inputs General'!$B54='DNSP Inputs General'!$A$42,D$87,D$88))*'DNSP Inputs General'!$D54*'DNSP Inputs General'!K54 -> 363.0407221 | E104: =IF('DNSP Inputs General'!$B54='DNSP Inputs General'!$A$41,E$86,IF('DNSP Inputs General'!$B54='DNSP Inputs General'!$A$42,E$87,E$88))*'DNSP Inputs General'!$D54*'DNSP Inputs General'!L54 -> 396.342548 | F104: =IF('DNSP Inputs General'!$B54='DNSP Inputs General'!$A$41,F$86,IF('DNSP Inputs General'!$B54='DNSP Inputs General'!$A$42,F$87,F$88))*'DNSP Inputs General'!$D54*'DNSP Inputs General'!M54 -> 432.3990749 | G104: =IF('DNSP Inputs General'!$B54='DNSP Inputs General'!$A$41,G$86,IF('DNSP Inputs General'!$B54='DNSP Inputs General'!$A$42,G$87,G$88))*'DNSP Inputs General'!$D54*'DNSP Inputs General'!N54 -> 471.2741501 | H104: =IF('DNSP Inputs General'!$B54='DNSP Inputs General'!$A$41,H$86,IF('DNSP Inputs General'!$B54='DNSP Inputs General'!$A$42,H$87,H$88))*'DNSP Inputs General'!$D54*'DNSP Inputs General'!O54 -> 513.389136 | K104: =D104/'Charges Summary'!D$4 -> 354.1860703 | L104: =E104/'Charges Summary'!E$4 -> 377.244543 | M104: =F104/'Charges Summary'!F$4 -> 401.5255262 | N104: =G104/'Charges Summary'!G$4 -> 426.9511201 | O104: =H104/'Charges Summary'!H$4 -> 453.761189
A105: ='DNSP Inputs General'!A$55 -> Metal Halide 100 watt | C105: =D105/'DNSP Inputs General'!K55 -> 40.33785801 | D105: =IF('DNSP Inputs General'!$B55='DNSP Inputs General'!$A$41,D$86,IF('DNSP Inputs General'!$B55='DNSP Inputs General'!$A$42,D$87,D$88))*'DNSP Inputs General'!$D55*'DNSP Inputs General'!K55 -> 3832.096511 | E105: =IF('DNSP Inputs General'!$B55='DNSP Inputs General'!$A$41,E$86,IF('DNSP Inputs General'!$B55='DNSP Inputs General'!$A$42,E$87,E$88))*'DNSP Inputs General'!$D55*'DNSP Inputs General'!L55 -> 4183.615784 | F105: =IF('DNSP Inputs General'!$B55='DNSP Inputs General'!$A$41,F$86,IF('DNSP Inputs General'!$B55='DNSP Inputs General'!$A$42,F$87,F$88))*'DNSP Inputs General'!$D55*'DNSP Inputs General'!M55 -> 4564.212457 | G105: =IF('DNSP Inputs General'!$B55='DNSP Inputs General'!$A$41,G$86,IF('DNSP Inputs General'!$B55='DNSP Inputs General'!$A$42,G$87,G$88))*'DNSP Inputs General'!$D55*'DNSP Inputs General'!N55 -> 4974.560473 | H105: =IF('DNSP Inputs General'!$B55='DNSP Inputs General'!$A$41,H$86,IF('DNSP Inputs General'!$B55='DNSP Inputs General'!$A$42,H$87,H$88))*'DNSP Inputs General'!$D55*'DNSP Inputs General'!O55 -> 5419.107546 | K105: =D105/'Charges Summary'!D$4 -> 3738.630742 | L105: =E105/'Charges Summary'!E$4 -> 3982.025732 | M105: =F105/'Charges Summary'!F$4 -> 4238.324999 | N105: =G105/'Charges Summary'!G$4 -> 4506.706268 | O105: =H105/'Charges Summary'!H$4 -> 4789.70144
A106: ='DNSP Inputs General'!A$56 -> Metal Halide 150 watt | C106: =D106/'DNSP Inputs General'!K56 -> 40.33785801 | D106: =IF('DNSP Inputs General'!$B56='DNSP Inputs General'!$A$41,D$86,IF('DNSP Inputs General'!$B56='DNSP Inputs General'!$A$42,D$87,D$88))*'DNSP Inputs General'!$D56*'DNSP Inputs General'!K56 -> 605.0678701 | E106: =IF('DNSP Inputs General'!$B56='DNSP Inputs General'!$A$41,E$86,IF('DNSP Inputs General'!$B56='DNSP Inputs General'!$A$42,E$87,E$88))*'DNSP Inputs General'!$D56*'DNSP Inputs General'!L56 -> 660.5709133 | F106: =IF('DNSP Inputs General'!$B56='DNSP Inputs General'!$A$41,F$86,IF('DNSP Inputs General'!$B56='DNSP Inputs General'!$A$42,F$87,F$88))*'DNSP Inputs General'!$D56*'DNSP Inputs General'!M56 -> 720.6651249 | G106: =IF('DNSP Inputs General'!$B56='DNSP Inputs General'!$A$41,G$86,IF('DNSP Inputs General'!$B56='DNSP Inputs General'!$A$42,G$87,G$88))*'DNSP Inputs General'!$D56*'DNSP Inputs General'!N56 -> 785.4569168 | H106: =IF('DNSP Inputs General'!$B56='DNSP Inputs General'!$A$41,H$86,IF('DNSP Inputs General'!$B56='DNSP Inputs General'!$A$42,H$87,H$88))*'DNSP Inputs General'!$D56*'DNSP Inputs General'!O56 -> 855.64856 | K106: =D106/'Charges Summary'!D$4 -> 590.3101172 | L106: =E106/'Charges Summary'!E$4 -> 628.740905 | M106: =F106/'Charges Summary'!F$4 -> 669.2092104 | N106: =G106/'Charges Summary'!G$4 -> 711.5852002 | O106: =H106/'Charges Summary'!H$4 -> 756.2686484
A107: ='DNSP Inputs General'!A$57 -> Metal Halide 250 watt | C107: =D107/'DNSP Inputs General'!K57 -> 41.8730119 | D107: =IF('DNSP Inputs General'!$B57='DNSP Inputs General'!$A$41,D$86,IF('DNSP Inputs General'!$B57='DNSP Inputs General'!$A$42,D$87,D$88))*'DNSP Inputs General'!$D57*'DNSP Inputs General'!K57 -> 4941.015405 | E107: =IF('DNSP Inputs General'!$B57='DNSP Inputs General'!$A$41,E$86,IF('DNSP Inputs General'!$B57='DNSP Inputs General'!$A$42,E$87,E$88))*'DNSP Inputs General'!$D57*'DNSP Inputs General'!L57 -> 5394.216958 | F107: =IF('DNSP Inputs General'!$B57='DNSP Inputs General'!$A$41,F$86,IF('DNSP Inputs General'!$B57='DNSP Inputs General'!$A$42,F$87,F$88))*'DNSP Inputs General'!$D57*'DNSP Inputs General'!M57 -> 5884.657283 | G107: =IF('DNSP Inputs General'!$B57='DNSP Inputs General'!$A$41,G$86,IF('DNSP Inputs General'!$B57='DNSP Inputs General'!$A$42,G$87,G$88))*'DNSP Inputs General'!$D57*'DNSP Inputs General'!N57 -> 6413.301474 | H107: =IF('DNSP Inputs General'!$B57='DNSP Inputs General'!$A$41,H$86,IF('DNSP Inputs General'!$B57='DNSP Inputs General'!$A$42,H$87,H$88))*'DNSP Inputs General'!$D57*'DNSP Inputs General'!O57 -> 6985.825418 | K107: =D107/'Charges Summary'!D$4 -> 4820.502834 | L107: =E107/'Charges Summary'!E$4 -> 5134.293357 | M107: =F107/'Charges Summary'!F$4 -> 5464.489286 | N107: =G107/'Charges Summary'!G$4 -> 5810.134605 | O107: =H107/'Charges Summary'!H$4 -> 6174.451748
A108: ='DNSP Inputs General'!A$58 -> Metal Halide 400 watt | C108: =D108/'DNSP Inputs General'!K58 -> 41.8730119 | D108: =IF('DNSP Inputs General'!$B58='DNSP Inputs General'!$A$41,D$86,IF('DNSP Inputs General'!$B58='DNSP Inputs General'!$A$42,D$87,D$88))*'DNSP Inputs General'!$D58*'DNSP Inputs General'!K58 -> 4606.031309 | E108: =IF('DNSP Inputs General'!$B58='DNSP Inputs General'!$A$41,E$86,IF('DNSP Inputs General'!$B58='DNSP Inputs General'!$A$42,E$87,E$88))*'DNSP Inputs General'!$D58*'DNSP Inputs General'!L58 -> 5028.507334 | F108: =IF('DNSP Inputs General'!$B58='DNSP Inputs General'!$A$41,F$86,IF('DNSP Inputs General'!$B58='DNSP Inputs General'!$A$42,F$87,F$88))*'DNSP Inputs General'!$D58*'DNSP Inputs General'!M58 -> 5485.697467 | G108: =IF('DNSP Inputs General'!$B58='DNSP Inputs General'!$A$41,G$86,IF('DNSP Inputs General'!$B58='DNSP Inputs General'!$A$42,G$87,G$88))*'DNSP Inputs General'!$D58*'DNSP Inputs General'!N58 -> 5978.501374 | H108: =IF('DNSP Inputs General'!$B58='DNSP Inputs General'!$A$41,H$86,IF('DNSP Inputs General'!$B58='DNSP Inputs General'!$A$42,H$87,H$88))*'DNSP Inputs General'!$D58*'DNSP Inputs General'!O58 -> 6512.210135 | K108: =D108/'Charges Summary'!D$4 -> 4493.689082 | L108: =E108/'Charges Summary'!E$4 -> 4786.205671 | M108: =F108/'Charges Summary'!F$4 -> 5094.015437 | N108: =G108/'Charges Summary'!G$4 -> 5416.227174 | O108: =H108/'Charges Summary'!H$4 -> 5755.84485
A109: Twin 24w Fluorescent | D109: =('Charges Summary'!D85+'Charges Summary'!D11)*'DNSP Inputs General'!K59 -> 1866.028056 | E109: =('Charges Summary'!E85+'Charges Summary'!E11)*'DNSP Inputs General'!L59 -> 2127.645711 | F109: =('Charges Summary'!F85+'Charges Summary'!F11)*'DNSP Inputs General'!M59 -> 2427.945179 | G109: =('Charges Summary'!G85+'Charges Summary'!G11)*'DNSP Inputs General'!N59 -> 2767.92275 | H109: =('Charges Summary'!H85+'Charges Summary'!H11)*'DNSP Inputs General'!O59 -> 3153.772018 | K109: =D109/'Charges Summary'!D$4 -> 1820.515177 | L109: =E109/'Charges Summary'!E$4 -> 2025.123818 | M109: =F109/'Charges Summary'!F$4 -> 2254.588463 | N109: =G109/'Charges Summary'!G$4 -> 2507.6014 | O109: =H109/'Charges Summary'!H$4 -> 2787.47492
A110: 32W Compact Fluorescent | D110: =('Charges Summary'!D85+'Charges Summary'!D11)*'DNSP Inputs General'!K60 -> 12401.65549 | E110: =('Charges Summary'!E85+'Charges Summary'!E11)*'DNSP Inputs General'!L60 -> 14140.37105 | F110: =('Charges Summary'!F85+'Charges Summary'!F11)*'DNSP Inputs General'!M60 -> 16136.16663 | G110: =('Charges Summary'!G85+'Charges Summary'!G11)*'DNSP Inputs General'!N60 -> 18395.66359 | H110: =('Charges Summary'!H85+'Charges Summary'!H11)*'DNSP Inputs General'!O60 -> 20960.02465 | K110: =D110/'Charges Summary'!D$4 -> 12099.17609 | L110: =E110/'Charges Summary'!E$4 -> 13459.00873 | M110: =F110/'Charges Summary'!F$4 -> 14984.03483 | N110: =G110/'Charges Summary'!G$4 -> 16665.56329 | O110: =H110/'Charges Summary'!H$4 -> 18525.60765
A111: 42w Compact Fluorescent | D111: =('Charges Summary'!D11+'Charges Summary'!D85)*'DNSP Inputs General'!K61 -> 2501.798677 | E111: =('Charges Summary'!E11+'Charges Summary'!E85)*'DNSP Inputs General'!L61 -> 2852.55155 | F111: =('Charges Summary'!F11+'Charges Summary'!F85)*'DNSP Inputs General'!M61 -> 3255.165439 | G111: =('Charges Summary'!G11+'Charges Summary'!G85)*'DNSP Inputs General'!N61 -> 3710.976077 | H111: =('Charges Summary'!H11+'Charges Summary'!H85)*'DNSP Inputs General'!O61 -> 4228.287263 | K111: =D111/'Charges Summary'!D$4 -> 2440.779197 | L111: =E111/'Charges Summary'!E$4 -> 2715.099632 | M111: =F111/'Charges Summary'!F$4 -> 3022.744709 | N111: =G111/'Charges Summary'!G$4 -> 3361.961169 | O111: =H111/'Charges Summary'!H$4 -> 3737.189826
A115: ='DNSP Inputs General'!A$67 -> Energy Efficient Lights
A116: ='DNSP Inputs General'!A$68 -> T5 2X14W | C116: =D116/'DNSP Inputs General'!K68 -> 7.52334289 | D116: =SUM('Charges Summary'!D85,'Charges Summary'!D11)*'DNSP Inputs General'!$D68*'DNSP Inputs General'!K68 -> 213415.0714 | E116: =SUM('Charges Summary'!E85,'Charges Summary'!E11)*'DNSP Inputs General'!$D68*'DNSP Inputs General'!L68 -> 259906.2711 | F116: =SUM('Charges Summary'!F85,'Charges Summary'!F11)*'DNSP Inputs General'!$D68*'DNSP Inputs General'!M68 -> 314006.5029 | G116: =SUM('Charges Summary'!G85,'Charges Summary'!G11)*'DNSP Inputs General'!$D68*'DNSP Inputs General'!N68 -> 376176.8851 | H116: =SUM('Charges Summary'!H85,'Charges Summary'!H11)*'DNSP Inputs General'!$D68*'DNSP Inputs General'!O68 -> 447839.9467 | K116: =D116/'Charges Summary'!D$4 -> 208209.8257 | L116: =E116/'Charges Summary'!E$4 -> 247382.5305 | M116: =F116/'Charges Summary'!F$4 -> 291586.2536 | N116: =G116/'Charges Summary'!G$4 -> 340797.6916 | O116: =H116/'Charges Summary'!H$4 -> 395825.2571
A121: Total Capital Charge | D121: =SUM(D91:D120) -> 2952056.389 | E121: =SUM(E91:E120) -> 3147404.986 | F121: =SUM(F91:F120) -> 3352570.231 | G121: =SUM(G91:G120) -> 3566314.657 | H121: =SUM(H91:H120) -> 3790646.406 | K121: =SUM(K91:K120) -> 2880055.013 | L121: =SUM(L91:L120) -> 2995745.377 | M121: =SUM(M91:M120) -> 3113194.741 | N121: =SUM(N91:N120) -> 3230905.063 | O121: =SUM(O91:O120) -> 3350379.079
A123: Check | C123: =SUM(D123:O123) -> 1.490116119e-08 | D123: =ABS(D37-SUM(D79,D121)) -> 0 | E123: =ABS(E37-SUM(E79,E121)) -> 4.656612873e-09 | F123: =ABS(F37-SUM(F79,F121)) -> 1.862645149e-09 | G123: =ABS(G37-SUM(G79,G121)) -> 1.862645149e-09 | H123: =ABS(H37-SUM(H79,H121)) -> 0 | K123: =ABS(K37-SUM(K79,K121)) -> 1.862645149e-09 | L123: =ABS(L37-SUM(L79,L121)) -> 0 | M123: =ABS(M37-SUM(M79,M121)) -> 1.862645149e-09 | N123: =ABS(N37-SUM(N79,N121)) -> 9.313225746e-10 | O123: =ABS(O37-SUM(O79,O121)) -> 1.862645149e-09
A125: Public Lighting - Capital Expenditure | D125: Forecast Capital Expenditure - Nominal | K125: Forecast Capital Expenditure - Real 2015 $
D126: =D$2 -> 2016 | E126: =E$2 -> 2017 | F126: =F$2 -> 2018 | G126: =G$2 -> 2019 | H126: =H$2 -> 2020 | K126: =K$2 -> 2016 | L126: =L$2 -> 2017 | M126: =M$2 -> 2018 | N126: =N$2 -> 2019 | O126: =O$2 -> 2020
A128: Total Capital Expenditure | D128: =K128*'Charges Summary'!D$4 -> 2437672.318 | E128: =L128*'Charges Summary'!E$4 -> 2604839.183 | F128: =M128*'Charges Summary'!F$4 -> 2761400.508 | G128: =N128*'Charges Summary'!G$4 -> 2913273.198 | H128: =O128*'Charges Summary'!H$4 -> 3114500.022 | K128: ='DNSP Inputs General'!K14 -> 2378216.895 | L128: ='DNSP Inputs General'!L14 -> 2479323.434 | M128: ='DNSP Inputs General'!M14 -> 2564234.885 | N128: ='DNSP Inputs General'!N14 -> 2639281.732 | O128: ='DNSP Inputs General'!O14 -> 2752764.198
A129: Check | C129: =SUM(D129:H129) -> 1.396983862e-09 | D129: =ABS(D128-D136) -> 0 | E129: =ABS(E128-E136) -> 4.656612873e-10 | F129: =ABS(F128-F136) -> 4.656612873e-10 | G129: =ABS(G128-G136) -> 0 | H129: =ABS(H128-H136) -> 4.656612873e-10
A132: Public Lighting - RAB | D132: RAB - Historical Cost ($)
D133: =D$2 -> 2016 | E133: =E$2 -> 2017 | F133: =F$2 -> 2018 | G133: =G$2 -> 2019 | H133: =H$2 -> 2020
A135: Opening RAB | D135: ='Total RAB'!N139 -> 19675313.56 | E135: =D138 -> 20780001.78 | F135: =E138 -> 21947441.67 | G135: =F138 -> 23161591.86 | H135: =G138 -> 24412526.07
A136: Capex | D136: ='Total RAB'!N140 -> 2437672.318 | E136: ='Total RAB'!O140 -> 2604839.183 | F136: ='Total RAB'!P140 -> 2761400.508 | G136: ='Total RAB'!Q140 -> 2913273.198 | H136: ='Total RAB'!R140 -> 3114500.022
A137: Depreciation | D137: ='Total RAB'!N141 -> 1332984.1 | E137: ='Total RAB'!O141 -> 1437399.29 | F137: ='Total RAB'!P141 -> 1547250.323 | G137: ='Total RAB'!Q141 -> 1662338.99 | H137: ='Total RAB'!R141 -> 1783331.771
A138: Closing RAB | D138: =D135+D136-D137 -> 20780001.78 | E138: =E135+E136-E137 -> 21947441.67 | F138: =F135+F136-F137 -> 23161591.86 | G138: =G135+G136-G137 -> 24412526.07 | H138: =H135+H136-H137 -> 25743694.32
A140: Average RAB | D140: =SUM(D135,D138)/2 -> 20227657.67 | E140: =SUM(E135,E138)/2 -> 21363721.73 | F140: =SUM(F135,F138)/2 -> 22554516.77 | G140: =SUM(G135,G138)/2 -> 23787058.96 | H140: =SUM(H135,H138)/2 -> 25078110.19
A142: =WACC!A$8 -> Nominal Pre Tax WACC | D142: =WACC!E$8 -> 0.0800425 | E142: =WACC!F$8 -> 0.0800425 | F142: =WACC!G$8 -> 0.0800425 | G142: =WACC!H$8 -> 0.0800425 | H142: =WACC!I$8 -> 0.0800425
A144: Capital Charge | D144: Capital Charge - Nominal
D145: =D$2 -> 2016 | E145: =E$2 -> 2017 | F145: =F$2 -> 2018 | G145: =G$2 -> 2019 | H145: =H$2 -> 2020
A147: Depreciation | D147: =D137 -> 1332984.1 | E147: =E137 -> 1437399.29 | F147: =F137 -> 1547250.323 | G147: =G137 -> 1662338.99 | H147: =H137 -> 1783331.771
A148: Return | D148: =D142*D140 -> 1619072.289 | E148: =E142*E140 -> 1710005.696 | F148: =F142*F140 -> 1805319.908 | G148: =G142*G140 -> 1903975.667 | H148: =H142*H140 -> 2007314.635
D150: =SUM(D147:D149) -> 2952056.389 | E150: =SUM(E147:E149) -> 3147404.986 | F150: =SUM(F147:F149) -> 3352570.231 | G150: =SUM(G147:G149) -> 3566314.657 | H150: =SUM(H147:H149) -> 3790646.406
A152: Check | C152: =SUM(D152:H152) -> 5.587935448e-09 | D152: =ABS(D121-D150)*IF('DNSP Inputs General'!K73=0,0,1) -> 9.313225746e-10 | E152: =ABS(E121-E150)*IF('DNSP Inputs General'!L73=0,0,1) -> 1.862645149e-09 | F152: =ABS(F121-F150)*IF('DNSP Inputs General'!M73=0,0,1) -> 9.313225746e-10 | G152: =ABS(G121-G150)*IF('DNSP Inputs General'!N73=0,0,1) -> 4.656612873e-10 | H152: =ABS(H121-H150)*IF('DNSP Inputs General'!O73=0,0,1) -> 1.396983862e-09

Sheet Submission tables
B2: Regulatory Proposal 2016-20 - Tables and Graphs
B3: =RIGHT(CELL("filename",D2),LEN(CELL("filename",D2))-FIND("]",CELL("filename",D2))) -> Submission tables
B5: Return to Table of Contents
B7: Table 22-1: AER’s classification of public lighting services
B9: Service | C9: Classification
B10: Operation, maintenance, repair and replacement - shared public lighting assets | C10: Alternative control (fee-based)
B11: Operation, maintenance and repair - dedicated public lighting assets | C11: Negotiated
B12: Replacement - dedicated public lighting assets | C12: Negotiated
B13: Alteration and relocation of DNSP public lighting assets | C13: Negotiated
B14: New public lights (that is, new lighting types not subject to a regulated charge and new public lighting at greenfield sites) | C14: Negotiated
B16: Table 22‑2: Shared public lighting asset base for 2016 – 2020 ($M, Real 2015)
C18: 2016 | D18: 2017 | E18: 2018 | F18: 2019 | G18: 2020
B19: Opening Public Lighting Regulatory Asset Base | C19: ='Total RAB'!N145/1000000 -> 19.67531356 | D19: =C23 -> 20.75305817 | E19: =D23 -> 21.86424426 | F19: 22.99170341 | G19: 24.12498806
B20: Capex | C20: ='DNSP Inputs General'!K14/1000000 -> 2.378216895 | D20: ='DNSP Inputs General'!L14/1000000 -> 2.479323434 | E20: ='DNSP Inputs General'!M14/1000000 -> 2.564234885 | F20: ='DNSP Inputs General'!N14/1000000 -> 2.639281732 | G20: ='DNSP Inputs General'!O14/1000000 -> 2.752764198
B21: Less regulatory depreciation | C21: ='Total RAB'!N141/1000000/'Total RAB'!N20 -> 1.300472292 | D21: ='Total RAB'!O141/1000000/'Total RAB'!O20 -> 1.368137337 | E21: ='Total RAB'!P141/1000000/'Total RAB'!P20 -> 1.436775738 | F21: ='Total RAB'!Q141/1000000/'Total RAB'!Q20 -> 1.50599708 | G21: ='Total RAB'!R141/1000000/'Total RAB'!R20 -> 1.576205432
B22: Less the capital component of the exit fees | C22: 0 | D22: 0 | E22: 0 | F22: 0 | G22: 0
B23: Closing Regulatory Asset Base | C23: =C19+C20-C21-C22 -> 20.75305817 | D23: =D19+D20-D21-D22 -> 21.86424426 | E23: 22.99170341 | F23: 24.12498806 | G23: 25.30154683
B25: Table 22-3: Building block calculation for shared public lighting ($M, Real 2015)
C27: 2016 | D27: 2017 | E27: 2018 | F27: 2019 | G27: 2020 | H27: Total
B28: Return on Capital | C28: =(C23+C19)/2*WACC!E8 -> 1.617993972 | D28: =(D23+D19)/2*WACC!F8 -> 1.705597715 | E28: =(E23+E19)/2*WACC!G8 -> 1.795191096 | F28: =(F23+F19)/2*WACC!H8 -> 1.885668889 | G28: =(G23+G19)/2*WACC!I8 -> 1.978111709 | H28: =SUM(C28:G28) -> 8.982563381
B29: Depreciation | C29: =C21 -> 1.300472292 | D29: =D21 -> 1.368137337 | E29: 1.436775738 | F29: 1.50599708 | G29: 1.576205432 | H29: =SUM(C29:G29) -> 7.18758788
B30: Opex | C30: ='DNSP Inputs General'!K20/1000000 -> 3.686571641 | D30: ='DNSP Inputs General'!L20/1000000 -> 3.737319353 | E30: ='DNSP Inputs General'!M20/1000000 -> 3.788066783 | F30: ='DNSP Inputs General'!N20/1000000 -> 3.785276242 | G30: ='DNSP Inputs General'!O20/1000000 -> 3.782487746 | H30: 18.77972176
B31: Estimated cost of corporate income tax | C31: 0 | D31: 0 | E31: 0 | F31: 0 | G31: 0 | H31: 0
B32: Total Revenue Requirement (unsmoothed) | C32: =SUM(C28:C31) -> 6.605037906 | D32: =SUM(D28:D31) -> 6.811054405 | E32: 7.020033616 | F32: 7.17694221 | G32: 7.336804887 | H32: 34.94987302
B34: Table 6: OM Cost allowance comparison ($000's, Real 2015)
C36: 2015 | D36: 2016 | E36: 2017 | F36: 2018 | G36: 2019 | H36: 2020 | I36: 16 to 20 total
B37: Faults and repairs | C37: =3527.6-C38-C39-C40 -> 2381.8 | D37: ='Submission tables'!C30*1000-'Submission tables'!D38-'Submission tables'!D39-'Submission tables'!D40 -> 1856.13451 | E37: ='Submission tables'!D30*1000-'Submission tables'!E38-'Submission tables'!E39-'Submission tables'!E40 -> 1906.882222 | F37: ='Submission tables'!E30*1000-'Submission tables'!F38-'Submission tables'!F39-'Submission tables'!F40 -> 1957.629652 | G37: ='Submission tables'!F30*1000-'Submission tables'!G38-'Submission tables'!G39-'Submission tables'!G40 -> 1954.839111 | H37: ='Submission tables'!G30*1000-'Submission tables'!H38-'Submission tables'!H39-'Submission tables'!H40 -> 1952.050615 | I37: =SUM(D37:H37) -> 9627.536109
B38: Bulk lamp change - standard | C38: 694.8 | D38: ='O & M Cost buildup'!C45/1000 -> 859.368081 | E38: ='O & M Cost buildup'!D45/1000 -> 859.368081 | F38: ='O & M Cost buildup'!E45/1000 -> 859.368081 | G38: ='O & M Cost buildup'!F45/1000 -> 859.368081 | H38: ='O & M Cost buildup'!G45/1000 -> 859.368081 | I38: =SUM(D38:H38) -> 4296.840405
B39: Bulk lamp change - sustainable | C39: 315.6 | D39: ='O & M Cost buildup'!C62/1000 -> 877.06905 | E39: ='O & M Cost buildup'!D62/1000 -> 877.06905 | F39: ='O & M Cost buildup'!E62/1000 -> 877.06905 | G39: ='O & M Cost buildup'!F62/1000 -> 877.06905 | H39: ='O & M Cost buildup'!G62/1000 -> 877.06905 | I39: 4385.34525
B40: Patrols | C40: 135.4 | D40: ='O & M Cost buildup'!C21/1000 -> 94 | E40: ='O & M Cost buildup'!D21/1000 -> 94 | F40: ='O & M Cost buildup'!E21/1000 -> 94 | G40: ='O & M Cost buildup'!F21/1000 -> 94 | H40: ='O & M Cost buildup'!G21/1000 -> 94 | I40: 470
B41: Total Revenue Requirement (unsmoothed) | C41: =SUM(C37:C40) -> 3527.6 | D41: =SUM(D37:D40) -> 3686.571641 | E41: 3737.319353 | F41: 3788.066783 | G41: 3785.276242 | H41: 3782.487746 | I41: =SUM(I37:I40) -> 18779.72176

Sheet DNSP Inputs General
A1: ='DNSP Inputs O & M'!$A$3 -> United Energy
D2: 2009 | E2: 2010 | F2: 2011 | G2: 2012 | H2: 2013 | I2: 2014 | J2: 2015 | K2: 2016 | L2: 2017 | M2: 2018 | N2: 2019 | O2: 2020 | Q2: Capex | R2: =#REF! ->  | S2: =#REF! ->  | T2: =#REF! ->  | U2: =#REF! ->  | V2: =#REF! -> 
A3: Capital Expenditue | D3: Nominal $ - Actual | J3: Real 2015 $ - Forecast
A4: (Net of customer contributions)
A6: Poles and Brackets | D6: 2055145.574 | E6: -55718.27702 | F6: 705275.3648 | G6: 101102.2593 | H6: 705275.3648 | I6: 551677.7149 | J6: 1079972.56 | K6: ='Capex 2016-2020'!B20 -> 922304.0212 | L6: ='Capex 2016-2020'!C20 -> 1023277.359 | M6: ='Capex 2016-2020'!D20 -> 1108173.94 | N6: ='Capex 2016-2020'!E20 -> 1183093.821 | O6: ='Capex 2016-2020'!F20 -> 1295934.044
A8: Existing Lights
A9: Luminaires | D9: 1519394.996 | E9: -110251.943 | F9: 1144988.395 | G9: 2027497.171 | H9: 1144988.395 | I9: 827055.3051 | J9: 1045107.783 | K9: ='Capex 2016-2020'!B14 -> 1455912.874 | L9: ='Capex 2016-2020'!C14 -> 1456046.074 | M9: ='Capex 2016-2020'!D14 -> 1456060.945 | N9: ='Capex 2016-2020'!E14 -> 1456187.911 | O9: ='Capex 2016-2020'!F14 -> 1456830.154
A11: Energy Efficient Lights
A12: Luminaires and Ballasts | J12: 0 | K12: 0 | L12: 0 | M12: 0 | N12: 0 | O12: 0
A14: Total Net Capex | D14: =SUM(D6,D9,D12) -> 3574540.57 | E14: =SUM(E6,E9,E12) -> -165970.22 | F14: 1850263.76 | G14: 2128599.43 | H14: 1850263.76 | I14: 1378733.02 | J14: 2125080.343 | K14: =SUM(K6,K9,K12) -> 2378216.895 | L14: 2479323.434 | M14: 2564234.885 | N14: =SUM(N6,N9,N12) -> 2639281.732 | O14: 2752764.198
F17: 2011 | G17: 2012 | H17: 2013 | I17: 2014 | J17: 2015 | K17: 2016 | L17: 2017 | M17: 2018 | N17: 2019 | O17: 2020
A18: Operating and Maintenance Expenditure | F18: Nominal $ - Actual | J18: Real 2015 $ - Forecast
A20: Total O & M | F20: 2510763.394 | G20: 2895184.073 | H20: 2682204.391 | I20: 3493714.159 | J20: 3585417.335 | K20: ='Cashflow Summary'!K79 -> 3686571.641 | L20: ='Cashflow Summary'!L79 -> 3737319.353 | M20: ='Cashflow Summary'!M79 -> 3788066.783 | N20: ='Cashflow Summary'!N79 -> 3785276.242 | O20: ='Cashflow Summary'!O79 -> 3782487.746
A24: WACC
A25: Regulatoy Period | B25: 2016 | C25: 2017 | D25: 2018 | E25: 2019 | F25: 2020
A26: Real Pre Tax WACC | B26: 0.0537 | C26: 0.0537 | D26: 0.0537 | E26: 0.0537 | F26: 0.0537
A29: CPI Index | B29: CPI Index | C29: Actual CPI | D29: F'cast CPI
A30: 2014-09-30 | B30: 106.4
A31: 2015-09-30 | B31: 107 | C31: =IF(B31="","",B31/B30-1) -> 0.005639097744 | D31: 0.025
A32: 2016-09-30 | C32: =IF(B32="","",B32/B31-1) ->  | D32: 0.025
A33: 2017-09-30 | C33: =IF(B33="","",B33/B32-1) ->  | D33: 0.025
A34: 2018-09-30 | C34: =IF(B34="","",B34/B33-1) ->  | D34: 0.025
A35: 2019-09-30 | C35: =IF(B35="","",B35/B34-1) ->  | D35: 0.025
A38: Number Of Lights | E38: =J$2 -> 2015 | F38: =F$2 -> 2011 | G38: 2012 | H38: 2013 | I38: 2014 | J38: 2015 | K38: 2016 | L38: 2017 | M38: 2018 | N38: 2019 | O38: 2020
E39: Actual Prices | F39: Actual Volumes | J39: Forecast Volumes
A40: Existing Lights | B40: Reference Light | D40: Price Factor
A41: Mercury Vapour 80 watt | B41: =A$41 -> Mercury Vapour 80 watt | D41: 1 | E41: 64.8 | F41: 71495 | G41: 70284 | H41: 65619 | I41: 58146 | J41: 54948.75028 | K41: 51821.99763 | L41: 48695.24499 | M41: 45568.49234 | N41: 42441.73969 | O41: 39314.98705
A42: Sodium High Pressure 150 watt | B42: =A$42 -> Sodium High Pressure 150 watt | D42: 1 | E42: 97.72 | F42: 23577 | G42: 23585 | H42: 23639 | I42: 23706 | J42: 23801.79922 | K42: 23894.91893 | L42: 23988.03865 | M42: 24080.93737 | N42: 24174.60956 | O42: 24268.06076
A43: Sodium High Pressure 250 watt | B43: =A$43 -> Sodium High Pressure 250 watt | D43: 1 | E43: 99.64 | F43: 9738 | G43: 9809 | H43: 9877 | I43: 9900 | J43: 9940.007267 | K43: 9978.89553 | L43: 10017.78379 | M43: 10056.57977 | N43: 10095.69875 | O43: 10134.72545
A44: Fluorescent 2x20 watt | B44: =A$41 -> Mercury Vapour 80 watt | D44: 1.29 | E44: 83.59 | F44: 60 | G44: 57 | H44: 56 | I44: 60 | J44: 62 | K44: 64 | L44: 66 | M44: 68 | N44: 70 | O44: 72
A45: Fluorescent 3x20 watt | B45: =A$41 -> Mercury Vapour 80 watt | D45: 1.29 | E45: 82.19 | F45: 3 | G45: 3 | H45: 3 | I45: 3 | J45: 3 | K45: 3 | L45: 3 | M45: 3 | N45: 3 | O45: 3
A46: Mercury Vapour 50 watt | B46: =A$41 -> Mercury Vapour 80 watt | D46: 1.48 | E46: 95.9 | F46: 42 | G46: 39 | H46: 42 | I46: 37 | J46: 33.83638253 | K46: 30.67276506 | L46: 27.50914759 | M46: 24.34553012 | N46: 21.18191266 | O46: 18.01829519
A47: Mercury Vapour 125 watt | B47: =A$41 -> Mercury Vapour 80 watt | D47: 1.48 | E47: 95.9 | F47: 1178 | G47: 1175 | H47: 1166 | I47: 1114 | J47: 1015.637976 | K47: 917.2759514 | L47: 818.9139271 | M47: 720.5519029 | N47: 622.1898786 | O47: 523.8278543
A48: Mercury Vapour 250 watt | B48: =A$43 -> Sodium High Pressure 250 watt | D48: 0.91 | E48: 90.67 | F48: 126 | G48: 126 | H48: 124 | I48: 122 | J48: 111.1777724 | K48: 98.95831034 | L48: 98.95831034 | M48: 98.95831034 | N48: 98.95831034 | O48: 98.95831034
A49: Mercury Vapour 400 watt | B49: =A$43 -> Sodium High Pressure 250 watt | D49: 1.26 | E49: 125.55 | F49: 6 | G49: 6 | H49: 6 | I49: 6 | J49: 6 | K49: 6 | L49: 6 | M49: 6 | N49: 6 | O49: 6
A50: Mercury Vapour 700 watt | B50: =A$43 -> Sodium High Pressure 250 watt | D50: 1.26 | E50: 125.55 | F50: 4 | G50: 4 | H50: 0 | I50: 4 | J50: 3.63925908 | K50: 4 | L50: 3.64721316 | M50: 4 | N50: 3.64721316 | O50: 4
A51: Sodium High Pressure 70 watt | B51: =A$41 -> Mercury Vapour 80 watt | D51: 2.19 | E51: 141.91 | F51: 373 | G51: 366 | H51: 327 | I51: 333 | J51: 339.5797255 | K51: 346.1152662 | L51: 352.6508068 | M51: 359.1827032 | N51: 365.7273541 | O51: 372.2683609
A52: Sodium High Pressure 100 watt | B52: =A$42 -> Sodium High Pressure 150 watt | D52: 1.1 | E52: 107.49 | F52: 799 | G52: 848 | H52: 873 | I52: 911 | J52: 917.3128494 | K52: 923.5050684 | L52: 929.6972873 | M52: 935.8795574 | N52: 942.0966486 | O52: 948.3037909
A53: Sodium High Pressure 400 watt | B53: =A$43 -> Sodium High Pressure 250 watt | D53: 1.26 | E53: 125.55 | F53: 346 | G53: 338 | H53: 335 | I53: 333 | J53: 334.3400766 | K53: 335.6426713 | L53: 336.945266 | M53: 338.2447694 | N53: 339.5550923 | O53: 340.8623239
A54: Metal Halide 70 watt | B54: =A$42 -> Sodium High Pressure 150 watt | D54: 1.35 | E54: 131.92 | F54: 9 | G54: 9 | H54: 9 | I54: 9 | J54: 9 | K54: 9 | L54: 9 | M54: 9 | N54: 9 | O54: 9
A55: Metal Halide 100 watt | B55: =A$42 -> Sodium High Pressure 150 watt | D55: 1.35 | E55: 131.92 | F55: 97 | G55: 95 | H55: 95 | I55: 95 | J55: 95 | K55: 95 | L55: 95 | M55: 95 | N55: 95 | O55: 95
A56: Metal Halide 150 watt | B56: =A$42 -> Sodium High Pressure 150 watt | D56: 1.35 | E56: 131.92 | F56: 15 | G56: 15 | H56: 15 | I56: 15 | J56: 15 | K56: 15 | L56: 15 | M56: 15 | N56: 15 | O56: 15
A57: Metal Halide 250 watt | B57: =A$43 -> Sodium High Pressure 250 watt | D57: 1.35 | E57: 134.51 | F57: 118 | G57: 118 | H57: 118 | I57: 118 | J57: 118 | K57: 118 | L57: 118 | M57: 118 | N57: 118 | O57: 118
A58: Metal Halide 400 watt | B58: =A$43 -> Sodium High Pressure 250 watt | D58: 1.35 | E58: 134.51 | F58: 110 | G58: 110 | H58: 110 | I58: 110 | J58: 110 | K58: 110 | L58: 110 | M58: 110 | N58: 110 | O58: 110
A59: Twin 24w Fluorescent | B59: T5 2X14W | D59: 1 | E59: 29.22 | F59: 47 | G59: 96 | H59: 101 | I59: 226 | J59: 237.1721275 | K59: 248.0317704 | L59: 258.8914133 | M59: 269.7252844 | N59: 280.6493571 | O59: 291.5476579
A60: 32W Compact Fluorescent | B60: T5 2X14W | D60: 1 | E60: 29.22 | F60: 182 | G60: 262 | H60: 857 | I60: 1502 | J60: 1576.250157 | K60: 1648.423536 | L60: 1720.596915 | M60: 1792.599014 | N60: 1865.200595 | O60: 1937.630895
A61: 42w Compact Fluorescent | B61: T5 2X14W | D61: 1 | E61: 29.22 | F61: 182 | G61: 228 | H61: 244 | I61: 303 | J61: 317.9785603 | K61: 332.5381701 | L61: 347.0977798 | M61: 361.622837 | N61: 376.2688283 | O61: 390.880267
A65: Total Existing Lights | F65: =SUM(F41:F64) -> 108507 | G65: 107573 | H65: =SUM(H41:H64) -> 103616 | I65: =SUM(I41:I64) -> 97053 | J65: 93995.48165 | K65: =SUM(K41:K64) -> 91000.9756 | L65: 88017.97549 | M65: 85035.11939 | N65: 82053.52319 | O65: =SUM(O41:O64) -> 79072.07101
A67: Energy Efficient Lights | B67: Reference Light | D67: Price Factor
A68: T5 2X14W | B68: =A68 -> T5 2X14W | D68: 1 | E68: 29.22 | F68: 9508 | G68: 10834 | H68: 14997 | I68: 21810 | J68: 25108.77536 | K68: 28367.05365 | L68: 31625.33194 | M68: 34883.61023 | N68: 38141.88851 | O68: 41400.1668
A71: Total Energy Efficient Lights | F71: =SUM(F68:F70) -> 9508 | G71: 10834 | H71: 14997 | I71: 21810 | J71: 25108.77536 | K71: 28367.05365 | L71: 31625.33194 | M71: 34883.61023 | N71: 38141.88851 | O71: 41400.1668
A73: Total Number of Lights | F73: =SUM(F65,F71) -> 118015 | G73: 118407 | H73: =SUM(H65,H71) -> 118613 | I73: 118863 | J73: 119104.257 | K73: =SUM(K65,K71) -> 119368.0293 | L73: 119643.3074 | M73: 119918.7296 | N73: 120195.4117 | O73: 120472.2378
B79: =A$41 -> Mercury Vapour 80 watt | K79: =K41*E41 -> 3358065.447 | L79: =K41*'PL Tariffs'!D6 -> 2804959.924 | M79: =L41*'PL Tariffs'!E6 -> 2830736.274 | N79: =M41*'PL Tariffs'!F6 -> 2882639.638 | O79: =N41*'PL Tariffs'!G6 -> 2895555.676 | P79: =O41*'PL Tariffs'!H6 -> 2892013.195
B80: =A$42 -> Sodium High Pressure 150 watt | K80: =K42*E42 -> 2335011.478 | L80: =K42*'PL Tariffs'!D7 -> 1646008.437 | M80: =L42*'PL Tariffs'!E7 -> 1810582.754 | N80: =M42*'PL Tariffs'!F7 -> 1997497.401 | O80: =N42*'PL Tariffs'!G7 -> 2101573.57 | P80: =O42*'PL Tariffs'!H7 -> 2254479.186
B81: =A$43 -> Sodium High Pressure 250 watt | K81: 994297.1506 | L81: =K43*'PL Tariffs'!D8 -> 705051.7705 | M81: =L43*'PL Tariffs'!E8 -> 775471.4037 | N81: =M43*'PL Tariffs'!F8 -> 803210.163 | O81: =N43*'PL Tariffs'!G8 -> 899322.6956 | P81: =O43*'PL Tariffs'!H8 -> 964659.7882
B82: =A$41 -> Mercury Vapour 80 watt | K82: 5349.76 | L82: =K44*'PL Tariffs'!D9 -> 4468.710237 | M82: =L44*'PL Tariffs'!E9 -> 4949.331016 | N82: =M44*'PL Tariffs'!F9 -> 5549.122565 | O82: =N44*'PL Tariffs'!G9 -> 6160.649385 | P82: =O44*'PL Tariffs'!H9 -> 6832.25929
B83: =A$41 -> Mercury Vapour 80 watt | K83: 246.57 | L83: =K45*'PL Tariffs'!D10 -> 209.4707924 | M83: =L45*'PL Tariffs'!E10 -> 224.9695916 | N83: =M45*'PL Tariffs'!F10 -> 244.8142308 | O83: =N45*'PL Tariffs'!G10 -> 264.0278308 | P83: =O45*'PL Tariffs'!H10 -> 284.6774704
B84: =A$41 -> Mercury Vapour 80 watt | K84: 2941.518169 | L84: =K46*'PL Tariffs'!D11 -> 2457.124453 | M84: =L46*'PL Tariffs'!E11 -> 2366.746283 | N84: =M46*'PL Tariffs'!F11 -> 2279.327055 | O84: =N46*'PL Tariffs'!G11 -> 2138.777619 | P84: =O46*'PL Tariffs'!H11 -> 1961.632038
B85: =A$41 -> Mercury Vapour 80 watt | K85: 87966.76374 | L85: =K47*'PL Tariffs'!D12 -> 73480.8605 | M85: =L47*'PL Tariffs'!E12 -> 70455.16357 | N85: =M47*'PL Tariffs'!F12 -> 67460.98516 | O85: =N47*'PL Tariffs'!G12 -> 62823.684 | P85: =O47*'PL Tariffs'!H12 -> 57028.56408
B86: =A$43 -> Sodium High Pressure 250 watt | K86: 8972.549998 | L86: =K48*'PL Tariffs'!D13 -> 6362.564459 | M86: =L48*'PL Tariffs'!E13 -> 6970.88305 | N86: =M48*'PL Tariffs'!F13 -> 7192.37886 | O86: =N48*'PL Tariffs'!G13 -> 8021.818548 | P86: =O48*'PL Tariffs'!H13 -> 8571.480686
B87: =A$43 -> Sodium High Pressure 250 watt | K87: 753.3 | L87: =K49*'PL Tariffs'!D14 -> 534.1464262 | M87: =L49*'PL Tariffs'!E14 -> 585.2156458 | N87: =M49*'PL Tariffs'!F14 -> 603.8105373 | O87: =N49*'PL Tariffs'!G14 -> 673.4431906 | P87: =O49*'PL Tariffs'!H14 -> 719.5881166
B88: =A$43 -> Sodium High Pressure 250 watt | K88: 502.2 | L88: =K50*'PL Tariffs'!D15 -> 356.0976175 | M88: =L50*'PL Tariffs'!E15 -> 355.7343674 | N88: =M50*'PL Tariffs'!F15 -> 402.5403582 | O88: =N50*'PL Tariffs'!G15 -> 409.3651445 | P88: =O50*'PL Tariffs'!H15 -> 479.7254111
B89: =A$41 -> Mercury Vapour 80 watt | K89: 49117.21742 | L89: =K51*'PL Tariffs'!D16 -> 41027.71977 | M89: =L51*'PL Tariffs'!E16 -> 44895.40064 | N89: =M51*'PL Tariffs'!F16 -> 49760.55594 | O89: =N51*'PL Tariffs'!G16 -> 54643.72556 | P89: =O51*'PL Tariffs'!H16 -> 59971.14975
B90: =A$42 -> Sodium High Pressure 150 watt | K90: 99267.5598 | L90: =K52*'PL Tariffs'!D17 -> 69977.50663 | M90: =L52*'PL Tariffs'!E17 -> 77189.43971 | N90: =M52*'PL Tariffs'!F17 -> 85393.63108 | O90: =N52*'PL Tariffs'!G17 -> 90089.31265 | P90: =O52*'PL Tariffs'!H17 -> 96906.14748
B91: =A$43 -> Sodium High Pressure 250 watt | K91: 42139.93738 | L91: =K53*'PL Tariffs'!D18 -> 29880.38889 | M91: =L53*'PL Tariffs'!E18 -> 32864.27357 | N91: =M53*'PL Tariffs'!F18 -> 34039.29265 | O91: =N53*'PL Tariffs'!G18 -> 38111.84412 | P91: =O53*'PL Tariffs'!H18 -> 40880.07961
B92: =A$42 -> Sodium High Pressure 150 watt | K92: 1187.28 | L92: =K54*'PL Tariffs'!D19 -> 836.9562823 | M92: =L54*'PL Tariffs'!E19 -> 917.064575 | N92: =M54*'PL Tariffs'!F19 -> 1007.834249 | O92: =N54*'PL Tariffs'!G19 -> 1056.237074 | P92: =O54*'PL Tariffs'!H19 -> 1128.723155
B93: =A$42 -> Sodium High Pressure 150 watt | K93: 12532.4 | L93: =K55*'PL Tariffs'!D20 -> 8834.538535 | M93: =L55*'PL Tariffs'!E20 -> 9680.12607 | N93: =M55*'PL Tariffs'!F20 -> 10638.2504 | O93: =N55*'PL Tariffs'!G20 -> 11149.16912 | P93: =O55*'PL Tariffs'!H20 -> 11914.29997
B94: =A$42 -> Sodium High Pressure 150 watt | K94: 1978.8 | L94: =K56*'PL Tariffs'!D21 -> 1394.927137 | M94: =L56*'PL Tariffs'!E21 -> 1528.440958 | N94: =M56*'PL Tariffs'!F21 -> 1679.723748 | O94: =N56*'PL Tariffs'!G21 -> 1760.395124 | P94: =O56*'PL Tariffs'!H21 -> 1881.205259
B95: =A$43 -> Sodium High Pressure 250 watt | K95: 15872.18 | L95: =K57*'PL Tariffs'!D22 -> 11255.22827 | M95: =L57*'PL Tariffs'!E22 -> 12331.32968 | N95: =M57*'PL Tariffs'!F22 -> 12723.15061 | O95: =N57*'PL Tariffs'!G22 -> 14190.41009 | P95: =O57*'PL Tariffs'!H22 -> 15162.7496
B96: =A$43 -> Sodium High Pressure 250 watt | K96: 14796.1 | L96: =K58*'PL Tariffs'!D23 -> 10492.16194 | M96: =L58*'PL Tariffs'!E23 -> 11495.30733 | N96: =M58*'PL Tariffs'!F23 -> 11860.56412 | O96: =N58*'PL Tariffs'!G23 -> 13228.34839 | P96: =O58*'PL Tariffs'!H23 -> 14134.76658
B97: T5 2X14W | K97: 7247.488331 | L97: =K59*'PL Tariffs'!D24 -> 10645.69743 | M97: =L59*'PL Tariffs'!E24 -> 10525.31464 | N97: =M59*'PL Tariffs'!F24 -> 10538.99384 | O97: =N59*'PL Tariffs'!G24 -> 10651.87948 | P97: =O59*'PL Tariffs'!H24 -> 10869.56481
B98: T5 2X14W | K98: 48166.93572 | L98: =K60*'PL Tariffs'!D25 -> 70751.49353 | M98: =L60*'PL Tariffs'!E25 -> 69951.42735 | N98: =M60*'PL Tariffs'!F25 -> 70042.33962 | O98: =N60*'PL Tariffs'!G25 -> 70792.57953 | P98: =O60*'PL Tariffs'!H25 -> 72239.32008
B99: T5 2X14W | K99: 9716.765329 | L99: =K61*'PL Tariffs'!D26 -> 14272.77133 | M99: =L61*'PL Tariffs'!E26 -> 14111.37316 | N99: =M61*'PL Tariffs'!F26 -> 14129.71299 | O99: =N61*'PL Tariffs'!G26 -> 14281.05965 | P99: =O61*'PL Tariffs'!H26 -> 14572.91211
K101: =SUM(K79:K100) -> 7096129.401 | L101: =SUM(L79:L100) -> 5513258.496 | M101: =SUM(M79:M100) -> 5788187.973 | N101: 6068894.23 | O101: 6296898.668 | P101: 6526691.014
K103: =K68*E68 -> 828885.3077 | L103: =K68*'PL Tariffs'!D31 -> 1217533.825 | M103: =L68*'PL Tariffs'!E31 -> 1285738.159 | N103: =M68*'PL Tariffs'!F31 -> 1363009.606 | O103: =N68*'PL Tariffs'!G31 -> 1447652.7 | P103: =O68*'PL Tariffs'!H31 -> 1543493.092
K105: =SUM(K101:K104) -> 7925014.709 | L105: =SUM(L101:L104) -> 6730792.321 | M105: =SUM(M101:M104) -> 7073926.132 | N105: 7431903.836 | O105: 7744551.368 | P105: 8070184.107

Sheet DNSP Inputs O & M
A1: Public Lighting Cost Build-up Model
A3: United Energy | C3: O & M Data Inputs
C5: Real 2015 $
A7: Input parameters | C7: 2015 | D7: 2016 | E7: 2017 | F7: 2018 | G7: 2019 | H7: 2020
A9: Inputs - all lamps
A11: Material premium for rural areas | B11: 0.05 | C11: 0.05 | D11: 0 | E11: 0 | F11: 0 | G11: 0 | H11: 0
A12: Labour rate (per hour) | B12: 89.64428472 | C12: 90.24 | D12: =C12 -> 90.24 | E12: 90.24 | F12: 90.24 | G12: 90.24 | H12: 90.24
A13: Labour rate for night patrols (per hour) | B13: 103.0909274 | C13: 132 | D13: 132 | E13: 132 | F13: 132 | G13: 132 | H13: 132
A14: Elevated platform vehicle (per hour) - urban MV,urban T5 | B14: 39.70489021 | C14: 40.42 | D14: 40.42 | E14: 40.42 | F14: 40.42 | G14: 40.42 | H14: 40.42
A15: Elevated platform vehicle (per hour) - rural MV, rural T5, S-HP | B15: 51.04914455 | C15: 40.42 | D15: 40.42 | E15: 40.42 | F15: 40.42 | G15: 40.42 | H15: 40.42
A16: Patrol vehicle (per hour) | B16: 11.34425434 | C16: 10 | D16: 10 | E16: 10 | F16: 10 | G16: 10 | H16: 10
A17: Number of hours in a day | B17: 8 | C17: 8 | D17: 8 | E17: 8 | F17: 8 | G17: 8 | H17: 8
A18: Indirect overheads | B18: 0.25 | C18: 0.25 | D18: 0.25 | E18: 0.25 | F18: 0.25 | G18: 0.25 | H18: 0.25
A22: Inputs - MV80
A24: Depreciation period | B24: 20 | C24: 20 | D24: =C24 -> 20 | E24: =D24 -> 20 | F24: =E24 -> 20 | G24: =F24 -> 20 | H24: =G24 -> 20
A25: Lamps - bulk change | B25: 4 | C25: 4 | D25: 4 | E25: 4 | F25: 4 | G25: 4 | H25: 4
A26: PE cells - bulk change | B26: 8 | C26: 8 | D26: 8 | E26: 8 | F26: 8 | G26: 8 | H26: 8
A27: Proportion of lamps that fail between bulk change | B27: 0.196 | C27: 0.196 | D27: 0.196 | E27: 0.196 | F27: 0.196 | G27: 0.196 | H27: 0.196
A28: Unit cost - lamp | B28: 5.595866852 | C28: 4.93277626 | D28: =C28 -> 4.93277626 | E28: 4.93277626 | F28: 4.93277626 | G28: 4.93277626 | H28: 4.93277626
A29: Unit cost - PE cell | B29: 22.59162876 | C29: 19.9146 | D29: 19.9146 | E29: 19.9146 | F29: 19.9146 | G29: 19.9146 | H29: 19.9146
A30: Unit cost - luminaire | B30: 194.1410699 | C30: 171.1360341 | D30: 171.1360341 | E30: 171.1360341 | F30: 171.1360341 | G30: 171.1360341 | H30: 171.1360341
A31: Unit cost - miscellaneous materials (bulk lamp) | B31: 1.224478523 | C31: 1.079382114 | D31: 1.079382114 | E31: 1.079382114 | F31: 1.079382114 | G31: 1.079382114 | H31: 1.079382114
A32: Unit cost - miscellaneous materials (repair) | B32: 12.24478523 | C32: 10.79382114 | D32: 10.79382114 | E32: 10.79382114 | F32: 10.79382114 | G32: 10.79382114 | H32: 10.79382114
A33: Number of men in crew | B33: 2 | C33: 2 | D33: 2 | E33: 2 | F33: 2 | G33: 2 | H33: 2
A34: Number of bulk lamp changes in 1 day - urban | B34: 90 | C34: 90 | D34: 58.07369293 | E34: 54.83292406 | F34: 51.82063818 | G34: 48.71124273 | H34: 45.51107921
A35: Number of bulk lamp changes in 1 day - rural | B35: 75 | C35: 75 | D35: 49.75879284 | E35: 49.83292406 | F35: 46.82063818 | G35: 43.71124273 | H35: 40.51107921
A36: Number of repairs in 1 day - urban | B36: 30 | C36: 30 | D36: 43.33997387 | E36: 43.68342511 | F36: 33.69290059 | G36: 32.95240308 | H36: 32.94223268
A37: Number of repairs in 1 day - rural | B37: 25 | C37: 25 | D37: 33.39669443 | E37: 33 | F37: 33 | G37: 27.67659536 | H37: 27.67636733
A38: % of repairs - lamps | B38: 0.6 | C38: 0.6 | D38: 0.6 | E38: 0.6 | F38: 0.6 | G38: 0.6 | H38: 0.6
A39: % of repairs - PE cells | B39: 0.5 | C39: 0.5 | D39: 0.5 | E39: 0.5 | F39: 0.5 | G39: 0.5 | H39: 0.5
A40: % of repairs - luminaires | B40: 0.15 | C40: 0.15 | D40: 0.15 | E40: 0.15 | F40: 0.15 | G40: 0.15 | H40: 0.15
A41: % of repairs - other | B41: 0.1 | C41: 0.1 | D41: 0.1 | E41: 0.1 | F41: 0.1 | G41: 0.1 | H41: 0.1
A43: Other Maintenance and Repair costs
A44: Traffic control costs | B44: 4366.908172 | C44: 3849.444873
A45: Other costs : Describe……………………………………. | B45: 0 | C45: 0
B46: 4366.908172 | C46: =SUM(C44:C45) -> 3849.444873 | D46: 0 | E46: 0 | F46: 0 | G46: 0 | H46: 0
A47: Number of Lights | B47: 59619 | C47: ='DNSP Inputs General'!J41 -> 54948.75028 | D47: ='DNSP Inputs General'!K41 -> 51821.99763 | E47: ='DNSP Inputs General'!L41 -> 48695.24499 | F47: ='DNSP Inputs General'!M41 -> 45568.49234 | G47: ='DNSP Inputs General'!N41 -> 42441.73969 | H47: ='DNSP Inputs General'!O41 -> 39314.98705
A48: Unit Cost | B48: 0.07324692082 | C48: =IF(C47=0,0,C46/C47) -> 0.07005518511 | D48: =IF(D47=0,0,D46/D47) -> 0 | E48: 0 | F48: 0 | G48: 0 | H48: 0
A50: Location of selected public lighting assets within distributors' areas (%)
A51: Urban | B51: 0.84 | C51: 0.84 | D51: 0.92 | E51: 0.92 | F51: 0.92 | G51: 0.92 | H51: 0.92
A52: Rural | B52: 0.16 | C52: 0.16 | D52: 0.08 | E52: 0.08 | F52: 0.08 | G52: 0.08 | H52: 0.08
A56: Inputs - S-HP150
A58: Depreciation period | B58: 20 | C58: 20 | D58: =C58 -> 20 | E58: =D58 -> 20 | F58: =E58 -> 20 | G58: =F58 -> 20 | H58: =G58 -> 20
A59: Number of patrols per year | B59: 3 | C59: 3 | D59: 3 | E59: 3 | F59: 3 | G59: 3 | H59: 3
A60: Lamps - frequency of replacement | B60: 5 | C60: 5 | D60: 5 | E60: 5 | F60: 5 | G60: 5 | H60: 5
A61: PE cells - frequency of replacement | B61: 10 | C61: 10 | D61: 10 | E61: 10 | F61: 10 | G61: 10 | H61: 10
A62: Unit cost - lamp | B62: 40.4690152 | C62: 35.67357886 | D62: 35.67 | E62: 35.67 | F62: 35.67 | G62: 35.67 | H62: 35.67
A63: Unit cost - PE cell | B63: 21.9793895 | C63: 19.37490894 | D63: 19.37 | E63: 19.37 | F63: 19.37 | G63: 19.37 | H63: 19.37
A64: Unit cost - miscellaneous materials | B64: 2.448957047 | C64: 2.158764228 | D64: 2.16 | E64: 2.16 | F64: 2.16 | G64: 2.16 | H64: 2.16
A65: Number of men in crew - road patrols | B65: 2 | C65: 2 | D65: 2 | E65: 2 | F65: 2 | G65: 2 | H65: 2
A66: Number of men in crew - repairs | B66: 2 | C66: 2 | D66: 2 | E66: 2 | F66: 2 | G66: 2 | H66: 2
A67: Number of lamps patrolled in 1 day - urban | B67: 3000 | C67: 3000 | D67: 5280.231631 | E67: 5496.939305 | F67: 5635.318609 | G67: 5809.87773 | H67: 5985.818499
A68: Number of lamps patrolled in 1 day - rural | B68: 2000 | C68: 2000 | D68: 2494.354543 | E68: 2505.695807 | F68: 2537.917886 | G68: 2601.794902 | H68: 2670.478427
A69: Number of repairs in 1 day - urban | B69: 20 | C69: 20 | D69: 36.45394329 | E69: 31.30543798 | F69: 27.28560967 | G69: 27.25463997 | H69: 25.87392839
A70: Number of repairs in 1 day - rural | B70: 16 | C70: 16 | D70: 26.56660734 | E70: 25.75004876 | F70: 21.80926978 | G70: 25.15735201 | H70: 24.99331559
A72: Other Maintenance and Repair costs
A73: Traffic control costs | B73: 58614.63548 | C73: 51669.00679 | D73: 70000 | E73: 70000 | F73: 70000 | G73: 70000 | H73: 70000
A74: Other costs : Describe……………………………………. | B74: 0 | C74: 0
B75: 58614.63548 | C75: =SUM(C73:C74) -> 51669.00679 | D75: 70000 | E75: 70000 | F75: 70000 | G75: 70000 | H75: 70000
A76: Number of Lights | B76: 23779 | C76: ='DNSP Inputs General'!J42 -> 23801.79922 | D76: ='DNSP Inputs General'!K42 -> 23894.91893 | E76: ='DNSP Inputs General'!L42 -> 23988.03865 | F76: ='DNSP Inputs General'!M42 -> 24080.93737 | G76: ='DNSP Inputs General'!N42 -> 24174.60956 | H76: ='DNSP Inputs General'!O42 -> 24268.06076
A77: Unit Cost | B77: 2.464974788 | C77: =IF(C76=0,0,C75/C76) -> 2.170802565 | D77: 2.929493094 | E77: 2.918121028 | F77: 2.906863588 | G77: 2.895600023 | H77: 2.884449676
A79: Location of selected public lighting assets within distributors' areas (%)
A80: Urban | B80: 0.84 | C80: 0.84 | D80: 0.92 | E80: 0.92 | F80: 0.92 | G80: 0.92 | H80: 0.92
A81: Rural | B81: 0.16 | C81: 0.16 | D81: 0.08 | E81: 0.08 | F81: 0.08 | G81: 0.08 | H81: 0.08
A85: Inputs - S-HP250
A87: Depreciation period | B87: 20 | C87: =C58 -> 20 | D87: 20 | E87: 20 | F87: 20 | G87: 20 | H87: 20
A88: Number of patrols per year | B88: 3 | C88: 3 | D88: 3 | E88: 3 | F88: 3 | G88: 3 | H88: 3
A89: Lamps - frequency of replacement | B89: 5 | C89: 5 | D89: 5 | E89: 5 | F89: 5 | G89: 5 | H89: 5
A90: PE cells - frequency of replacement | B90: 10 | C90: 10 | D90: 10 | E90: 10 | F90: 10 | G90: 10 | H90: 10
A91: Unit cost - lamp | B91: 40.66493176 | C91: 35.84628 | D91: 35.85 | E91: 35.85 | F91: 35.85 | G91: 35.85 | H91: 35.85
A92: Unit cost - PE cell | B92: 21.9793895 | C92: 19.37490894 | D92: 19.37 | E92: 19.37 | F92: 19.37 | G92: 19.37 | H92: 19.37
A93: Unit cost - miscellaneous materials | B93: 2.448957047 | C93: 2.158764228 | D93: 2.16 | E93: 2.16 | F93: 2.16 | G93: 2.16 | H93: 2.16
A94: Number of men in crew - road patrols | B94: 2 | C94: =C65 -> 2 | D94: 2 | E94: 2 | F94: 2 | G94: 2 | H94: 2
A95: Number of men in crew - repairs | B95: 2 | C95: 2 | D95: 2 | E95: 2 | F95: 2 | G95: 2 | H95: 2
A96: Number of lamps patrolled in 1 day - urban | B96: 3000 | C96: =C67 -> 3000 | D96: 4035.586571 | E96: 4072.809639 | F96: 4247.734787 | G96: 4358.756841 | H96: 4477.785405
A97: Number of lamps patrolled in 1 day - rural | B97: 2000 | C97: =C68 -> 2000 | D97: 2211.989974 | E97: 2212.968066 | F97: 2227.003694 | G97: 2257.082124 | H97: 2290.322928
A98: Number of repairs in 1 day - urban | B98: 20 | C98: =C69 -> 20 | D98: 36.45394329 | E98: 31.30543798 | F98: 33.92197649 | G98: 27.25463997 | H98: 25.87392839
A99: Number of repairs in 1 day - rural | B99: 16 | C99: =C70 -> 16 | D99: 26.56660734 | E99: 25.75004876 | F99: 25.59450533 | G99: 25.15735201 | H99: 24.99331559
A101: Other Maintenance and Repair costs
A102: Traffic control costs | B102: 24356.61979 | C102: 21470.44579 | D102: 30000 | E102: 30000 | F102: 30000 | G102: 30000 | H102: 30000
A103: Other costs : Describe……………………………………. | B103: 0 | C103: 0
B104: 24356.61979 | C104: =SUM(C102:C103) -> 21470.44579 | D104: 30000 | E104: 30000 | F104: 30000 | G104: 30000 | H104: 30000
A105: Number of Lights | B105: 9937 | C105: ='DNSP Inputs General'!J43 -> 9940.007267 | D105: ='DNSP Inputs General'!K43 -> 9978.89553 | E105: ='DNSP Inputs General'!L43 -> 10017.78379 | F105: ='DNSP Inputs General'!M43 -> 10056.57977 | G105: ='DNSP Inputs General'!N43 -> 10095.69875 | H105: ='DNSP Inputs General'!O43 -> 10134.72545
A106: Unit Cost | B106: 2.451103934 | C106: =IF(C105=0,0,C104/C105) -> 2.160003028 | D106: 3.006344731 | E106: 2.994674333 | F106: 2.983121568 | G106: 2.971562517 | H106: 2.960119655
A108: Location of selected public lighting assets within distributors' areas (%)
A109: Urban | B109: 0.84 | C109: 0.84 | D109: 0.92 | E109: 0.92 | F109: 0.92 | G109: 0.92 | H109: 0.92
A110: Rural | B110: 0.16 | C110: 0.16 | D110: 0.08 | E110: 0.08 | F110: 0.08 | G110: 0.08 | H110: 0.08
A114: Dedicated street lighting poles
A116: Period of inspection | B116: 5 | C116: 5 | D116: 5 | E116: 5 | F116: 5 | G116: 5 | H116: 5
A117: Pole inspection rate | B117: 75 | C117: 75 | D117: 75 | E117: 75 | F117: 75 | G117: 75 | H117: 75
A118: Depreciation of dedicated street lighting pole & bracket | B118: 35 | C118: 35 | D118: =C118 -> 35 | E118: =D118 -> 35 | F118: =E118 -> 35 | G118: =F118 -> 35 | H118: =G118 -> 35
A119: Proportion of lights on dedicated poles | B119: 0.2370560408 | C119: 0.2370560408 | D119: 0.2370560408 | E119: 0.2370560408 | F119: 0.2370560408 | G119: 0.2370560408 | H119: 0.2370560408
A123: Other direct costs
A124: Call centre
A125: Number of calls | B125: 2400 | C125: 2400 | D125: 2400 | E125: 2400 | F125: 2400 | G125: 2400 | H125: 2400
A126: Average cost per call $ | B126: 11.34425434 | C126: 11.34425434 | D126: 11.34425434 | E126: 11.34425434 | F126: 11.34425434 | G126: 11.34425434 | H126: 11.34425434
B127: 27226.21043 | C127: =C125*C126 -> 27226.21043 | D127: 27226.21043 | E127: 27226.21043 | F127: 27226.21043 | G127: 27226.21043 | H127: 27226.21043
A129: GIS and other | B129: 113442.5434 | C129: 113442.5434 | D129: 113442.5434 | E129: 113442.5434 | F129: 113442.5434 | G129: 113442.5434 | H129: 113442.5434
A130: Complaints handling | B130: 34032.76303 | C130: 34032.76303 | D130: 34032.76303 | E130: 34032.76303 | F130: 34032.76303 | G130: 34032.76303 | H130: 34032.76303
A134: ENERGY EFFICIENT LIGHTS
A136: Inputs - T5 (2 X 14W)
A138: Depreciation period | B138: 20 | C138: 20 | D138: =C138 -> 20 | E138: =D138 -> 20 | F138: =E138 -> 20 | G138: =F138 -> 20 | H138: =G138 -> 20
A139: Lamps - bulk change | B139: 4 | C139: 4 | D139: 4 | E139: 4 | F139: 4 | G139: 4 | H139: 4
A140: PE cells - bulk change | B140: 8 | C140: 8 | D140: 8 | E140: 8 | F140: 8 | G140: 8 | H140: 8
A141: Ballast unit life | B141: 20 | C141: 20 | D141: =C141 -> 20 | E141: =D141 -> 20 | F141: =E141 -> 20 | G141: =F141 -> 20 | H141: =G141 -> 20
A142: Proportion of luminaires that fail between bulk change | B142: 0.114 | C142: 0.114 | D142: 0.114 | E142: 0.114 | F142: 0.114 | G142: 0.114 | H142: 0.114
A143: Unit cost - lamp | B143: 9.795828187 | C143: 8.63505691 | D143: =C143 -> 8.63505691 | E143: 8.63505691 | F143: 8.63505691 | G143: 8.63505691 | H143: 8.63505691
A144: Unit cost - PE cell | B144: 16.53046007 | C144: 14.57165854 | D144: 14.57165854 | E144: 14.57165854 | F144: 14.57165854 | G144: 14.57165854 | H144: 14.57165854
A145: Unit cost - luminaire | B145: 236.324355 | C145: 208.320748 | D145: 208.320748 | E145: 208.320748 | F145: 208.320748 | G145: 208.320748 | H145: 208.320748
A146: Unit cost - miscellaneous materials (bulk lamp) | B146: 1.224478523 | C146: 1.079382114 | D146: 1.079382114 | E146: 1.079382114 | F146: 1.079382114 | G146: 1.079382114 | H146: 1.079382114
A147: Unit cost - miscellaneous materials (repair) | B147: 12.24478523 | C147: 10.79382114 | D147: 10.79382114 | E147: 10.79382114 | F147: 10.79382114 | G147: 10.79382114 | H147: 10.79382114
A148: Number of men in crew | B148: 2 | C148: 2 | D148: 2 | E148: 2 | F148: 2 | G148: 2 | H148: 2
A149: Number of bulk lamp changes in 1 day - urban | B149: 77 | C149: 77 | D149: 34.22341736 | E149: 40.33029941 | F149: 47.14967084 | G149: 54.8027823 | H149: 63.44014496
A150: Number of bulk lamp changes in 1 day - rural | B150: 64 | C150: 64 | D150: 34.22341736 | E150: 40.33029941 | F150: 47.14967084 | G150: 54.8027823 | H150: 63.44014496
A151: Number of repairs in 1 day - urban | B151: 26 | C151: 26 | D151: 50 | E151: 49.64723487 | F151: 49.1026876 | G151: 49.37815831 | H151: 49.27220097
A152: Number of repairs in 1 day - rural | B152: 21 | C152: 21 | D152: 30.50820093 | E152: 30.45070839 | F152: 28.47236136 | G152: 30.38823155 | H152: 30.36377375
A153: % of repairs - lamps | B153: 0.6 | C153: 0.6 | D153: 0.6 | E153: 0.6 | F153: 0.6 | G153: 0.6 | H153: 0.6
A154: % of repairs - PE cells | B154: 0.5 | C154: 0.5 | D154: 0.5 | E154: 0.5 | F154: 0.5 | G154: 0.5 | H154: 0.5
A155: % of repairs - luminaires | B155: 0.15 | C155: 0.15 | D155: 0.15 | E155: 0.15 | F155: 0.15 | G155: 0.15 | H155: 0.15
A156: % of repairs - other | B156: 0.1 | C156: 0.1 | D156: 0.1 | E156: 0.1 | F156: 0.1 | G156: 0.1 | H156: 0.1
A158: Other Maintenance and Repair costs
A159: Traffic control costs | B159: 0 | C159: 0 | D159: 0 | E159: 0 | F159: 0 | G159: 0 | H159: 0
A160: Other costs : Describe……………………………………. | B160: 0 | C160: 0
B161: 0 | C161: =SUM(C159:C160) -> 0 | D161: 0 | E161: 0 | F161: 0 | G161: 0 | H161: 0
A162: Number of Lights | B162: 20997 | C162: ='DNSP Inputs General'!J68 -> 25108.77536 | D162: ='DNSP Inputs General'!K68 -> 28367.05365 | E162: ='DNSP Inputs General'!L68 -> 31625.33194 | F162: ='DNSP Inputs General'!M68 -> 34883.61023 | G162: ='DNSP Inputs General'!N68 -> 38141.88851 | H162: ='DNSP Inputs General'!O68 -> 41400.1668
A163: Unit Cost | B163: 0 | C163: =IF(C162=0,0,C161/C162) -> 0 | D163: 0 | E163: 0 | F163: 0 | G163: 0 | H163: 0
A165: Location of selected public lighting assets within distributors' areas (%)
A166: Urban | B166: 0.84 | C166: 0.84 | D166: 0.92 | E166: 0.92 | F166: 0.92 | G166: 0.92 | H166: 0.92
A167: Rural | B167: 0.16 | C167: 0.16 | D167: 0.08 | E167: 0.08 | F167: 0.08 | G167: 0.08 | H167: 0.08

Sheet DNSP Inputs Capex
A1: Public Lighting Cost Build-up Model
A3: ='DNSP Inputs O & M'!$A$3 -> United Energy | C3: Capex Data Inputs
C5: Real 2015 $
A7: Input parameters | C7: 2015 | D7: 2016 | E7: 2017 | F7: 2018 | G7: 2019 | H7: 2020
A9: Inputs - all lamps
A11: Material premium for rural areas | C11: ='DNSP Inputs O & M'!C11 -> 0.05 | D11: ='DNSP Inputs O & M'!D11 -> 0 | E11: ='DNSP Inputs O & M'!E11 -> 0 | F11: ='DNSP Inputs O & M'!F11 -> 0 | G11: ='DNSP Inputs O & M'!G11 -> 0 | H11: ='DNSP Inputs O & M'!H11 -> 0
A12: Labour rate (per hour) | C12: ='DNSP Inputs O & M'!C12 -> 90.24 | D12: ='DNSP Inputs O & M'!D12 -> 90.24 | E12: ='DNSP Inputs O & M'!E12 -> 90.24 | F12: ='DNSP Inputs O & M'!F12 -> 90.24 | G12: ='DNSP Inputs O & M'!G12 -> 90.24 | H12: ='DNSP Inputs O & M'!H12 -> 90.24
A13: Elevated platform vehicle (per hour) - urban MV,urban T5 | C13: ='DNSP Inputs O & M'!C14 -> 40.42 | D13: ='DNSP Inputs O & M'!D14 -> 40.42 | E13: ='DNSP Inputs O & M'!E14 -> 40.42 | F13: ='DNSP Inputs O & M'!F14 -> 40.42 | G13: ='DNSP Inputs O & M'!G14 -> 40.42 | H13: ='DNSP Inputs O & M'!H14 -> 40.42
A14: Elevated platform vehicle (per hour) - rural MV, rural T5, S-HP | C14: ='DNSP Inputs O & M'!C15 -> 40.42 | D14: ='DNSP Inputs O & M'!D15 -> 40.42 | E14: ='DNSP Inputs O & M'!E15 -> 40.42 | F14: ='DNSP Inputs O & M'!F15 -> 40.42 | G14: ='DNSP Inputs O & M'!G15 -> 40.42 | H14: ='DNSP Inputs O & M'!H15 -> 40.42
A15: Number of hours in a day | C15: ='DNSP Inputs O & M'!C17 -> 8 | D15: ='DNSP Inputs O & M'!D17 -> 8 | E15: ='DNSP Inputs O & M'!E17 -> 8 | F15: ='DNSP Inputs O & M'!F17 -> 8 | G15: ='DNSP Inputs O & M'!G17 -> 8 | H15: ='DNSP Inputs O & M'!H17 -> 8
A19: Inputs - MV80
A21: Unit cost - luminaire | C21: ='DNSP Inputs O & M'!C30 -> 171.1360341 | D21: ='DNSP Inputs O & M'!D30 -> 171.1360341 | E21: ='DNSP Inputs O & M'!E30 -> 171.1360341 | F21: ='DNSP Inputs O & M'!F30 -> 171.1360341 | G21: ='DNSP Inputs O & M'!G30 -> 171.1360341 | H21: ='DNSP Inputs O & M'!H30 -> 171.1360341
A22: Unit cost - miscellaneous materials (bulk lamp) | C22: ='DNSP Inputs O & M'!C31 -> 1.079382114 | D22: ='DNSP Inputs O & M'!D31 -> 1.079382114 | E22: ='DNSP Inputs O & M'!E31 -> 1.079382114 | F22: ='DNSP Inputs O & M'!F31 -> 1.079382114 | G22: ='DNSP Inputs O & M'!G31 -> 1.079382114 | H22: ='DNSP Inputs O & M'!H31 -> 1.079382114
A23: Number of men in crew | C23: ='DNSP Inputs O & M'!C33 -> 2 | D23: ='DNSP Inputs O & M'!D33 -> 2 | E23: ='DNSP Inputs O & M'!E33 -> 2 | F23: ='DNSP Inputs O & M'!F33 -> 2 | G23: ='DNSP Inputs O & M'!G33 -> 2 | H23: ='DNSP Inputs O & M'!H33 -> 2
A24: Number of luminaires replaced per day - urban | C24: 16 | D24: 10 | E24: 10 | F24: 10 | G24: 10 | H24: 10
A25: Number of luminaires replaced per day - rural | C25: 13 | D25: 8 | E25: 8 | F25: 8 | G25: 8 | H25: 8
A27: Other Capex unit costs Describe : | C27: 0 | D27: ='DNSP Inputs O & M'!D44/SUM('DNSP Inputs Capex'!D30:D31) -> 0 | E27: ='DNSP Inputs O & M'!E44/SUM('DNSP Inputs Capex'!E30:E31) -> 0 | F27: ='DNSP Inputs O & M'!F44/SUM('DNSP Inputs Capex'!F30:F31) -> 0 | G27: ='DNSP Inputs O & M'!G44/SUM('DNSP Inputs Capex'!G30:G31) -> 0 | H27: ='DNSP Inputs O & M'!H44/SUM('DNSP Inputs Capex'!H30:H31) -> 0
A29: Forecast Quantities to be replaced
A30: Number of luminaires replaced per year - urban | D30: 1293.52 | E30: 1293.52 | F30: 1293.52 | G30: 1293.52 | H30: 1293.52
A31: Number of luminaires replaced per year - rural | D31: 112.48 | E31: 112.48 | F31: 112.48 | G31: 112.48 | H31: 112.48
A33: MV80 Lights replaced with T5 Energy Efficient Lights
A34: Number of Lights MV80 replaced with T5 per year | D34: 3126.752646 | E34: 3120 | F34: 3100 | G34: 3050 | H34: 3000
A38: Inputs - S-HP150
A40: Unit cost - luminaire | C40: 202.5352598 | D40: =C40 -> 202.5352598 | E40: =D40 -> 202.5352598 | F40: =E40 -> 202.5352598 | G40: =F40 -> 202.5352598 | H40: =G40 -> 202.5352598
A41: Unit cost - miscellaneous materials | C41: ='DNSP Inputs O & M'!C64 -> 2.158764228 | D41: ='DNSP Inputs O & M'!D64 -> 2.16 | E41: ='DNSP Inputs O & M'!E64 -> 2.16 | F41: ='DNSP Inputs O & M'!F64 -> 2.16 | G41: ='DNSP Inputs O & M'!G64 -> 2.16 | H41: ='DNSP Inputs O & M'!H64 -> 2.16
A42: Number of men in crew - repairs | C42: ='DNSP Inputs O & M'!C66 -> 2 | D42: ='DNSP Inputs O & M'!D66 -> 2 | E42: ='DNSP Inputs O & M'!E66 -> 2 | F42: ='DNSP Inputs O & M'!F66 -> 2 | G42: ='DNSP Inputs O & M'!G66 -> 2 | H42: ='DNSP Inputs O & M'!H66 -> 2
A43: Number of luminaires replaced per day - urban | C43: 16 | D43: 10 | E43: 10 | F43: 10 | G43: 10 | H43: 10
A44: Number of luminaires replaced per day - rural | C44: 13 | D44: 8 | E44: 8 | F44: 8 | G44: 8 | H44: 8
A46: Other Capex unit costs Describe : Traffic Management | C46: 0 | D46: 153 | E46: 153 | F46: 153 | G46: 153 | H46: 153
A48: Forecast Quantities to be replaced
A49: Number of luminaires replaced per year - urban | D49: 744.648 | E49: 744.648 | F49: 744.648 | G49: 744.648 | H49: 744.648 | L49: =D49/D43 -> 74.4648 | M49: =E49/E43 -> 74.4648 | N49: 74.4648 | O49: 74.4648 | P49: 74.4648
A50: Number of luminaires replaced per year - rural | D50: 64.752 | E50: 64.752 | F50: 64.752 | G50: 64.752 | H50: 64.752 | L50: =D50/D44 -> 8.094 | M50: =E50/E44 -> 8.094 | N50: 8.094 | O50: 8.094 | P50: 8.094
L51: =1500*SUM(L49:L50)/SUM(D49:D50) -> 153 | M51: =1500*SUM(M49:M50)/SUM(E49:E50) -> 153 | N51: 153 | O51: 153 | P51: 153
A54: Inputs - S-HP250
A56: Unit cost - luminaire | C56: 205.5575297 | D56: =C56 -> 205.5575297 | E56: =D56 -> 205.5575297 | F56: =E56 -> 205.5575297 | G56: =F56 -> 205.5575297 | H56: =G56 -> 205.5575297
A57: Unit cost - miscellaneous materials | C57: ='DNSP Inputs O & M'!C93 -> 2.158764228 | D57: ='DNSP Inputs O & M'!D93 -> 2.16 | E57: ='DNSP Inputs O & M'!E93 -> 2.16 | F57: ='DNSP Inputs O & M'!F93 -> 2.16 | G57: ='DNSP Inputs O & M'!G93 -> 2.16 | H57: ='DNSP Inputs O & M'!H93 -> 2.16
A58: Number of men in crew - repairs | C58: ='DNSP Inputs O & M'!C95 -> 2 | D58: ='DNSP Inputs O & M'!D95 -> 2 | E58: ='DNSP Inputs O & M'!E95 -> 2 | F58: ='DNSP Inputs O & M'!F95 -> 2 | G58: ='DNSP Inputs O & M'!G95 -> 2 | H58: ='DNSP Inputs O & M'!H95 -> 2
A59: Number of luminaires replaced per day - urban | C59: 16 | D59: 10 | E59: 10 | F59: 10 | G59: 10 | H59: 10
A60: Number of luminaires replaced per day - rural | C60: 13 | D60: 8 | E60: 8 | F60: 8 | G60: 8 | H60: 8
A62: Other Capex unit costs Describe : Traffic Managemement | C62: 0 | D62: 153 | E62: 153 | F62: 153 | G62: 153 | H62: 153
A64: Forecast Quantities to be replaced
A65: Number of luminaires replaced per year - urban | D65: 304.152 | E65: 304.152 | F65: 304.152 | G65: 304.152 | H65: 304.152
A66: Number of luminaires replaced per year - rural | D66: 26.448 | E66: 26.448 | F66: 26.448 | G66: 26.448 | H66: 26.448
A70: Dedicated street lighting poles
A72: Cost of pole & bracket | C72: 950 | D72: =C72 -> 950 | E72: =D72 -> 950 | F72: =E72 -> 950 | G72: =F72 -> 950 | H72: =G72 -> 950
A73: Number of poles & brackets replaced per day | C73: 4 | D73: 4 | E73: 4 | F73: 4 | G73: 4 | H73: 4
A74: Cost of bracket on non-dedicated poles | C74: 505 | D74: =C74 -> 505 | E74: =D74 -> 505 | F74: =E74 -> 505 | G74: =F74 -> 505 | H74: =G74 -> 505
A75: Number of brackets replaced per day | C75: 20 | D75: 15 | E75: 15 | F75: 15 | G75: 15 | H75: 15
A77: Other poles & brackets Capex unit costs Describe :……Traffic | C77: 0 | D77: 475 | E77: 475 | F77: 475 | G77: 475 | H77: 475
A80: Forecast Quantities to be replaced
A81: Number of poles & brackets replaced per year - urban | D81: 264.592 | E81: 284.464 | F81: 304.336 | G81: 324.208 | H81: 344.08
A82: Number of poles & brackets replaced per year - rural | D82: 23.008 | E82: 24.736 | F82: 26.464 | G82: 28.192 | H82: 29.92
A84: Brackets on non-dedicated poles :
A85: Number of brackets replaced per year - urban | D85: 296.8392038 | E85: 356.5992079 | F85: 397.3607531 | G85: 420.816583 | H85: 500.1159992
A86: Number of brackets replaced per year - rural | D86: 25.81210468 | E86: 31.00862677 | F86: 34.55310896 | G86: 42.58829497 | H86: 43.48834776
A90: Luminaire Replacents - Other Light types (excluding T5s)
A91: Number of luminaires replaced per year
A92: Forecast Capex | C92: 80374.14168 | D92: 54895.96288 | E92: 55002.52323 | F92: 55014.41931 | G92: 55115.99275 | H92: 55629.78686

Sheet PL Tariffs
A1: ='DNSP Inputs O & M'!$A$3 -> United Energy | E1: Global Check | F1: =IF(SUM('Total RAB'!F1,'Depn & WACC Post 2004'!F1,'Cashflow Summary'!F1)<1,"Ok","Error") -> Error
A3: Public Lighting Tariffs | C3: Nominal Prices | J3: Nominal Price Movement | P3: Real Price Movement (Implied X Factor)
C4: Actual
A5: ='DNSP Inputs General'!A$40 -> Existing Lights | C5: ='DNSP Inputs General'!J$2 -> 2015 | D5: ='DNSP Inputs General'!K$2 -> 2016 | E5: ='DNSP Inputs General'!L$2 -> 2017 | F5: ='DNSP Inputs General'!M$2 -> 2018 | G5: ='DNSP Inputs General'!N$2 -> 2019 | H5: ='DNSP Inputs General'!O$2 -> 2020 | J5: =D5 -> 2016 | K5: =E5 -> 2017 | L5: =F5 -> 2018 | M5: =G5 -> 2019 | N5: =H5 -> 2020 | P5: =J5 -> 2016 | Q5: =K5 -> 2017 | R5: =L5 -> 2018 | S5: =M5 -> 2019 | T5: =N5 -> 2020
A6: ='DNSP Inputs General'!A41 -> Mercury Vapour 80 watt | C6: ='DNSP Inputs General'!E41 -> 64.8 | D6: ='Charges Summary'!D$31 -> 54.12681973 | E6: ='Charges Summary'!E$31 -> 58.13167743 | F6: ='Charges Summary'!F$31 -> 63.25949116 | G6: ='Charges Summary'!G$31 -> 68.22424568 | H6: ='Charges Summary'!H$31 -> 73.56006988 | J6: =IF(C6=0,"",D6/C6-1) -> -0.164709572 | K6: =IF(D6=0,"",E6/D6-1) -> 0.07399026418 | L6: =IF(E6=0,"",F6/E6-1) -> 0.08821031772 | M6: =IF(F6=0,"",G6/F6-1) -> 0.07848236569 | N6: =IF(G6=0,"",H6/G6-1) -> 0.07821008715 | P6: =IF(C6=0,"",(D6/'Charges Summary'!D$4)/C6-1) -> -0.1850825093 | Q6: =IF(D6=0,"",(E6/'Charges Summary'!E$4)/(D6/'Charges Summary'!D$4)-1) -> 0.04779537969 | R6: =IF(E6=0,"",(F6/'Charges Summary'!F$4)/(E6/'Charges Summary'!E$4)-1) -> 0.06166860265 | S6: =IF(F6=0,"",(G6/'Charges Summary'!G$4)/(F6/'Charges Summary'!F$4)-1) -> 0.05217791775 | T6: =IF(G6=0,"",(H6/'Charges Summary'!H$4)/(G6/'Charges Summary'!G$4)-1) -> 0.05191228015
A7: ='DNSP Inputs General'!A42 -> Sodium High Pressure 150 watt | C7: ='DNSP Inputs General'!E42 -> 97.72 | D7: ='Charges Summary'!D$55 -> 68.88529072 | E7: ='Charges Summary'!E$55 -> 75.47856584 | F7: ='Charges Summary'!F$55 -> 82.94932088 | G7: ='Charges Summary'!G$55 -> 86.93309254 | H7: ='Charges Summary'!H$55 -> 92.89902513 | J7: -0.2950747982 | K7: 0.09571383168 | L7: 0.09897849742 | M7: 0.04802657357 | N7: 0.0686267153 | P7: =IF(C7=0,"",(D7/'Charges Summary'!D$4)/C7-1) -> -0.3122680958 | Q7: =IF(D7=0,"",(E7/'Charges Summary'!E$4)/(D7/'Charges Summary'!D$4)-1) -> 0.06898910408 | R7: =IF(E7=0,"",(F7/'Charges Summary'!F$4)/(E7/'Charges Summary'!E$4)-1) -> 0.07217414382 | S7: =IF(F7=0,"",(G7/'Charges Summary'!G$4)/(F7/'Charges Summary'!F$4)-1) -> 0.02246494983 | T7: =IF(G7=0,"",(H7/'Charges Summary'!H$4)/(G7/'Charges Summary'!G$4)-1) -> 0.04256264907
A8: ='DNSP Inputs General'!A43 -> Sodium High Pressure 250 watt | C8: ='DNSP Inputs General'!E43 -> 99.64 | D8: ='Charges Summary'!D$71 -> 70.65428918 | E8: ='Charges Summary'!E$71 -> 77.40947696 | F8: ='Charges Summary'!F$71 -> 79.86911869 | G8: ='Charges Summary'!G$71 -> 89.07978711 | H8: ='Charges Summary'!H$71 -> 95.18361331 | J8: -0.2909043639 | K8: 0.09560902615 | L8: 0.03177442633 | M8: 0.115322024 | N8: 0.06852088895 | P8: =IF(C8=0,"",(D8/'Charges Summary'!D$4)/C8-1) -> -0.3081993794 | Q8: =IF(D8=0,"",(E8/'Charges Summary'!E$4)/(D8/'Charges Summary'!D$4)-1) -> 0.06888685478 | R8: =IF(E8=0,"",(F8/'Charges Summary'!F$4)/(E8/'Charges Summary'!E$4)-1) -> 0.006609196417 | S8: =IF(F8=0,"",(G8/'Charges Summary'!G$4)/(F8/'Charges Summary'!F$4)-1) -> 0.08811904784 | T8: =IF(G8=0,"",(H8/'Charges Summary'!H$4)/(G8/'Charges Summary'!G$4)-1) -> 0.04245940385
A9: ='DNSP Inputs General'!A44 -> Fluorescent 2x20 watt | C9: ='DNSP Inputs General'!E44 -> 83.59 | D9: =IF('DNSP Inputs General'!$B44='DNSP Inputs General'!$A$41,D$6,IF('DNSP Inputs General'!$B44='DNSP Inputs General'!$A$42,D$7,D$8))*'DNSP Inputs General'!$D44 -> 69.82359746 | E9: =IF('DNSP Inputs General'!$B44='DNSP Inputs General'!$A$41,E$6,IF('DNSP Inputs General'!$B44='DNSP Inputs General'!$A$42,E$7,E$8))*'DNSP Inputs General'!$D44 -> 74.98986388 | F9: =IF('DNSP Inputs General'!$B44='DNSP Inputs General'!$A$41,F$6,IF('DNSP Inputs General'!$B44='DNSP Inputs General'!$A$42,F$7,F$8))*'DNSP Inputs General'!$D44 -> 81.6047436 | G9: =IF('DNSP Inputs General'!$B44='DNSP Inputs General'!$A$41,G$6,IF('DNSP Inputs General'!$B44='DNSP Inputs General'!$A$42,G$7,G$8))*'DNSP Inputs General'!$D44 -> 88.00927693 | H9: =IF('DNSP Inputs General'!$B44='DNSP Inputs General'!$A$41,H$6,IF('DNSP Inputs General'!$B44='DNSP Inputs General'!$A$42,H$7,H$8))*'DNSP Inputs General'!$D44 -> 94.89249015 | J9: -0.1646895866 | K9: 0.07399026418 | L9: 0.08821031772 | M9: 0.07848236569 | N9: 0.07821008715 | P9: =IF(C9=0,"",(D9/'Charges Summary'!D$4)/C9-1) -> -0.1850630113 | Q9: =IF(D9=0,"",(E9/'Charges Summary'!E$4)/(D9/'Charges Summary'!D$4)-1) -> 0.04779537969 | R9: =IF(E9=0,"",(F9/'Charges Summary'!F$4)/(E9/'Charges Summary'!E$4)-1) -> 0.06166860265 | S9: =IF(F9=0,"",(G9/'Charges Summary'!G$4)/(F9/'Charges Summary'!F$4)-1) -> 0.05217791775 | T9: =IF(G9=0,"",(H9/'Charges Summary'!H$4)/(G9/'Charges Summary'!G$4)-1) -> 0.05191228015
A10: ='DNSP Inputs General'!A45 -> Fluorescent 3x20 watt | C10: ='DNSP Inputs General'!E45 -> 82.19 | D10: =IF('DNSP Inputs General'!$B45='DNSP Inputs General'!$A$41,D$6,IF('DNSP Inputs General'!$B45='DNSP Inputs General'!$A$42,D$7,D$8))*'DNSP Inputs General'!$D45 -> 69.82359746 | E10: =IF('DNSP Inputs General'!$B45='DNSP Inputs General'!$A$41,E$6,IF('DNSP Inputs General'!$B45='DNSP Inputs General'!$A$42,E$7,E$8))*'DNSP Inputs General'!$D45 -> 74.98986388 | F10: =IF('DNSP Inputs General'!$B45='DNSP Inputs General'!$A$41,F$6,IF('DNSP Inputs General'!$B45='DNSP Inputs General'!$A$42,F$7,F$8))*'DNSP Inputs General'!$D45 -> 81.6047436 | G10: =IF('DNSP Inputs General'!$B45='DNSP Inputs General'!$A$41,G$6,IF('DNSP Inputs General'!$B45='DNSP Inputs General'!$A$42,G$7,G$8))*'DNSP Inputs General'!$D45 -> 88.00927693 | H10: =IF('DNSP Inputs General'!$B45='DNSP Inputs General'!$A$41,H$6,IF('DNSP Inputs General'!$B45='DNSP Inputs General'!$A$42,H$7,H$8))*'DNSP Inputs General'!$D45 -> 94.89249015 | J10: -0.1504611576 | K10: 0.07399026418 | L10: 0.08821031772 | M10: 0.07848236569 | N10: 0.07821008715 | P10: =IF(C10=0,"",(D10/'Charges Summary'!D$4)/C10-1) -> -0.1711816172 | Q10: =IF(D10=0,"",(E10/'Charges Summary'!E$4)/(D10/'Charges Summary'!D$4)-1) -> 0.04779537969 | R10: =IF(E10=0,"",(F10/'Charges Summary'!F$4)/(E10/'Charges Summary'!E$4)-1) -> 0.06166860265 | S10: =IF(F10=0,"",(G10/'Charges Summary'!G$4)/(F10/'Charges Summary'!F$4)-1) -> 0.05217791775 | T10: =IF(G10=0,"",(H10/'Charges Summary'!H$4)/(G10/'Charges Summary'!G$4)-1) -> 0.05191228015
A11: ='DNSP Inputs General'!A46 -> Mercury Vapour 50 watt | C11: ='DNSP Inputs General'!E46 -> 95.9 | D11: =IF('DNSP Inputs General'!$B46='DNSP Inputs General'!$A$41,D$6,IF('DNSP Inputs General'!$B46='DNSP Inputs General'!$A$42,D$7,D$8))*'DNSP Inputs General'!$D46 -> 80.10769321 | E11: =IF('DNSP Inputs General'!$B46='DNSP Inputs General'!$A$41,E$6,IF('DNSP Inputs General'!$B46='DNSP Inputs General'!$A$42,E$7,E$8))*'DNSP Inputs General'!$D46 -> 86.03488259 | F11: =IF('DNSP Inputs General'!$B46='DNSP Inputs General'!$A$41,F$6,IF('DNSP Inputs General'!$B46='DNSP Inputs General'!$A$42,F$7,F$8))*'DNSP Inputs General'!$D46 -> 93.62404692 | G11: =IF('DNSP Inputs General'!$B46='DNSP Inputs General'!$A$41,G$6,IF('DNSP Inputs General'!$B46='DNSP Inputs General'!$A$42,G$7,G$8))*'DNSP Inputs General'!$D46 -> 100.9718836 | H11: =IF('DNSP Inputs General'!$B46='DNSP Inputs General'!$A$41,H$6,IF('DNSP Inputs General'!$B46='DNSP Inputs General'!$A$42,H$7,H$8))*'DNSP Inputs General'!$D46 -> 108.8689034 | J11: -0.1646747319 | K11: 0.07399026418 | L11: 0.08821031772 | M11: 0.07848236569 | N11: 0.07821008715 | P11: =IF(C11=0,"",(D11/'Charges Summary'!D$4)/C11-1) -> -0.185048519 | Q11: =IF(D11=0,"",(E11/'Charges Summary'!E$4)/(D11/'Charges Summary'!D$4)-1) -> 0.04779537969 | R11: =IF(E11=0,"",(F11/'Charges Summary'!F$4)/(E11/'Charges Summary'!E$4)-1) -> 0.06166860265 | S11: =IF(F11=0,"",(G11/'Charges Summary'!G$4)/(F11/'Charges Summary'!F$4)-1) -> 0.05217791775 | T11: =IF(G11=0,"",(H11/'Charges Summary'!H$4)/(G11/'Charges Summary'!G$4)-1) -> 0.05191228015
A12: ='DNSP Inputs General'!A47 -> Mercury Vapour 125 watt | C12: ='DNSP Inputs General'!E47 -> 95.9 | D12: =IF('DNSP Inputs General'!$B47='DNSP Inputs General'!$A$41,D$6,IF('DNSP Inputs General'!$B47='DNSP Inputs General'!$A$42,D$7,D$8))*'DNSP Inputs General'!$D47 -> 80.10769321 | E12: =IF('DNSP Inputs General'!$B47='DNSP Inputs General'!$A$41,E$6,IF('DNSP Inputs General'!$B47='DNSP Inputs General'!$A$42,E$7,E$8))*'DNSP Inputs General'!$D47 -> 86.03488259 | F12: =IF('DNSP Inputs General'!$B47='DNSP Inputs General'!$A$41,F$6,IF('DNSP Inputs General'!$B47='DNSP Inputs General'!$A$42,F$7,F$8))*'DNSP Inputs General'!$D47 -> 93.62404692 | G12: =IF('DNSP Inputs General'!$B47='DNSP Inputs General'!$A$41,G$6,IF('DNSP Inputs General'!$B47='DNSP Inputs General'!$A$42,G$7,G$8))*'DNSP Inputs General'!$D47 -> 100.9718836 | H12: =IF('DNSP Inputs General'!$B47='DNSP Inputs General'!$A$41,H$6,IF('DNSP Inputs General'!$B47='DNSP Inputs General'!$A$42,H$7,H$8))*'DNSP Inputs General'!$D47 -> 108.8689034 | J12: -0.1646747319 | K12: 0.07399026418 | L12: 0.08821031772 | M12: 0.07848236569 | N12: 0.07821008715 | P12: =IF(C12=0,"",(D12/'Charges Summary'!D$4)/C12-1) -> -0.185048519 | Q12: =IF(D12=0,"",(E12/'Charges Summary'!E$4)/(D12/'Charges Summary'!D$4)-1) -> 0.04779537969 | R12: =IF(E12=0,"",(F12/'Charges Summary'!F$4)/(E12/'Charges Summary'!E$4)-1) -> 0.06166860265 | S12: =IF(F12=0,"",(G12/'Charges Summary'!G$4)/(F12/'Charges Summary'!F$4)-1) -> 0.05217791775 | T12: =IF(G12=0,"",(H12/'Charges Summary'!H$4)/(G12/'Charges Summary'!G$4)-1) -> 0.05191228015
A13: ='DNSP Inputs General'!A48 -> Mercury Vapour 250 watt | C13: ='DNSP Inputs General'!E48 -> 90.67 | D13: =IF('DNSP Inputs General'!$B48='DNSP Inputs General'!$A$41,D$6,IF('DNSP Inputs General'!$B48='DNSP Inputs General'!$A$42,D$7,D$8))*'DNSP Inputs General'!$D48 -> 64.29540315 | E13: =IF('DNSP Inputs General'!$B48='DNSP Inputs General'!$A$41,E$6,IF('DNSP Inputs General'!$B48='DNSP Inputs General'!$A$42,E$7,E$8))*'DNSP Inputs General'!$D48 -> 70.44262404 | F13: =IF('DNSP Inputs General'!$B48='DNSP Inputs General'!$A$41,F$6,IF('DNSP Inputs General'!$B48='DNSP Inputs General'!$A$42,F$7,F$8))*'DNSP Inputs General'!$D48 -> 72.680898 | G13: =IF('DNSP Inputs General'!$B48='DNSP Inputs General'!$A$41,G$6,IF('DNSP Inputs General'!$B48='DNSP Inputs General'!$A$42,G$7,G$8))*'DNSP Inputs General'!$D48 -> 81.06260627 | H13: =IF('DNSP Inputs General'!$B48='DNSP Inputs General'!$A$41,H$6,IF('DNSP Inputs General'!$B48='DNSP Inputs General'!$A$42,H$7,H$8))*'DNSP Inputs General'!$D48 -> 86.61708811 | J13: -0.2908855944 | K13: 0.09560902615 | L13: 0.03177442633 | M13: 0.115322024 | N13: 0.06852088895 | P13: =IF(C13=0,"",(D13/'Charges Summary'!D$4)/C13-1) -> -0.3081810677 | Q13: =IF(D13=0,"",(E13/'Charges Summary'!E$4)/(D13/'Charges Summary'!D$4)-1) -> 0.06888685478 | R13: =IF(E13=0,"",(F13/'Charges Summary'!F$4)/(E13/'Charges Summary'!E$4)-1) -> 0.006609196417 | S13: =IF(F13=0,"",(G13/'Charges Summary'!G$4)/(F13/'Charges Summary'!F$4)-1) -> 0.08811904784 | T13: =IF(G13=0,"",(H13/'Charges Summary'!H$4)/(G13/'Charges Summary'!G$4)-1) -> 0.04245940385
A14: ='DNSP Inputs General'!A49 -> Mercury Vapour 400 watt | C14: ='DNSP Inputs General'!E49 -> 125.55 | D14: =IF('DNSP Inputs General'!$B49='DNSP Inputs General'!$A$41,D$6,IF('DNSP Inputs General'!$B49='DNSP Inputs General'!$A$42,D$7,D$8))*'DNSP Inputs General'!$D49 -> 89.02440437 | E14: =IF('DNSP Inputs General'!$B49='DNSP Inputs General'!$A$41,E$6,IF('DNSP Inputs General'!$B49='DNSP Inputs General'!$A$42,E$7,E$8))*'DNSP Inputs General'!$D49 -> 97.53594097 | F14: =IF('DNSP Inputs General'!$B49='DNSP Inputs General'!$A$41,F$6,IF('DNSP Inputs General'!$B49='DNSP Inputs General'!$A$42,F$7,F$8))*'DNSP Inputs General'!$D49 -> 100.6350895 | G14: =IF('DNSP Inputs General'!$B49='DNSP Inputs General'!$A$41,G$6,IF('DNSP Inputs General'!$B49='DNSP Inputs General'!$A$42,G$7,G$8))*'DNSP Inputs General'!$D49 -> 112.2405318 | H14: =IF('DNSP Inputs General'!$B49='DNSP Inputs General'!$A$41,H$6,IF('DNSP Inputs General'!$B49='DNSP Inputs General'!$A$42,H$7,H$8))*'DNSP Inputs General'!$D49 -> 119.9313528 | J14: -0.2909246964 | K14: 0.09560902615 | L14: 0.03177442633 | M14: 0.115322024 | N14: 0.06852088895 | P14: =IF(C14=0,"",(D14/'Charges Summary'!D$4)/C14-1) -> -0.308219216 | Q14: =IF(D14=0,"",(E14/'Charges Summary'!E$4)/(D14/'Charges Summary'!D$4)-1) -> 0.06888685478 | R14: =IF(E14=0,"",(F14/'Charges Summary'!F$4)/(E14/'Charges Summary'!E$4)-1) -> 0.006609196417 | S14: =IF(F14=0,"",(G14/'Charges Summary'!G$4)/(F14/'Charges Summary'!F$4)-1) -> 0.08811904784 | T14: =IF(G14=0,"",(H14/'Charges Summary'!H$4)/(G14/'Charges Summary'!G$4)-1) -> 0.04245940385
A15: ='DNSP Inputs General'!A50 -> Mercury Vapour 700 watt | C15: ='DNSP Inputs General'!E50 -> 125.55 | D15: =IF('DNSP Inputs General'!$B50='DNSP Inputs General'!$A$41,D$6,IF('DNSP Inputs General'!$B50='DNSP Inputs General'!$A$42,D$7,D$8))*'DNSP Inputs General'!$D50 -> 89.02440437 | E15: =IF('DNSP Inputs General'!$B50='DNSP Inputs General'!$A$41,E$6,IF('DNSP Inputs General'!$B50='DNSP Inputs General'!$A$42,E$7,E$8))*'DNSP Inputs General'!$D50 -> 97.53594097 | F15: =IF('DNSP Inputs General'!$B50='DNSP Inputs General'!$A$41,F$6,IF('DNSP Inputs General'!$B50='DNSP Inputs General'!$A$42,F$7,F$8))*'DNSP Inputs General'!$D50 -> 100.6350895 | G15: =IF('DNSP Inputs General'!$B50='DNSP Inputs General'!$A$41,G$6,IF('DNSP Inputs General'!$B50='DNSP Inputs General'!$A$42,G$7,G$8))*'DNSP Inputs General'!$D50 -> 112.2405318 | H15: =IF('DNSP Inputs General'!$B50='DNSP Inputs General'!$A$41,H$6,IF('DNSP Inputs General'!$B50='DNSP Inputs General'!$A$42,H$7,H$8))*'DNSP Inputs General'!$D50 -> 119.9313528 | J15: -0.2909246964 | K15: 0.09560902615 | L15: 0.03177442633 | M15: 0.115322024 | N15: 0.06852088895 | P15: =IF(C15=0,"",(D15/'Charges Summary'!D$4)/C15-1) -> -0.308219216 | Q15: =IF(D15=0,"",(E15/'Charges Summary'!E$4)/(D15/'Charges Summary'!D$4)-1) -> 0.06888685478 | R15: =IF(E15=0,"",(F15/'Charges Summary'!F$4)/(E15/'Charges Summary'!E$4)-1) -> 0.006609196417 | S15: =IF(F15=0,"",(G15/'Charges Summary'!G$4)/(F15/'Charges Summary'!F$4)-1) -> 0.08811904784 | T15: =IF(G15=0,"",(H15/'Charges Summary'!H$4)/(G15/'Charges Summary'!G$4)-1) -> 0.04245940385
A16: ='DNSP Inputs General'!A51 -> Sodium High Pressure 70 watt | C16: ='DNSP Inputs General'!E51 -> 141.91 | D16: =IF('DNSP Inputs General'!$B51='DNSP Inputs General'!$A$41,D$6,IF('DNSP Inputs General'!$B51='DNSP Inputs General'!$A$42,D$7,D$8))*'DNSP Inputs General'!$D51 -> 118.5377352 | E16: =IF('DNSP Inputs General'!$B51='DNSP Inputs General'!$A$41,E$6,IF('DNSP Inputs General'!$B51='DNSP Inputs General'!$A$42,E$7,E$8))*'DNSP Inputs General'!$D51 -> 127.3083736 | F16: =IF('DNSP Inputs General'!$B51='DNSP Inputs General'!$A$41,F$6,IF('DNSP Inputs General'!$B51='DNSP Inputs General'!$A$42,F$7,F$8))*'DNSP Inputs General'!$D51 -> 138.5382856 | G16: =IF('DNSP Inputs General'!$B51='DNSP Inputs General'!$A$41,G$6,IF('DNSP Inputs General'!$B51='DNSP Inputs General'!$A$42,G$7,G$8))*'DNSP Inputs General'!$D51 -> 149.411098 | H16: =IF('DNSP Inputs General'!$B51='DNSP Inputs General'!$A$41,H$6,IF('DNSP Inputs General'!$B51='DNSP Inputs General'!$A$42,H$7,H$8))*'DNSP Inputs General'!$D51 -> 161.096553 | J16: -0.1646977999 | K16: 0.07399026418 | L16: 0.08821031772 | M16: 0.07848236569 | N16: 0.07821008715 | P16: =IF(C16=0,"",(D16/'Charges Summary'!D$4)/C16-1) -> -0.1850710243 | Q16: =IF(D16=0,"",(E16/'Charges Summary'!E$4)/(D16/'Charges Summary'!D$4)-1) -> 0.04779537969 | R16: =IF(E16=0,"",(F16/'Charges Summary'!F$4)/(E16/'Charges Summary'!E$4)-1) -> 0.06166860265 | S16: =IF(F16=0,"",(G16/'Charges Summary'!G$4)/(F16/'Charges Summary'!F$4)-1) -> 0.05217791775 | T16: =IF(G16=0,"",(H16/'Charges Summary'!H$4)/(G16/'Charges Summary'!G$4)-1) -> 0.05191228015
A17: ='DNSP Inputs General'!A52 -> Sodium High Pressure 100 watt | C17: ='DNSP Inputs General'!E52 -> 107.49 | D17: =IF('DNSP Inputs General'!$B52='DNSP Inputs General'!$A$41,D$6,IF('DNSP Inputs General'!$B52='DNSP Inputs General'!$A$42,D$7,D$8))*'DNSP Inputs General'!$D52 -> 75.7738198 | E17: =IF('DNSP Inputs General'!$B52='DNSP Inputs General'!$A$41,E$6,IF('DNSP Inputs General'!$B52='DNSP Inputs General'!$A$42,E$7,E$8))*'DNSP Inputs General'!$D52 -> 83.02642243 | F17: =IF('DNSP Inputs General'!$B52='DNSP Inputs General'!$A$41,F$6,IF('DNSP Inputs General'!$B52='DNSP Inputs General'!$A$42,F$7,F$8))*'DNSP Inputs General'!$D52 -> 91.24425297 | G17: =IF('DNSP Inputs General'!$B52='DNSP Inputs General'!$A$41,G$6,IF('DNSP Inputs General'!$B52='DNSP Inputs General'!$A$42,G$7,G$8))*'DNSP Inputs General'!$D52 -> 95.6264018 | H17: =IF('DNSP Inputs General'!$B52='DNSP Inputs General'!$A$41,H$6,IF('DNSP Inputs General'!$B52='DNSP Inputs General'!$A$42,H$7,H$8))*'DNSP Inputs General'!$D52 -> 102.1889276 | J17: -0.2950616821 | K17: 0.09571383168 | L17: 0.09897849742 | M17: 0.04802657357 | N17: 0.0686267153 | P17: =IF(C17=0,"",(D17/'Charges Summary'!D$4)/C17-1) -> -0.3122552996 | Q17: =IF(D17=0,"",(E17/'Charges Summary'!E$4)/(D17/'Charges Summary'!D$4)-1) -> 0.06898910408 | R17: =IF(E17=0,"",(F17/'Charges Summary'!F$4)/(E17/'Charges Summary'!E$4)-1) -> 0.07217414382 | S17: =IF(F17=0,"",(G17/'Charges Summary'!G$4)/(F17/'Charges Summary'!F$4)-1) -> 0.02246494983 | T17: =IF(G17=0,"",(H17/'Charges Summary'!H$4)/(G17/'Charges Summary'!G$4)-1) -> 0.04256264907
A18: ='DNSP Inputs General'!A53 -> Sodium High Pressure 400 watt | C18: ='DNSP Inputs General'!E53 -> 125.55 | D18: =IF('DNSP Inputs General'!$B53='DNSP Inputs General'!$A$41,D$6,IF('DNSP Inputs General'!$B53='DNSP Inputs General'!$A$42,D$7,D$8))*'DNSP Inputs General'!$D53 -> 89.02440437 | E18: =IF('DNSP Inputs General'!$B53='DNSP Inputs General'!$A$41,E$6,IF('DNSP Inputs General'!$B53='DNSP Inputs General'!$A$42,E$7,E$8))*'DNSP Inputs General'!$D53 -> 97.53594097 | F18: =IF('DNSP Inputs General'!$B53='DNSP Inputs General'!$A$41,F$6,IF('DNSP Inputs General'!$B53='DNSP Inputs General'!$A$42,F$7,F$8))*'DNSP Inputs General'!$D53 -> 100.6350895 | G18: =IF('DNSP Inputs General'!$B53='DNSP Inputs General'!$A$41,G$6,IF('DNSP Inputs General'!$B53='DNSP Inputs General'!$A$42,G$7,G$8))*'DNSP Inputs General'!$D53 -> 112.2405318 | H18: =IF('DNSP Inputs General'!$B53='DNSP Inputs General'!$A$41,H$6,IF('DNSP Inputs General'!$B53='DNSP Inputs General'!$A$42,H$7,H$8))*'DNSP Inputs General'!$D53 -> 119.9313528 | J18: -0.2909246964 | K18: 0.09560902615 | L18: 0.03177442633 | M18: 0.115322024 | N18: 0.06852088895 | P18: =IF(C18=0,"",(D18/'Charges Summary'!D$4)/C18-1) -> -0.308219216 | Q18: =IF(D18=0,"",(E18/'Charges Summary'!E$4)/(D18/'Charges Summary'!D$4)-1) -> 0.06888685478 | R18: =IF(E18=0,"",(F18/'Charges Summary'!F$4)/(E18/'Charges Summary'!E$4)-1) -> 0.006609196417 | S18: =IF(F18=0,"",(G18/'Charges Summary'!G$4)/(F18/'Charges Summary'!F$4)-1) -> 0.08811904784 | T18: =IF(G18=0,"",(H18/'Charges Summary'!H$4)/(G18/'Charges Summary'!G$4)-1) -> 0.04245940385
A19: ='DNSP Inputs General'!A54 -> Metal Halide 70 watt | C19: ='DNSP Inputs General'!E54 -> 131.92 | D19: =IF('DNSP Inputs General'!$B54='DNSP Inputs General'!$A$41,D$6,IF('DNSP Inputs General'!$B54='DNSP Inputs General'!$A$42,D$7,D$8))*'DNSP Inputs General'!$D54 -> 92.99514248 | E19: =IF('DNSP Inputs General'!$B54='DNSP Inputs General'!$A$41,E$6,IF('DNSP Inputs General'!$B54='DNSP Inputs General'!$A$42,E$7,E$8))*'DNSP Inputs General'!$D54 -> 101.8960639 | F19: =IF('DNSP Inputs General'!$B54='DNSP Inputs General'!$A$41,F$6,IF('DNSP Inputs General'!$B54='DNSP Inputs General'!$A$42,F$7,F$8))*'DNSP Inputs General'!$D54 -> 111.9815832 | G19: =IF('DNSP Inputs General'!$B54='DNSP Inputs General'!$A$41,G$6,IF('DNSP Inputs General'!$B54='DNSP Inputs General'!$A$42,G$7,G$8))*'DNSP Inputs General'!$D54 -> 117.3596749 | H19: =IF('DNSP Inputs General'!$B54='DNSP Inputs General'!$A$41,H$6,IF('DNSP Inputs General'!$B54='DNSP Inputs General'!$A$42,H$7,H$8))*'DNSP Inputs General'!$D54 -> 125.4136839 | J19: -0.295064111 | K19: 0.09571383168 | L19: 0.09897849742 | M19: 0.04802657357 | N19: 0.0686267153 | P19: =IF(C19=0,"",(D19/'Charges Summary'!D$4)/C19-1) -> -0.3122576693 | Q19: =IF(D19=0,"",(E19/'Charges Summary'!E$4)/(D19/'Charges Summary'!D$4)-1) -> 0.06898910408 | R19: =IF(E19=0,"",(F19/'Charges Summary'!F$4)/(E19/'Charges Summary'!E$4)-1) -> 0.07217414382 | S19: =IF(F19=0,"",(G19/'Charges Summary'!G$4)/(F19/'Charges Summary'!F$4)-1) -> 0.02246494983 | T19: =IF(G19=0,"",(H19/'Charges Summary'!H$4)/(G19/'Charges Summary'!G$4)-1) -> 0.04256264907
A20: ='DNSP Inputs General'!A55 -> Metal Halide 100 watt | C20: ='DNSP Inputs General'!E55 -> 131.92 | D20: =IF('DNSP Inputs General'!$B55='DNSP Inputs General'!$A$41,D$6,IF('DNSP Inputs General'!$B55='DNSP Inputs General'!$A$42,D$7,D$8))*'DNSP Inputs General'!$D55 -> 92.99514248 | E20: =IF('DNSP Inputs General'!$B55='DNSP Inputs General'!$A$41,E$6,IF('DNSP Inputs General'!$B55='DNSP Inputs General'!$A$42,E$7,E$8))*'DNSP Inputs General'!$D55 -> 101.8960639 | F20: =IF('DNSP Inputs General'!$B55='DNSP Inputs General'!$A$41,F$6,IF('DNSP Inputs General'!$B55='DNSP Inputs General'!$A$42,F$7,F$8))*'DNSP Inputs General'!$D55 -> 111.9815832 | G20: =IF('DNSP Inputs General'!$B55='DNSP Inputs General'!$A$41,G$6,IF('DNSP Inputs General'!$B55='DNSP Inputs General'!$A$42,G$7,G$8))*'DNSP Inputs General'!$D55 -> 117.3596749 | H20: =IF('DNSP Inputs General'!$B55='DNSP Inputs General'!$A$41,H$6,IF('DNSP Inputs General'!$B55='DNSP Inputs General'!$A$42,H$7,H$8))*'DNSP Inputs General'!$D55 -> 125.4136839 | J20: -0.295064111 | K20: 0.09571383168 | L20: 0.09897849742 | M20: 0.04802657357 | N20: 0.0686267153 | P20: =IF(C20=0,"",(D20/'Charges Summary'!D$4)/C20-1) -> -0.3122576693 | Q20: =IF(D20=0,"",(E20/'Charges Summary'!E$4)/(D20/'Charges Summary'!D$4)-1) -> 0.06898910408 | R20: =IF(E20=0,"",(F20/'Charges Summary'!F$4)/(E20/'Charges Summary'!E$4)-1) -> 0.07217414382 | S20: =IF(F20=0,"",(G20/'Charges Summary'!G$4)/(F20/'Charges Summary'!F$4)-1) -> 0.02246494983 | T20: =IF(G20=0,"",(H20/'Charges Summary'!H$4)/(G20/'Charges Summary'!G$4)-1) -> 0.04256264907
A21: ='DNSP Inputs General'!A56 -> Metal Halide 150 watt | C21: ='DNSP Inputs General'!E56 -> 131.92 | D21: =IF('DNSP Inputs General'!$B56='DNSP Inputs General'!$A$41,D$6,IF('DNSP Inputs General'!$B56='DNSP Inputs General'!$A$42,D$7,D$8))*'DNSP Inputs General'!$D56 -> 92.99514248 | E21: =IF('DNSP Inputs General'!$B56='DNSP Inputs General'!$A$41,E$6,IF('DNSP Inputs General'!$B56='DNSP Inputs General'!$A$42,E$7,E$8))*'DNSP Inputs General'!$D56 -> 101.8960639 | F21: =IF('DNSP Inputs General'!$B56='DNSP Inputs General'!$A$41,F$6,IF('DNSP Inputs General'!$B56='DNSP Inputs General'!$A$42,F$7,F$8))*'DNSP Inputs General'!$D56 -> 111.9815832 | G21: =IF('DNSP Inputs General'!$B56='DNSP Inputs General'!$A$41,G$6,IF('DNSP Inputs General'!$B56='DNSP Inputs General'!$A$42,G$7,G$8))*'DNSP Inputs General'!$D56 -> 117.3596749 | H21: =IF('DNSP Inputs General'!$B56='DNSP Inputs General'!$A$41,H$6,IF('DNSP Inputs General'!$B56='DNSP Inputs General'!$A$42,H$7,H$8))*'DNSP Inputs General'!$D56 -> 125.4136839 | J21: -0.295064111 | K21: 0.09571383168 | L21: 0.09897849742 | M21: 0.04802657357 | N21: 0.0686267153 | P21: =IF(C21=0,"",(D21/'Charges Summary'!D$4)/C21-1) -> -0.3122576693 | Q21: =IF(D21=0,"",(E21/'Charges Summary'!E$4)/(D21/'Charges Summary'!D$4)-1) -> 0.06898910408 | R21: =IF(E21=0,"",(F21/'Charges Summary'!F$4)/(E21/'Charges Summary'!E$4)-1) -> 0.07217414382 | S21: =IF(F21=0,"",(G21/'Charges Summary'!G$4)/(F21/'Charges Summary'!F$4)-1) -> 0.02246494983 | T21: =IF(G21=0,"",(H21/'Charges Summary'!H$4)/(G21/'Charges Summary'!G$4)-1) -> 0.04256264907
A22: ='DNSP Inputs General'!A57 -> Metal Halide 250 watt | C22: ='DNSP Inputs General'!E57 -> 134.51 | D22: =IF('DNSP Inputs General'!$B57='DNSP Inputs General'!$A$41,D$6,IF('DNSP Inputs General'!$B57='DNSP Inputs General'!$A$42,D$7,D$8))*'DNSP Inputs General'!$D57 -> 95.38329039 | E22: =IF('DNSP Inputs General'!$B57='DNSP Inputs General'!$A$41,E$6,IF('DNSP Inputs General'!$B57='DNSP Inputs General'!$A$42,E$7,E$8))*'DNSP Inputs General'!$D57 -> 104.5027939 | F22: =IF('DNSP Inputs General'!$B57='DNSP Inputs General'!$A$41,F$6,IF('DNSP Inputs General'!$B57='DNSP Inputs General'!$A$42,F$7,F$8))*'DNSP Inputs General'!$D57 -> 107.8233102 | G22: =IF('DNSP Inputs General'!$B57='DNSP Inputs General'!$A$41,G$6,IF('DNSP Inputs General'!$B57='DNSP Inputs General'!$A$42,G$7,G$8))*'DNSP Inputs General'!$D57 -> 120.2577126 | H22: =IF('DNSP Inputs General'!$B57='DNSP Inputs General'!$A$41,H$6,IF('DNSP Inputs General'!$B57='DNSP Inputs General'!$A$42,H$7,H$8))*'DNSP Inputs General'!$D57 -> 128.497878 | J22: -0.2908832771 | K22: 0.09560902615 | L22: 0.03177442633 | M22: 0.115322024 | N22: 0.06852088895 | P22: =IF(C22=0,"",(D22/'Charges Summary'!D$4)/C22-1) -> -0.308178807 | Q22: =IF(D22=0,"",(E22/'Charges Summary'!E$4)/(D22/'Charges Summary'!D$4)-1) -> 0.06888685478 | R22: =IF(E22=0,"",(F22/'Charges Summary'!F$4)/(E22/'Charges Summary'!E$4)-1) -> 0.006609196417 | S22: =IF(F22=0,"",(G22/'Charges Summary'!G$4)/(F22/'Charges Summary'!F$4)-1) -> 0.08811904784 | T22: =IF(G22=0,"",(H22/'Charges Summary'!H$4)/(G22/'Charges Summary'!G$4)-1) -> 0.04245940385
A23: ='DNSP Inputs General'!A58 -> Metal Halide 400 watt | C23: ='DNSP Inputs General'!E58 -> 134.51 | D23: =IF('DNSP Inputs General'!$B58='DNSP Inputs General'!$A$41,D$6,IF('DNSP Inputs General'!$B58='DNSP Inputs General'!$A$42,D$7,D$8))*'DNSP Inputs General'!$D58 -> 95.38329039 | E23: =IF('DNSP Inputs General'!$B58='DNSP Inputs General'!$A$41,E$6,IF('DNSP Inputs General'!$B58='DNSP Inputs General'!$A$42,E$7,E$8))*'DNSP Inputs General'!$D58 -> 104.5027939 | F23: =IF('DNSP Inputs General'!$B58='DNSP Inputs General'!$A$41,F$6,IF('DNSP Inputs General'!$B58='DNSP Inputs General'!$A$42,F$7,F$8))*'DNSP Inputs General'!$D58 -> 107.8233102 | G23: =IF('DNSP Inputs General'!$B58='DNSP Inputs General'!$A$41,G$6,IF('DNSP Inputs General'!$B58='DNSP Inputs General'!$A$42,G$7,G$8))*'DNSP Inputs General'!$D58 -> 120.2577126 | H23: =IF('DNSP Inputs General'!$B58='DNSP Inputs General'!$A$41,H$6,IF('DNSP Inputs General'!$B58='DNSP Inputs General'!$A$42,H$7,H$8))*'DNSP Inputs General'!$D58 -> 128.497878 | J23: -0.2908832771 | K23: 0.09560902615 | L23: 0.03177442633 | M23: 0.115322024 | N23: 0.06852088895 | P23: =IF(C23=0,"",(D23/'Charges Summary'!D$4)/C23-1) -> -0.308178807 | Q23: =IF(D23=0,"",(E23/'Charges Summary'!E$4)/(D23/'Charges Summary'!D$4)-1) -> 0.06888685478 | R23: =IF(E23=0,"",(F23/'Charges Summary'!F$4)/(E23/'Charges Summary'!E$4)-1) -> 0.006609196417 | S23: =IF(F23=0,"",(G23/'Charges Summary'!G$4)/(F23/'Charges Summary'!F$4)-1) -> 0.08811904784 | T23: =IF(G23=0,"",(H23/'Charges Summary'!H$4)/(G23/'Charges Summary'!G$4)-1) -> 0.04245940385
A24: Twin 24w Fluorescent | C24: =C31 -> 29.22 | D24: 42.92070089 | E24: 40.65532533 | F24: 39.07306602 | G24: 37.95440541 | H24: 37.28229163 | J24: =IF(C24=0,"",D24/C24-1) -> 0.4688809338 | K24: =IF(D24=0,"",E24/D24-1) -> -0.0527804884 | L24: =IF(E24=0,"",F24/E24-1) -> -0.03891886965 | M24: =IF(F24=0,"",G24/F24-1) -> -0.0286299677 | N24: =IF(G24=0,"",H24/G24-1) -> -0.01770845235 | P24: =IF(C24=0,"",(D24/'Charges Summary'!D$4)/C24-1) -> 0.4330545696 | Q24: =IF(D24=0,"",(E24/'Charges Summary'!E$4)/(D24/'Charges Summary'!D$4)-1) -> -0.07588340331 | R24: =IF(E24=0,"",(F24/'Charges Summary'!F$4)/(E24/'Charges Summary'!E$4)-1) -> -0.06235987283 | S24: =IF(F24=0,"",(G24/'Charges Summary'!G$4)/(F24/'Charges Summary'!F$4)-1) -> -0.0523219197 | T24: =IF(G24=0,"",(H24/'Charges Summary'!H$4)/(G24/'Charges Summary'!G$4)-1) -> -0.04166678278
A25: 32W Compact Fluorescent | C25: =C31 -> 29.22 | D25: 42.92070089 | E25: 40.65532533 | F25: 39.07306602 | G25: 37.95440541 | H25: 37.28229163 | J25: 0.4688809338 | K25: -0.0527804884 | L25: -0.03891886965 | M25: -0.0286299677 | N25: -0.01770845235 | P25: =IF(C25=0,"",(D25/'Charges Summary'!D$4)/C25-1) -> 0.4330545696 | Q25: =IF(D25=0,"",(E25/'Charges Summary'!E$4)/(D25/'Charges Summary'!D$4)-1) -> -0.07588340331 | R25: =IF(E25=0,"",(F25/'Charges Summary'!F$4)/(E25/'Charges Summary'!E$4)-1) -> -0.06235987283 | S25: =IF(F25=0,"",(G25/'Charges Summary'!G$4)/(F25/'Charges Summary'!F$4)-1) -> -0.0523219197 | T25: =IF(G25=0,"",(H25/'Charges Summary'!H$4)/(G25/'Charges Summary'!G$4)-1) -> -0.04166678278
A26: 42w Compact Fluorescent | C26: =C31 -> 29.22 | D26: 42.92070089 | E26: 40.65532533 | F26: 39.07306602 | G26: 37.95440541 | H26: 37.28229163 | J26: 0.4688809338 | K26: -0.0527804884 | L26: -0.03891886965 | M26: -0.0286299677 | N26: -0.01770845235 | P26: =IF(C26=0,"",(D26/'Charges Summary'!D$4)/C26-1) -> 0.4330545696 | Q26: =IF(D26=0,"",(E26/'Charges Summary'!E$4)/(D26/'Charges Summary'!D$4)-1) -> -0.07588340331 | R26: =IF(E26=0,"",(F26/'Charges Summary'!F$4)/(E26/'Charges Summary'!E$4)-1) -> -0.06235987283 | S26: =IF(F26=0,"",(G26/'Charges Summary'!G$4)/(F26/'Charges Summary'!F$4)-1) -> -0.0523219197 | T26: =IF(G26=0,"",(H26/'Charges Summary'!H$4)/(G26/'Charges Summary'!G$4)-1) -> -0.04166678278
A30: ='DNSP Inputs General'!A$67 -> Energy Efficient Lights
A31: ='DNSP Inputs General'!A68 -> T5 2X14W | C31: ='DNSP Inputs General'!E68 -> 29.22 | D31: ='Charges Summary'!D$89 -> 42.92070089 | E31: ='Charges Summary'!E$89 -> 40.65532533 | F31: ='Charges Summary'!F$89 -> 39.07306602 | G31: ='Charges Summary'!G$89 -> 37.95440541 | H31: ='Charges Summary'!H$89 -> 37.28229163 | J31: =IF(C31=0,"",D31/C31-1) -> 0.4688809338 | K31: =IF(D31=0,"",E31/D31-1) -> -0.0527804884 | L31: =IF(E31=0,"",F31/E31-1) -> -0.03891886965 | M31: =IF(F31=0,"",G31/F31-1) -> -0.0286299677 | N31: =IF(G31=0,"",H31/G31-1) -> -0.01770845235 | P31: =IF(C31=0,"",(D31/'Charges Summary'!D$4)/C31-1) -> 0.4330545696 | Q31: =IF(D31=0,"",(E31/'Charges Summary'!E$4)/(D31/'Charges Summary'!D$4)-1) -> -0.07588340331 | R31: =IF(E31=0,"",(F31/'Charges Summary'!F$4)/(E31/'Charges Summary'!E$4)-1) -> -0.06235987283 | S31: =IF(F31=0,"",(G31/'Charges Summary'!G$4)/(F31/'Charges Summary'!F$4)-1) -> -0.0523219197 | T31: =IF(G31=0,"",(H31/'Charges Summary'!H$4)/(G31/'Charges Summary'!G$4)-1) -> -0.04166678278
D34: 54.12681973 | E34: 58.13167743 | F34: 63.25949116 | G34: 68.22424568 | H34: 73.56006988
D35: 68.88529072 | E35: 75.47856584 | F35: 82.94932088 | G35: 86.93309254 | H35: 92.89902513
D36: 70.65428918 | E36: 77.40947696 | F36: 79.86911869 | G36: 89.07978711 | H36: 95.18361331
D37: 69.82359746 | E37: 74.98986388 | F37: 81.6047436 | G37: 88.00927693 | H37: 94.89249015
D38: 69.82359746 | E38: 74.98986388 | F38: 81.6047436 | G38: 88.00927693 | H38: 94.89249015
D39: 80.10769321 | E39: 86.03488259 | F39: 93.62404692 | G39: 100.9718836 | H39: 108.8689034
D40: 80.10769321 | E40: 86.03488259 | F40: 93.62404692 | G40: 100.9718836 | H40: 108.8689034
D41: 64.29540315 | E41: 70.44262404 | F41: 72.680898 | G41: 81.06260627 | H41: 86.61708811
D42: 89.02440437 | E42: 97.53594097 | F42: 100.6350895 | G42: 112.2405318 | H42: 119.9313528
D43: 89.02440437 | E43: 97.53594097 | F43: 100.6350895 | G43: 112.2405318 | H43: 119.9313528
D44: 118.5377352 | E44: 127.3083736 | F44: 138.5382856 | G44: 149.411098 | H44: 161.096553
D45: 75.7738198 | E45: 83.02642243 | F45: 91.24425297 | G45: 95.6264018 | H45: 102.1889276
D46: 89.02440437 | E46: 97.53594097 | F46: 100.6350895 | G46: 112.2405318 | H46: 119.9313528
D47: 92.99514248 | E47: 101.8960639 | F47: 111.9815832 | G47: 117.3596749 | H47: 125.4136839
D48: 92.99514248 | E48: 101.8960639 | F48: 111.9815832 | G48: 117.3596749 | H48: 125.4136839
D49: 92.99514248 | E49: 101.8960639 | F49: 111.9815832 | G49: 117.3596749 | H49: 125.4136839
D50: 95.38329039 | E50: 104.5027939 | F50: 107.8233102 | G50: 120.2577126 | H50: 128.497878
D51: 95.38329039 | E51: 104.5027939 | F51: 107.8233102 | G51: 120.2577126 | H51: 128.497878
D52: 42.92070089 | E52: 40.65532533 | F52: 39.07306602 | G52: 37.95440541 | H52: 37.28229163
D53: 42.92070089 | E53: 40.65532533 | F53: 39.07306602 | G53: 37.95440541 | H53: 37.28229163
D54: 42.92070089 | E54: 40.65532533 | F54: 39.07306602 | G54: 37.95440541 | H54: 37.28229163
D59: 42.92070089 | E59: 40.65532533 | F59: 39.07306602 | G59: 37.95440541 | H59: 37.28229163

Sheet Charges Summary
A1: ='DNSP Inputs O & M'!$A$3 -> United Energy | D1: ='DNSP Inputs General'!K$2 -> 2016 | E1: ='DNSP Inputs General'!L$2 -> 2017 | F1: ='DNSP Inputs General'!M$2 -> 2018 | G1: ='DNSP Inputs General'!N$2 -> 2019 | H1: ='DNSP Inputs General'!O$2 -> 2020
A2: Nominal $
A4: ='Total RAB'!A20 -> CPI Index | D4: =(1+WACC!E6) -> 1.025 | E4: =D4*(1+WACC!F6) -> 1.050625 | F4: =E4*(1+WACC!G6) -> 1.076890625 | G4: =F4*(1+WACC!H6) -> 1.103812891 | H4: =G4*(1+WACC!I6) -> 1.131408213
A6: ='DNSP Inputs General'!$A$6 -> Poles and Brackets | D6: ='DNSP Inputs General'!F$2 -> 2011 | E6: ='DNSP Inputs General'!G$2 -> 2012 | F6: ='DNSP Inputs General'!H$2 -> 2013 | G6: ='DNSP Inputs General'!I$2 -> 2014 | H6: ='DNSP Inputs General'!J$2 -> 2015
A7: O & M
A8: ='O & M 2016-2020'!A$10 -> Dedicated poles - inspection | D8: ='O & M 2016-2020'!$B$10*D$4 -> 0.6495082659 | E8: ='O & M 2016-2020'!$Q$10*E$4 -> 0.6657459725 | F8: ='O & M 2016-2020'!$AF$10*F$4 -> 0.6823896218 | G8: ='O & M 2016-2020'!$AU$10*G$4 -> 0.6994493624 | H8: ='O & M 2016-2020'!$BJ$10*H$4 -> 0.7169355964
A10: Capital Charge
A11: Depreciation and Return | D11: ='Depn & WACC Post 2004'!H$78 -> 7.52334289 | E11: ='Depn & WACC Post 2004'!H$125 -> 8.218293853 | F11: ='Depn & WACC Post 2004'!H$172 -> 9.001548316 | G11: ='Depn & WACC Post 2004'!H$219 -> 9.862565797 | H11: ='Depn & WACC Post 2004'!H$266 -> 10.81734643
A13: Total Charge | D13: =SUM(D8,D11) -> 8.172851155 | E13: =SUM(E8,E11) -> 8.884039825 | F13: =SUM(F8,F11) -> 9.683937937 | G13: =SUM(G8,G11) -> 10.56201516 | H13: =SUM(H8,H11) -> 11.53428203
A18: ='DNSP Inputs General'!$A$8 -> Existing Lights
A20: ='O & M 2016-2020'!$A$8 -> MV80 | D20: =D$1 -> 2016 | E20: =E$1 -> 2017 | F20: =F$1 -> 2018 | G20: =G$1 -> 2019 | H20: =H$1 -> 2020
A22: O & M Charge
A23: ='O & M 2016-2020'!A$9 -> Bulk change & repairs | D23: ='O & M 2016-2020'!$B$9*D$4 -> 21.69430092 | E23: ='O & M 2016-2020'!$Q$9*E$4 -> 22.87118644 | F23: ='O & M 2016-2020'!$AF$9*F$4 -> 24.94062722 | G23: ='O & M 2016-2020'!$AU$9*G$4 -> 26.6110553 | H23: ='O & M 2016-2020'!$BJ$9*H$4 -> 28.38153991
A24: ='O & M 2016-2020'!A$11 -> Other costs | D24: ='O & M 2016-2020'!$B$11*D$4 -> 1.500142508 | E24: ='O & M 2016-2020'!$Q$11*E$4 -> 1.534108218 | F24: ='O & M 2016-2020'!$AF$11*F$4 -> 1.568849389 | G24: ='O & M 2016-2020'!$AU$11*G$4 -> 1.604368949 | H24: ='O & M 2016-2020'!$BJ$11*H$4 -> 1.640699423
D25: =SUM(D23:D24) -> 23.19444343 | E25: =SUM(E23:E24) -> 24.40529466 | F25: =SUM(F23:F24) -> 26.50947661 | G25: =SUM(G23:G24) -> 28.21542425 | H25: =SUM(H23:H24) -> 30.02223933
A26: Capital Charge
A27: Depreciation and Return | D27: ='Depn & WACC Post 2004'!H$40 -> 22.75952515 | E27: ='Depn & WACC Post 2004'!H$87 -> 24.84234294 | F27: ='Depn & WACC Post 2004'!H$134 -> 27.06607662 | G27: ='Depn & WACC Post 2004'!H$181 -> 29.44680627 | H27: ='Depn & WACC Post 2004'!H$228 -> 32.00354852
A29: Poles & Brackets Charge | D29: =D$13 -> 8.172851155 | E29: =E$13 -> 8.884039825 | F29: =F$13 -> 9.683937937 | G29: =G$13 -> 10.56201516 | H29: =H$13 -> 11.53428203
A31: Total Charge | D31: =SUM(D25,D27,D29) -> 54.12681973 | E31: =SUM(E25,E27,E29) -> 58.13167743 | F31: =SUM(F25,F27,F29) -> 63.25949116 | G31: =SUM(G25,G27,G29) -> 68.22424568 | H31: =SUM(H25,H27,H29) -> 73.56006988
A33: WDV RAB - MV 80 Luminair
A34: RAB WDV | D34: ='Depn & WACC Post 2004'!$I$8 -> 131.6497089 | E34: ='Depn & WACC Post 2004'!I$40 -> 141.1878974 | F34: ='Depn & WACC Post 2004'!I$87 -> 150.9570862 | G34: ='Depn & WACC Post 2004'!I$134 -> 160.9857061 | H34: ='Depn & WACC Post 2004'!I$181 -> 171.2937259
A36: Avoided Costs - MV 80 O & M
A37: Materials & labour - bulk lamp change | D37: ='O & M 2016-2020'!$G$9*D$4 -> -26.5329202 | E37: ='O & M 2016-2020'!$V$9*E$4 -> -28.23661588 | F37: ='O & M 2016-2020'!$AK$9*F$4 -> -30.17411499 | G37: ='O & M 2016-2020'!$AZ$9*G$4 -> -32.39709159 | H37: ='O & M 2016-2020'!$BO$9*H$4 -> -34.97365843
A38: Materials & Labour - repair of faults | D38: ='O & M 2016-2020'!$G$10*D$4 -> -2.044490317 | E38: ='O & M 2016-2020'!$V$10*E$4 -> -2.089320604 | F38: ='O & M 2016-2020'!$AK$10*F$4 -> -2.432722138 | G38: ='O & M 2016-2020'!$AZ$10*G$4 -> -2.545149222 | H38: ='O & M 2016-2020'!$BO$10*H$4 -> -2.609201357
D39: =SUM(D37:D38) -> -28.57741052 | E39: =SUM(E37:E38) -> -30.32593649 | F39: =SUM(F37:F38) -> -32.60683713 | G39: =SUM(G37:G38) -> -34.94224081 | H39: =SUM(H37:H38) -> -37.58285978
A44: ='O & M 2016-2020'!$A$14 -> S-HP 150 | D44: =D$1 -> 2016 | E44: =E$1 -> 2017 | F44: =F$1 -> 2018 | G44: =G$1 -> 2019 | H44: =H$1 -> 2020
A46: O & M Charge
A47: ='O & M 2016-2020'!A$15 -> Patrols and repairs | D47: ='O & M 2016-2020'!$B$15*D$4 -> 36.85574513 | E47: ='O & M 2016-2020'!$Q$15*E$4 -> 40.65792581 | F47: ='O & M 2016-2020'!$AF$15*F$4 -> 45.10968064 | G47: ='O & M 2016-2020'!$AU$15*G$4 -> 45.84127834 | H47: ='O & M 2016-2020'!$BJ$15*H$4 -> 48.28714024
A48: ='O & M 2016-2020'!A$17 -> Other costs | D48: ='O & M 2016-2020'!$B$17*D$4 -> 1.500142508 | E48: ='O & M 2016-2020'!$Q$17*E$4 -> 1.534108218 | F48: ='O & M 2016-2020'!$AF$17*F$4 -> 1.568849389 | G48: ='O & M 2016-2020'!$AU$17*G$4 -> 1.604368949 | H48: ='O & M 2016-2020'!$BJ$17*H$4 -> 1.640699423
D49: =SUM(D47:D48) -> 38.35588764 | E49: =SUM(E47:E48) -> 42.19203403 | F49: =SUM(F47:F48) -> 46.67853003 | G49: =SUM(G47:G48) -> 47.44564729 | H49: =SUM(H47:H48) -> 49.92783966
A50: Capital Charge
A51: Depreciation and Return | D51: ='Depn & WACC Post 2004'!H$41 -> 22.35655193 | E51: ='Depn & WACC Post 2004'!H$88 -> 24.40249199 | F51: ='Depn & WACC Post 2004'!H$135 -> 26.58685291 | G51: ='Depn & WACC Post 2004'!H$182 -> 28.92543009 | H51: ='Depn & WACC Post 2004'!H$229 -> 31.43690344
A53: Poles & Brackets Charge | D53: =D$13 -> 8.172851155 | E53: =E$13 -> 8.884039825 | F53: =F$13 -> 9.683937937 | G53: =G$13 -> 10.56201516 | H53: =H$13 -> 11.53428203
A55: Total Charge | D55: =SUM(D49,D51,D53) -> 68.88529072 | E55: =SUM(E49,E51,E53) -> 75.47856584 | F55: =SUM(F49,F51,F53) -> 82.94932088 | G55: =SUM(G49,G51,G53) -> 86.93309254 | H55: =SUM(H49,H51,H53) -> 92.89902513
A60: ='O & M 2016-2020'!$A$20 -> S-HP 250 | D60: =D$1 -> 2016 | E60: =E$1 -> 2017 | F60: =F$1 -> 2018 | G60: =G$1 -> 2019 | H60: =H$1 -> 2020
A62: O & M Charge
A63: ='O & M 2016-2020'!A$21 -> Patrols and repairs | D63: ='O & M 2016-2020'!$B$21*D$4 -> 37.48759255 | E63: ='O & M 2016-2020'!$Q$21*E$4 -> 41.34762053 | F63: ='O & M 2016-2020'!$AF$21*F$4 -> 40.67715599 | G63: ='O & M 2016-2020'!$AU$21*G$4 -> 46.51670029 | H63: ='O & M 2016-2020'!$BJ$21*H$4 -> 48.97271139
A64: ='O & M 2016-2020'!A$23 -> Other costs | D64: ='O & M 2016-2020'!$B$23*D$4 -> 1.500142508 | E64: ='O & M 2016-2020'!$Q$23*E$4 -> 1.534108218 | F64: ='O & M 2016-2020'!$AF$23*F$4 -> 1.568849389 | G64: ='O & M 2016-2020'!$AU$23*G$4 -> 1.604368949 | H64: ='O & M 2016-2020'!$BJ$23*H$4 -> 1.640699423
D65: =SUM(D63:D64) -> 38.98773506 | E65: =SUM(E63:E64) -> 42.88172874 | F65: =SUM(F63:F64) -> 42.24600538 | G65: =SUM(G63:G64) -> 48.12106924 | H65: =SUM(H63:H64) -> 50.61341081
A66: Capital Charge
A67: Depreciation and Return | D67: ='Depn & WACC Post 2004'!H$42 -> 23.49370297 | E67: ='Depn & WACC Post 2004'!H$89 -> 25.64370839 | F67: ='Depn & WACC Post 2004'!H$136 -> 27.93917537 | G67: ='Depn & WACC Post 2004'!H$183 -> 30.39670271 | H67: ='Depn & WACC Post 2004'!H$230 -> 33.03592047
A69: Poles & Brackets Charge | D69: =D$13 -> 8.172851155 | E69: =E$13 -> 8.884039825 | F69: =F$13 -> 9.683937937 | G69: =G$13 -> 10.56201516 | H69: =H$13 -> 11.53428203
A71: Total Charge | D71: =SUM(D65,D67,D69) -> 70.65428918 | E71: =SUM(E65,E67,E69) -> 77.40947696 | F71: =SUM(F65,F67,F69) -> 79.86911869 | G71: =SUM(G65,G67,G69) -> 89.07978711 | H71: =SUM(H65,H67,H69) -> 95.18361331
A76: ='DNSP Inputs General'!$A$11 -> Energy Efficient Lights
A78: ='O & M 2016-2020'!$A$26 -> T5 (2 X 14W) | D78: =D$1 -> 2016 | E78: =E$1 -> 2017 | F78: =F$1 -> 2018 | G78: =G$1 -> 2019 | H78: =H$1 -> 2020
A80: O & M Charge
A81: ='O & M 2016-2020'!A$27 -> Bulk change & repairs | D81: ='O & M 2016-2020'!$B$27*D$4 -> 33.24770722 | E81: ='O & M 2016-2020'!$Q$27*E$4 -> 30.23717729 | F81: ='O & M 2016-2020'!$AF$27*F$4 -> 27.8202787 | G81: ='O & M 2016-2020'!$AU$27*G$4 -> 25.7880213 | H81: ='O & M 2016-2020'!$BJ$27*H$4 -> 24.10731017
A82: ='O & M 2016-2020'!A$29 -> Other costs | D82: ='O & M 2016-2020'!$B$29*D$4 -> 1.500142508 | E82: ='O & M 2016-2020'!$Q$29*E$4 -> 1.534108218 | F82: ='O & M 2016-2020'!$AF$29*F$4 -> 1.568849389 | G82: ='O & M 2016-2020'!$AU$29*G$4 -> 1.604368949 | H82: ='O & M 2016-2020'!$BJ$29*H$4 -> 1.640699423
D83: =SUM(D81:D82) -> 34.74784973 | E83: =SUM(E81:E82) -> 31.77128551 | F83: =SUM(F81:F82) -> 29.38912809 | G83: =SUM(G81:G82) -> 27.39239025 | H83: =SUM(H81:H82) -> 25.7480096
A84: Capital Charge
A85: Depreciation and Return | D85: ='Depn & WACC Post 2004'!$H$69 -> 0 | E85: ='Depn & WACC Post 2004'!$H$116 -> 0 | F85: ='Depn & WACC Post 2004'!$H$163 -> 0 | G85: ='Depn & WACC Post 2004'!$H$210 -> 0 | H85: ='Depn & WACC Post 2004'!$H$257 -> 0
A87: Poles & Brackets Charge | D87: =D$13 -> 8.172851155 | E87: =E$13 -> 8.884039825 | F87: =F$13 -> 9.683937937 | G87: =G$13 -> 10.56201516 | H87: =H$13 -> 11.53428203
A89: Total Charge | D89: =SUM(D83,D85,D87) -> 42.92070089 | E89: =SUM(E83,E85,E87) -> 40.65532533 | F89: =SUM(F83,F85,F87) -> 39.07306602 | G89: =SUM(G83,G85,G87) -> 37.95440541 | H89: =SUM(H83,H85,H87) -> 37.28229163

Sheet O & M 2016-2020
A1: ='DNSP Inputs O & M'!$A$3 -> United Energy
A3: Public Lighting O & M Costs | B3: Year | C3: 2016 | Q3: Year | R3: =C3+1 -> 2017 | AF3: Year | AG3: =R3+1 -> 2018 | AU3: Year | AV3: =AG3+1 -> 2019 | BJ3: Year | BK3: =AV3+1 -> 2020
A4: ='DNSP Inputs O & M'!C5 -> Real 2015 $
A6: Summary
A8: =$A$69 -> MV80 | D8: Avoided Costs - MV 80 O & M | S8: Avoided Costs - MV 80 O & M | AH8: Avoided Costs - MV 80 O & M | AW8: Avoided Costs - MV 80 O & M | BL8: Avoided Costs - MV 80 O & M
A9: =$A$70 -> Bulk change & repairs | B9: =G90*C40+N90*C41 -> 21.16517163 | D9: Materials & labour - bulk lamp change | G9: =-((G72+G81)*C40+(N72+N81)*C41)*2 -> -25.88577581 | Q9: =V90*R40+AC90*R41 -> 21.76912451 | S9: Materials & labour - bulk lamp change | V9: =-((V72+V81)*R40+(AC72+AC81)*R41)*2 -> -26.8760175 | AF9: =AK90*AG40+AR90*AG41 -> 23.15985174 | AH9: Materials & labour - bulk lamp change | AK9: =-((AK72+AK81)*AG40+(AR72+AR81)*AG41)*2 -> -28.01966541 | AU9: =AZ90*AV40+BG90*AV41 -> 24.10830271 | AW9: Materials & labour - bulk lamp change | AZ9: =-((AZ72+AZ81)*AV40+(BG72+BG81)*AV41)*2 -> -29.35016601 | BJ9: =BO90*BK40+BV90*BK41 -> 25.08514574 | BL9: Materials & labour - bulk lamp change | BO9: =-((BO72+BO81)*BK40+(BV72+BV81)*BK41)*2 -> -30.91161795
A10: =A92 -> Dedicated poles - inspection | B10: =(G93*C40+N93*C41)*C43 -> 0.6336666009 | D10: Materials & Labour - repair of faults | G10: =-((G76+G84+G86)*C40+(N76+N84+N86)*C41)/2 -> -1.9946247 | Q10: =(V93*R40+AC93*R41)*R43 -> 0.6336666009 | S10: Materials & Labour - repair of faults | V10: =-((V76+V84+V86)*R40+(AC76+AC84+AC86)*R41)/2 -> -1.988645429 | AF10: =(AK93*AG40+AR93*AG41)*AG43 -> 0.6336666009 | AH10: Materials & Labour - repair of faults | AK10: =-((AK76+AK84+AK86)*AG40+(AR76+AR84+AR86)*AG41)/2 -> -2.259024344 | AU10: =(AZ93*AV40+BG93*AV41)*AV43 -> 0.6336666009 | AW10: Materials & Labour - repair of faults | AZ10: =-((AZ76+AZ84+AZ86)*AV40+(BG76+BG84+BG86)*AV41)/2 -> -2.305779579 | BJ10: =(BO93*BK40+BV93*BK41)*BK43 -> 0.6336666009 | BL10: Materials & Labour - repair of faults | BO10: =-((BO76+BO84+BO86)*BK40+(BV76+BV84+BV86)*BK41)/2 -> -2.306153807
A11: Other costs | B11: =IF(C51=0,0,C49/C51) -> 1.463553667 | G11: =SUM(G9:G10) -> -27.88040051 | Q11: =IF(R51=0,0,R49/R51) -> 1.460186288 | V11: =SUM(V9:V10) -> -28.86466293 | AF11: =IF(AG51=0,0,AG49/AG51) -> 1.456832619 | AK11: =SUM(AK9:AK10) -> -30.27868975 | AU11: =IF(AV51=0,0,AV49/AV51) -> 1.453479084 | AZ11: =SUM(AZ9:AZ10) -> -31.65594559 | BJ11: =IF(BK51=0,0,BK49/BK51) -> 1.45013922 | BO11: =SUM(BO9:BO10) -> -33.21777176
A14: =$A$110 -> S-HP 150
A15: =$A$111 -> Patrols and repairs | B15: =G127*E40+N127*E41 -> 35.95682451 | Q15: =V127*T40+AC127*T41 -> 38.69879911 | AF15: =AK127*AI40+AR127*AI41 -> 41.88882287 | AU15: =AZ127*AX40+BG127*AX41 -> 41.52993567 | BJ15: =BO127*BM40+BV127*BM41 -> 42.67879594
A16: =$A$10 -> Dedicated poles - inspection | B16: =B10 -> 0.6336666009 | Q16: =Q10 -> 0.6336666009 | AF16: =AF10 -> 0.6336666009 | AU16: =AU10 -> 0.6336666009 | BJ16: =BJ10 -> 0.6336666009
A17: =$A$11 -> Other costs | B17: =B11 -> 1.463553667 | Q17: =Q11 -> 1.460186288 | AF17: =AF11 -> 1.456832619 | AU17: =AU11 -> 1.453479084 | BJ17: =BJ11 -> 1.45013922
A20: =$A$142 -> S-HP 250
A21: =$A$143 -> Patrols and repairs | B21: =G159*G40+N159*G41 -> 36.57326103 | Q21: =V159*V40+AC159*V41 -> 39.35526046 | AF21: =AK159*AK40+AR159*AK41 -> 37.77278309 | AU21: =AZ159*AZ40+BG159*AZ41 -> 42.14183462 | BJ21: =BO159*BO40+BV159*BO41 -> 43.28474094
A22: =$A$10 -> Dedicated poles - inspection | B22: =B10 -> 0.6336666009 | Q22: =Q10 -> 0.6336666009 | AF22: =AF10 -> 0.6336666009 | AU22: =AU10 -> 0.6336666009 | BJ22: =BJ10 -> 0.6336666009
A23: =$A$11 -> Other costs | B23: =B11 -> 1.463553667 | Q23: =Q11 -> 1.460186288 | AF23: =AF11 -> 1.456832619 | AU23: =AU11 -> 1.453479084 | BJ23: =BJ11 -> 1.45013922
A26: =$A$176 -> T5 (2 X 14W)
A27: =$A$177 -> Bulk change & repairs | B27: =$G$197*$I$40+$N$197*$I$41 -> 32.43678753 | Q27: =$V$197*$X$40+$AC$197*$X$41 -> 28.78018064 | AF27: =$AK$197*$AM$40+$AR$197*$AM$41 -> 25.83389441 | AU27: =$AZ$197*$BB$40+$BG$197*$BB$41 -> 23.36267452 | BJ27: =$BO$197*$BQ$40+$BV$197*$BQ$41 -> 21.30734946
A28: =$A$10 -> Dedicated poles - inspection | B28: =B10 -> 0.6336666009 | Q28: =Q10 -> 0.6336666009 | AF28: =AF10 -> 0.6336666009 | AU28: =AU10 -> 0.6336666009 | BJ28: =BJ10 -> 0.6336666009
A29: =$A$11 -> Other costs | B29: =B11 -> 1.463553667 | Q29: =Q11 -> 1.460186288 | AF29: =AF11 -> 1.456832619 | AU29: =AU11 -> 1.453479084 | BJ29: =BJ11 -> 1.45013922
A39: ='DNSP Inputs O & M'!A50 -> Location of selected public lighting assets within distributors' areas (%) | C39: =$A$69 -> MV80 | E39: =$A$110 -> S-HP 150 | G39: =$A$142 -> S-HP 250 | I39: =$A$176 -> T5 (2 X 14W) | R39: =$A$69 -> MV80 | T39: =$A$110 -> S-HP 150 | V39: =$A$142 -> S-HP 250 | X39: =$A$176 -> T5 (2 X 14W) | AG39: =$A$69 -> MV80 | AI39: =$A$110 -> S-HP 150 | AK39: =$A$142 -> S-HP 250 | AM39: =$A$176 -> T5 (2 X 14W) | AV39: =$A$69 -> MV80 | AX39: =$A$110 -> S-HP 150 | AZ39: =$A$142 -> S-HP 250 | BB39: =$A$176 -> T5 (2 X 14W) | BK39: =$A$69 -> MV80 | BM39: =$A$110 -> S-HP 150 | BO39: =$A$142 -> S-HP 250 | BQ39: =$A$176 -> T5 (2 X 14W)
A40: ='DNSP Inputs O & M'!A51 -> Urban | C40: ='DNSP Inputs O & M'!$D$51 -> 0.92 | E40: ='DNSP Inputs O & M'!$D$80 -> 0.92 | G40: ='DNSP Inputs O & M'!$D$109 -> 0.92 | I40: ='DNSP Inputs O & M'!$D$166 -> 0.92 | R40: ='DNSP Inputs O & M'!$E$51 -> 0.92 | T40: ='DNSP Inputs O & M'!$E$80 -> 0.92 | V40: ='DNSP Inputs O & M'!$E$109 -> 0.92 | X40: ='DNSP Inputs O & M'!$E$166 -> 0.92 | AG40: ='DNSP Inputs O & M'!$F$51 -> 0.92 | AI40: ='DNSP Inputs O & M'!$F$80 -> 0.92 | AK40: ='DNSP Inputs O & M'!$F$109 -> 0.92 | AM40: ='DNSP Inputs O & M'!$F$166 -> 0.92 | AV40: ='DNSP Inputs O & M'!$G$51 -> 0.92 | AX40: ='DNSP Inputs O & M'!$G$80 -> 0.92 | AZ40: ='DNSP Inputs O & M'!$G$109 -> 0.92 | BB40: ='DNSP Inputs O & M'!$G$166 -> 0.92 | BK40: ='DNSP Inputs O & M'!$H$51 -> 0.92 | BM40: ='DNSP Inputs O & M'!$H$80 -> 0.92 | BO40: ='DNSP Inputs O & M'!$H$109 -> 0.92 | BQ40: ='DNSP Inputs O & M'!$H$166 -> 0.92
A41: ='DNSP Inputs O & M'!A52 -> Rural | C41: ='DNSP Inputs O & M'!$D$52 -> 0.08 | E41: ='DNSP Inputs O & M'!$D$81 -> 0.08 | G41: ='DNSP Inputs O & M'!$D$110 -> 0.08 | I41: ='DNSP Inputs O & M'!$D$167 -> 0.08 | R41: ='DNSP Inputs O & M'!$E$52 -> 0.08 | T41: ='DNSP Inputs O & M'!$E$81 -> 0.08 | V41: ='DNSP Inputs O & M'!$E$110 -> 0.08 | X41: ='DNSP Inputs O & M'!$E$167 -> 0.08 | AG41: ='DNSP Inputs O & M'!$F$52 -> 0.08 | AI41: ='DNSP Inputs O & M'!$F$81 -> 0.08 | AK41: ='DNSP Inputs O & M'!$F$110 -> 0.08 | AM41: ='DNSP Inputs O & M'!$F$167 -> 0.08 | AV41: ='DNSP Inputs O & M'!$G$52 -> 0.08 | AX41: ='DNSP Inputs O & M'!$G$81 -> 0.08 | AZ41: ='DNSP Inputs O & M'!$G$110 -> 0.08 | BB41: ='DNSP Inputs O & M'!$G$167 -> 0.08 | BK41: ='DNSP Inputs O & M'!$H$52 -> 0.08 | BM41: ='DNSP Inputs O & M'!$H$81 -> 0.08 | BO41: ='DNSP Inputs O & M'!$H$110 -> 0.08 | BQ41: ='DNSP Inputs O & M'!$H$167 -> 0.08
A43: ='DNSP Inputs O & M'!A119 -> Proportion of lights on dedicated poles | C43: ='DNSP Inputs O & M'!$D$119 -> 0.2370560408 | R43: ='DNSP Inputs O & M'!$E$119 -> 0.2370560408 | AG43: ='DNSP Inputs O & M'!$F$119 -> 0.2370560408 | AV43: ='DNSP Inputs O & M'!$G$119 -> 0.2370560408 | BK43: ='DNSP Inputs O & M'!$H$119 -> 0.2370560408
A45: ='DNSP Inputs O & M'!A123 -> Other direct costs
A46: ='DNSP Inputs O & M'!$A$124 -> Call centre | C46: ='DNSP Inputs O & M'!$D$127 -> 27226.21043 | R46: ='DNSP Inputs O & M'!$E$127 -> 27226.21043 | AG46: ='DNSP Inputs O & M'!$F$127 -> 27226.21043 | AV46: ='DNSP Inputs O & M'!$G$127 -> 27226.21043 | BK46: ='DNSP Inputs O & M'!$H$127 -> 27226.21043
A47: ='DNSP Inputs O & M'!$A$129 -> GIS and other | C47: ='DNSP Inputs O & M'!$D$129 -> 113442.5434 | R47: ='DNSP Inputs O & M'!$E$129 -> 113442.5434 | AG47: ='DNSP Inputs O & M'!$F$129 -> 113442.5434 | AV47: ='DNSP Inputs O & M'!$G$129 -> 113442.5434 | BK47: ='DNSP Inputs O & M'!$H$129 -> 113442.5434
A48: ='DNSP Inputs O & M'!A130 -> Complaints handling | C48: ='DNSP Inputs O & M'!$D$130 -> 34032.76303 | R48: ='DNSP Inputs O & M'!$E$130 -> 34032.76303 | AG48: ='DNSP Inputs O & M'!$F$130 -> 34032.76303 | AV48: ='DNSP Inputs O & M'!$G$130 -> 34032.76303 | BK48: ='DNSP Inputs O & M'!$H$130 -> 34032.76303
C49: =SUM(C46:C48) -> 174701.5169 | R49: =SUM(R46:R48) -> 174701.5169 | AG49: =SUM(AG46:AG48) -> 174701.5169 | AV49: =SUM(AV46:AV48) -> 174701.5169 | BK49: =SUM(BK46:BK48) -> 174701.5169
A51: ='DNSP Inputs General'!A73 -> Total Number of Lights | C51: ='DNSP Inputs General'!$K$73 -> 119368.0293 | R51: ='DNSP Inputs General'!$L$73 -> 119643.3074 | AG51: ='DNSP Inputs General'!$M$73 -> 119918.7296 | AV51: ='DNSP Inputs General'!$N$73 -> 120195.4117 | BK51: ='DNSP Inputs General'!$O$73 -> 120472.2378
A57: Mercury Vapour 80 Watt Standard Light Type - Cost build-up
A59: Addiitonal assumptions
A60: Proportion of lamps that will fail before bulk change | D60: ='DNSP Inputs O & M'!$D$27 -> 0.196 | S60: ='DNSP Inputs O & M'!$E$27 -> 0.196 | AH60: ='DNSP Inputs O & M'!$F$27 -> 0.196 | AW60: ='DNSP Inputs O & M'!$G$27 -> 0.196 | BL60: ='DNSP Inputs O & M'!$H$27 -> 0.196
A61: Proportion of lamps that will fail before bulk change (per year) | D61: =D60/'DNSP Inputs O & M'!$D$25 -> 0.049 | S61: =S60/'DNSP Inputs O & M'!$E$25 -> 0.049 | AH61: =AH60/'DNSP Inputs O & M'!$F$25 -> 0.049 | AW61: =AW60/'DNSP Inputs O & M'!$G$25 -> 0.049 | BL61: =BL60/'DNSP Inputs O & M'!$H$25 -> 0.049
A62: Overheads are applied to material and labour components
A63: All costs and charges are exclusive of GST
B65: Urban | I65: Rural | Q65: Urban | X65: Rural | AF65: Urban | AM65: Rural | AU65: Urban | BB65: Rural | BJ65: Urban | BQ65: Rural
B67: Unit rate | C67: Number | D67: Hours | E67: Cost | F67: Annualised | G67: Annualised | I67: Unit rate | J67: Number | K67: Hours | L67: Cost | M67: Annualised | N67: Annualised | Q67: Unit rate | R67: Number | S67: Hours | T67: Cost | U67: Annualised | V67: Annualised | X67: Unit rate | Y67: Number | Z67: Hours | AA67: Cost | AB67: Annualised | AC67: Annualised | AF67: Unit rate | AG67: Number | AH67: Hours | AI67: Cost | AJ67: Annualised | AK67: Annualised | AM67: Unit rate | AN67: Number | AO67: Hours | AP67: Cost | AQ67: Annualised | AR67: Annualised | AU67: Unit rate | AV67: Number | AW67: Hours | AX67: Cost | AY67: Annualised | AZ67: Annualised | BB67: Unit rate | BC67: Number | BD67: Hours | BE67: Cost | BF67: Annualised | BG67: Annualised | BJ67: Unit rate | BK67: Number | BL67: Hours | BM67: Cost | BN67: Annualised | BO67: Annualised | BQ67: Unit rate | BR67: Number | BS67: Hours | BT67: Cost | BU67: Annualised | BV67: Annualised
F68: cost | G68: unit cost | M68: cost | N68: unit cost | U68: cost | V68: unit cost | AB68: cost | AC68: unit cost | AJ68: cost | AK68: unit cost | AQ68: cost | AR68: unit cost | AY68: cost | AZ68: unit cost | BF68: cost | BG68: unit cost | BN68: cost | BO68: unit cost | BU68: cost | BV68: unit cost
A69: MV80
A70: Bulk change & repairs
A71: Materials - bulk lamp change
A72: Lamp | B72: ='DNSP Inputs O & M'!$D$28 -> 4.93277626 | C72: ='DNSP Inputs O & M'!$D$34 -> 58.07369293 | E72: =B72*C72 -> 286.4645338 | F72: =E72/'DNSP Inputs O & M'!$D$25*0.8 -> 57.29290676 | G72: =(F72+F73+F74)/C72 -> 3.691756675 | I72: ='DNSP Inputs O & M'!$D$28*(1+'DNSP Inputs O & M'!$D$11) -> 4.93277626 | J72: ='DNSP Inputs O & M'!$D$35 -> 49.75879284 | L72: =I72*J72 -> 245.448992 | M72: =L72/'DNSP Inputs O & M'!$D$25*0.8 -> 49.08979841 | N72: =(M72+M73+M74)/J72 -> 3.691756675 | Q72: ='DNSP Inputs O & M'!$E$28 -> 4.93277626 | R72: ='DNSP Inputs O & M'!$E$34 -> 54.83292406 | T72: =Q72*R72 -> 270.4785461 | U72: =T72/'DNSP Inputs O & M'!$E$25*0.8 -> 54.09570921 | V72: =(U72+U73+U74)/R72 -> 3.691756675 | X72: ='DNSP Inputs O & M'!$E$28*(1+'DNSP Inputs O & M'!$E$11) -> 4.93277626 | Y72: ='DNSP Inputs O & M'!$E$35 -> 49.83292406 | AA72: =X72*Y72 -> 245.8146648 | AB72: =AA72/'DNSP Inputs O & M'!$E$25*0.8 -> 49.16293295 | AC72: =(AB72+AB73+AB74)/Y72 -> 3.691756675 | AF72: ='DNSP Inputs O & M'!$F$28 -> 4.93277626 | AG72: ='DNSP Inputs O & M'!$F$34 -> 51.82063818 | AI72: =AF72*AG72 -> 255.6196138 | AJ72: =AI72/'DNSP Inputs O & M'!$F$25*0.8 -> 51.12392276 | AK72: =(AJ72+AJ73+AJ74)/AG72 -> 3.691756675 | AM72: ='DNSP Inputs O & M'!$F$28*(1+'DNSP Inputs O & M'!$F$11) -> 4.93277626 | AN72: ='DNSP Inputs O & M'!$F$35 -> 46.82063818 | AP72: =AM72*AN72 -> 230.9557325 | AQ72: =AP72/'DNSP Inputs O & M'!$F$25*0.8 -> 46.1911465 | AR72: =(AQ72+AQ73+AQ74)/AN72 -> 3.691756675 | AU72: ='DNSP Inputs O & M'!$G$28 -> 4.93277626 | AV72: ='DNSP Inputs O & M'!$G$34 -> 48.71124273 | AX72: =AU72*AV72 -> 240.2816617 | AY72: =AX72/'DNSP Inputs O & M'!$G$25*0.8 -> 48.05633235 | AZ72: =(AY72+AY73+AY74)/AV72 -> 3.691756675 | BB72: ='DNSP Inputs O & M'!$G$28*(1+'DNSP Inputs O & M'!$G$11) -> 4.93277626 | BC72: ='DNSP Inputs O & M'!$G$35 -> 43.71124273 | BE72: =BB72*BC72 -> 215.6177804 | BF72: =BE72/'DNSP Inputs O & M'!$G$25*0.8 -> 43.12355609 | BG72: =(BF72+BF73+BF74)/BC72 -> 3.691756675 | BJ72: ='DNSP Inputs O & M'!$H$28 -> 4.93277626 | BK72: ='DNSP Inputs O & M'!$H$34 -> 45.51107921 | BM72: =BJ72*BK72 -> 224.4959711 | BN72: =BM72/'DNSP Inputs O & M'!$H$25*0.8 -> 44.89919422 | BO72: =(BN72+BN73+BN74)/BK72 -> 3.691756675 | BQ72: ='DNSP Inputs O & M'!$H$28*(1+'DNSP Inputs O & M'!$H$11) -> 4.93277626 | BR72: ='DNSP Inputs O & M'!$H$35 -> 40.51107921 | BT72: =BQ72*BR72 -> 199.8320898 | BU72: =BT72/'DNSP Inputs O & M'!$H$25*0.8 -> 39.96641796 | BV72: =(BU72+BU73+BU74)/BR72 -> 3.691756675
A73: PE cell | B73: ='DNSP Inputs O & M'!$D$29 -> 19.9146 | C73: =C72*'DNSP Inputs O & M'!$D$25/'DNSP Inputs O & M'!$D$26 -> 29.03684647 | E73: =B73*C73 -> 578.2571826 | F73: =E73/'DNSP Inputs O & M'!$D$25 -> 144.5642957 | I73: ='DNSP Inputs O & M'!$D$29*(1+'DNSP Inputs O & M'!$D$11) -> 19.9146 | J73: =J72*'DNSP Inputs O & M'!$D$25/'DNSP Inputs O & M'!$D$26 -> 24.87939642 | L73: =I73*J73 -> 495.4632279 | M73: =L73/'DNSP Inputs O & M'!$D$25 -> 123.865807 | Q73: ='DNSP Inputs O & M'!$E$29 -> 19.9146 | R73: =R72*'DNSP Inputs O & M'!$E$25/'DNSP Inputs O & M'!$E$26 -> 27.41646203 | T73: =Q73*R73 -> 545.9878747 | U73: =T73/'DNSP Inputs O & M'!$E$25 -> 136.4969687 | X73: ='DNSP Inputs O & M'!$E$29*(1+'DNSP Inputs O & M'!$E$11) -> 19.9146 | Y73: =Y72*'DNSP Inputs O & M'!$E$25/'DNSP Inputs O & M'!$E$26 -> 24.91646203 | AA73: =X73*Y73 -> 496.2013747 | AB73: =AA73/'DNSP Inputs O & M'!$E$25 -> 124.0503437 | AF73: ='DNSP Inputs O & M'!$F$29 -> 19.9146 | AG73: =AG72*'DNSP Inputs O & M'!$F$25/'DNSP Inputs O & M'!$F$26 -> 25.91031909 | AI73: =AF73*AG73 -> 515.9936406 | AJ73: =AI73/'DNSP Inputs O & M'!$F$25 -> 128.9984101 | AM73: ='DNSP Inputs O & M'!$F$29*(1+'DNSP Inputs O & M'!$F$11) -> 19.9146 | AN73: =AN72*'DNSP Inputs O & M'!$F$25/'DNSP Inputs O & M'!$F$26 -> 23.41031909 | AP73: =AM73*AN73 -> 466.2071406 | AQ73: =AP73/'DNSP Inputs O & M'!$F$25 -> 116.5517851 | AU73: ='DNSP Inputs O & M'!$G$29 -> 19.9146 | AV73: =AV72*'DNSP Inputs O & M'!$G$25/'DNSP Inputs O & M'!$G$26 -> 24.35562137 | AX73: =AU73*AV73 -> 485.0324572 | AY73: =AX73/'DNSP Inputs O & M'!$G$25 -> 121.2581143 | BB73: ='DNSP Inputs O & M'!$G$29*(1+'DNSP Inputs O & M'!$G$11) -> 19.9146 | BC73: =BC72*'DNSP Inputs O & M'!$G$25/'DNSP Inputs O & M'!$G$26 -> 21.85562137 | BE73: =BB73*BC73 -> 435.2459572 | BF73: =BE73/'DNSP Inputs O & M'!$G$25 -> 108.8114893 | BJ73: ='DNSP Inputs O & M'!$H$29 -> 19.9146 | BK73: =BK72*'DNSP Inputs O & M'!$H$25/'DNSP Inputs O & M'!$H$26 -> 22.75553961 | BM73: =BJ73*BK73 -> 453.167469 | BN73: =BM73/'DNSP Inputs O & M'!$H$25 -> 113.2918673 | BQ73: ='DNSP Inputs O & M'!$H$29*(1+'DNSP Inputs O & M'!$H$11) -> 19.9146 | BR73: =BR72*'DNSP Inputs O & M'!$H$25/'DNSP Inputs O & M'!$H$26 -> 20.25553961 | BT73: =BQ73*BR73 -> 403.380969 | BU73: =BT73/'DNSP Inputs O & M'!$H$25 -> 100.8452423
A74: Miscellaneous | B74: ='DNSP Inputs O & M'!$D$31 -> 1.079382114 | C74: ='DNSP Inputs O & M'!$D$34 -> 58.07369293 | E74: =B74*C74 -> 62.68370543 | F74: =E74/'DNSP Inputs O & M'!$D$25*0.8 -> 12.53674109 | I74: ='DNSP Inputs O & M'!$D$31*(1+'DNSP Inputs O & M'!$D$11) -> 1.079382114 | J74: ='DNSP Inputs O & M'!$D$35 -> 49.75879284 | L74: =I74*J74 -> 53.70875099 | M74: =L74/'DNSP Inputs O & M'!$D$25*0.8 -> 10.7417502 | Q74: ='DNSP Inputs O & M'!$E$31 -> 1.079382114 | R74: ='DNSP Inputs O & M'!$E$34 -> 54.83292406 | T74: =Q74*R74 -> 59.18567748 | U74: =T74/'DNSP Inputs O & M'!$E$25*0.8 -> 11.8371355 | X74: ='DNSP Inputs O & M'!$E$31*(1+'DNSP Inputs O & M'!$E$11) -> 1.079382114 | Y74: ='DNSP Inputs O & M'!$E$35 -> 49.83292406 | AA74: =X74*Y74 -> 53.78876691 | AB74: =AA74/'DNSP Inputs O & M'!$E$25*0.8 -> 10.75775338 | AF74: ='DNSP Inputs O & M'!$F$31 -> 1.079382114 | AG74: ='DNSP Inputs O & M'!$F$34 -> 51.82063818 | AI74: =AF74*AG74 -> 55.93426998 | AJ74: =AI74/'DNSP Inputs O & M'!$F$25*0.8 -> 11.186854 | AM74: ='DNSP Inputs O & M'!$F$31*(1+'DNSP Inputs O & M'!$F$11) -> 1.079382114 | AN74: ='DNSP Inputs O & M'!$F$35 -> 46.82063818 | AP74: =AM74*AN74 -> 50.53735941 | AQ74: =AP74/'DNSP Inputs O & M'!$F$25*0.8 -> 10.10747188 | AU74: ='DNSP Inputs O & M'!$G$31 -> 1.079382114 | AV74: ='DNSP Inputs O & M'!$G$34 -> 48.71124273 | AX74: =AU74*AV74 -> 52.57804415 | AY74: =AX74/'DNSP Inputs O & M'!$G$25*0.8 -> 10.51560883 | BB74: ='DNSP Inputs O & M'!$G$31*(1+'DNSP Inputs O & M'!$G$11) -> 1.079382114 | BC74: ='DNSP Inputs O & M'!$G$35 -> 43.71124273 | BE74: =BB74*BC74 -> 47.18113358 | BF74: =BE74/'DNSP Inputs O & M'!$G$25*0.8 -> 9.436226715 | BJ74: ='DNSP Inputs O & M'!$H$31 -> 1.079382114 | BK74: ='DNSP Inputs O & M'!$H$34 -> 45.51107921 | BM74: =BJ74*BK74 -> 49.12384488 | BN74: =BM74/'DNSP Inputs O & M'!$H$25*0.8 -> 9.824768976 | BQ74: ='DNSP Inputs O & M'!$H$31*(1+'DNSP Inputs O & M'!$H$11) -> 1.079382114 | BR74: ='DNSP Inputs O & M'!$H$35 -> 40.51107921 | BT74: =BQ74*BR74 -> 43.72693431 | BU74: =BT74/'DNSP Inputs O & M'!$H$25*0.8 -> 8.745386862
A75: Materials - repair of faults
A76: Lamp | B76: ='DNSP Inputs O & M'!$D$28 -> 4.93277626 | C76: ='DNSP Inputs O & M'!$D$36*'DNSP Inputs O & M'!$D$38 -> 26.00398432 | E76: =B76*C76 -> 128.2718365 | F76: =(E76+E77+E78+E79)/'DNSP Inputs O & M'!$D$36 -> 39.66675299 | G76: =F76*D61 -> 1.943670897 | I76: ='DNSP Inputs O & M'!$D$28*(1+'DNSP Inputs O & M'!$D$11) -> 4.93277626 | J76: ='DNSP Inputs O & M'!$D$37*'DNSP Inputs O & M'!$D$38 -> 20.03801666 | L76: =I76*J76 -> 98.84305286 | M76: =(L76+L77+L78+L79)/'DNSP Inputs O & M'!$D$37 -> 39.66675299 | N76: =M76*D61 -> 1.943670897 | Q76: ='DNSP Inputs O & M'!$E$28 -> 4.93277626 | R76: ='DNSP Inputs O & M'!$E$36*'DNSP Inputs O & M'!$E$38 -> 26.21005507 | T76: =Q76*R76 -> 129.2883374 | U76: =(T76+T77+T78+T79)/'DNSP Inputs O & M'!$E$36 -> 39.66675299 | V76: =U76*S61 -> 1.943670897 | X76: ='DNSP Inputs O & M'!$E$28*(1+'DNSP Inputs O & M'!$E$11) -> 4.93277626 | Y76: ='DNSP Inputs O & M'!$E$37*'DNSP Inputs O & M'!$E$38 -> 19.8 | AA76: =X76*Y76 -> 97.66896995 | AB76: =(AA76+AA77+AA78+AA79)/'DNSP Inputs O & M'!$E$37 -> 39.66675299 | AC76: =AB76*S61 -> 1.943670897 | AF76: ='DNSP Inputs O & M'!$F$28 -> 4.93277626 | AG76: ='DNSP Inputs O & M'!$F$36*'DNSP Inputs O & M'!$F$38 -> 20.21574035 | AI76: =AF76*AG76 -> 99.7197241 | AJ76: =(AI76+AI77+AI78+AI79)/'DNSP Inputs O & M'!$F$36 -> 39.66675299 | AK76: =AJ76*AH61 -> 1.943670897 | AM76: ='DNSP Inputs O & M'!$F$28*(1+'DNSP Inputs O & M'!$F$11) -> 4.93277626 | AN76: ='DNSP Inputs O & M'!$F$37*'DNSP Inputs O & M'!$F$38 -> 19.8 | AP76: =AM76*AN76 -> 97.66896995 | AQ76: =(AP76+AP77+AP78+AP79)/'DNSP Inputs O & M'!$F$37 -> 39.66675299 | AR76: =AQ76*AH61 -> 1.943670897 | AU76: ='DNSP Inputs O & M'!$G$28 -> 4.93277626 | AV76: ='DNSP Inputs O & M'!$G$36*'DNSP Inputs O & M'!$G$38 -> 19.77144185 | AX76: =AU76*AV76 -> 97.52809897 | AY76: =(AX76+AX77+AX78+AX79)/'DNSP Inputs O & M'!$G$36 -> 39.66675299 | AZ76: =AY76*AW61 -> 1.943670897 | BB76: ='DNSP Inputs O & M'!$G$28*(1+'DNSP Inputs O & M'!$G$11) -> 4.93277626 | BC76: ='DNSP Inputs O & M'!$G$37*'DNSP Inputs O & M'!$G$38 -> 16.60595722 | BE76: =BB76*BC76 -> 81.91347154 | BF76: =(BE76+BE77+BE78+BE79)/'DNSP Inputs O & M'!$G$37 -> 39.66675299 | BG76: =BF76*AW61 -> 1.943670897 | BJ76: ='DNSP Inputs O & M'!$H$28 -> 4.93277626 | BK76: ='DNSP Inputs O & M'!$H$36*'DNSP Inputs O & M'!$H$38 -> 19.76533961 | BM76: =BJ76*BK76 -> 97.497998 | BN76: =(BM76+BM77+BM78+BM79)/'DNSP Inputs O & M'!$H$36 -> 39.66675299 | BO76: =BN76*BL61 -> 1.943670897 | BQ76: ='DNSP Inputs O & M'!$H$28*(1+'DNSP Inputs O & M'!$H$11) -> 4.93277626 | BR76: ='DNSP Inputs O & M'!$H$37*'DNSP Inputs O & M'!$H$38 -> 16.6058204 | BT76: =BQ76*BR76 -> 81.91279663 | BU76: =(BT76+BT77+BT78+BT79)/'DNSP Inputs O & M'!$H$37 -> 39.66675299 | BV76: =BU76*BL61 -> 1.943670897
A77: PE cell | B77: ='DNSP Inputs O & M'!$D$29 -> 19.9146 | C77: ='DNSP Inputs O & M'!$D$36*'DNSP Inputs O & M'!$D$39 -> 21.66998693 | E77: =B77*C77 -> 431.5491218 | I77: ='DNSP Inputs O & M'!$D$29*(1+'DNSP Inputs O & M'!$D$11) -> 19.9146 | J77: ='DNSP Inputs O & M'!$D$37*'DNSP Inputs O & M'!$D$39 -> 16.69834721 | L77: =I77*J77 -> 332.5409054 | Q77: ='DNSP Inputs O & M'!$E$29 -> 19.9146 | R77: ='DNSP Inputs O & M'!$E$36*'DNSP Inputs O & M'!$E$39 -> 21.84171256 | T77: =Q77*R77 -> 434.9689689 | X77: ='DNSP Inputs O & M'!$E$29*(1+'DNSP Inputs O & M'!$E$11) -> 19.9146 | Y77: ='DNSP Inputs O & M'!$E$37*'DNSP Inputs O & M'!$E$39 -> 16.5 | AA77: =X77*Y77 -> 328.5909 | AF77: ='DNSP Inputs O & M'!$F$29 -> 19.9146 | AG77: ='DNSP Inputs O & M'!$F$36*'DNSP Inputs O & M'!$F$39 -> 16.8464503 | AI77: =AF77*AG77 -> 335.490319 | AM77: ='DNSP Inputs O & M'!$F$29*(1+'DNSP Inputs O & M'!$F$11) -> 19.9146 | AN77: ='DNSP Inputs O & M'!$F$37*'DNSP Inputs O & M'!$F$39 -> 16.5 | AP77: =AM77*AN77 -> 328.5909 | AU77: ='DNSP Inputs O & M'!$G$29 -> 19.9146 | AV77: ='DNSP Inputs O & M'!$G$36*'DNSP Inputs O & M'!$G$39 -> 16.47620154 | AX77: =AU77*AV77 -> 328.1169632 | BB77: ='DNSP Inputs O & M'!$G$29*(1+'DNSP Inputs O & M'!$G$11) -> 19.9146 | BC77: ='DNSP Inputs O & M'!$G$37*'DNSP Inputs O & M'!$G$39 -> 13.83829768 | BE77: =BB77*BC77 -> 275.584163 | BJ77: ='DNSP Inputs O & M'!$H$29 -> 19.9146 | BK77: ='DNSP Inputs O & M'!$H$36*'DNSP Inputs O & M'!$H$39 -> 16.47111634 | BM77: =BJ77*BK77 -> 328.0156935 | BQ77: ='DNSP Inputs O & M'!$H$29*(1+'DNSP Inputs O & M'!$H$11) -> 19.9146 | BR77: ='DNSP Inputs O & M'!$H$37*'DNSP Inputs O & M'!$H$39 -> 13.83818366 | BT77: =BQ77*BR77 -> 275.5818924
A78: Luminaire | B78: ='DNSP Inputs O & M'!$D$30 -> 171.1360341 | C78: ='DNSP Inputs O & M'!$D$36*'DNSP Inputs O & M'!$D$40 -> 6.50099608 | E78: =B78*C78 -> 1112.554687 | I78: ='DNSP Inputs O & M'!$D$30*(1+'DNSP Inputs O & M'!$D$11) -> 171.1360341 | J78: ='DNSP Inputs O & M'!$D$37*'DNSP Inputs O & M'!$D$40 -> 5.009504164 | L78: =I78*J78 -> 857.3066756 | Q78: ='DNSP Inputs O & M'!$E$30 -> 171.1360341 | R78: ='DNSP Inputs O & M'!$E$36*'DNSP Inputs O & M'!$E$40 -> 6.552513767 | T78: =Q78*R78 -> 1121.37122 | X78: ='DNSP Inputs O & M'!$E$30*(1+'DNSP Inputs O & M'!$E$11) -> 171.1360341 | Y78: ='DNSP Inputs O & M'!$E$37*'DNSP Inputs O & M'!$E$40 -> 4.95 | AA78: =X78*Y78 -> 847.123369 | AF78: ='DNSP Inputs O & M'!$F$30 -> 171.1360341 | AG78: ='DNSP Inputs O & M'!$F$36*'DNSP Inputs O & M'!$F$40 -> 5.053935089 | AI78: =AF78*AG78 -> 864.9104079 | AM78: ='DNSP Inputs O & M'!$F$30*(1+'DNSP Inputs O & M'!$F$11) -> 171.1360341 | AN78: ='DNSP Inputs O & M'!$F$37*'DNSP Inputs O & M'!$F$40 -> 4.95 | AP78: =AM78*AN78 -> 847.123369 | AU78: ='DNSP Inputs O & M'!$G$30 -> 171.1360341 | AV78: ='DNSP Inputs O & M'!$G$36*'DNSP Inputs O & M'!$G$40 -> 4.942860462 | AX78: =AU78*AV78 -> 845.9015367 | BB78: ='DNSP Inputs O & M'!$G$30*(1+'DNSP Inputs O & M'!$G$11) -> 171.1360341 | BC78: ='DNSP Inputs O & M'!$G$37*'DNSP Inputs O & M'!$G$40 -> 4.151489305 | BE78: =BB78*BC78 -> 710.4694154 | BJ78: ='DNSP Inputs O & M'!$H$30 -> 171.1360341 | BK78: ='DNSP Inputs O & M'!$H$36*'DNSP Inputs O & M'!$H$40 -> 4.941334903 | BM78: =BJ78*BK78 -> 845.6404586 | BQ78: ='DNSP Inputs O & M'!$H$30*(1+'DNSP Inputs O & M'!$H$11) -> 171.1360341 | BR78: ='DNSP Inputs O & M'!$H$37*'DNSP Inputs O & M'!$H$40 -> 4.151455099 | BT78: =BQ78*BR78 -> 710.4635616
A79: Miscellaneous | B79: ='DNSP Inputs O & M'!$D$32 -> 10.79382114 | C79: ='DNSP Inputs O & M'!$D$36*'DNSP Inputs O & M'!$D$41 -> 4.333997387 | E79: =B79*C79 -> 46.7803926 | I79: ='DNSP Inputs O & M'!$D$32*(1+'DNSP Inputs O & M'!$D$11) -> 10.79382114 | J79: ='DNSP Inputs O & M'!$D$37*'DNSP Inputs O & M'!$D$41 -> 3.339669443 | L79: =I79*J79 -> 36.04779462 | Q79: ='DNSP Inputs O & M'!$E$32 -> 10.79382114 | R79: ='DNSP Inputs O & M'!$E$36*'DNSP Inputs O & M'!$E$41 -> 4.368342511 | T79: =Q79*R79 -> 47.15110774 | X79: ='DNSP Inputs O & M'!$E$32*(1+'DNSP Inputs O & M'!$E$11) -> 10.79382114 | Y79: ='DNSP Inputs O & M'!$E$37*'DNSP Inputs O & M'!$E$41 -> 3.3 | AA79: =X79*Y79 -> 35.61960975 | AF79: ='DNSP Inputs O & M'!$F$32 -> 10.79382114 | AG79: ='DNSP Inputs O & M'!$F$36*'DNSP Inputs O & M'!$F$41 -> 3.369290059 | AI79: =AF79*AG79 -> 36.36751426 | AM79: ='DNSP Inputs O & M'!$F$32*(1+'DNSP Inputs O & M'!$F$11) -> 10.79382114 | AN79: ='DNSP Inputs O & M'!$F$37*'DNSP Inputs O & M'!$F$41 -> 3.3 | AP79: =AM79*AN79 -> 35.61960975 | AU79: ='DNSP Inputs O & M'!$G$32 -> 10.79382114 | AV79: ='DNSP Inputs O & M'!$G$36*'DNSP Inputs O & M'!$G$41 -> 3.295240308 | AX79: =AU79*AV79 -> 35.56823449 | BB79: ='DNSP Inputs O & M'!$G$32*(1+'DNSP Inputs O & M'!$G$11) -> 10.79382114 | BC79: ='DNSP Inputs O & M'!$G$37*'DNSP Inputs O & M'!$G$41 -> 2.767659536 | BE79: =BB79*BC79 -> 29.87362201 | BJ79: ='DNSP Inputs O & M'!$H$32 -> 10.79382114 | BK79: ='DNSP Inputs O & M'!$H$36*'DNSP Inputs O & M'!$H$41 -> 3.294223268 | BM79: =BJ79*BK79 -> 35.55725675 | BQ79: ='DNSP Inputs O & M'!$H$32*(1+'DNSP Inputs O & M'!$H$11) -> 10.79382114 | BR79: ='DNSP Inputs O & M'!$H$37*'DNSP Inputs O & M'!$H$41 -> 2.767636733 | BT79: =BQ79*BR79 -> 29.87337587
A80: Labour - bulk lamp change
A81: Crew costs | B81: ='DNSP Inputs O & M'!$D$12 -> 90.24 | C81: ='DNSP Inputs O & M'!$D$33 -> 2 | D81: ='DNSP Inputs O & M'!$D$17 -> 8 | E81: =B81*C81*D81 -> 1443.84 | F81: =E81/'DNSP Inputs O & M'!$D$25*(C72+C73)/C72*0.8 -> 433.152 | G81: =(F81+F82)/C72 -> 9.129090527 | I81: ='DNSP Inputs O & M'!$D$12 -> 90.24 | J81: ='DNSP Inputs O & M'!$D$33 -> 2 | K81: ='DNSP Inputs O & M'!$D$17 -> 8 | L81: =I81*J81*K81 -> 1443.84 | M81: =L81/'DNSP Inputs O & M'!$D$25*(J72+J73)/J72*0.8 -> 433.152 | N81: =(M81+M82)/J72 -> 10.65459931 | Q81: ='DNSP Inputs O & M'!$E$12 -> 90.24 | R81: ='DNSP Inputs O & M'!$E$33 -> 2 | S81: ='DNSP Inputs O & M'!$E$17 -> 8 | T81: =Q81*R81*S81 -> 1443.84 | U81: =T81/'DNSP Inputs O & M'!$E$25*(R72+R73)/R72*0.8 -> 433.152 | V81: =(U81+U82)/R72 -> 9.668643595 | X81: ='DNSP Inputs O & M'!$E$12 -> 90.24 | Y81: ='DNSP Inputs O & M'!$E$33 -> 2 | Z81: ='DNSP Inputs O & M'!$E$17 -> 8 | AA81: =X81*Y81*Z81 -> 1443.84 | AB81: =AA81/'DNSP Inputs O & M'!$E$25*(Y72+Y73)/Y72*0.8 -> 433.152 | AC81: =(AB81+AB82)/Y72 -> 10.63874958 | AF81: ='DNSP Inputs O & M'!$F$12 -> 90.24 | AG81: ='DNSP Inputs O & M'!$F$33 -> 2 | AH81: ='DNSP Inputs O & M'!$F$17 -> 8 | AI81: =AF81*AG81*AH81 -> 1443.84 | AJ81: =AI81/'DNSP Inputs O & M'!$F$25*(AG72+AG73)/AG72*0.8 -> 433.152 | AK81: =(AJ81+AJ82)/AG72 -> 10.23067292 | AM81: ='DNSP Inputs O & M'!$F$12 -> 90.24 | AN81: ='DNSP Inputs O & M'!$F$33 -> 2 | AO81: ='DNSP Inputs O & M'!$F$17 -> 8 | AP81: =AM81*AN81*AO81 -> 1443.84 | AQ81: =AP81/'DNSP Inputs O & M'!$F$25*(AN72+AN73)/AN72*0.8 -> 433.152 | AR81: =(AQ81+AQ82)/AN72 -> 11.32321174 | AU81: ='DNSP Inputs O & M'!$G$12 -> 90.24 | AV81: ='DNSP Inputs O & M'!$G$33 -> 2 | AW81: ='DNSP Inputs O & M'!$G$17 -> 8 | AX81: =AU81*AV81*AW81 -> 1443.84 | AY81: =AX81/'DNSP Inputs O & M'!$G$25*(AV72+AV73)/AV72*0.8 -> 433.152 | AZ81: =(AY81+AY82)/AV72 -> 10.88372972 | BB81: ='DNSP Inputs O & M'!$G$12 -> 90.24 | BC81: ='DNSP Inputs O & M'!$G$33 -> 2 | BD81: ='DNSP Inputs O & M'!$G$17 -> 8 | BE81: =BB81*BC81*BD81 -> 1443.84 | BF81: =BE81/'DNSP Inputs O & M'!$G$25*(BC72+BC73)/BC72*0.8 -> 433.152 | BG81: =(BF81+BF82)/BC72 -> 12.12868742 | BJ81: ='DNSP Inputs O & M'!$H$12 -> 90.24 | BK81: ='DNSP Inputs O & M'!$H$33 -> 2 | BL81: ='DNSP Inputs O & M'!$H$17 -> 8 | BM81: =BJ81*BK81*BL81 -> 1443.84 | BN81: =BM81/'DNSP Inputs O & M'!$H$25*(BK72+BK73)/BK72*0.8 -> 433.152 | BO81: =(BN81+BN82)/BK72 -> 11.6490316 | BQ81: ='DNSP Inputs O & M'!$H$12 -> 90.24 | BR81: ='DNSP Inputs O & M'!$H$33 -> 2 | BS81: ='DNSP Inputs O & M'!$H$17 -> 8 | BT81: =BQ81*BR81*BS81 -> 1443.84 | BU81: =BT81/'DNSP Inputs O & M'!$H$25*(BR72+BR73)/BR72*0.8 -> 433.152 | BV81: =(BU81+BU82)/BR72 -> 13.08679034
A82: Elevated platform costs | B82: ='DNSP Inputs O & M'!$D$14 -> 40.42 | C82: 1 | D82: ='DNSP Inputs O & M'!$D$17 -> 8 | E82: =B82*C82*D82 -> 323.36 | F82: =E82/'DNSP Inputs O & M'!$D$25*(C72+C73)/C72*0.8 -> 97.008 | I82: ='DNSP Inputs O & M'!$D$15 -> 40.42 | J82: 1 | K82: ='DNSP Inputs O & M'!$D$17 -> 8 | L82: =I82*J82*K82 -> 323.36 | M82: =L82/'DNSP Inputs O & M'!$D$25*(J72+J73)/J72*0.8 -> 97.008 | Q82: ='DNSP Inputs O & M'!$E$14 -> 40.42 | R82: 1 | S82: ='DNSP Inputs O & M'!$E$17 -> 8 | T82: =Q82*R82*S82 -> 323.36 | U82: =T82/'DNSP Inputs O & M'!$E$25*(R72+R73)/R72*0.8 -> 97.008 | X82: ='DNSP Inputs O & M'!$E$15 -> 40.42 | Y82: 1 | Z82: ='DNSP Inputs O & M'!$E$17 -> 8 | AA82: =X82*Y82*Z82 -> 323.36 | AB82: =AA82/'DNSP Inputs O & M'!$E$25*(Y72+Y73)/Y72*0.8 -> 97.008 | AF82: ='DNSP Inputs O & M'!$F$14 -> 40.42 | AG82: 1 | AH82: ='DNSP Inputs O & M'!$F$17 -> 8 | AI82: =AF82*AG82*AH82 -> 323.36 | AJ82: =AI82/'DNSP Inputs O & M'!$F$25*(AG72+AG73)/AG72*0.8 -> 97.008 | AM82: ='DNSP Inputs O & M'!$F$15 -> 40.42 | AN82: 1 | AO82: ='DNSP Inputs O & M'!$F$17 -> 8 | AP82: =AM82*AN82*AO82 -> 323.36 | AQ82: =AP82/'DNSP Inputs O & M'!$F$25*(AN72+AN73)/AN72*0.8 -> 97.008 | AU82: ='DNSP Inputs O & M'!$G$14 -> 40.42 | AV82: 1 | AW82: ='DNSP Inputs O & M'!$G$17 -> 8 | AX82: =AU82*AV82*AW82 -> 323.36 | AY82: =AX82/'DNSP Inputs O & M'!$G$25*(AV72+AV73)/AV72*0.8 -> 97.008 | BB82: ='DNSP Inputs O & M'!$G$15 -> 40.42 | BC82: 1 | BD82: ='DNSP Inputs O & M'!$G$17 -> 8 | BE82: =BB82*BC82*BD82 -> 323.36 | BF82: =BE82/'DNSP Inputs O & M'!$G$25*(BC72+BC73)/BC72*0.8 -> 97.008 | BJ82: ='DNSP Inputs O & M'!$H$14 -> 40.42 | BK82: 1 | BL82: ='DNSP Inputs O & M'!$H$17 -> 8 | BM82: =BJ82*BK82*BL82 -> 323.36 | BN82: =BM82/'DNSP Inputs O & M'!$H$25*(BK72+BK73)/BK72*0.8 -> 97.008 | BQ82: ='DNSP Inputs O & M'!$H$15 -> 40.42 | BR82: 1 | BS82: ='DNSP Inputs O & M'!$H$17 -> 8 | BT82: =BQ82*BR82*BS82 -> 323.36 | BU82: =BT82/'DNSP Inputs O & M'!$H$25*(BR72+BR73)/BR72*0.8 -> 97.008
A83: Labour - repair of faults
A84: Crew costs | B84: ='DNSP Inputs O & M'!$D$12 -> 90.24 | C84: ='DNSP Inputs O & M'!$D$33 -> 2 | D84: ='DNSP Inputs O & M'!$D$17 -> 8 | E84: =B84*C84*D84 -> 1443.84 | F84: =(E84+E85)/'DNSP Inputs O & M'!$D$36 -> 40.77528993 | G84: =F84*D61 -> 1.997989207 | I84: ='DNSP Inputs O & M'!$D$12 -> 90.24 | J84: ='DNSP Inputs O & M'!$D$33 -> 2 | K84: ='DNSP Inputs O & M'!$D$17 -> 8 | L84: =I84*J84*K84 -> 1443.84 | M84: =(L84+L85)/'DNSP Inputs O & M'!$D$37 -> 52.91541664 | N84: =M84*D61 -> 2.592855415 | Q84: ='DNSP Inputs O & M'!$E$12 -> 90.24 | R84: ='DNSP Inputs O & M'!$E$33 -> 2 | S84: ='DNSP Inputs O & M'!$E$17 -> 8 | T84: =Q84*R84*S84 -> 1443.84 | U84: =(T84+T85)/'DNSP Inputs O & M'!$E$36 -> 40.45470325 | V84: =U84*S61 -> 1.982280459 | X84: ='DNSP Inputs O & M'!$E$12 -> 90.24 | Y84: ='DNSP Inputs O & M'!$E$33 -> 2 | Z84: ='DNSP Inputs O & M'!$E$17 -> 8 | AA84: =X84*Y84*Z84 -> 1443.84 | AB84: =(AA84+AA85)/'DNSP Inputs O & M'!$E$37 -> 53.55151515 | AC84: =AB84*S61 -> 2.624024242 | AF84: ='DNSP Inputs O & M'!$F$12 -> 90.24 | AG84: ='DNSP Inputs O & M'!$F$33 -> 2 | AH84: ='DNSP Inputs O & M'!$F$17 -> 8 | AI84: =AF84*AG84*AH84 -> 1443.84 | AJ84: =(AI84+AI85)/'DNSP Inputs O & M'!$F$36 -> 52.45021856 | AK84: =AJ84*AH61 -> 2.57006071 | AM84: ='DNSP Inputs O & M'!$F$12 -> 90.24 | AN84: ='DNSP Inputs O & M'!$F$33 -> 2 | AO84: ='DNSP Inputs O & M'!$F$17 -> 8 | AP84: =AM84*AN84*AO84 -> 1443.84 | AQ84: =(AP84+AP85)/'DNSP Inputs O & M'!$F$37 -> 53.55151515 | AR84: =AQ84*AH61 -> 2.624024242 | AU84: ='DNSP Inputs O & M'!$G$12 -> 90.24 | AV84: ='DNSP Inputs O & M'!$G$33 -> 2 | AW84: ='DNSP Inputs O & M'!$G$17 -> 8 | AX84: =AU84*AV84*AW84 -> 1443.84 | AY84: =(AX84+AX85)/'DNSP Inputs O & M'!$G$36 -> 53.62886573 | AZ84: =AY84*AW61 -> 2.627814421 | BB84: ='DNSP Inputs O & M'!$G$12 -> 90.24 | BC84: ='DNSP Inputs O & M'!$G$33 -> 2 | BD84: ='DNSP Inputs O & M'!$G$17 -> 8 | BE84: =BB84*BC84*BD84 -> 1443.84 | BF84: =(BE84+BE85)/'DNSP Inputs O & M'!$G$37 -> 63.8517844 | BG84: =BF84*AW61 -> 3.128737435 | BJ84: ='DNSP Inputs O & M'!$H$12 -> 90.24 | BK84: ='DNSP Inputs O & M'!$H$33 -> 2 | BL84: ='DNSP Inputs O & M'!$H$17 -> 8 | BM84: =BJ84*BK84*BL84 -> 1443.84 | BN84: =(BM84+BM85)/'DNSP Inputs O & M'!$H$36 -> 53.64542279 | BO84: =BN84*BL61 -> 2.628625717 | BQ84: ='DNSP Inputs O & M'!$H$12 -> 90.24 | BR84: ='DNSP Inputs O & M'!$H$33 -> 2 | BS84: ='DNSP Inputs O & M'!$H$17 -> 8 | BT84: =BQ84*BR84*BS84 -> 1443.84 | BU84: =(BT84+BT85)/'DNSP Inputs O & M'!$H$37 -> 63.85231049 | BV84: =BU84*BL61 -> 3.128763214
A85: Elevated platform costs | B85: ='DNSP Inputs O & M'!$D$14 -> 40.42 | C85: 1 | D85: ='DNSP Inputs O & M'!$D$17 -> 8 | E85: =B85*C85*D85 -> 323.36 | I85: ='DNSP Inputs O & M'!$D$15 -> 40.42 | J85: 1 | K85: ='DNSP Inputs O & M'!$D$17 -> 8 | L85: =I85*J85*K85 -> 323.36 | Q85: ='DNSP Inputs O & M'!$E$14 -> 40.42 | R85: 1 | S85: ='DNSP Inputs O & M'!$E$17 -> 8 | T85: =Q85*R85*S85 -> 323.36 | X85: ='DNSP Inputs O & M'!$E$15 -> 40.42 | Y85: 1 | Z85: ='DNSP Inputs O & M'!$E$17 -> 8 | AA85: =X85*Y85*Z85 -> 323.36 | AF85: ='DNSP Inputs O & M'!$F$14 -> 40.42 | AG85: 1 | AH85: ='DNSP Inputs O & M'!$F$17 -> 8 | AI85: =AF85*AG85*AH85 -> 323.36 | AM85: ='DNSP Inputs O & M'!$F$15 -> 40.42 | AN85: 1 | AO85: ='DNSP Inputs O & M'!$F$17 -> 8 | AP85: =AM85*AN85*AO85 -> 323.36 | AU85: ='DNSP Inputs O & M'!$G$14 -> 40.42 | AV85: 1 | AW85: ='DNSP Inputs O & M'!$G$17 -> 8 | AX85: =AU85*AV85*AW85 -> 323.36 | BB85: ='DNSP Inputs O & M'!$G$15 -> 40.42 | BC85: 1 | BD85: ='DNSP Inputs O & M'!$G$17 -> 8 | BE85: =BB85*BC85*BD85 -> 323.36 | BJ85: ='DNSP Inputs O & M'!$H$14 -> 40.42 | BK85: 1 | BL85: ='DNSP Inputs O & M'!$H$17 -> 8 | BM85: =BJ85*BK85*BL85 -> 323.36 | BQ85: ='DNSP Inputs O & M'!$H$15 -> 40.42 | BR85: 1 | BS85: ='DNSP Inputs O & M'!$H$17 -> 8 | BT85: =BQ85*BR85*BS85 -> 323.36
A86: Other Maintenance and Repair costs | G86: ='DNSP Inputs O & M'!$D$48 -> 0 | N86: ='DNSP Inputs O & M'!$D$48 -> 0 | V86: ='DNSP Inputs O & M'!$E$48 -> 0 | AC86: ='DNSP Inputs O & M'!$E$48 -> 0 | AK86: ='DNSP Inputs O & M'!$F$48 -> 0 | AR86: ='DNSP Inputs O & M'!$F$48 -> 0 | AZ86: ='DNSP Inputs O & M'!$G$48 -> 0 | BG86: ='DNSP Inputs O & M'!$G$48 -> 0 | BO86: ='DNSP Inputs O & M'!$H$48 -> 0 | BV86: ='DNSP Inputs O & M'!$H$48 -> 0
A88: Overheads | B88: ='DNSP Inputs O & M'!$D$18 -> 0.25 | G88: =B88*SUM(G72:G86) -> 4.190626826 | I88: ='DNSP Inputs O & M'!$D$18 -> 0.25 | N88: =I88*SUM(N72:N86) -> 4.720720575 | Q88: ='DNSP Inputs O & M'!$E$18 -> 0.25 | V88: =Q88*SUM(V72:V86) -> 4.321587906 | X88: ='DNSP Inputs O & M'!$E$18 -> 0.25 | AC88: =X88*SUM(AC72:AC86) -> 4.724550349 | AF88: ='DNSP Inputs O & M'!$F$18 -> 0.25 | AK88: =AF88*SUM(AK72:AK86) -> 4.609040301 | AM88: ='DNSP Inputs O & M'!$F$18 -> 0.25 | AR88: =AM88*SUM(AR72:AR86) -> 4.895665889 | AU88: ='DNSP Inputs O & M'!$G$18 -> 0.25 | AZ88: =AU88*SUM(AZ72:AZ86) -> 4.786742927 | BB88: ='DNSP Inputs O & M'!$G$18 -> 0.25 | BG88: =BB88*SUM(BG72:BG86) -> 5.223213108 | BJ88: ='DNSP Inputs O & M'!$H$18 -> 0.25 | BO88: =BJ88*SUM(BO72:BO86) -> 4.978271223 | BQ88: ='DNSP Inputs O & M'!$H$18 -> 0.25 | BV88: =BQ88*SUM(BV72:BV86) -> 5.462745281
G90: =SUM(G72,G76,G81,G84,G86,G88) -> 20.95313413 | N90: =SUM(N72,N76,N81,N84,N86,N88) -> 23.60360288 | V90: =SUM(V72,V76,V81,V84,V86,V88) -> 21.60793953 | AC90: =SUM(AC72,AC76,AC81,AC84,AC86,AC88) -> 23.62275174 | AK90: =SUM(AK72,AK76,AK81,AK84,AK86,AK88) -> 23.04520151 | AR90: =SUM(AR72,AR76,AR81,AR84,AR86,AR88) -> 24.47832944 | AZ90: =SUM(AZ72,AZ76,AZ81,AZ84,AZ86,AZ88) -> 23.93371463 | BG90: =SUM(BG72,BG76,BG81,BG84,BG86,BG88) -> 26.11606554 | BO90: =SUM(BO72,BO76,BO81,BO84,BO86,BO88) -> 24.89135611 | BV90: =SUM(BV72,BV76,BV81,BV84,BV86,BV88) -> 27.3137264
A92: Dedicated poles - inspection
A93: Crew costs | B93: ='DNSP Inputs O & M'!$D$12 -> 90.24 | C93: 1 | D93: ='DNSP Inputs O & M'!$D$17 -> 8 | E93: =B93*C93*D93 -> 721.92 | F93: =(E93+E94+E95)/'DNSP Inputs O & M'!$D$116 -> 200.48 | G93: =F93/'DNSP Inputs O & M'!$D$117 -> 2.673066667 | I93: ='DNSP Inputs O & M'!$D$12 -> 90.24 | J93: 1 | K93: ='DNSP Inputs O & M'!$D$17 -> 8 | L93: =I93*J93*K93 -> 721.92 | M93: =(L93+L94+L95)/'DNSP Inputs O & M'!$D$116 -> 200.48 | N93: =M93/'DNSP Inputs O & M'!$D$117 -> 2.673066667 | Q93: ='DNSP Inputs O & M'!$E$12 -> 90.24 | R93: 1 | S93: ='DNSP Inputs O & M'!$E$17 -> 8 | T93: =Q93*R93*S93 -> 721.92 | U93: =(T93+T94+T95)/'DNSP Inputs O & M'!$E$116 -> 200.48 | V93: =U93/'DNSP Inputs O & M'!$E$117 -> 2.673066667 | X93: ='DNSP Inputs O & M'!$E$12 -> 90.24 | Y93: 1 | Z93: ='DNSP Inputs O & M'!$E$17 -> 8 | AA93: =X93*Y93*Z93 -> 721.92 | AB93: =(AA93+AA94+AA95)/'DNSP Inputs O & M'!$E$116 -> 200.48 | AC93: =AB93/'DNSP Inputs O & M'!$E$117 -> 2.673066667 | AF93: ='DNSP Inputs O & M'!$F$12 -> 90.24 | AG93: 1 | AH93: ='DNSP Inputs O & M'!$F$17 -> 8 | AI93: =AF93*AG93*AH93 -> 721.92 | AJ93: =(AI93+AI94+AI95)/'DNSP Inputs O & M'!$F$116 -> 200.48 | AK93: =AJ93/'DNSP Inputs O & M'!$F$117 -> 2.673066667 | AM93: ='DNSP Inputs O & M'!$F$12 -> 90.24 | AN93: 1 | AO93: ='DNSP Inputs O & M'!$F$17 -> 8 | AP93: =AM93*AN93*AO93 -> 721.92 | AQ93: =(AP93+AP94+AP95)/'DNSP Inputs O & M'!$F$116 -> 200.48 | AR93: =AQ93/'DNSP Inputs O & M'!$F$117 -> 2.673066667 | AU93: ='DNSP Inputs O & M'!$G$12 -> 90.24 | AV93: 1 | AW93: ='DNSP Inputs O & M'!$G$17 -> 8 | AX93: =AU93*AV93*AW93 -> 721.92 | AY93: =(AX93+AX94+AX95)/'DNSP Inputs O & M'!$G$116 -> 200.48 | AZ93: =AY93/'DNSP Inputs O & M'!$G$117 -> 2.673066667 | BB93: ='DNSP Inputs O & M'!$G$12 -> 90.24 | BC93: 1 | BD93: ='DNSP Inputs O & M'!$G$17 -> 8 | BE93: =BB93*BC93*BD93 -> 721.92 | BF93: =(BE93+BE94+BE95)/'DNSP Inputs O & M'!$G$116 -> 200.48 | BG93: =BF93/'DNSP Inputs O & M'!$G$117 -> 2.673066667 | BJ93: ='DNSP Inputs O & M'!$H$12 -> 90.24 | BK93: 1 | BL93: ='DNSP Inputs O & M'!$H$17 -> 8 | BM93: =BJ93*BK93*BL93 -> 721.92 | BN93: =(BM93+BM94+BM95)/'DNSP Inputs O & M'!$H$116 -> 200.48 | BO93: =BN93/'DNSP Inputs O & M'!$H$117 -> 2.673066667 | BQ93: ='DNSP Inputs O & M'!$H$12 -> 90.24 | BR93: 1 | BS93: ='DNSP Inputs O & M'!$H$17 -> 8 | BT93: =BQ93*BR93*BS93 -> 721.92 | BU93: =(BT93+BT94+BT95)/'DNSP Inputs O & M'!$H$116 -> 200.48 | BV93: =BU93/'DNSP Inputs O & M'!$H$117 -> 2.673066667
A94: Vehicle costs | B94: ='DNSP Inputs O & M'!$D$16 -> 10 | C94: 1 | D94: ='DNSP Inputs O & M'!$D$17 -> 8 | E94: =B94*C94*D94 -> 80 | I94: ='DNSP Inputs O & M'!$D$16 -> 10 | J94: 1 | K94: ='DNSP Inputs O & M'!$D$17 -> 8 | L94: =I94*J94*K94 -> 80 | Q94: ='DNSP Inputs O & M'!$E$16 -> 10 | R94: 1 | S94: ='DNSP Inputs O & M'!$E$17 -> 8 | T94: =Q94*R94*S94 -> 80 | X94: ='DNSP Inputs O & M'!$E$16 -> 10 | Y94: 1 | Z94: ='DNSP Inputs O & M'!$E$17 -> 8 | AA94: =X94*Y94*Z94 -> 80 | AF94: ='DNSP Inputs O & M'!$F$16 -> 10 | AG94: 1 | AH94: ='DNSP Inputs O & M'!$F$17 -> 8 | AI94: =AF94*AG94*AH94 -> 80 | AM94: ='DNSP Inputs O & M'!$F$16 -> 10 | AN94: 1 | AO94: ='DNSP Inputs O & M'!$F$17 -> 8 | AP94: =AM94*AN94*AO94 -> 80 | AU94: ='DNSP Inputs O & M'!$G$16 -> 10 | AV94: 1 | AW94: ='DNSP Inputs O & M'!$G$17 -> 8 | AX94: =AU94*AV94*AW94 -> 80 | BB94: ='DNSP Inputs O & M'!$G$16 -> 10 | BC94: 1 | BD94: ='DNSP Inputs O & M'!$G$17 -> 8 | BE94: =BB94*BC94*BD94 -> 80 | BJ94: ='DNSP Inputs O & M'!$H$16 -> 10 | BK94: 1 | BL94: ='DNSP Inputs O & M'!$H$17 -> 8 | BM94: =BJ94*BK94*BL94 -> 80 | BQ94: ='DNSP Inputs O & M'!$H$16 -> 10 | BR94: 1 | BS94: ='DNSP Inputs O & M'!$H$17 -> 8 | BT94: =BQ94*BR94*BS94 -> 80
A95: Overheads | B95: ='DNSP Inputs O & M'!$D$18 -> 0.25 | E95: =B95*(E93+E94) -> 200.48 | I95: ='DNSP Inputs O & M'!$D$18 -> 0.25 | L95: =I95*(L93+L94) -> 200.48 | Q95: ='DNSP Inputs O & M'!$E$18 -> 0.25 | T95: =Q95*(T93+T94) -> 200.48 | X95: ='DNSP Inputs O & M'!$E$18 -> 0.25 | AA95: =X95*(AA93+AA94) -> 200.48 | AF95: ='DNSP Inputs O & M'!$F$18 -> 0.25 | AI95: =AF95*(AI93+AI94) -> 200.48 | AM95: ='DNSP Inputs O & M'!$F$18 -> 0.25 | AP95: =AM95*(AP93+AP94) -> 200.48 | AU95: ='DNSP Inputs O & M'!$G$18 -> 0.25 | AX95: =AU95*(AX93+AX94) -> 200.48 | BB95: ='DNSP Inputs O & M'!$G$18 -> 0.25 | BE95: =BB95*(BE93+BE94) -> 200.48 | BJ95: ='DNSP Inputs O & M'!$H$18 -> 0.25 | BM95: =BJ95*(BM93+BM94) -> 200.48 | BQ95: ='DNSP Inputs O & M'!$H$18 -> 0.25 | BT95: =BQ95*(BT93+BT94) -> 200.48
A100: Sodium High Pressure 150 Watt Standard Light Type - Cost build-up
A102: Addiitonal assumptions
A103: Overheads are applied to material and labour components
A104: All costs and charges are exclusive of GST
B106: Urban | I106: Rural | Q106: Urban | X106: Rural | AF106: Urban | AM106: Rural | AU106: Urban | BB106: Rural | BJ106: Urban | BQ106: Rural
B108: Unit rate | C108: Number | D108: Hours | E108: Cost | F108: Annualised | G108: Annualised | I108: Unit rate | J108: Number | K108: Hours | L108: Cost | M108: Annualised | N108: Annualised | Q108: Unit rate | R108: Number | S108: Hours | T108: Cost | U108: Annualised | V108: Annualised | X108: Unit rate | Y108: Number | Z108: Hours | AA108: Cost | AB108: Annualised | AC108: Annualised | AF108: Unit rate | AG108: Number | AH108: Hours | AI108: Cost | AJ108: Annualised | AK108: Annualised | AM108: Unit rate | AN108: Number | AO108: Hours | AP108: Cost | AQ108: Annualised | AR108: Annualised | AU108: Unit rate | AV108: Number | AW108: Hours | AX108: Cost | AY108: Annualised | AZ108: Annualised | BB108: Unit rate | BC108: Number | BD108: Hours | BE108: Cost | BF108: Annualised | BG108: Annualised | BJ108: Unit rate | BK108: Number | BL108: Hours | BM108: Cost | BN108: Annualised | BO108: Annualised | BQ108: Unit rate | BR108: Number | BS108: Hours | BT108: Cost | BU108: Annualised | BV108: Annualised
F109: cost | G109: unit cost | M109: cost | N109: unit cost | U109: cost | V109: unit cost | AB109: cost | AC109: unit cost | AJ109: cost | AK109: unit cost | AQ109: cost | AR109: unit cost | AY109: cost | AZ109: unit cost | BF109: cost | BG109: unit cost | BN109: cost | BO109: unit cost | BU109: cost | BV109: unit cost
A110: S-HP 150
A111: Patrols and repairs
A112: Materials
A113: Lamp | B113: ='DNSP Inputs O & M'!$D$62 -> 35.67 | C113: ='DNSP Inputs O & M'!$D$69 -> 36.45394329 | E113: =B113*C113 -> 1300.312157 | F113: =(E113+E114+E115)/'DNSP Inputs O & M'!$D$69 -> 47.515 | G113: =F113/'DNSP Inputs O & M'!$D$60 -> 9.503 | I113: ='DNSP Inputs O & M'!$D$62*(1+'DNSP Inputs O & M'!$D$11) -> 35.67 | J113: ='DNSP Inputs O & M'!$D$70 -> 26.56660734 | L113: =I113*J113 -> 947.6308839 | M113: =(L113+L114+L115)/'DNSP Inputs O & M'!$D$70 -> 47.515 | N113: =M113/'DNSP Inputs O & M'!$D$60 -> 9.503 | Q113: ='DNSP Inputs O & M'!$E$62 -> 35.67 | R113: ='DNSP Inputs O & M'!$E$69 -> 31.30543798 | T113: =Q113*R113 -> 1116.664973 | U113: =(T113+T114+T115)/'DNSP Inputs O & M'!$E$69 -> 47.515 | V113: =U113/'DNSP Inputs O & M'!$E$60 -> 9.503 | X113: ='DNSP Inputs O & M'!$E$62*(1+'DNSP Inputs O & M'!$E$11) -> 35.67 | Y113: ='DNSP Inputs O & M'!$E$70 -> 25.75004876 | AA113: =X113*Y113 -> 918.5042391 | AB113: =(AA113+AA114+AA115)/'DNSP Inputs O & M'!$E$70 -> 47.515 | AC113: =AB113/'DNSP Inputs O & M'!$E$60 -> 9.503 | AF113: ='DNSP Inputs O & M'!$F$62 -> 35.67 | AG113: ='DNSP Inputs O & M'!$F$69 -> 27.28560967 | AI113: =AF113*AG113 -> 973.2776968 | AJ113: =(AI113+AI114+AI115)/'DNSP Inputs O & M'!$F$69 -> 47.515 | AK113: =AJ113/'DNSP Inputs O & M'!$F$60 -> 9.503 | AM113: ='DNSP Inputs O & M'!$F$62*(1+'DNSP Inputs O & M'!$F$11) -> 35.67 | AN113: ='DNSP Inputs O & M'!$F$70 -> 21.80926978 | AP113: =AM113*AN113 -> 777.936653 | AQ113: =(AP113+AP114+AP115)/'DNSP Inputs O & M'!$F$70 -> 47.515 | AR113: =AQ113/'DNSP Inputs O & M'!$F$60 -> 9.503 | AU113: ='DNSP Inputs O & M'!$G$62 -> 35.67 | AV113: ='DNSP Inputs O & M'!$G$69 -> 27.25463997 | AX113: =AU113*AV113 -> 972.1730079 | AY113: =(AX113+AX114+AX115)/'DNSP Inputs O & M'!$G$69 -> 47.515 | AZ113: =AY113/'DNSP Inputs O & M'!$G$60 -> 9.503 | BB113: ='DNSP Inputs O & M'!$G$62*(1+'DNSP Inputs O & M'!$G$11) -> 35.67 | BC113: ='DNSP Inputs O & M'!$G$70 -> 25.15735201 | BE113: =BB113*BC113 -> 897.3627461 | BF113: =(BE113+BE114+BE115)/'DNSP Inputs O & M'!$G$70 -> 47.515 | BG113: =BF113/'DNSP Inputs O & M'!$G$60 -> 9.503 | BJ113: ='DNSP Inputs O & M'!$H$62 -> 35.67 | BK113: ='DNSP Inputs O & M'!$H$69 -> 25.87392839 | BM113: =BJ113*BK113 -> 922.9230257 | BN113: =(BM113+BM114+BM115)/'DNSP Inputs O & M'!$H$69 -> 47.515 | BO113: =BN113/'DNSP Inputs O & M'!$H$60 -> 9.503 | BQ113: ='DNSP Inputs O & M'!$H$62*(1+'DNSP Inputs O & M'!$H$11) -> 35.67 | BR113: ='DNSP Inputs O & M'!$H$70 -> 24.99331559 | BT113: =BQ113*BR113 -> 891.5115672 | BU113: =(BT113+BT114+BT115)/'DNSP Inputs O & M'!$H$70 -> 47.515 | BV113: =BU113/'DNSP Inputs O & M'!$H$60 -> 9.503
A114: PE cell | B114: ='DNSP Inputs O & M'!$D$63 -> 19.37 | C114: =C113*'DNSP Inputs O & M'!$D$60/'DNSP Inputs O & M'!$D$61 -> 18.22697164 | E114: =B114*C114 -> 353.0564407 | I114: ='DNSP Inputs O & M'!$D$63*(1+'DNSP Inputs O & M'!$D$11) -> 19.37 | J114: =J113*'DNSP Inputs O & M'!$D$60/'DNSP Inputs O & M'!$D$61 -> 13.28330367 | L114: =I114*J114 -> 257.2975921 | Q114: ='DNSP Inputs O & M'!$E$63 -> 19.37 | R114: =R113*'DNSP Inputs O & M'!$E$60/'DNSP Inputs O & M'!$E$61 -> 15.65271899 | T114: =Q114*R114 -> 303.1931668 | X114: ='DNSP Inputs O & M'!$E$63*(1+'DNSP Inputs O & M'!$E$11) -> 19.37 | Y114: =Y113*'DNSP Inputs O & M'!$E$60/'DNSP Inputs O & M'!$E$61 -> 12.87502438 | AA114: =X114*Y114 -> 249.3892222 | AF114: ='DNSP Inputs O & M'!$F$63 -> 19.37 | AG114: =AG113*'DNSP Inputs O & M'!$F$60/'DNSP Inputs O & M'!$F$61 -> 13.64280483 | AI114: =AF114*AG114 -> 264.2611296 | AM114: ='DNSP Inputs O & M'!$F$63*(1+'DNSP Inputs O & M'!$F$11) -> 19.37 | AN114: =AN113*'DNSP Inputs O & M'!$F$60/'DNSP Inputs O & M'!$F$61 -> 10.90463489 | AP114: =AM114*AN114 -> 211.2227778 | AU114: ='DNSP Inputs O & M'!$G$63 -> 19.37 | AV114: =AV113*'DNSP Inputs O & M'!$G$60/'DNSP Inputs O & M'!$G$61 -> 13.62731999 | AX114: =AU114*AV114 -> 263.9611882 | BB114: ='DNSP Inputs O & M'!$G$63*(1+'DNSP Inputs O & M'!$G$11) -> 19.37 | BC114: =BC113*'DNSP Inputs O & M'!$G$60/'DNSP Inputs O & M'!$G$61 -> 12.578676 | BE114: =BB114*BC114 -> 243.6489542 | BJ114: ='DNSP Inputs O & M'!$H$63 -> 19.37 | BK114: =BK113*'DNSP Inputs O & M'!$H$60/'DNSP Inputs O & M'!$H$61 -> 12.9369642 | BM114: =BJ114*BK114 -> 250.5889965 | BQ114: ='DNSP Inputs O & M'!$H$63*(1+'DNSP Inputs O & M'!$H$11) -> 19.37 | BR114: =BR113*'DNSP Inputs O & M'!$H$60/'DNSP Inputs O & M'!$H$61 -> 12.4966578 | BT114: =BQ114*BR114 -> 242.0602615
A115: Miscellaneous | B115: ='DNSP Inputs O & M'!$D$64 -> 2.16 | C115: ='DNSP Inputs O & M'!$D$69 -> 36.45394329 | E115: =B115*C115 -> 78.7405175 | I115: ='DNSP Inputs O & M'!$D$64*(1+'DNSP Inputs O & M'!$D$11) -> 2.16 | J115: ='DNSP Inputs O & M'!$D$70 -> 26.56660734 | L115: =I115*J115 -> 57.38387186 | Q115: ='DNSP Inputs O & M'!$E$64 -> 2.16 | R115: ='DNSP Inputs O & M'!$E$69 -> 31.30543798 | T115: =Q115*R115 -> 67.61974603 | X115: ='DNSP Inputs O & M'!$E$64*(1+'DNSP Inputs O & M'!$E$11) -> 2.16 | Y115: ='DNSP Inputs O & M'!$E$70 -> 25.75004876 | AA115: =X115*Y115 -> 55.62010531 | AF115: ='DNSP Inputs O & M'!$F$64 -> 2.16 | AG115: ='DNSP Inputs O & M'!$F$69 -> 27.28560967 | AI115: =AF115*AG115 -> 58.93691688 | AM115: ='DNSP Inputs O & M'!$F$64*(1+'DNSP Inputs O & M'!$F$11) -> 2.16 | AN115: ='DNSP Inputs O & M'!$F$70 -> 21.80926978 | AP115: =AM115*AN115 -> 47.10802272 | AU115: ='DNSP Inputs O & M'!$G$64 -> 2.16 | AV115: ='DNSP Inputs O & M'!$G$69 -> 27.25463997 | AX115: =AU115*AV115 -> 58.87002235 | BB115: ='DNSP Inputs O & M'!$G$64*(1+'DNSP Inputs O & M'!$G$11) -> 2.16 | BC115: ='DNSP Inputs O & M'!$G$70 -> 25.15735201 | BE115: =BB115*BC115 -> 54.33988033 | BJ115: ='DNSP Inputs O & M'!$H$64 -> 2.16 | BK115: ='DNSP Inputs O & M'!$H$69 -> 25.87392839 | BM115: =BJ115*BK115 -> 55.88768532 | BQ115: ='DNSP Inputs O & M'!$H$64*(1+'DNSP Inputs O & M'!$H$11) -> 2.16 | BR115: ='DNSP Inputs O & M'!$H$70 -> 24.99331559 | BT115: =BQ115*BR115 -> 53.98556168
A116: Labour - Patrol
A117: Crew costs | B117: ='DNSP Inputs O & M'!$D$13 -> 132 | C117: ='DNSP Inputs O & M'!$D$65 -> 2 | D117: ='DNSP Inputs O & M'!$D$17 -> 8 | E117: =B117*C117*D117 -> 2112 | F117: =(E117+E118)/'DNSP Inputs O & M'!$D$67 -> 0.4151333035 | G117: =F117*'DNSP Inputs O & M'!$D$59 -> 1.24539991 | I117: ='DNSP Inputs O & M'!$D$13 -> 132 | J117: ='DNSP Inputs O & M'!$D$65 -> 2 | K117: ='DNSP Inputs O & M'!$D$17 -> 8 | L117: =I117*J117*K117 -> 2112 | M117: =(L117+L118)/'DNSP Inputs O & M'!$D$68 -> 0.8787844559 | N117: =M117*'DNSP Inputs O & M'!$D$59 -> 2.636353368 | Q117: ='DNSP Inputs O & M'!$E$13 -> 132 | R117: ='DNSP Inputs O & M'!$E$65 -> 2 | S117: ='DNSP Inputs O & M'!$E$17 -> 8 | T117: =Q117*R117*S117 -> 2112 | U117: =(T117+T118)/'DNSP Inputs O & M'!$E$67 -> 0.3987673646 | V117: =U117*'DNSP Inputs O & M'!$E$59 -> 1.196302094 | X117: ='DNSP Inputs O & M'!$E$13 -> 132 | Y117: ='DNSP Inputs O & M'!$E$65 -> 2 | Z117: ='DNSP Inputs O & M'!$E$17 -> 8 | AA117: =X117*Y117*Z117 -> 2112 | AB117: =(AA117+AA118)/'DNSP Inputs O & M'!$E$68 -> 0.8748069076 | AC117: =AB117*'DNSP Inputs O & M'!$E$59 -> 2.624420723 | AF117: ='DNSP Inputs O & M'!$F$13 -> 132 | AG117: ='DNSP Inputs O & M'!$F$65 -> 2 | AH117: ='DNSP Inputs O & M'!$F$17 -> 8 | AI117: =AF117*AG117*AH117 -> 2112 | AJ117: =(AI117+AI118)/'DNSP Inputs O & M'!$F$67 -> 0.3889753449 | AK117: =AJ117*'DNSP Inputs O & M'!$F$59 -> 1.166926035 | AM117: ='DNSP Inputs O & M'!$F$13 -> 132 | AN117: ='DNSP Inputs O & M'!$F$65 -> 2 | AO117: ='DNSP Inputs O & M'!$F$17 -> 8 | AP117: =AM117*AN117*AO117 -> 2112 | AQ117: =(AP117+AP118)/'DNSP Inputs O & M'!$F$68 -> 0.8637001267 | AR117: =AQ117*'DNSP Inputs O & M'!$F$59 -> 2.59110038 | AU117: ='DNSP Inputs O & M'!$G$13 -> 132 | AV117: ='DNSP Inputs O & M'!$G$65 -> 2 | AW117: ='DNSP Inputs O & M'!$G$17 -> 8 | AX117: =AU117*AV117*AW117 -> 2112 | AY117: =(AX117+AX118)/'DNSP Inputs O & M'!$G$67 -> 0.3772884907 | AZ117: =AY117*'DNSP Inputs O & M'!$G$59 -> 1.131865472 | BB117: ='DNSP Inputs O & M'!$G$13 -> 132 | BC117: ='DNSP Inputs O & M'!$G$65 -> 2 | BD117: ='DNSP Inputs O & M'!$G$17 -> 8 | BE117: =BB117*BC117*BD117 -> 2112 | BF117: =(BE117+BE118)/'DNSP Inputs O & M'!$G$68 -> 0.842495309 | BG117: =BF117*'DNSP Inputs O & M'!$G$59 -> 2.527485927 | BJ117: ='DNSP Inputs O & M'!$H$13 -> 132 | BK117: ='DNSP Inputs O & M'!$H$65 -> 2 | BL117: ='DNSP Inputs O & M'!$H$17 -> 8 | BM117: =BJ117*BK117*BL117 -> 2112 | BN117: =(BM117+BM118)/'DNSP Inputs O & M'!$H$67 -> 0.366198875 | BO117: =BN117*'DNSP Inputs O & M'!$H$59 -> 1.098596625 | BQ117: ='DNSP Inputs O & M'!$H$13 -> 132 | BR117: ='DNSP Inputs O & M'!$H$65 -> 2 | BS117: ='DNSP Inputs O & M'!$H$17 -> 8 | BT117: =BQ117*BR117*BS117 -> 2112 | BU117: =(BT117+BT118)/'DNSP Inputs O & M'!$H$68 -> 0.820826702 | BV117: =BU117*'DNSP Inputs O & M'!$H$59 -> 2.462480106
A118: Vehicle costs | B118: ='DNSP Inputs O & M'!$D$16 -> 10 | C118: 1 | D118: ='DNSP Inputs O & M'!$D$17 -> 8 | E118: =B118*C118*D118 -> 80 | I118: ='DNSP Inputs O & M'!$D$16 -> 10 | J118: 1 | K118: ='DNSP Inputs O & M'!$D$17 -> 8 | L118: =I118*J118*K118 -> 80 | Q118: ='DNSP Inputs O & M'!$E$16 -> 10 | R118: 1 | S118: ='DNSP Inputs O & M'!$E$17 -> 8 | T118: =Q118*R118*S118 -> 80 | X118: ='DNSP Inputs O & M'!$E$16 -> 10 | Y118: 1 | Z118: ='DNSP Inputs O & M'!$E$17 -> 8 | AA118: =X118*Y118*Z118 -> 80 | AF118: ='DNSP Inputs O & M'!$F$16 -> 10 | AG118: 1 | AH118: ='DNSP Inputs O & M'!$F$17 -> 8 | AI118: =AF118*AG118*AH118 -> 80 | AM118: ='DNSP Inputs O & M'!$F$16 -> 10 | AN118: 1 | AO118: ='DNSP Inputs O & M'!$F$17 -> 8 | AP118: =AM118*AN118*AO118 -> 80 | AU118: ='DNSP Inputs O & M'!$G$16 -> 10 | AV118: 1 | AW118: ='DNSP Inputs O & M'!$G$17 -> 8 | AX118: =AU118*AV118*AW118 -> 80 | BB118: ='DNSP Inputs O & M'!$G$16 -> 10 | BC118: 1 | BD118: ='DNSP Inputs O & M'!$G$17 -> 8 | BE118: =BB118*BC118*BD118 -> 80 | BJ118: ='DNSP Inputs O & M'!$H$16 -> 10 | BK118: 1 | BL118: ='DNSP Inputs O & M'!$H$17 -> 8 | BM118: =BJ118*BK118*BL118 -> 80 | BQ118: ='DNSP Inputs O & M'!$H$16 -> 10 | BR118: 1 | BS118: ='DNSP Inputs O & M'!$H$17 -> 8 | BT118: =BQ118*BR118*BS118 -> 80
A119: Labour - Repair of faults
A120: Crew costs | B120: ='DNSP Inputs O & M'!$D$12 -> 90.24 | C120: ='DNSP Inputs O & M'!$D$66 -> 2 | D120: ='DNSP Inputs O & M'!$D$17 -> 8 | E120: =B120*C120*D120 -> 1443.84 | F120: =(E120+E121)/'DNSP Inputs O & M'!$D$69*(C113+C114)/C113 -> 72.71641312 | G120: =F120/'DNSP Inputs O & M'!$D$60 -> 14.54328262 | I120: ='DNSP Inputs O & M'!$D$12 -> 90.24 | J120: ='DNSP Inputs O & M'!$D$66 -> 2 | K120: ='DNSP Inputs O & M'!$D$17 -> 8 | L120: =I120*J120*K120 -> 1443.84 | M120: =(L120+L121)/'DNSP Inputs O & M'!$D$70*(J113+J114)/J113 -> 99.7793947 | N120: =M120/'DNSP Inputs O & M'!$D$60 -> 19.95587894 | Q120: ='DNSP Inputs O & M'!$E$12 -> 90.24 | R120: ='DNSP Inputs O & M'!$E$66 -> 2 | S120: ='DNSP Inputs O & M'!$E$17 -> 8 | T120: =Q120*R120*S120 -> 1443.84 | U120: =(T120+T121)/'DNSP Inputs O & M'!$E$69*(R113+R114)/R113 -> 84.67538457 | V120: =U120/'DNSP Inputs O & M'!$E$60 -> 16.93507691 | X120: ='DNSP Inputs O & M'!$E$12 -> 90.24 | Y120: ='DNSP Inputs O & M'!$E$66 -> 2 | Z120: ='DNSP Inputs O & M'!$E$17 -> 8 | AA120: =X120*Y120*Z120 -> 1443.84 | AB120: =(AA120+AA121)/'DNSP Inputs O & M'!$E$70*(Y113+Y114)/Y113 -> 102.9434944 | AC120: =AB120/'DNSP Inputs O & M'!$E$60 -> 20.58869888 | AF120: ='DNSP Inputs O & M'!$F$12 -> 90.24 | AG120: ='DNSP Inputs O & M'!$F$66 -> 2 | AH120: ='DNSP Inputs O & M'!$F$17 -> 8 | AI120: =AF120*AG120*AH120 -> 1443.84 | AJ120: =(AI120+AI121)/'DNSP Inputs O & M'!$F$69*(AG113+AG114)/AG113 -> 97.15011071 | AK120: =AJ120/'DNSP Inputs O & M'!$F$60 -> 19.43002214 | AM120: ='DNSP Inputs O & M'!$F$12 -> 90.24 | AN120: ='DNSP Inputs O & M'!$F$66 -> 2 | AO120: ='DNSP Inputs O & M'!$F$17 -> 8 | AP120: =AM120*AN120*AO120 -> 1443.84 | AQ120: =(AP120+AP121)/'DNSP Inputs O & M'!$F$70*(AN113+AN114)/AN113 -> 121.5446472 | AR120: =AQ120/'DNSP Inputs O & M'!$F$60 -> 24.30892943 | AU120: ='DNSP Inputs O & M'!$G$12 -> 90.24 | AV120: ='DNSP Inputs O & M'!$G$66 -> 2 | AW120: ='DNSP Inputs O & M'!$G$17 -> 8 | AX120: =AU120*AV120*AW120 -> 1443.84 | AY120: =(AX120+AX121)/'DNSP Inputs O & M'!$G$69*(AV113+AV114)/AV113 -> 97.26050326 | AZ120: =AY120/'DNSP Inputs O & M'!$G$60 -> 19.45210065 | BB120: ='DNSP Inputs O & M'!$G$12 -> 90.24 | BC120: ='DNSP Inputs O & M'!$G$66 -> 2 | BD120: ='DNSP Inputs O & M'!$G$17 -> 8 | BE120: =BB120*BC120*BD120 -> 1443.84 | BF120: =(BE120+BE121)/'DNSP Inputs O & M'!$G$70*(BC113+BC114)/BC113 -> 105.3688003 | BG120: =BF120/'DNSP Inputs O & M'!$G$60 -> 21.07376006 | BJ120: ='DNSP Inputs O & M'!$H$12 -> 90.24 | BK120: ='DNSP Inputs O & M'!$H$66 -> 2 | BL120: ='DNSP Inputs O & M'!$H$17 -> 8 | BM120: =BJ120*BK120*BL120 -> 1443.84 | BN120: =(BM120+BM121)/'DNSP Inputs O & M'!$H$69*(BK113+BK114)/BK113 -> 102.4506198 | BO120: =BN120/'DNSP Inputs O & M'!$H$60 -> 20.49012396 | BQ120: ='DNSP Inputs O & M'!$H$12 -> 90.24 | BR120: ='DNSP Inputs O & M'!$H$66 -> 2 | BS120: ='DNSP Inputs O & M'!$H$17 -> 8 | BT120: =BQ120*BR120*BS120 -> 1443.84 | BU120: =(BT120+BT121)/'DNSP Inputs O & M'!$H$70*(BR113+BR114)/BR113 -> 106.060358 | BV120: =BU120/'DNSP Inputs O & M'!$H$60 -> 21.2120716
A121: Elevated platform vehicle costs | B121: ='DNSP Inputs O & M'!$D$15 -> 40.42 | C121: 1 | D121: ='DNSP Inputs O & M'!$D$17 -> 8 | E121: =B121*C121*D121 -> 323.36 | I121: ='DNSP Inputs O & M'!$D$15 -> 40.42 | J121: 1 | K121: ='DNSP Inputs O & M'!$D$17 -> 8 | L121: =I121*J121*K121 -> 323.36 | Q121: ='DNSP Inputs O & M'!$E$15 -> 40.42 | R121: 1 | S121: ='DNSP Inputs O & M'!$E$17 -> 8 | T121: =Q121*R121*S121 -> 323.36 | X121: ='DNSP Inputs O & M'!$E$15 -> 40.42 | Y121: 1 | Z121: ='DNSP Inputs O & M'!$E$17 -> 8 | AA121: =X121*Y121*Z121 -> 323.36 | AF121: ='DNSP Inputs O & M'!$F$15 -> 40.42 | AG121: 1 | AH121: ='DNSP Inputs O & M'!$F$17 -> 8 | AI121: =AF121*AG121*AH121 -> 323.36 | AM121: ='DNSP Inputs O & M'!$F$15 -> 40.42 | AN121: 1 | AO121: ='DNSP Inputs O & M'!$F$17 -> 8 | AP121: =AM121*AN121*AO121 -> 323.36 | AU121: ='DNSP Inputs O & M'!$G$15 -> 40.42 | AV121: 1 | AW121: ='DNSP Inputs O & M'!$G$17 -> 8 | AX121: =AU121*AV121*AW121 -> 323.36 | BB121: ='DNSP Inputs O & M'!$G$15 -> 40.42 | BC121: 1 | BD121: ='DNSP Inputs O & M'!$G$17 -> 8 | BE121: =BB121*BC121*BD121 -> 323.36 | BJ121: ='DNSP Inputs O & M'!$H$15 -> 40.42 | BK121: 1 | BL121: ='DNSP Inputs O & M'!$H$17 -> 8 | BM121: =BJ121*BK121*BL121 -> 323.36 | BQ121: ='DNSP Inputs O & M'!$H$15 -> 40.42 | BR121: 1 | BS121: ='DNSP Inputs O & M'!$H$17 -> 8 | BT121: =BQ121*BR121*BS121 -> 323.36
A123: Other Maintenance and Repair costs | G123: ='DNSP Inputs O & M'!$D$77 -> 2.929493094 | N123: ='DNSP Inputs O & M'!$D$77 -> 2.929493094 | V123: ='DNSP Inputs O & M'!$E$77 -> 2.918121028 | AC123: ='DNSP Inputs O & M'!$E$77 -> 2.918121028 | AK123: ='DNSP Inputs O & M'!$F$77 -> 2.906863588 | AR123: ='DNSP Inputs O & M'!$F$77 -> 2.906863588 | AZ123: ='DNSP Inputs O & M'!$G$77 -> 2.895600023 | BG123: ='DNSP Inputs O & M'!$G$77 -> 2.895600023 | BO123: ='DNSP Inputs O & M'!$H$77 -> 2.884449676 | BV123: ='DNSP Inputs O & M'!$H$77 -> 2.884449676
A125: Overheads | B125: ='DNSP Inputs O & M'!$D$18 -> 0.25 | G125: =B125*(G113+G117+G120+G123) -> 7.055293907 | I125: ='DNSP Inputs O & M'!$D$18 -> 0.25 | N125: =I125*(N113+N117+N120+N123) -> 8.756181351 | Q125: ='DNSP Inputs O & M'!$E$18 -> 0.25 | V125: =Q125*(V113+V117+V120+V123) -> 7.638125009 | X125: ='DNSP Inputs O & M'!$E$18 -> 0.25 | AC125: =X125*(AC113+AC117+AC120+AC123) -> 8.908560158 | AF125: ='DNSP Inputs O & M'!$F$18 -> 0.25 | AK125: =AF125*(AK113+AK117+AK120+AK123) -> 8.251702941 | AM125: ='DNSP Inputs O & M'!$F$18 -> 0.25 | AR125: =AM125*(AR113+AR117+AR120+AR123) -> 9.82747335 | AU125: ='DNSP Inputs O & M'!$G$18 -> 0.25 | AZ125: =AU125*(AZ113+AZ117+AZ120+AZ123) -> 8.245641537 | BB125: ='DNSP Inputs O & M'!$G$18 -> 0.25 | BG125: =BB125*(BG113+BG117+BG120+BG123) -> 8.999961503 | BJ125: ='DNSP Inputs O & M'!$H$18 -> 0.25 | BO125: =BJ125*(BO113+BO117+BO120+BO123) -> 8.494042565 | BQ125: ='DNSP Inputs O & M'!$H$18 -> 0.25 | BV125: =BQ125*(BV113+BV117+BV120+BV123) -> 9.015500347
G127: =SUM(G113,G117,G120,G123,G125) -> 35.27646954 | N127: =SUM(N113,N117,N120,N123,N125) -> 43.78090675 | V127: =SUM(V113,V117,V120,V123,V125) -> 38.19062505 | AC127: =SUM(AC113,AC117,AC120,AC123,AC125) -> 44.54280079 | AK127: =SUM(AK113,AK117,AK120,AK123,AK125) -> 41.25851471 | AR127: =SUM(AR113,AR117,AR120,AR123,AR125) -> 49.13736675 | AZ127: =SUM(AZ113,AZ117,AZ120,AZ123,AZ125) -> 41.22820768 | BG127: =SUM(BG113,BG117,BG120,BG123,BG125) -> 44.99980752 | BO127: =SUM(BO113,BO117,BO120,BO123,BO125) -> 42.47021282 | BV127: =SUM(BV113,BV117,BV120,BV123,BV125) -> 45.07750173
A132: Sodium High Pressure 250 Watt Standard Light Type - Cost build-up
A134: Addiitonal assumptions
A135: Overheads are applied to material and labour components
A136: All costs and charges are exclusive of GST
B138: Urban | I138: Rural | Q138: Urban | X138: Rural | AF138: Urban | AM138: Rural | AU138: Urban | BB138: Rural | BJ138: Urban | BQ138: Rural
B140: Unit rate | C140: Number | D140: Hours | E140: Cost | F140: Annualised | G140: Annualised | I140: Unit rate | J140: Number | K140: Hours | L140: Cost | M140: Annualised | N140: Annualised | Q140: Unit rate | R140: Number | S140: Hours | T140: Cost | U140: Annualised | V140: Annualised | X140: Unit rate | Y140: Number | Z140: Hours | AA140: Cost | AB140: Annualised | AC140: Annualised | AF140: Unit rate | AG140: Number | AH140: Hours | AI140: Cost | AJ140: Annualised | AK140: Annualised | AM140: Unit rate | AN140: Number | AO140: Hours | AP140: Cost | AQ140: Annualised | AR140: Annualised | AU140: Unit rate | AV140: Number | AW140: Hours | AX140: Cost | AY140: Annualised | AZ140: Annualised | BB140: Unit rate | BC140: Number | BD140: Hours | BE140: Cost | BF140: Annualised | BG140: Annualised | BJ140: Unit rate | BK140: Number | BL140: Hours | BM140: Cost | BN140: Annualised | BO140: Annualised | BQ140: Unit rate | BR140: Number | BS140: Hours | BT140: Cost | BU140: Annualised | BV140: Annualised
F141: cost | G141: unit cost | M141: cost | N141: unit cost | U141: cost | V141: unit cost | AB141: cost | AC141: unit cost | AJ141: cost | AK141: unit cost | AQ141: cost | AR141: unit cost | AY141: cost | AZ141: unit cost | BF141: cost | BG141: unit cost | BN141: cost | BO141: unit cost | BU141: cost | BV141: unit cost
A142: S-HP 250
A143: Patrols and repairs
A144: Materials
A145: Lamp | B145: ='DNSP Inputs O & M'!$D$91 -> 35.85 | C145: ='DNSP Inputs O & M'!$D$98 -> 36.45394329 | E145: =B145*C145 -> 1306.873867 | F145: =(E145+E146+E147)/'DNSP Inputs O & M'!$D$98 -> 47.695 | G145: =F145/'DNSP Inputs O & M'!$D$60 -> 9.539 | I145: ='DNSP Inputs O & M'!$D$91*(1+'DNSP Inputs O & M'!$D$11) -> 35.85 | J145: ='DNSP Inputs O & M'!$D$99 -> 26.56660734 | L145: =I145*J145 -> 952.4128732 | M145: =(L145+L146+L147)/'DNSP Inputs O & M'!$D$99 -> 47.695 | N145: =M145/'DNSP Inputs O & M'!$D$60 -> 9.539 | Q145: ='DNSP Inputs O & M'!$E$91 -> 35.85 | R145: ='DNSP Inputs O & M'!$E$98 -> 31.30543798 | T145: =Q145*R145 -> 1122.299951 | U145: =(T145+T146+T147)/'DNSP Inputs O & M'!$E$98 -> 47.695 | V145: =U145/'DNSP Inputs O & M'!$E$60 -> 9.539 | X145: ='DNSP Inputs O & M'!$E$91*(1+'DNSP Inputs O & M'!$E$11) -> 35.85 | Y145: ='DNSP Inputs O & M'!$E$99 -> 25.75004876 | AA145: =X145*Y145 -> 923.1392479 | AB145: =(AA145+AA146+AA147)/'DNSP Inputs O & M'!$E$99 -> 47.695 | AC145: =AB145/'DNSP Inputs O & M'!$E$60 -> 9.539 | AF145: ='DNSP Inputs O & M'!$F$91 -> 35.85 | AG145: ='DNSP Inputs O & M'!$F$98 -> 33.92197649 | AI145: =AF145*AG145 -> 1216.102857 | AJ145: =(AI145+AI146+AI147)/'DNSP Inputs O & M'!$F$98 -> 47.695 | AK145: =AJ145/'DNSP Inputs O & M'!$F$60 -> 9.539 | AM145: ='DNSP Inputs O & M'!$F$91*(1+'DNSP Inputs O & M'!$F$11) -> 35.85 | AN145: ='DNSP Inputs O & M'!$F$99 -> 25.59450533 | AP145: =AM145*AN145 -> 917.5630161 | AQ145: =(AP145+AP146+AP147)/'DNSP Inputs O & M'!$F$99 -> 47.695 | AR145: =AQ145/'DNSP Inputs O & M'!$F$60 -> 9.539 | AU145: ='DNSP Inputs O & M'!$G$91 -> 35.85 | AV145: ='DNSP Inputs O & M'!$G$98 -> 27.25463997 | AX145: =AU145*AV145 -> 977.0788431 | AY145: =(AX145+AX146+AX147)/'DNSP Inputs O & M'!$G$98 -> 47.695 | AZ145: =AY145/'DNSP Inputs O & M'!$G$60 -> 9.539 | BB145: ='DNSP Inputs O & M'!$G$91*(1+'DNSP Inputs O & M'!$G$11) -> 35.85 | BC145: ='DNSP Inputs O & M'!$G$99 -> 25.15735201 | BE145: =BB145*BC145 -> 901.8910694 | BF145: =(BE145+BE146+BE147)/'DNSP Inputs O & M'!$G$99 -> 47.695 | BG145: =BF145/'DNSP Inputs O & M'!$G$60 -> 9.539 | BJ145: ='DNSP Inputs O & M'!$H$91 -> 35.85 | BK145: ='DNSP Inputs O & M'!$H$98 -> 25.87392839 | BM145: =BJ145*BK145 -> 927.5803328 | BN145: =(BM145+BM146+BM147)/'DNSP Inputs O & M'!$H$98 -> 47.695 | BO145: =BN145/'DNSP Inputs O & M'!$H$60 -> 9.539 | BQ145: ='DNSP Inputs O & M'!$H$91*(1+'DNSP Inputs O & M'!$H$11) -> 35.85 | BR145: ='DNSP Inputs O & M'!$H$99 -> 24.99331559 | BT145: =BQ145*BR145 -> 896.010364 | BU145: =(BT145+BT146+BT147)/'DNSP Inputs O & M'!$H$99 -> 47.695 | BV145: =BU145/'DNSP Inputs O & M'!$H$60 -> 9.539
A146: PE cell | B146: ='DNSP Inputs O & M'!$D$92 -> 19.37 | C146: =C145*'DNSP Inputs O & M'!$D$60/'DNSP Inputs O & M'!$D$61 -> 18.22697164 | E146: =B146*C146 -> 353.0564407 | I146: ='DNSP Inputs O & M'!$D$92*(1+'DNSP Inputs O & M'!$D$11) -> 19.37 | J146: =J145*'DNSP Inputs O & M'!$D$60/'DNSP Inputs O & M'!$D$61 -> 13.28330367 | L146: =I146*J146 -> 257.2975921 | Q146: ='DNSP Inputs O & M'!$E$92 -> 19.37 | R146: =R145*'DNSP Inputs O & M'!$E$60/'DNSP Inputs O & M'!$E$61 -> 15.65271899 | T146: =Q146*R146 -> 303.1931668 | X146: ='DNSP Inputs O & M'!$E$92*(1+'DNSP Inputs O & M'!$E$11) -> 19.37 | Y146: =Y145*'DNSP Inputs O & M'!$E$60/'DNSP Inputs O & M'!$E$61 -> 12.87502438 | AA146: =X146*Y146 -> 249.3892222 | AF146: ='DNSP Inputs O & M'!$F$92 -> 19.37 | AG146: =AG145*'DNSP Inputs O & M'!$F$60/'DNSP Inputs O & M'!$F$61 -> 16.96098824 | AI146: =AF146*AG146 -> 328.5343423 | AM146: ='DNSP Inputs O & M'!$F$92*(1+'DNSP Inputs O & M'!$F$11) -> 19.37 | AN146: =AN145*'DNSP Inputs O & M'!$F$60/'DNSP Inputs O & M'!$F$61 -> 12.79725266 | AP146: =AM146*AN146 -> 247.8827841 | AU146: ='DNSP Inputs O & M'!$G$92 -> 19.37 | AV146: =AV145*'DNSP Inputs O & M'!$G$60/'DNSP Inputs O & M'!$G$61 -> 13.62731999 | AX146: =AU146*AV146 -> 263.9611882 | BB146: ='DNSP Inputs O & M'!$G$92*(1+'DNSP Inputs O & M'!$G$11) -> 19.37 | BC146: =BC145*'DNSP Inputs O & M'!$G$60/'DNSP Inputs O & M'!$G$61 -> 12.578676 | BE146: =BB146*BC146 -> 243.6489542 | BJ146: ='DNSP Inputs O & M'!$H$92 -> 19.37 | BK146: =BK145*'DNSP Inputs O & M'!$H$60/'DNSP Inputs O & M'!$H$61 -> 12.9369642 | BM146: =BJ146*BK146 -> 250.5889965 | BQ146: ='DNSP Inputs O & M'!$H$92*(1+'DNSP Inputs O & M'!$H$11) -> 19.37 | BR146: =BR145*'DNSP Inputs O & M'!$H$60/'DNSP Inputs O & M'!$H$61 -> 12.4966578 | BT146: =BQ146*BR146 -> 242.0602615
A147: Miscellaneous | B147: ='DNSP Inputs O & M'!$D$93 -> 2.16 | C147: ='DNSP Inputs O & M'!$D$98 -> 36.45394329 | E147: =B147*C147 -> 78.7405175 | I147: ='DNSP Inputs O & M'!$D$93*(1+'DNSP Inputs O & M'!$D$11) -> 2.16 | J147: ='DNSP Inputs O & M'!$D$99 -> 26.56660734 | L147: =I147*J147 -> 57.38387186 | Q147: ='DNSP Inputs O & M'!$E$93 -> 2.16 | R147: ='DNSP Inputs O & M'!$E$98 -> 31.30543798 | T147: =Q147*R147 -> 67.61974603 | X147: ='DNSP Inputs O & M'!$E$93*(1+'DNSP Inputs O & M'!$E$11) -> 2.16 | Y147: ='DNSP Inputs O & M'!$E$99 -> 25.75004876 | AA147: =X147*Y147 -> 55.62010531 | AF147: ='DNSP Inputs O & M'!$F$93 -> 2.16 | AG147: ='DNSP Inputs O & M'!$F$98 -> 33.92197649 | AI147: =AF147*AG147 -> 73.27146921 | AM147: ='DNSP Inputs O & M'!$F$93*(1+'DNSP Inputs O & M'!$F$11) -> 2.16 | AN147: ='DNSP Inputs O & M'!$F$99 -> 25.59450533 | AP147: =AM147*AN147 -> 55.28413151 | AU147: ='DNSP Inputs O & M'!$G$93 -> 2.16 | AV147: ='DNSP Inputs O & M'!$G$98 -> 27.25463997 | AX147: =AU147*AV147 -> 58.87002235 | BB147: ='DNSP Inputs O & M'!$G$93*(1+'DNSP Inputs O & M'!$G$11) -> 2.16 | BC147: ='DNSP Inputs O & M'!$G$99 -> 25.15735201 | BE147: =BB147*BC147 -> 54.33988033 | BJ147: ='DNSP Inputs O & M'!$H$93 -> 2.16 | BK147: ='DNSP Inputs O & M'!$H$98 -> 25.87392839 | BM147: =BJ147*BK147 -> 55.88768532 | BQ147: ='DNSP Inputs O & M'!$H$93*(1+'DNSP Inputs O & M'!$H$11) -> 2.16 | BR147: ='DNSP Inputs O & M'!$H$99 -> 24.99331559 | BT147: =BQ147*BR147 -> 53.98556168
A148: Labour - Patrol
A149: Crew costs | B149: ='DNSP Inputs O & M'!$D$13 -> 132 | C149: ='DNSP Inputs O & M'!$D$65 -> 2 | D149: ='DNSP Inputs O & M'!$D$17 -> 8 | E149: =B149*C149*D149 -> 2112 | F149: =(E149+E150)/'DNSP Inputs O & M'!$D$96 -> 0.5431676317 | G149: =F149*'DNSP Inputs O & M'!$D$59 -> 1.629502895 | I149: ='DNSP Inputs O & M'!$D$13 -> 132 | J149: ='DNSP Inputs O & M'!$D$65 -> 2 | K149: ='DNSP Inputs O & M'!$D$17 -> 8 | L149: =I149*J149*K149 -> 2112 | M149: =(L149+L150)/'DNSP Inputs O & M'!$D$97 -> 0.9909629005 | N149: =M149*'DNSP Inputs O & M'!$D$59 -> 2.972888701 | Q149: ='DNSP Inputs O & M'!$E$13 -> 132 | R149: ='DNSP Inputs O & M'!$E$65 -> 2 | S149: ='DNSP Inputs O & M'!$E$17 -> 8 | T149: =Q149*R149*S149 -> 2112 | U149: =(T149+T150)/'DNSP Inputs O & M'!$E$96 -> 0.5382034012 | V149: =U149*'DNSP Inputs O & M'!$E$59 -> 1.614610203 | X149: ='DNSP Inputs O & M'!$E$13 -> 132 | Y149: ='DNSP Inputs O & M'!$E$65 -> 2 | Z149: ='DNSP Inputs O & M'!$E$17 -> 8 | AA149: =X149*Y149*Z149 -> 2112 | AB149: =(AA149+AA150)/'DNSP Inputs O & M'!$E$97 -> 0.9905249123 | AC149: =AB149*'DNSP Inputs O & M'!$E$59 -> 2.971574737 | AF149: ='DNSP Inputs O & M'!$F$13 -> 132 | AG149: ='DNSP Inputs O & M'!$F$65 -> 2 | AH149: ='DNSP Inputs O & M'!$F$17 -> 8 | AI149: =AF149*AG149*AH149 -> 2112 | AJ149: =(AI149+AI150)/'DNSP Inputs O & M'!$F$96 -> 0.5160397506 | AK149: =AJ149*'DNSP Inputs O & M'!$F$59 -> 1.548119252 | AM149: ='DNSP Inputs O & M'!$F$13 -> 132 | AN149: ='DNSP Inputs O & M'!$F$65 -> 2 | AO149: ='DNSP Inputs O & M'!$F$17 -> 8 | AP149: =AM149*AN149*AO149 -> 2112 | AQ149: =(AP149+AP150)/'DNSP Inputs O & M'!$F$97 -> 0.9842821572 | AR149: =AQ149*'DNSP Inputs O & M'!$F$59 -> 2.952846472 | AU149: ='DNSP Inputs O & M'!$G$13 -> 132 | AV149: ='DNSP Inputs O & M'!$G$65 -> 2 | AW149: ='DNSP Inputs O & M'!$G$17 -> 8 | AX149: =AU149*AV149*AW149 -> 2112 | AY149: =(AX149+AX150)/'DNSP Inputs O & M'!$G$96 -> 0.5028956834 | AZ149: =AY149*'DNSP Inputs O & M'!$G$59 -> 1.50868705 | BB149: ='DNSP Inputs O & M'!$G$13 -> 132 | BC149: ='DNSP Inputs O & M'!$G$65 -> 2 | BD149: ='DNSP Inputs O & M'!$G$17 -> 8 | BE149: =BB149*BC149*BD149 -> 2112 | BF149: =(BE149+BE150)/'DNSP Inputs O & M'!$G$97 -> 0.9711653719 | BG149: =BF149*'DNSP Inputs O & M'!$G$59 -> 2.913496116 | BJ149: ='DNSP Inputs O & M'!$H$13 -> 132 | BK149: ='DNSP Inputs O & M'!$H$65 -> 2 | BL149: ='DNSP Inputs O & M'!$H$17 -> 8 | BM149: =BJ149*BK149*BL149 -> 2112 | BN149: =(BM149+BM150)/'DNSP Inputs O & M'!$H$96 -> 0.4895277021 | BO149: =BN149*'DNSP Inputs O & M'!$H$59 -> 1.468583106 | BQ149: ='DNSP Inputs O & M'!$H$13 -> 132 | BR149: ='DNSP Inputs O & M'!$H$65 -> 2 | BS149: ='DNSP Inputs O & M'!$H$17 -> 8 | BT149: =BQ149*BR149*BS149 -> 2112 | BU149: =(BT149+BT150)/'DNSP Inputs O & M'!$H$97 -> 0.9570702775 | BV149: =BU149*'DNSP Inputs O & M'!$H$59 -> 2.871210832
A150: Vehicle costs | B150: ='DNSP Inputs O & M'!$D$16 -> 10 | C150: 1 | D150: ='DNSP Inputs O & M'!$D$17 -> 8 | E150: =B150*C150*D150 -> 80 | I150: ='DNSP Inputs O & M'!$D$16 -> 10 | J150: 1 | K150: ='DNSP Inputs O & M'!$D$17 -> 8 | L150: =I150*J150*K150 -> 80 | Q150: ='DNSP Inputs O & M'!$E$16 -> 10 | R150: 1 | S150: ='DNSP Inputs O & M'!$E$17 -> 8 | T150: =Q150*R150*S150 -> 80 | X150: ='DNSP Inputs O & M'!$E$16 -> 10 | Y150: 1 | Z150: ='DNSP Inputs O & M'!$E$17 -> 8 | AA150: =X150*Y150*Z150 -> 80 | AF150: ='DNSP Inputs O & M'!$F$16 -> 10 | AG150: 1 | AH150: ='DNSP Inputs O & M'!$F$17 -> 8 | AI150: =AF150*AG150*AH150 -> 80 | AM150: ='DNSP Inputs O & M'!$F$16 -> 10 | AN150: 1 | AO150: ='DNSP Inputs O & M'!$F$17 -> 8 | AP150: =AM150*AN150*AO150 -> 80 | AU150: ='DNSP Inputs O & M'!$G$16 -> 10 | AV150: 1 | AW150: ='DNSP Inputs O & M'!$G$17 -> 8 | AX150: =AU150*AV150*AW150 -> 80 | BB150: ='DNSP Inputs O & M'!$G$16 -> 10 | BC150: 1 | BD150: ='DNSP Inputs O & M'!$G$17 -> 8 | BE150: =BB150*BC150*BD150 -> 80 | BJ150: ='DNSP Inputs O & M'!$H$16 -> 10 | BK150: 1 | BL150: ='DNSP Inputs O & M'!$H$17 -> 8 | BM150: =BJ150*BK150*BL150 -> 80 | BQ150: ='DNSP Inputs O & M'!$H$16 -> 10 | BR150: 1 | BS150: ='DNSP Inputs O & M'!$H$17 -> 8 | BT150: =BQ150*BR150*BS150 -> 80
A151: Labour - Repair of faults
A152: Crew costs | B152: ='DNSP Inputs O & M'!$D$12 -> 90.24 | C152: ='DNSP Inputs O & M'!$D$66 -> 2 | D152: ='DNSP Inputs O & M'!$D$17 -> 8 | E152: =B152*C152*D152 -> 1443.84 | F152: =(E152+E153)/'DNSP Inputs O & M'!$D$98*(C145+C146)/C145 -> 72.71641312 | G152: =F152/'DNSP Inputs O & M'!$D$60 -> 14.54328262 | I152: ='DNSP Inputs O & M'!$D$12 -> 90.24 | J152: ='DNSP Inputs O & M'!$D$66 -> 2 | K152: ='DNSP Inputs O & M'!$D$17 -> 8 | L152: =I152*J152*K152 -> 1443.84 | M152: =(L152+L153)/'DNSP Inputs O & M'!$D$99*(J145+J146)/J145 -> 99.7793947 | N152: =M152/'DNSP Inputs O & M'!$D$60 -> 19.95587894 | Q152: ='DNSP Inputs O & M'!$E$12 -> 90.24 | R152: ='DNSP Inputs O & M'!$E$66 -> 2 | S152: ='DNSP Inputs O & M'!$E$17 -> 8 | T152: =Q152*R152*S152 -> 1443.84 | U152: =(T152+T153)/'DNSP Inputs O & M'!$E$98*(R145+R146)/R145 -> 84.67538457 | V152: =U152/'DNSP Inputs O & M'!$E$60 -> 16.93507691 | X152: ='DNSP Inputs O & M'!$E$12 -> 90.24 | Y152: ='DNSP Inputs O & M'!$E$66 -> 2 | Z152: ='DNSP Inputs O & M'!$E$17 -> 8 | AA152: =X152*Y152*Z152 -> 1443.84 | AB152: =(AA152+AA153)/'DNSP Inputs O & M'!$E$99*(Y145+Y146)/Y145 -> 102.9434944 | AC152: =AB152/'DNSP Inputs O & M'!$E$60 -> 20.58869888 | AF152: ='DNSP Inputs O & M'!$F$12 -> 90.24 | AG152: ='DNSP Inputs O & M'!$F$66 -> 2 | AH152: ='DNSP Inputs O & M'!$F$17 -> 8 | AI152: =AF152*AG152*AH152 -> 1443.84 | AJ152: =(AI152+AI153)/'DNSP Inputs O & M'!$F$98*(AG145+AG146)/AG145 -> 78.14403152 | AK152: =AJ152/'DNSP Inputs O & M'!$F$60 -> 15.6288063 | AM152: ='DNSP Inputs O & M'!$F$12 -> 90.24 | AN152: ='DNSP Inputs O & M'!$F$66 -> 2 | AO152: ='DNSP Inputs O & M'!$F$17 -> 8 | AP152: =AM152*AN152*AO152 -> 1443.84 | AQ152: =(AP152+AP153)/'DNSP Inputs O & M'!$F$99*(AN145+AN146)/AN145 -> 103.5691046 | AR152: =AQ152/'DNSP Inputs O & M'!$F$60 -> 20.71382092 | AU152: ='DNSP Inputs O & M'!$G$12 -> 90.24 | AV152: ='DNSP Inputs O & M'!$G$66 -> 2 | AW152: ='DNSP Inputs O & M'!$G$17 -> 8 | AX152: =AU152*AV152*AW152 -> 1443.84 | AY152: =(AX152+AX153)/'DNSP Inputs O & M'!$G$98*(AV145+AV146)/AV145 -> 97.26050326 | AZ152: =AY152/'DNSP Inputs O & M'!$G$60 -> 19.45210065 | BB152: ='DNSP Inputs O & M'!$G$12 -> 90.24 | BC152: ='DNSP Inputs O & M'!$G$66 -> 2 | BD152: ='DNSP Inputs O & M'!$G$17 -> 8 | BE152: =BB152*BC152*BD152 -> 1443.84 | BF152: =(BE152+BE153)/'DNSP Inputs O & M'!$G$99*(BC145+BC146)/BC145 -> 105.3688003 | BG152: =BF152/'DNSP Inputs O & M'!$G$60 -> 21.07376006 | BJ152: ='DNSP Inputs O & M'!$H$12 -> 90.24 | BK152: ='DNSP Inputs O & M'!$H$66 -> 2 | BL152: ='DNSP Inputs O & M'!$H$17 -> 8 | BM152: =BJ152*BK152*BL152 -> 1443.84 | BN152: =(BM152+BM153)/'DNSP Inputs O & M'!$H$98*(BK145+BK146)/BK145 -> 102.4506198 | BO152: =BN152/'DNSP Inputs O & M'!$H$60 -> 20.49012396 | BQ152: ='DNSP Inputs O & M'!$H$12 -> 90.24 | BR152: ='DNSP Inputs O & M'!$H$66 -> 2 | BS152: ='DNSP Inputs O & M'!$H$17 -> 8 | BT152: =BQ152*BR152*BS152 -> 1443.84 | BU152: =(BT152+BT153)/'DNSP Inputs O & M'!$H$99*(BR145+BR146)/BR145 -> 106.060358 | BV152: =BU152/'DNSP Inputs O & M'!$H$60 -> 21.2120716
A153: Elevated platform vehicle costs | B153: ='DNSP Inputs O & M'!$D$15 -> 40.42 | C153: 1 | D153: ='DNSP Inputs O & M'!$D$17 -> 8 | E153: =B153*C153*D153 -> 323.36 | I153: ='DNSP Inputs O & M'!$D$15 -> 40.42 | J153: 1 | K153: ='DNSP Inputs O & M'!$D$17 -> 8 | L153: =I153*J153*K153 -> 323.36 | Q153: ='DNSP Inputs O & M'!$E$15 -> 40.42 | R153: 1 | S153: ='DNSP Inputs O & M'!$E$17 -> 8 | T153: =Q153*R153*S153 -> 323.36 | X153: ='DNSP Inputs O & M'!$E$15 -> 40.42 | Y153: 1 | Z153: ='DNSP Inputs O & M'!$E$17 -> 8 | AA153: =X153*Y153*Z153 -> 323.36 | AF153: ='DNSP Inputs O & M'!$F$15 -> 40.42 | AG153: 1 | AH153: ='DNSP Inputs O & M'!$F$17 -> 8 | AI153: =AF153*AG153*AH153 -> 323.36 | AM153: ='DNSP Inputs O & M'!$F$15 -> 40.42 | AN153: 1 | AO153: ='DNSP Inputs O & M'!$F$17 -> 8 | AP153: =AM153*AN153*AO153 -> 323.36 | AU153: ='DNSP Inputs O & M'!$G$15 -> 40.42 | AV153: 1 | AW153: ='DNSP Inputs O & M'!$G$17 -> 8 | AX153: =AU153*AV153*AW153 -> 323.36 | BB153: ='DNSP Inputs O & M'!$G$15 -> 40.42 | BC153: 1 | BD153: ='DNSP Inputs O & M'!$G$17 -> 8 | BE153: =BB153*BC153*BD153 -> 323.36 | BJ153: ='DNSP Inputs O & M'!$H$15 -> 40.42 | BK153: 1 | BL153: ='DNSP Inputs O & M'!$H$17 -> 8 | BM153: =BJ153*BK153*BL153 -> 323.36 | BQ153: ='DNSP Inputs O & M'!$H$15 -> 40.42 | BR153: 1 | BS153: ='DNSP Inputs O & M'!$H$17 -> 8 | BT153: =BQ153*BR153*BS153 -> 323.36
A155: Other Maintenance and Repair costs | G155: ='DNSP Inputs O & M'!$D$106 -> 3.006344731 | N155: ='DNSP Inputs O & M'!$D$106 -> 3.006344731 | V155: ='DNSP Inputs O & M'!$E$106 -> 2.994674333 | AC155: ='DNSP Inputs O & M'!$E$106 -> 2.994674333 | AK155: ='DNSP Inputs O & M'!$F$106 -> 2.983121568 | AR155: ='DNSP Inputs O & M'!$F$106 -> 2.983121568 | AZ155: ='DNSP Inputs O & M'!$G$106 -> 2.971562517 | BG155: ='DNSP Inputs O & M'!$G$106 -> 2.971562517 | BO155: ='DNSP Inputs O & M'!$H$106 -> 2.960119655 | BV155: ='DNSP Inputs O & M'!$H$106 -> 2.960119655
A157: Overheads | B157: ='DNSP Inputs O & M'!$D$18 -> 0.25 | G157: =B157*(G145+G149+G152+G155) -> 7.179532563 | I157: ='DNSP Inputs O & M'!$D$18 -> 0.25 | N157: =I157*(N145+N149+N152+N155) -> 8.868528093 | Q157: ='DNSP Inputs O & M'!$E$18 -> 0.25 | V157: =Q157*(V145+V149+V152+V155) -> 7.770840363 | X157: ='DNSP Inputs O & M'!$E$18 -> 0.25 | AC157: =X157*(AC145+AC149+AC152+AC155) -> 9.023486988 | AF157: ='DNSP Inputs O & M'!$F$18 -> 0.25 | AK157: =AF157*(AK145+AK149+AK152+AK155) -> 7.424761781 | AM157: ='DNSP Inputs O & M'!$F$18 -> 0.25 | AR157: =AM157*(AR145+AR149+AR152+AR155) -> 9.047197241 | AU157: ='DNSP Inputs O & M'!$G$18 -> 0.25 | AZ157: =AU157*(AZ145+AZ149+AZ152+AZ155) -> 8.367837555 | BB157: ='DNSP Inputs O & M'!$G$18 -> 0.25 | BG157: =BB157*(BG145+BG149+BG152+BG155) -> 9.124454674 | BJ157: ='DNSP Inputs O & M'!$H$18 -> 0.25 | BO157: =BJ157*(BO145+BO149+BO152+BO155) -> 8.61445668 | BQ157: ='DNSP Inputs O & M'!$H$18 -> 0.25 | BV157: =BQ157*(BV145+BV149+BV152+BV155) -> 9.145600523
G159: =SUM(G145,G149,G152,G155,G157) -> 35.89766281 | N159: =SUM(N145,N149,N152,N155,N157) -> 44.34264047 | V159: =SUM(V145,V149,V152,V155,V157) -> 38.85420181 | AC159: =SUM(AC145,AC149,AC152,AC155,AC157) -> 45.11743494 | AK159: =SUM(AK145,AK149,AK152,AK155,AK157) -> 37.12380891 | AR159: =SUM(AR145,AR149,AR152,AR155,AR157) -> 45.2359862 | AZ159: =SUM(AZ145,AZ149,AZ152,AZ155,AZ157) -> 41.83918777 | BG159: =SUM(BG145,BG149,BG152,BG155,BG157) -> 45.62227337 | BO159: =SUM(BO145,BO149,BO152,BO155,BO157) -> 43.0722834 | BV159: =SUM(BV145,BV149,BV152,BV155,BV157) -> 45.72800261
A164: T5 (2 X 14W) - Cost build-up
A166: Addiitonal assumptions
A167: Proportion of luminaire that will fail before bulk change | D167: ='DNSP Inputs O & M'!$D$142 -> 0.114 | S167: ='DNSP Inputs O & M'!$E$142 -> 0.114 | AH167: ='DNSP Inputs O & M'!$F$142 -> 0.114 | AW167: ='DNSP Inputs O & M'!$G$142 -> 0.114 | BL167: ='DNSP Inputs O & M'!$H$142 -> 0.114
A168: Proportion of lamps that will fail before bulk change (per year) | D168: =D167/'DNSP Inputs O & M'!$D$139 -> 0.0285 | S168: =S167/'DNSP Inputs O & M'!$E$139 -> 0.0285 | AH168: =AH167/'DNSP Inputs O & M'!$F$139 -> 0.0285 | AW168: =AW167/'DNSP Inputs O & M'!$G$139 -> 0.0285 | BL168: =BL167/'DNSP Inputs O & M'!$H$139 -> 0.0285
A169: Overheads are applied to material and labour components
A170: All costs and charges are exclusive of GST
B172: Urban | I172: Rural | Q172: Urban | X172: Rural | AF172: Urban | AM172: Rural | AU172: Urban | BB172: Rural | BJ172: Urban | BQ172: Rural
B174: Unit rate | C174: Number | D174: Hours | E174: Cost | F174: Annualised | G174: Annualised | I174: Unit rate | J174: Number | K174: Hours | L174: Cost | M174: Annualised | N174: Annualised | Q174: Unit rate | R174: Number | S174: Hours | T174: Cost | U174: Annualised | V174: Annualised | X174: Unit rate | Y174: Number | Z174: Hours | AA174: Cost | AB174: Annualised | AC174: Annualised | AF174: Unit rate | AG174: Number | AH174: Hours | AI174: Cost | AJ174: Annualised | AK174: Annualised | AM174: Unit rate | AN174: Number | AO174: Hours | AP174: Cost | AQ174: Annualised | AR174: Annualised | AU174: Unit rate | AV174: Number | AW174: Hours | AX174: Cost | AY174: Annualised | AZ174: Annualised | BB174: Unit rate | BC174: Number | BD174: Hours | BE174: Cost | BF174: Annualised | BG174: Annualised | BJ174: Unit rate | BK174: Number | BL174: Hours | BM174: Cost | BN174: Annualised | BO174: Annualised | BQ174: Unit rate | BR174: Number | BS174: Hours | BT174: Cost | BU174: Annualised | BV174: Annualised
F175: cost | G175: unit cost | M175: cost | N175: unit cost | U175: cost | V175: unit cost | AB175: cost | AC175: unit cost | AJ175: cost | AK175: unit cost | AQ175: cost | AR175: unit cost | AY175: cost | AZ175: unit cost | BF175: cost | BG175: unit cost | BN175: cost | BO175: unit cost | BU175: cost | BV175: unit cost
A176: T5 (2 X 14W)
A177: Bulk change & repairs
A178: Materials - bulk lamp change
A179: Lamp | B179: ='DNSP Inputs O & M'!$D$143 -> 8.63505691 | C179: ='DNSP Inputs O & M'!$D$149 -> 34.22341736 | E179: =B179*C179 -> 295.5211565 | F179: =E179/'DNSP Inputs O & M'!$D$139 -> 73.88028913 | G179: =(F179+F180+F181)/C179 -> 4.250067073 | I179: ='DNSP Inputs O & M'!$D$143*(1+'DNSP Inputs O & M'!$D$11) -> 8.63505691 | J179: ='DNSP Inputs O & M'!$D$150 -> 34.22341736 | L179: =I179*J179 -> 295.5211565 | M179: =L179/'DNSP Inputs O & M'!$D$139 -> 73.88028913 | N179: =(M179+M180+M181)/J179 -> 4.250067073 | Q179: ='DNSP Inputs O & M'!$E$143 -> 8.63505691 | R179: ='DNSP Inputs O & M'!$E$149 -> 40.33029941 | T179: =Q179*R179 -> 348.2544306 | U179: =T179/'DNSP Inputs O & M'!$E$139 -> 87.06360765 | V179: =(U179+U180+U181)/R179 -> 4.250067073 | X179: ='DNSP Inputs O & M'!$E$143*(1+'DNSP Inputs O & M'!$E$11) -> 8.63505691 | Y179: ='DNSP Inputs O & M'!$E$150 -> 40.33029941 | AA179: =X179*Y179 -> 348.2544306 | AB179: =AA179/'DNSP Inputs O & M'!$E$139 -> 87.06360765 | AC179: =(AB179+AB180+AB181)/Y179 -> 4.250067073 | AF179: ='DNSP Inputs O & M'!$F$143 -> 8.63505691 | AG179: ='DNSP Inputs O & M'!$F$149 -> 47.14967084 | AI179: =AF179*AG179 -> 407.140091 | AJ179: =AI179/'DNSP Inputs O & M'!$F$139 -> 101.7850228 | AK179: =(AJ179+AJ180+AJ181)/AG179 -> 4.250067073 | AM179: ='DNSP Inputs O & M'!$F$143*(1+'DNSP Inputs O & M'!$F$11) -> 8.63505691 | AN179: ='DNSP Inputs O & M'!$F$150 -> 47.14967084 | AP179: =AM179*AN179 -> 407.140091 | AQ179: =AP179/'DNSP Inputs O & M'!$F$139 -> 101.7850228 | AR179: =(AQ179+AQ180+AQ181)/AN179 -> 4.250067073 | AU179: ='DNSP Inputs O & M'!$G$143 -> 8.63505691 | AV179: ='DNSP Inputs O & M'!$G$149 -> 54.8027823 | AX179: =AU179*AV179 -> 473.225144 | AY179: =AX179/'DNSP Inputs O & M'!$G$139 -> 118.306286 | AZ179: =(AY179+AY180+AY181)/AV179 -> 4.250067073 | BB179: ='DNSP Inputs O & M'!$G$143*(1+'DNSP Inputs O & M'!$G$11) -> 8.63505691 | BC179: ='DNSP Inputs O & M'!$G$150 -> 54.8027823 | BE179: =BB179*BC179 -> 473.225144 | BF179: =BE179/'DNSP Inputs O & M'!$G$139 -> 118.306286 | BG179: =(BF179+BF180+BF181)/BC179 -> 4.250067073 | BJ179: ='DNSP Inputs O & M'!$H$143 -> 8.63505691 | BK179: ='DNSP Inputs O & M'!$H$149 -> 63.44014496 | BM179: =BJ179*BK179 -> 547.8092621 | BN179: =BM179/'DNSP Inputs O & M'!$H$139 -> 136.9523155 | BO179: =(BN179+BN180+BN181)/BK179 -> 4.250067073 | BQ179: ='DNSP Inputs O & M'!$H$143*(1+'DNSP Inputs O & M'!$H$11) -> 8.63505691 | BR179: ='DNSP Inputs O & M'!$H$150 -> 63.44014496 | BT179: =BQ179*BR179 -> 547.8092621 | BU179: =BT179/'DNSP Inputs O & M'!$H$139 -> 136.9523155 | BV179: =(BU179+BU180+BU181)/BR179 -> 4.250067073
A180: PE cell | B180: ='DNSP Inputs O & M'!$D$144 -> 14.57165854 | C180: =C179*'DNSP Inputs O & M'!$D$139/'DNSP Inputs O & M'!$D$140 -> 17.11170868 | E180: =B180*C180 -> 249.3459758 | F180: =E180/'DNSP Inputs O & M'!$D$139 -> 62.33649396 | I180: ='DNSP Inputs O & M'!$D$144*(1+'DNSP Inputs O & M'!$D$11) -> 14.57165854 | J180: =J179*'DNSP Inputs O & M'!$D$139/'DNSP Inputs O & M'!$D$140 -> 17.11170868 | L180: =I180*J180 -> 249.3459758 | M180: =L180/'DNSP Inputs O & M'!$D$139 -> 62.33649396 | Q180: ='DNSP Inputs O & M'!$E$144 -> 14.57165854 | R180: =R179*'DNSP Inputs O & M'!$E$139/'DNSP Inputs O & M'!$E$140 -> 20.1651497 | T180: =Q180*R180 -> 293.8396758 | U180: =T180/'DNSP Inputs O & M'!$E$139 -> 73.45991896 | X180: ='DNSP Inputs O & M'!$E$144*(1+'DNSP Inputs O & M'!$E$11) -> 14.57165854 | Y180: =Y179*'DNSP Inputs O & M'!$E$139/'DNSP Inputs O & M'!$E$140 -> 20.1651497 | AA180: =X180*Y180 -> 293.8396758 | AB180: =AA180/'DNSP Inputs O & M'!$E$139 -> 73.45991896 | AF180: ='DNSP Inputs O & M'!$F$144 -> 14.57165854 | AG180: =AG179*'DNSP Inputs O & M'!$F$139/'DNSP Inputs O & M'!$F$140 -> 23.57483542 | AI180: =AF180*AG180 -> 343.5244518 | AJ180: =AI180/'DNSP Inputs O & M'!$F$139 -> 85.88111295 | AM180: ='DNSP Inputs O & M'!$F$144*(1+'DNSP Inputs O & M'!$F$11) -> 14.57165854 | AN180: =AN179*'DNSP Inputs O & M'!$F$139/'DNSP Inputs O & M'!$F$140 -> 23.57483542 | AP180: =AM180*AN180 -> 343.5244518 | AQ180: =AP180/'DNSP Inputs O & M'!$F$139 -> 85.88111295 | AU180: ='DNSP Inputs O & M'!$G$144 -> 14.57165854 | AV180: =AV179*'DNSP Inputs O & M'!$G$139/'DNSP Inputs O & M'!$G$140 -> 27.40139115 | AX180: =AU180*AV180 -> 399.2837152 | AY180: =AX180/'DNSP Inputs O & M'!$G$139 -> 99.82092881 | BB180: ='DNSP Inputs O & M'!$G$144*(1+'DNSP Inputs O & M'!$G$11) -> 14.57165854 | BC180: =BC179*'DNSP Inputs O & M'!$G$139/'DNSP Inputs O & M'!$G$140 -> 27.40139115 | BE180: =BB180*BC180 -> 399.2837152 | BF180: =BE180/'DNSP Inputs O & M'!$G$139 -> 99.82092881 | BJ180: ='DNSP Inputs O & M'!$H$144 -> 14.57165854 | BK180: =BK179*'DNSP Inputs O & M'!$H$139/'DNSP Inputs O & M'!$H$140 -> 31.72007248 | BM180: =BJ180*BK180 -> 462.2140649 | BN180: =BM180/'DNSP Inputs O & M'!$H$139 -> 115.5535162 | BQ180: ='DNSP Inputs O & M'!$H$144*(1+'DNSP Inputs O & M'!$H$11) -> 14.57165854 | BR180: =BR179*'DNSP Inputs O & M'!$H$139/'DNSP Inputs O & M'!$H$140 -> 31.72007248 | BT180: =BQ180*BR180 -> 462.2140649 | BU180: =BT180/'DNSP Inputs O & M'!$H$139 -> 115.5535162
A181: Miscellaneous | B181: ='DNSP Inputs O & M'!$D$146 -> 1.079382114 | C181: ='DNSP Inputs O & M'!$D$149 -> 34.22341736 | E181: =B181*C181 -> 36.94014457 | F181: =E181/'DNSP Inputs O & M'!$D$139 -> 9.235036142 | I181: ='DNSP Inputs O & M'!$D$146*(1+'DNSP Inputs O & M'!$D$11) -> 1.079382114 | J181: ='DNSP Inputs O & M'!$D$150 -> 34.22341736 | L181: =I181*J181 -> 36.94014457 | M181: =L181/'DNSP Inputs O & M'!$D$139 -> 9.235036142 | Q181: ='DNSP Inputs O & M'!$E$146 -> 1.079382114 | R181: ='DNSP Inputs O & M'!$E$149 -> 40.33029941 | T181: =Q181*R181 -> 43.53180383 | U181: =T181/'DNSP Inputs O & M'!$E$139 -> 10.88295096 | X181: ='DNSP Inputs O & M'!$E$146*(1+'DNSP Inputs O & M'!$E$11) -> 1.079382114 | Y181: ='DNSP Inputs O & M'!$E$150 -> 40.33029941 | AA181: =X181*Y181 -> 43.53180383 | AB181: =AA181/'DNSP Inputs O & M'!$E$139 -> 10.88295096 | AF181: ='DNSP Inputs O & M'!$F$146 -> 1.079382114 | AG181: ='DNSP Inputs O & M'!$F$149 -> 47.14967084 | AI181: =AF181*AG181 -> 50.89251138 | AJ181: =AI181/'DNSP Inputs O & M'!$F$139 -> 12.72312784 | AM181: ='DNSP Inputs O & M'!$F$146*(1+'DNSP Inputs O & M'!$F$11) -> 1.079382114 | AN181: ='DNSP Inputs O & M'!$F$150 -> 47.14967084 | AP181: =AM181*AN181 -> 50.89251138 | AQ181: =AP181/'DNSP Inputs O & M'!$F$139 -> 12.72312784 | AU181: ='DNSP Inputs O & M'!$G$146 -> 1.079382114 | AV181: ='DNSP Inputs O & M'!$G$149 -> 54.8027823 | AX181: =AU181*AV181 -> 59.153143 | AY181: =AX181/'DNSP Inputs O & M'!$G$139 -> 14.78828575 | BB181: ='DNSP Inputs O & M'!$G$146*(1+'DNSP Inputs O & M'!$G$11) -> 1.079382114 | BC181: ='DNSP Inputs O & M'!$G$150 -> 54.8027823 | BE181: =BB181*BC181 -> 59.153143 | BF181: =BE181/'DNSP Inputs O & M'!$G$139 -> 14.78828575 | BJ181: ='DNSP Inputs O & M'!$H$146 -> 1.079382114 | BK181: ='DNSP Inputs O & M'!$H$149 -> 63.44014496 | BM181: =BJ181*BK181 -> 68.47615777 | BN181: =BM181/'DNSP Inputs O & M'!$H$139 -> 17.11903944 | BQ181: ='DNSP Inputs O & M'!$H$146*(1+'DNSP Inputs O & M'!$H$11) -> 1.079382114 | BR181: ='DNSP Inputs O & M'!$H$150 -> 63.44014496 | BT181: =BQ181*BR181 -> 68.47615777 | BU181: =BT181/'DNSP Inputs O & M'!$H$139 -> 17.11903944
A182: Materials - repair of faults
A183: Lamp | B183: ='DNSP Inputs O & M'!$D$143 -> 8.63505691 | C183: ='DNSP Inputs O & M'!$D$151*'DNSP Inputs O & M'!$D$153 -> 30 | E183: =B183*C183 -> 259.0517073 | F183: =(E183+E184+E185+E186)/'DNSP Inputs O & M'!$D$151 -> 44.79435772 | G183: =F183*D168 -> 1.276639195 | I183: ='DNSP Inputs O & M'!$D$143*(1+'DNSP Inputs O & M'!$D$11) -> 8.63505691 | J183: ='DNSP Inputs O & M'!$D$152*'DNSP Inputs O & M'!$D$153 -> 18.30492056 | L183: =I183*J183 -> 158.0640307 | M183: =(L183+L184+L185+L186)/'DNSP Inputs O & M'!$D$152 -> 44.79435772 | N183: =M183*D168 -> 1.276639195 | Q183: ='DNSP Inputs O & M'!$E$143 -> 8.63505691 | R183: ='DNSP Inputs O & M'!$E$151*'DNSP Inputs O & M'!$E$153 -> 29.78834092 | T183: =Q183*R183 -> 257.2240191 | U183: =(T183+T184+T185+T186)/'DNSP Inputs O & M'!$E$151 -> 44.79435772 | V183: =U183*S168 -> 1.276639195 | X183: ='DNSP Inputs O & M'!$E$143*(1+'DNSP Inputs O & M'!$E$11) -> 8.63505691 | Y183: ='DNSP Inputs O & M'!$E$152*'DNSP Inputs O & M'!$E$153 -> 18.27042503 | AA183: =X183*Y183 -> 157.7661599 | AB183: =(AA183+AA184+AA185+AA186)/'DNSP Inputs O & M'!$E$152 -> 44.79435772 | AC183: =AB183*S168 -> 1.276639195 | AF183: ='DNSP Inputs O & M'!$F$143 -> 8.63505691 | AG183: ='DNSP Inputs O & M'!$F$151*'DNSP Inputs O & M'!$F$153 -> 29.46161256 | AI183: =AF183*AG183 -> 254.4027011 | AJ183: =(AI183+AI184+AI185+AI186)/'DNSP Inputs O & M'!$F$151 -> 44.79435772 | AK183: =AJ183*AH168 -> 1.276639195 | AM183: ='DNSP Inputs O & M'!$F$143*(1+'DNSP Inputs O & M'!$F$11) -> 8.63505691 | AN183: ='DNSP Inputs O & M'!$F$152*'DNSP Inputs O & M'!$F$153 -> 17.08341682 | AP183: =AM183*AN183 -> 147.5162764 | AQ183: =(AP183+AP184+AP185+AP186)/'DNSP Inputs O & M'!$F$152 -> 44.79435772 | AR183: =AQ183*AH168 -> 1.276639195 | AU183: ='DNSP Inputs O & M'!$G$143 -> 8.63505691 | AV183: ='DNSP Inputs O & M'!$G$151*'DNSP Inputs O & M'!$G$153 -> 29.62689499 | AX183: =AU183*AV183 -> 255.8299243 | AY183: =(AX183+AX184+AX185+AX186)/'DNSP Inputs O & M'!$G$151 -> 44.79435772 | AZ183: =AY183*AW168 -> 1.276639195 | BB183: ='DNSP Inputs O & M'!$G$143*(1+'DNSP Inputs O & M'!$G$11) -> 8.63505691 | BC183: ='DNSP Inputs O & M'!$G$152*'DNSP Inputs O & M'!$G$153 -> 18.23293893 | BE183: =BB183*BC183 -> 157.4424653 | BF183: =(BE183+BE184+BE185+BE186)/'DNSP Inputs O & M'!$G$152 -> 44.79435772 | BG183: =BF183*AW168 -> 1.276639195 | BJ183: ='DNSP Inputs O & M'!$H$143 -> 8.63505691 | BK183: ='DNSP Inputs O & M'!$H$151*'DNSP Inputs O & M'!$H$153 -> 29.56332058 | BM183: =BJ183*BK183 -> 255.2809557 | BN183: =(BM183+BM184+BM185+BM186)/'DNSP Inputs O & M'!$H$151 -> 44.79435772 | BO183: =BN183*BL168 -> 1.276639195 | BQ183: ='DNSP Inputs O & M'!$H$143*(1+'DNSP Inputs O & M'!$H$11) -> 8.63505691 | BR183: ='DNSP Inputs O & M'!$H$152*'DNSP Inputs O & M'!$H$153 -> 18.21826425 | BT183: =BQ183*BR183 -> 157.3157486 | BU183: =(BT183+BT184+BT185+BT186)/'DNSP Inputs O & M'!$H$152 -> 44.79435772 | BV183: =BU183*BL168 -> 1.276639195
A184: PE cell | B184: ='DNSP Inputs O & M'!$D$144 -> 14.57165854 | C184: ='DNSP Inputs O & M'!$D$151*'DNSP Inputs O & M'!$D$154 -> 25 | E184: =B184*C184 -> 364.2914634 | I184: ='DNSP Inputs O & M'!$D$144*(1+'DNSP Inputs O & M'!$D$11) -> 14.57165854 | J184: ='DNSP Inputs O & M'!$D$152*'DNSP Inputs O & M'!$D$154 -> 15.25410046 | L184: =I184*J184 -> 222.2775432 | Q184: ='DNSP Inputs O & M'!$E$144 -> 14.57165854 | R184: ='DNSP Inputs O & M'!$E$151*'DNSP Inputs O & M'!$E$154 -> 24.82361743 | T184: =Q184*R184 -> 361.7212769 | X184: ='DNSP Inputs O & M'!$E$144*(1+'DNSP Inputs O & M'!$E$11) -> 14.57165854 | Y184: ='DNSP Inputs O & M'!$E$152*'DNSP Inputs O & M'!$E$154 -> 15.22535419 | AA184: =X184*Y184 -> 221.8586624 | AF184: ='DNSP Inputs O & M'!$F$144 -> 14.57165854 | AG184: ='DNSP Inputs O & M'!$F$151*'DNSP Inputs O & M'!$F$154 -> 24.5513438 | AI184: =AF184*AG184 -> 357.7537984 | AM184: ='DNSP Inputs O & M'!$F$144*(1+'DNSP Inputs O & M'!$F$11) -> 14.57165854 | AN184: ='DNSP Inputs O & M'!$F$152*'DNSP Inputs O & M'!$F$154 -> 14.23618068 | AP184: =AM184*AN184 -> 207.4447637 | AU184: ='DNSP Inputs O & M'!$G$144 -> 14.57165854 | AV184: ='DNSP Inputs O & M'!$G$151*'DNSP Inputs O & M'!$G$154 -> 24.68907916 | AX184: =AU184*AV184 -> 359.760831 | BB184: ='DNSP Inputs O & M'!$G$144*(1+'DNSP Inputs O & M'!$G$11) -> 14.57165854 | BC184: ='DNSP Inputs O & M'!$G$152*'DNSP Inputs O & M'!$G$154 -> 15.19411577 | BE184: =BB184*BC184 -> 221.4034668 | BJ184: ='DNSP Inputs O & M'!$H$144 -> 14.57165854 | BK184: ='DNSP Inputs O & M'!$H$151*'DNSP Inputs O & M'!$H$154 -> 24.63610048 | BM184: =BJ184*BK184 -> 358.9888439 | BQ184: ='DNSP Inputs O & M'!$H$144*(1+'DNSP Inputs O & M'!$H$11) -> 14.57165854 | BR184: ='DNSP Inputs O & M'!$H$152*'DNSP Inputs O & M'!$H$154 -> 15.18188688 | BT184: =BQ184*BR184 -> 221.2252715
A185: Luminaire | B185: ='DNSP Inputs O & M'!$D$145 -> 208.320748 | C185: ='DNSP Inputs O & M'!$D$151*'DNSP Inputs O & M'!$D$155 -> 7.5 | E185: =B185*C185 -> 1562.40561 | I185: ='DNSP Inputs O & M'!$D$145*(1+'DNSP Inputs O & M'!$D$11) -> 208.320748 | J185: ='DNSP Inputs O & M'!$D$152*'DNSP Inputs O & M'!$D$155 -> 4.576230139 | L185: =I185*J185 -> 953.3236854 | Q185: ='DNSP Inputs O & M'!$E$145 -> 208.320748 | R185: ='DNSP Inputs O & M'!$E$151*'DNSP Inputs O & M'!$E$155 -> 7.44708523 | T185: =Q185*R185 -> 1551.382365 | X185: ='DNSP Inputs O & M'!$E$145*(1+'DNSP Inputs O & M'!$E$11) -> 208.320748 | Y185: ='DNSP Inputs O & M'!$E$152*'DNSP Inputs O & M'!$E$155 -> 4.567606258 | AA185: =X185*Y185 -> 951.527152 | AF185: ='DNSP Inputs O & M'!$F$145 -> 208.320748 | AG185: ='DNSP Inputs O & M'!$F$151*'DNSP Inputs O & M'!$F$155 -> 7.365403139 | AI185: =AF185*AG185 -> 1534.366291 | AM185: ='DNSP Inputs O & M'!$F$145*(1+'DNSP Inputs O & M'!$F$11) -> 208.320748 | AN185: ='DNSP Inputs O & M'!$F$152*'DNSP Inputs O & M'!$F$155 -> 4.270854204 | AP185: =AM185*AN185 -> 889.7075423 | AU185: ='DNSP Inputs O & M'!$G$145 -> 208.320748 | AV185: ='DNSP Inputs O & M'!$G$151*'DNSP Inputs O & M'!$G$155 -> 7.406723747 | AX185: =AU185*AV185 -> 1542.974231 | BB185: ='DNSP Inputs O & M'!$G$145*(1+'DNSP Inputs O & M'!$G$11) -> 208.320748 | BC185: ='DNSP Inputs O & M'!$G$152*'DNSP Inputs O & M'!$G$155 -> 4.558234732 | BE185: =BB185*BC185 -> 949.5748688 | BJ185: ='DNSP Inputs O & M'!$H$145 -> 208.320748 | BK185: ='DNSP Inputs O & M'!$H$151*'DNSP Inputs O & M'!$H$155 -> 7.390830145 | BM185: =BJ185*BK185 -> 1539.663264 | BQ185: ='DNSP Inputs O & M'!$H$145*(1+'DNSP Inputs O & M'!$H$11) -> 208.320748 | BR185: ='DNSP Inputs O & M'!$H$152*'DNSP Inputs O & M'!$H$155 -> 4.554566063 | BT185: =BQ185*BR185 -> 948.8106088
A186: Miscellaneous | B186: ='DNSP Inputs O & M'!$D$147 -> 10.79382114 | C186: ='DNSP Inputs O & M'!$D$151*'DNSP Inputs O & M'!$D$156 -> 5 | E186: =B186*C186 -> 53.96910569 | I186: ='DNSP Inputs O & M'!$D$147*(1+'DNSP Inputs O & M'!$D$11) -> 10.79382114 | J186: ='DNSP Inputs O & M'!$D$152*'DNSP Inputs O & M'!$D$156 -> 3.050820093 | L186: =I186*J186 -> 32.93000641 | Q186: ='DNSP Inputs O & M'!$E$147 -> 10.79382114 | R186: ='DNSP Inputs O & M'!$E$151*'DNSP Inputs O & M'!$E$156 -> 4.964723487 | T186: =Q186*R186 -> 53.58833732 | X186: ='DNSP Inputs O & M'!$E$147*(1+'DNSP Inputs O & M'!$E$11) -> 10.79382114 | Y186: ='DNSP Inputs O & M'!$E$152*'DNSP Inputs O & M'!$E$156 -> 3.045070839 | AA186: =X186*Y186 -> 32.86794998 | AF186: ='DNSP Inputs O & M'!$F$147 -> 10.79382114 | AG186: ='DNSP Inputs O & M'!$F$151*'DNSP Inputs O & M'!$F$156 -> 4.91026876 | AI186: =AF186*AG186 -> 53.00056273 | AM186: ='DNSP Inputs O & M'!$F$147*(1+'DNSP Inputs O & M'!$F$11) -> 10.79382114 | AN186: ='DNSP Inputs O & M'!$F$152*'DNSP Inputs O & M'!$F$156 -> 2.847236136 | AP186: =AM186*AN186 -> 30.73255759 | AU186: ='DNSP Inputs O & M'!$G$147 -> 10.79382114 | AV186: ='DNSP Inputs O & M'!$G$151*'DNSP Inputs O & M'!$G$156 -> 4.937815831 | AX186: =AU186*AV186 -> 53.29790089 | BB186: ='DNSP Inputs O & M'!$G$147*(1+'DNSP Inputs O & M'!$G$11) -> 10.79382114 | BC186: ='DNSP Inputs O & M'!$G$152*'DNSP Inputs O & M'!$G$156 -> 3.038823155 | BE186: =BB186*BC186 -> 32.8005136 | BJ186: ='DNSP Inputs O & M'!$H$147 -> 10.79382114 | BK186: ='DNSP Inputs O & M'!$H$151*'DNSP Inputs O & M'!$H$156 -> 4.927220097 | BM186: =BJ186*BK186 -> 53.18353243 | BQ186: ='DNSP Inputs O & M'!$H$147*(1+'DNSP Inputs O & M'!$H$11) -> 10.79382114 | BR186: ='DNSP Inputs O & M'!$H$152*'DNSP Inputs O & M'!$H$156 -> 3.036377375 | BT186: =BQ186*BR186 -> 32.77411429
A187: Labour - bulk lamp change
A188: Crew costs | B188: ='DNSP Inputs O & M'!$D$12 -> 90.24 | C188: ='DNSP Inputs O & M'!$D$148 -> 2 | D188: ='DNSP Inputs O & M'!$D$17 -> 8 | E188: =B188*C188*D188 -> 1443.84 | F188: =E188/'DNSP Inputs O & M'!$D$139*(C179+C180)/C179 -> 541.44 | G188: =(F188+F189)/C179 -> 19.36393415 | I188: ='DNSP Inputs O & M'!$D$12 -> 90.24 | J188: ='DNSP Inputs O & M'!$D$148 -> 2 | K188: ='DNSP Inputs O & M'!$D$17 -> 8 | L188: =I188*J188*K188 -> 1443.84 | M188: =L188/'DNSP Inputs O & M'!$D$139*(J179+J180)/J179 -> 541.44 | N188: =(M188+M189)/J179 -> 19.36393415 | Q188: ='DNSP Inputs O & M'!$E$12 -> 90.24 | R188: ='DNSP Inputs O & M'!$E$148 -> 2 | S188: ='DNSP Inputs O & M'!$E$17 -> 8 | T188: =Q188*R188*S188 -> 1443.84 | U188: =T188/'DNSP Inputs O & M'!$E$139*(R179+R180)/R179 -> 541.44 | V188: =(U188+U189)/R179 -> 16.43181453 | X188: ='DNSP Inputs O & M'!$E$12 -> 90.24 | Y188: ='DNSP Inputs O & M'!$E$148 -> 2 | Z188: ='DNSP Inputs O & M'!$E$17 -> 8 | AA188: =X188*Y188*Z188 -> 1443.84 | AB188: =AA188/'DNSP Inputs O & M'!$E$139*(Y179+Y180)/Y179 -> 541.44 | AC188: =(AB188+AB189)/Y179 -> 16.43181453 | AF188: ='DNSP Inputs O & M'!$F$12 -> 90.24 | AG188: ='DNSP Inputs O & M'!$F$148 -> 2 | AH188: ='DNSP Inputs O & M'!$F$17 -> 8 | AI188: =AF188*AG188*AH188 -> 1443.84 | AJ188: =AI188/'DNSP Inputs O & M'!$F$139*(AG179+AG180)/AG179 -> 541.44 | AK188: =(AJ188+AJ189)/AG179 -> 14.05524128 | AM188: ='DNSP Inputs O & M'!$F$12 -> 90.24 | AN188: ='DNSP Inputs O & M'!$F$148 -> 2 | AO188: ='DNSP Inputs O & M'!$F$17 -> 8 | AP188: =AM188*AN188*AO188 -> 1443.84 | AQ188: =AP188/'DNSP Inputs O & M'!$F$139*(AN179+AN180)/AN179 -> 541.44 | AR188: =(AQ188+AQ189)/AN179 -> 14.05524128 | AU188: ='DNSP Inputs O & M'!$G$12 -> 90.24 | AV188: ='DNSP Inputs O & M'!$G$148 -> 2 | AW188: ='DNSP Inputs O & M'!$G$17 -> 8 | AX188: =AU188*AV188*AW188 -> 1443.84 | AY188: =AX188/'DNSP Inputs O & M'!$G$139*(AV179+AV180)/AV179 -> 541.44 | AZ188: =(AY188+AY189)/AV179 -> 12.09245174 | BB188: ='DNSP Inputs O & M'!$G$12 -> 90.24 | BC188: ='DNSP Inputs O & M'!$G$148 -> 2 | BD188: ='DNSP Inputs O & M'!$G$17 -> 8 | BE188: =BB188*BC188*BD188 -> 1443.84 | BF188: =BE188/'DNSP Inputs O & M'!$G$139*(BC179+BC180)/BC179 -> 541.44 | BG188: =(BF188+BF189)/BC179 -> 12.09245174 | BJ188: ='DNSP Inputs O & M'!$H$12 -> 90.24 | BK188: ='DNSP Inputs O & M'!$H$148 -> 2 | BL188: ='DNSP Inputs O & M'!$H$17 -> 8 | BM188: =BJ188*BK188*BL188 -> 1443.84 | BN188: =BM188/'DNSP Inputs O & M'!$H$139*(BK179+BK180)/BK179 -> 541.44 | BO188: =(BN188+BN189)/BK179 -> 10.44606693 | BQ188: ='DNSP Inputs O & M'!$H$12 -> 90.24 | BR188: ='DNSP Inputs O & M'!$H$148 -> 2 | BS188: ='DNSP Inputs O & M'!$H$17 -> 8 | BT188: =BQ188*BR188*BS188 -> 1443.84 | BU188: =BT188/'DNSP Inputs O & M'!$H$139*(BR179+BR180)/BR179 -> 541.44 | BV188: =(BU188+BU189)/BR179 -> 10.44606693
A189: Elevated platform vehicle costs | B189: ='DNSP Inputs O & M'!$D$14 -> 40.42 | C189: 1 | D189: ='DNSP Inputs O & M'!$D$17 -> 8 | E189: =B189*C189*D189 -> 323.36 | F189: =E189/'DNSP Inputs O & M'!$D$139*(C179+C180)/C179 -> 121.26 | I189: ='DNSP Inputs O & M'!$D$15 -> 40.42 | J189: 1 | K189: ='DNSP Inputs O & M'!$D$17 -> 8 | L189: =I189*J189*K189 -> 323.36 | M189: =L189/'DNSP Inputs O & M'!$D$139*(J179+J180)/J179 -> 121.26 | Q189: ='DNSP Inputs O & M'!$E$14 -> 40.42 | R189: 1 | S189: ='DNSP Inputs O & M'!$E$17 -> 8 | T189: =Q189*R189*S189 -> 323.36 | U189: =T189/'DNSP Inputs O & M'!$E$139*(R179+R180)/R179 -> 121.26 | X189: ='DNSP Inputs O & M'!$E$15 -> 40.42 | Y189: 1 | Z189: ='DNSP Inputs O & M'!$E$17 -> 8 | AA189: =X189*Y189*Z189 -> 323.36 | AB189: =AA189/'DNSP Inputs O & M'!$E$139*(Y179+Y180)/Y179 -> 121.26 | AF189: ='DNSP Inputs O & M'!$F$14 -> 40.42 | AG189: 1 | AH189: ='DNSP Inputs O & M'!$F$17 -> 8 | AI189: =AF189*AG189*AH189 -> 323.36 | AJ189: =AI189/'DNSP Inputs O & M'!$F$139*(AG179+AG180)/AG179 -> 121.26 | AM189: ='DNSP Inputs O & M'!$F$15 -> 40.42 | AN189: 1 | AO189: ='DNSP Inputs O & M'!$F$17 -> 8 | AP189: =AM189*AN189*AO189 -> 323.36 | AQ189: =AP189/'DNSP Inputs O & M'!$F$139*(AN179+AN180)/AN179 -> 121.26 | AU189: ='DNSP Inputs O & M'!$G$14 -> 40.42 | AV189: 1 | AW189: ='DNSP Inputs O & M'!$G$17 -> 8 | AX189: =AU189*AV189*AW189 -> 323.36 | AY189: =AX189/'DNSP Inputs O & M'!$G$139*(AV179+AV180)/AV179 -> 121.26 | BB189: ='DNSP Inputs O & M'!$G$15 -> 40.42 | BC189: 1 | BD189: ='DNSP Inputs O & M'!$G$17 -> 8 | BE189: =BB189*BC189*BD189 -> 323.36 | BF189: =BE189/'DNSP Inputs O & M'!$G$139*(BC179+BC180)/BC179 -> 121.26 | BJ189: ='DNSP Inputs O & M'!$H$14 -> 40.42 | BK189: 1 | BL189: ='DNSP Inputs O & M'!$H$17 -> 8 | BM189: =BJ189*BK189*BL189 -> 323.36 | BN189: =BM189/'DNSP Inputs O & M'!$H$139*(BK179+BK180)/BK179 -> 121.26 | BQ189: ='DNSP Inputs O & M'!$H$15 -> 40.42 | BR189: 1 | BS189: ='DNSP Inputs O & M'!$H$17 -> 8 | BT189: =BQ189*BR189*BS189 -> 323.36 | BU189: =BT189/'DNSP Inputs O & M'!$H$139*(BR179+BR180)/BR179 -> 121.26
A190: Labour - repair of faults
A191: Crew costs | B191: ='DNSP Inputs O & M'!$D$12 -> 90.24 | C191: ='DNSP Inputs O & M'!$D$148 -> 2 | D191: ='DNSP Inputs O & M'!$D$17 -> 8 | E191: =B191*C191*D191 -> 1443.84 | F191: =(E191+E192)/'DNSP Inputs O & M'!$D$151 -> 35.344 | G191: =F191*D168 -> 1.007304 | I191: ='DNSP Inputs O & M'!$D$12 -> 90.24 | J191: ='DNSP Inputs O & M'!$D$148 -> 2 | K191: ='DNSP Inputs O & M'!$D$17 -> 8 | L191: =I191*J191*K191 -> 1443.84 | M191: =(L191+L192)/'DNSP Inputs O & M'!$D$152 -> 57.92540845 | N191: =M191*D168 -> 1.650874141 | Q191: ='DNSP Inputs O & M'!$E$12 -> 90.24 | R191: ='DNSP Inputs O & M'!$E$148 -> 2 | S191: ='DNSP Inputs O & M'!$E$17 -> 8 | T191: =Q191*R191*S191 -> 1443.84 | U191: =(T191+T192)/'DNSP Inputs O & M'!$E$151 -> 35.59513445 | V191: =U191*S168 -> 1.014461332 | X191: ='DNSP Inputs O & M'!$E$12 -> 90.24 | Y191: ='DNSP Inputs O & M'!$E$148 -> 2 | Z191: ='DNSP Inputs O & M'!$E$17 -> 8 | AA191: =X191*Y191*Z191 -> 1443.84 | AB191: =(AA191+AA192)/'DNSP Inputs O & M'!$E$152 -> 58.03477468 | AC191: =AB191*S168 -> 1.653991078 | AF191: ='DNSP Inputs O & M'!$F$12 -> 90.24 | AG191: ='DNSP Inputs O & M'!$F$148 -> 2 | AH191: ='DNSP Inputs O & M'!$F$17 -> 8 | AI191: =AF191*AG191*AH191 -> 1443.84 | AJ191: =(AI191+AI192)/'DNSP Inputs O & M'!$F$151 -> 35.98988338 | AK191: =AJ191*AH168 -> 1.025711676 | AM191: ='DNSP Inputs O & M'!$F$12 -> 90.24 | AN191: ='DNSP Inputs O & M'!$F$148 -> 2 | AO191: ='DNSP Inputs O & M'!$F$17 -> 8 | AP191: =AM191*AN191*AO191 -> 1443.84 | AQ191: =(AP191+AP192)/'DNSP Inputs O & M'!$F$152 -> 62.06720888 | AR191: =AQ191*AH168 -> 1.768915453 | AU191: ='DNSP Inputs O & M'!$G$12 -> 90.24 | AV191: ='DNSP Inputs O & M'!$G$148 -> 2 | AW191: ='DNSP Inputs O & M'!$G$17 -> 8 | AX191: =AU191*AV191*AW191 -> 1443.84 | AY191: =(AX191+AX192)/'DNSP Inputs O & M'!$G$151 -> 35.78910313 | AZ191: =AY191*AW168 -> 1.019989439 | BB191: ='DNSP Inputs O & M'!$G$12 -> 90.24 | BC191: ='DNSP Inputs O & M'!$G$148 -> 2 | BD191: ='DNSP Inputs O & M'!$G$17 -> 8 | BE191: =BB191*BC191*BD191 -> 1443.84 | BF191: =(BE191+BE192)/'DNSP Inputs O & M'!$G$152 -> 58.15409157 | BG191: =BF191*AW168 -> 1.65739161 | BJ191: ='DNSP Inputs O & M'!$H$12 -> 90.24 | BK191: ='DNSP Inputs O & M'!$H$148 -> 2 | BL191: ='DNSP Inputs O & M'!$H$17 -> 8 | BM191: =BJ191*BK191*BL191 -> 1443.84 | BN191: =(BM191+BM192)/'DNSP Inputs O & M'!$H$151 -> 35.86606576 | BO191: =BN191*BL168 -> 1.022182874 | BQ191: ='DNSP Inputs O & M'!$H$12 -> 90.24 | BR191: ='DNSP Inputs O & M'!$H$148 -> 2 | BS191: ='DNSP Inputs O & M'!$H$17 -> 8 | BT191: =BQ191*BR191*BS191 -> 1443.84 | BU191: =(BT191+BT192)/'DNSP Inputs O & M'!$H$152 -> 58.20093426 | BV191: =BU191*BL168 -> 1.658726626
